Workbook

Sheet Contents
A1: 80 | M1: ESC USE ONLY
D2: ESSENTIAL SERVICES COMMISSION
D3: Water Price Review - 2020
D4: Financial Model Template
B7: Table of Contents | F7: Water Business: | H7: =+N24 -> Goulburn Murray Water | I7: =+O24 -> GMW
B8: Section & Sheet Titles | F8: Regulatory Period: | H8: 2020-21 to 2023-24 (Fifth) | N8: [Decision] | O8: [Month] | P8: [Year] | Q8: [Version]
F9: Model Name: | H9: =I7&"_Price Review Template_"&O9&P9&Q9 -> GMW_Price Review Template_Aug2019 - v1 | N9: Draft | O9: Aug | P9: 2019 | Q9: - v1 | R9: << Select
B10: 1 | C10: =Model_Quality_Check!B1 -> Model Quality Check | F10: Decision type: | H10: =+N9&" Decision" -> Draft Decision | N10: Draft | O10: Jan | P10: 2016 | Q10: - v1
B11: =B10+1 -> 2 | C11: =+KeyAssumptionsPriceControl_FO!B1 -> Key Assumptions Price Control | N11: Final | O11: Feb | P11: 2017 | Q11: - v1.2
B12: =B11+1 -> 3 | C12: =+Expenditure_Detail!B1 -> Expenditure - Detail | F12: Model Key: | O12: Mar | P12: 2018 | Q12: - v3
B13: 4 | C13: =Opex_FO!B1 -> Operating Expenditure - Forecast | O13: Apr | P13: 2019 | Q13: - v3.1
B14: 5 | C14: =Opex_Breakdown!B1 -> Operating Expenditure - Breakdown | G14: BLUE | H14: =+I7&" - DATA INPUT CELL" -> GMW - DATA INPUT CELL | O14: May | P14: 2020 | Q14: - v4
B15: 6 | C15: =+'Capex_FO input'!B1 -> Capital Expenditure - Forecast Input | O15: Jun | P15: 2021 | Q15: - v4.1
B16: 7 | C16: =Capex_FO_AC!B1 -> Capital Expenditure - Asset Category Breakdown | G16: YELLOW | H16: NOTES / INSTRUCTIONS | O16: Jul | Q16: - v5
B17: 8 | C17: =ExpSummary_FO!B1 -> Expenditure Summary | O17: Aug | Q17: - v5.1
B18: 9 | C18: =RollForward_FO!B1 -> Rolled forward regulatory asset base (RAB) | G18: GREY | H18: MODEL PARAMETERS / ASSUMPTIONS | O18: Sep | Q18: - v6
B19: 10 | C19: =PrevPerAdj_FO!B1 -> Previous period adjustments | O19: Oct | Q19: - v6.1
B20: 11 | C20: =RevenuePriceCap_FO!C1 -> Revenue forecast (price caps) | G20: WHITE | H20: FORMULA / HARDCODED VALUES | O20: Nov | Q20: - v7
B21: 12 | C21: Revenue forecast (tariff basket) | O21: Dec | Q21: - v7.1
B22: 13 | C22: =NotPres_FO!B1 -> Non Prescribed Services | G22: ORANGE | H22: FORMULA DIFFERENT TO ADJACENT CELL
B23: 14 | C23: ='Finance&Tax_FO'!B1 -> Cash, debt and tax assumptions | N23: [Business]
B24: 15 | C24: ='Rev&RAV_FO'!B1 -> Revenue requirement detail | G24: GREEN | H24: DATA FROM 2016 DECISION OR PERFORMANCE REPORT | N24: Goulburn Murray Water | O24: =+VLOOKUP(N24,N25:O43,2,FALSE) -> GMW
B25: 16 | C25: =Indicators_FO!B1 -> Financial indicators | N25: Barwon Water | O25: BW | P25: Urban model
B26: 17 | C26: ='Outcomes - NOT USED'!B1 -> Outcomes | D26: [NOT REQUIRED FOR G-MW] | G26: RED | H26: ERROR CHECK | N26: Central Highlands Water | O26: CHW | P26: Urban model
B27: 18 | C27: =GSL!B1 -> Guaranteed Service Levels (GSL) | N27: City West Water | O27: CWW | P27: Urban model
B28: 19 | C28: Dashboard - Pricing | N28: Coliban Water | O28: CW | P28: Urban model
B29: 20 | C29: Dashboard - Opex | N29: East Gippsland Water | O29: EGW | P29: Urban model
B30: 21 | C30: Dashboard - Capex | N30: Gippsland Water | O30: CGW | P30: Urban model
B31: 22 | C31: Dashboard - Data | M31: >>>> | N31: Goulburn Murray Water | O31: GMW | P31: GMW model
N32: Goulburn Valley Water | O32: GVW | P32: Urban model
N33: GWM Water | O33: GWMW | P33: GWMW model
N34: Lower Murray Water - Urban | O34: LMW-U | P34: Urban model
N35: Lower Murray Water - Rural | O35: LMW-R | P35: LMW-R model
N36: North East Water | O36: NEW | P36: Urban model
N37: South East Water | O37: SEW | P37: Urban model
N38: South Gippsland Water | O38: SGW | P38: Urban model
N39: Southern Rural Water | O39: SRW | P39: SRW model
N40: Wannon Water | O40: WNW | P40: Urban model
N41: Western Water | O41: WW | P41: Urban model
N42: Westernport Water | O42: WPW | P42: Urban model
N43: Yarra Valley Water | O43: YVW | P43: Urban model

Sheet Model_Quality_Check
A1: 80 | B1: Model Quality Check
B2: =+Contents!H7 -> Goulburn Murray Water
B3: Go to Table of Contents
K4: FIRST REG PERIOD | O4: SECOND REG PERIOD | S4: THIRD REG PERIOD | V4: FOURTH REG PERIOD | Z4: FIFTH REG PERIOD | AD4: SIXTH REG PERIOD
F6: Straight Line | J6: 2006 | K6: 2007 | L6: 2008 | M6: 2009 | N6: 2010 | O6: 2011 | P6: 2012 | Q6: 2013 | R6: 2014 | S6: 2015 | T6: 2016 | U6: 2017 | V6: 2018 | W6: 2019 | X6: 2020 | Y6: 2021 | Z6: 2022 | AA6: 2023 | AB6: 2024 | AC6: 2025 | AD6: 2026 | AE6: 2027 | AF6: 2028
F7: Declining Balance | J7: =+CONCATENATE(J6-1,"-",RIGHT(J6,2)) -> 2005-06 | K7: 2006-07 | L7: 2007-08 | M7: 2008-09 | N7: 2009-10 | O7: 2010-11 | P7: 2011-12 | Q7: 2012-13 | R7: 2013-14 | S7: 2014-15 | T7: 2015-16 | U7: 2016-17 | V7: 2017-18 | W7: =+CONCATENATE(W6-1,"-",RIGHT(W6,2)) -> 2018-19 | X7: =+CONCATENATE(X6-1,"-",RIGHT(X6,2)) -> 2019-20 | Y7: =+CONCATENATE(Y6-1,"-",RIGHT(Y6,2)) -> 2020-21 | Z7: =+CONCATENATE(Z6-1,"-",RIGHT(Z6,2)) -> 2021-22 | AA7: =+CONCATENATE(AA6-1,"-",RIGHT(AA6,2)) -> 2022-23 | AB7: =+CONCATENATE(AB6-1,"-",RIGHT(AB6,2)) -> 2023-24 | AC7: 2024-25 | AD7: 2025-26 | AE7: 2026-27 | AF7: 2027-28
D9: Model ready for submission: | I9: =IF(AND(X13=Y16=Z16=AA16=AB16=AC16=AD16=AE16=AF16=Y19=Z19=AA19=AB19=AC19=AD19=AE19=AF19=U21=V21=W21=X21=Y21=Z21=AA21=AB21=AC21=AD21=AE21=AF21=Y24=Z24=AA24=AB24=AC24=AD24=AE24=AF24=Y27=Z27=AA27=AB27=AC27=AD27=AE27=AF27=T37=U37=V37=W37=X37=Y37=Z37=AA37=AB37=AC37=AD37=AE37=AF37=T44=U44=V44=W44=X44=Y44=Z44=AA44=AB44=AC44=AD44=AE44=AF44=T47=U47=V47=W47=X47=Y47=Z47=AA47=AB47=AC47=AD47=AE47=AF47=Y50=Z50=AA50=AB50=AC50=AD50=AE50=AF50,Y30=TRUE,Y33="TRUE",Y35="TRUE",Y40="TRUE",Y42="TRUE"),"YES","NO") -> NO | T9: (If No, please ensure that the error check is corrected at the source)
E12: 1. | F12: KeyAssumptionsPriceControl_FO
G13: March quarter annual CPI | X13: =ISNUMBER(KeyAssumptionsPriceControl_FO!Y13) -> TRUE | Y13: Inflation data must be updated based on ABS March CPI - All Groups (Series ID: A2325846C)
E15: 2. | F15: Opex_FO
G16: Reconciliation to 'Opex_Breakdown' tab row 37 | Y16: =Opex_FO!Z93 -> TRUE | Z16: =Opex_FO!AA93 -> TRUE | AA16: =Opex_FO!AB93 -> TRUE | AB16: =Opex_FO!AC93 -> TRUE | AC16: =Opex_FO!AD93 -> TRUE | AD16: =Opex_FO!AE93 -> TRUE | AE16: =Opex_FO!AF93 -> TRUE | AF16: =Opex_FO!AG93 -> TRUE
E18: 3. | F18: Opex_Breakdown
G19: Reconciliation to 'Opex_FO' tab row 92 | Y19: =Opex_Breakdown!Z47 -> TRUE | Z19: =Opex_Breakdown!AA47 -> TRUE | AA19: =Opex_Breakdown!AB47 -> TRUE | AB19: =Opex_Breakdown!AC47 -> TRUE | AC19: =Opex_Breakdown!AD47 -> TRUE | AD19: =Opex_Breakdown!AE47 -> TRUE | AE19: =Opex_Breakdown!AF47 -> TRUE | AF19: =Opex_Breakdown!AG47 -> TRUE
G21: Reconciliation of Opex by service and function | U21: =Opex_Breakdown!V28 -> TRUE | V21: =Opex_Breakdown!W28 -> TRUE | W21: =Opex_Breakdown!X28 -> TRUE | X21: =Opex_Breakdown!Y28 -> TRUE | Y21: =Opex_Breakdown!Z28 -> TRUE | Z21: =Opex_Breakdown!AA28 -> TRUE | AA21: =Opex_Breakdown!AB28 -> TRUE | AB21: =Opex_Breakdown!AC28 -> TRUE | AC21: =Opex_Breakdown!AD28 -> TRUE | AD21: =Opex_Breakdown!AE28 -> TRUE | AE21: =Opex_Breakdown!AF28 -> TRUE | AF21: =Opex_Breakdown!AG28 -> TRUE
E23: 4. | F23: Capex_FO input
G24: Reconciliation of total prescribed capex between cost driver and capital type | Y24: ='Capex_FO input'!D26 -> TRUE | Z24: ='Capex_FO input'!E26 -> TRUE | AA24: ='Capex_FO input'!F26 -> TRUE | AB24: ='Capex_FO input'!G26 -> TRUE | AC24: ='Capex_FO input'!H26 -> TRUE | AD24: ='Capex_FO input'!I26 -> TRUE | AE24: ='Capex_FO input'!J26 -> TRUE | AF24: ='Capex_FO input'!K26 -> TRUE
E26: 5. | F26: Capex_FO_AC
G27: Reconciliation to 'Capex_FO input' tab row 29 | Y27: =Capex_FO_AC!Y31 -> TRUE | Z27: =Capex_FO_AC!Z31 -> TRUE | AA27: =Capex_FO_AC!AA31 -> TRUE | AB27: =Capex_FO_AC!AB31 -> TRUE | AC27: =Capex_FO_AC!AC31 -> TRUE | AD27: =Capex_FO_AC!AD31 -> TRUE | AE27: =Capex_FO_AC!AE31 -> TRUE | AF27: =Capex_FO_AC!AF31 -> TRUE
E29: 6. | F29: RollForward_FO
G30: Reconciliation of existing assets book value to RAB | Y30: =ROUND(RollForward_FO!G84,2)=ROUND(RollForward_FO!G82,2) -> TRUE
E32: 7. | F32: RevenuePriceCap_FO
G33: Price control - Fourth period | Y33: =IF(KeyAssumptionsPriceControl_FO!I37=1,IF(RevenuePriceCap_FO!Y34="PRICE CONTROL OK","TRUE","FALSE"),"TRUE") -> TRUE | Z33: =IF(KeyAssumptionsPriceControl_FO!I37=1,RevenuePriceCap_FO!Y34,"") -> 
G35: Price control - Fifth period | Y35: =IF(KeyAssumptionsPriceControl_FO!I37=1,IF(RevenuePriceCap_FO!AD34="PRICE CONTROL OK","TRUE","FALSE"),"TRUE") -> TRUE | Z35: =IF(KeyAssumptionsPriceControl_FO!I37=1,RevenuePriceCap_FO!AD34,"") -> 
G37: Tariff revenue reconciliation | T37: =RevenuePriceCap_FO!U459 -> TRUE | U37: =RevenuePriceCap_FO!V459 -> TRUE | V37: =RevenuePriceCap_FO!W459 -> TRUE | W37: =RevenuePriceCap_FO!X459 -> TRUE | X37: =RevenuePriceCap_FO!Y459 -> TRUE | Y37: =RevenuePriceCap_FO!Z459 -> TRUE | Z37: =RevenuePriceCap_FO!AA459 -> TRUE | AA37: =RevenuePriceCap_FO!AB459 -> TRUE | AB37: =RevenuePriceCap_FO!AC459 -> TRUE | AC37: =RevenuePriceCap_FO!AD459 -> TRUE | AD37: =RevenuePriceCap_FO!AE459 -> TRUE | AE37: =RevenuePriceCap_FO!AF459 -> TRUE | AF37: =RevenuePriceCap_FO!AG459 -> TRUE
E39: 8. | F39: RevenueTariffBasket_FO
G40: Price control - Fourth period | Y40: =IF(KeyAssumptionsPriceControl_FO!I37=2,IF(RevenueTariffBasket_FO!Y34="PRICE CONTROL OK","TRUE","FALSE"),"TRUE") -> TRUE | Z40: =IF(KeyAssumptionsPriceControl_FO!I37=2,RevenueTariffBasket_FO!Y34,"") -> PRICE CONTROL OK
G42: Price control - Fifth period | Y42: =IF(KeyAssumptionsPriceControl_FO!I37=2,IF(RevenueTariffBasket_FO!AD34="PRICE CONTROL OK","TRUE","FALSE"),"TRUE") -> TRUE | Z42: =IF(KeyAssumptionsPriceControl_FO!I37=2,RevenueTariffBasket_FO!AD34,"") -> PRICE CONTROL OK
G44: Tariff revenue reconciliation | T44: =RevenueTariffBasket_FO!U971=RevenueTariffBasket_FO!U972 -> TRUE | U44: =RevenueTariffBasket_FO!V971=RevenueTariffBasket_FO!V972 -> TRUE | V44: =RevenueTariffBasket_FO!W971=RevenueTariffBasket_FO!W972 -> TRUE | W44: =RevenueTariffBasket_FO!X971=RevenueTariffBasket_FO!X972 -> TRUE | X44: =RevenueTariffBasket_FO!Y971=RevenueTariffBasket_FO!Y972 -> TRUE | Y44: =RevenueTariffBasket_FO!Z971=RevenueTariffBasket_FO!Z972 -> TRUE | Z44: =RevenueTariffBasket_FO!AA971=RevenueTariffBasket_FO!AA972 -> TRUE | AA44: =RevenueTariffBasket_FO!AB971=RevenueTariffBasket_FO!AB972 -> TRUE | AB44: =RevenueTariffBasket_FO!AC971=RevenueTariffBasket_FO!AC972 -> TRUE | AC44: =RevenueTariffBasket_FO!AD971=RevenueTariffBasket_FO!AD972 -> TRUE | AD44: =RevenueTariffBasket_FO!AE971=RevenueTariffBasket_FO!AE972 -> FALSE | AE44: =RevenueTariffBasket_FO!AF971=RevenueTariffBasket_FO!AF972 -> TRUE | AF44: =RevenueTariffBasket_FO!AG971=RevenueTariffBasket_FO!AG972 -> TRUE | AH44: Spoken to Jaawid at ESC about this.
E46: 9. | F46: Rev&RAV_FO
G47: Rolled forward RAV reconciliation | T47: ='Rev&RAV_FO'!U80 -> TRUE | U47: ='Rev&RAV_FO'!V80 -> TRUE | V47: ='Rev&RAV_FO'!W80 -> TRUE | W47: ='Rev&RAV_FO'!X80 -> TRUE | X47: ='Rev&RAV_FO'!Y80 -> TRUE | Y47: ='Rev&RAV_FO'!Z80 -> TRUE | Z47: ='Rev&RAV_FO'!AA80 -> TRUE | AA47: ='Rev&RAV_FO'!AB80 -> TRUE | AB47: ='Rev&RAV_FO'!AC80 -> TRUE | AC47: ='Rev&RAV_FO'!AD80 -> TRUE | AD47: ='Rev&RAV_FO'!AE80 -> TRUE | AE47: ='Rev&RAV_FO'!AF80 -> TRUE | AF47: ='Rev&RAV_FO'!AG80 -> TRUE
E49: 10. | F49: GSL
G50: Reconciliation to 'Opex_Breakdown' tab row 23 | Y50: =GSL!Z40=GSL!Z39 -> TRUE | Z50: =GSL!AA40=GSL!AA39 -> TRUE | AA50: =GSL!AB40=GSL!AB39 -> TRUE | AB50: =GSL!AC40=GSL!AC39 -> TRUE | AC50: =GSL!AD40=GSL!AD39 -> TRUE | AD50: =GSL!AE40=GSL!AE39 -> TRUE | AE50: =GSL!AF40=GSL!AF39 -> TRUE | AF50: =GSL!AG40=GSL!AG39 -> TRUE

Sheet KeyAssumptionsPriceControl_FO
A1: 80 | B1: Key Assumptions Price Control
B2: =+Contents!H7 -> Goulburn Murray Water
B3: Go to Table of Contents
L4: FIRST REG PERIOD | P4: SECOND REG PERIOD | T4: THIRD REG PERIOD | W4: FOURTH REG PERIOD | AA4: FIFTH REG PERIOD | AE4: SIXTH REG PERIOD
F6: Straight Line | K6: 2006 | L6: 2007 | M6: 2008 | N6: 2009 | O6: 2010 | P6: 2011 | Q6: 2012 | R6: 2013 | S6: 2014 | T6: 2015 | U6: 2016 | V6: 2017 | W6: 2018 | X6: 2019 | Y6: 2020 | Z6: 2021 | AA6: 2022 | AB6: 2023 | AC6: 2024 | AD6: 2025 | AE6: 2026 | AF6: 2027 | AG6: 2028
F7: Declining Balance | I7: 2003-04 | J7: 2004-05 | K7: =+CONCATENATE(K6-1,"-",RIGHT(K6,2)) -> 2005-06 | L7: =+CONCATENATE(L6-1,"-",RIGHT(L6,2)) -> 2006-07 | M7: 2007-08 | N7: 2008-09 | O7: 2009-10 | P7: 2010-11 | Q7: 2011-12 | R7: 2012-13 | S7: 2013-14 | T7: 2014-15 | U7: 2015-16 | V7: 2016-17 | W7: 2017-18 | X7: 2018-19 | Y7: 2019-20 | Z7: 2020-21 | AA7: 2021-22 | AB7: 2022-23 | AC7: 2023-24 | AD7: 2024-25 | AE7: 2025-26 | AF7: 2026-27 | AG7: 2027-28
E11: Inflation assumptions
Y12: 2019-20 CPI updated based on 2019 March Qtr CPI
F13: March quarter annual CPI | I13: 141.3 | J13: 144.1 | K13: 147.5 | L13: 151.9 | M13: 155.6 | N13: 162.2 | O13: 166.2 | P13: 171 | Q13: 176.7 | R13: 99.9 | S13: 102.4 | T13: 105.4 | U13: 106.8 | V13: 108.2 | W13: 110.5 | X13: 112.6 | Y13: 114.1
F14: Inflation | J14: =+J13/I13-1 -> 0.01981599434 | K14: 0.02359472588 | L14: 0.02983050847 | M14: 0.02435813035 | N14: 0.04241645244 | O14: 0.02466091245 | P14: 0.02888086643 | Q14: 0.03333333333 | R14: 0.01584606678 | S14: =+IF(S13=0,$S$28,S13/R13-1) -> 0.02502502503 | T14: 0.029296875 | U14: 0.01328273245 | V14: 0.01310861423 | W14: 0.02125693161 | X14: 0.01900452489 | Y14: 0.01332149201 | Z14: 0.023 | AA14: 0.023 | AB14: 0.023 | AC14: 0.023 | AD14: 0.023 | AE14: 0.023 | AF14: 0.023 | AG14: 0.023
F15: Inflation factor | I15: 0.7871866295 | J15: 0.8027855153 | K15: 0.8217270195 | L15: 0.8462395543 | M15: 0.8668523677 | N15: 0.9036211699 | O15: 0.9259052925 | P15: 0.9526462396 | Q15: 0.9844011142 | R15: =+R13/$Y$13 -> 0.8755477651 | S15: =+S13/$Y$13 -> 0.8974583699 | T15: 0.9237510955 | U15: 0.9360210342 | V15: 0.9482909728 | W15: 0.9684487292 | X15: 0.9868536372 | Y15: 1 | Z15: =+Y15*(1+Z14) -> 1.023 | AA15: 1.046529 | AB15: 1.070599167 | AC15: 1.095222948 | AD15: 1.120413076 | AE15: 1.146182576 | AF15: 1.172544776 | AG15: 1.199513305
I16: CPI index re-referenced in 2012-13, shaded values have been hardcoded to lock in RAB value.
E20: WACC assumptions
K21: 1st period | M21: 2nd period | O21: 3rd period | Q21: 4th period | S21: 5th period
E22: Parameters
F23: Risk Free Rate (Real) | K23: 0.0267 | M23: 0.0323 | O23: 0.00916 | Q23: 0.006 | S23: 0.0082 | U23: <<< the risk free rate is based on the yield of a 10 year Commonwealth Government Security bond. We propose to use an averaging period of 40 business days commencing as close as practically possible to the start of the regulatory period
F24: Debt Premium | K24: 0.0116 | M24: 0.0175 | O24: 0.03158 | Q24: 0.0315 | S24: 0.025 | U24: <<< the benchmark debt risk premium is estimated on the basis of a benchmark gearing level of 60:40 debt to equity on the yields of BBB+ rated corporate bonds with 10 year maturity
F25: Equity Premium | K25: 0.06 | M25: 0.06 | O25: 0.06 | Q25: 0.06 | S25: 0.06 | U25: <<< the cost of equity is calculated using a market risk premium of six per cent
F26: Equity Beta | K26: 0.75 | M26: 0.65 | O26: 0.7 | Q26: 0.7 | S26: 0.7 | U26: <<< the cost of equity is calculated using an equity beta of 0.7
F27: Gearing (Debt/Assets) | K27: 0.6 | M27: 0.6 | O27: 0.6 | Q27: 0.6 | S27: 0.6
F28: Forecast Inflation | K28: 0.0255 | M28: 0.029 | O28: 0.027 | Q28: 0.022 | S28: 0.023 | U28: <<< forecast inflation is set based on the forecast inflation calculated by the Department of Treasury and Finance (https://www.dtf.vic.gov.au/state-financial-data-sets/macroeconomic-indicators)
F29: Franking credit value | K29: 0.5 | M29: 0.5 | O29: 0.5 | Q29: 0.5 | S29: 0.5
E31: 'Vanilla' After Tax WACC (Real) | K31: =ROUND(((K23+K25*K26)*(1-K27))+((K23+K24)*K27),3) -> 0.052 | M31: =ROUND(((M23+M25*M26)*(1-M27))+((M23+M24)*M27),3) -> 0.058 | O31: =ROUND(((O23+O25*O26)*(1-O27))+((O23+O24)*O27),3) -> 0.045 | Q31: =ROUND(((Q23+Q25*Q26)*(1-Q27))+((Q23+Q24)*Q27),3) -> 0.042 | S31: =ROUND(((S23+S25*S26)*(1-S27))+((S23+S24)*S27),4) -> 0.04 | U31: <<< 5th period WACC formula rounded to 2 d.p.
E35: Form of price control selected
E37: Price caps | I37: 2
E39: Revenue cap / Hybrid Tariff Basket

Sheet Expenditure_Detail
B1: Expenditure - Detail
B2: =+Model_Name -> Goulburn Murray Water
B3: Go to Table of Contents
L4: FIRST REG PERIOD | P4: SECOND REG PERIOD | T4: THIRD REG PERIOD | W4: FOURTH REG PERIOD | AA4: FIFTH REG PERIOD | AE4: SIXTH REG PERIOD
K5: 2006 | L5: 2007 | M5: 2008 | N5: 2009 | O5: 2010 | P5: 2011 | Q5: 2012 | R5: 2013 | S5: 2014 | T5: 2015 | U5: 2016 | V5: 2017 | W5: 2018 | X5: 2019 | Y5: 2020 | Z5: 2021 | AA5: 2022 | AB5: 2023 | AC5: 2024 | AD5: 2025 | AE5: 2026 | AF5: 2027 | AG5: 2028
B6: $m, 01/01/20 | K6: =+CONCATENATE(K5-1,"-",RIGHT(K5,2)) -> 2005-06 | L6: =+CONCATENATE(L5-1,"-",RIGHT(L5,2)) -> 2006-07 | M6: 2007-08 | N6: 2008-09 | O6: 2009-10 | P6: 2010-11 | Q6: 2011-12 | R6: 2012-13 | S6: 2013-14 | T6: 2014-15 | U6: 2015-16 | V6: 2016-17 | W6: 2017-18 | X6: 2018-19 | Y6: 2019-20 | Z6: 2020-21 | AA6: 2021-22 | AB6: 2022-23 | AC6: 2023-24 | AD6: 2024-25 | AE6: 2025-26 | AF6: 2026-27 | AG6: 2027-28
B8: This worksheet outlines the key cost drivers of operating expenditure - capitalised costs are excluded. This tab does not link to the Rev&RAV_FO worksheet
C11: Expenditure Summary
D13: Total Labour costs | Q13: =+Expenditure_Detail!R34 -> 0 | R13: =+Expenditure_Detail!S34 -> 0 | S13: =+Expenditure_Detail!T34 -> 0 | T13: =+Expenditure_Detail!U34 -> 57.45544737 | U13: =U34 -> 57.45544737 | V13: =V34 -> 59.48953515 | W13: 56.44241997 | X13: 55.16609759 | Y13: 51.88718315 | Z13: 44.58633672 | AA13: 44.1198612 | AB13: 43.60947066 | AC13: 43.60947066 | AD13: 43.60947066 | AE13: 43.60947066 | AF13: 43.60947066 | AG13: 43.60947066
D14: Total Energy costs | Q14: =+Expenditure_Detail!R92 -> 0 | R14: =+Expenditure_Detail!S92 -> 0 | S14: =+Expenditure_Detail!T92 -> 0 | T14: =+Expenditure_Detail!U92 -> 1.933768815 | U14: =U92 -> 1.933768815 | V14: =V92 -> 1.411401578 | W14: 1.613522113 | X14: 1.928701395 | Y14: 1.906444634 | Z14: 1.869866068 | AA14: 1.789043746 | AB14: 1.790660192 | AC14: 1.79224431 | AD14: 1.885966837 | AE14: 1.885966837 | AF14: 1.885966837 | AG14: 1.885966837
D15: Total IT costs | Q15: =+Expenditure_Detail!R103 -> 0 | R15: =+Expenditure_Detail!S103 -> 0 | S15: =+Expenditure_Detail!T103 -> 0 | T15: =+Expenditure_Detail!U103 -> 6.503057579 | U15: =U103 -> 6.503057579 | V15: =V103 -> 6.577885932 | W15: 6.082837111 | X15: 6.143796265 | Y15: 5.65948116 | Z15: 5.137881194 | AA15: 5.101281301 | AB15: 5.080454355 | AC15: 5.058284875 | AD15: 5.033926622 | AE15: 5.033926622 | AF15: 5.033926622 | AG15: 5.033926622
D16: Total Chemical costs | Q16: =+Expenditure_Detail!R114 -> 0 | R16: =+Expenditure_Detail!S114 -> 0 | S16: =+Expenditure_Detail!T114 -> 0 | T16: =+Expenditure_Detail!U114 -> 0 | U16: =U114 -> 0 | V16: =V114 -> 0 | W16: 0 | X16: 0 | Y16: 0 | Z16: 0 | AA16: 0 | AB16: 0 | AC16: 0 | AD16: 0 | AE16: 0 | AF16: 0 | AG16: 0
C21: Labour assumptions
D23: Current FTEs (at 30 June) | U23: 519.8681137 | V23: 524.2788933 | W23: 461.14265 | X23: 450.3671556
D24: Actual and forecast labour costs for current FTEs ($m) | U24: 57.45544737 | V24: 59.48953515 | W24: 56.44241997 | X24: 55.16609759 | Y24: 53.33414346 | Z24: 47.73050071 | AA24: 47.23113001 | AB24: 46.68474747 | AC24: 46.68474747 | AD24: 46.68474747 | AE24: 46.68474747 | AF24: 46.68474747 | AG24: 46.68474747 | AI24: <<<Business should use the latest information to forecast real wage and cost growth - this will be different to the 2.25% forecast inflation (based on CPI)
D25: Cost per FTE ($000) | R25: =+R24/R23*10^3 ->  | U25: 110.5192757 | V25: 113.4692545 | W25: 122.3968765 | X25: 122.4913871 | Y25: =+Y24/$X$23*10^3 -> 118.4236967 | Z25: 105.9813091 | AA25: 104.8725011 | AB25: 103.6593075 | AC25: 103.6593075 | AD25: 103.6593075 | AE25: 103.6593075 | AF25: 103.6593075 | AG25: =+AG24/$X$23*10^3 -> 103.6593075 | AI25: (Include Board members and associated labour costs if they are cosidered FTEs)
D26: Annual growth in labour costs for current FTEs | S26: =+S25/R25-1 ->  | V26: 0.02669198457 | W26: 0.07867877557 | X26: 0.0007721654066 | Y26: -0.03320797042 | Z26: -0.1050667056 | AA26: -0.01046229752 | AB26: -0.01156827166 | AC26: =+AC25/AB25-1 -> 0 | AD26: =+AD25/AC25-1 -> 0 | AE26: =+AE25/AD25-1 -> 0 | AF26: =+AF25/AE25-1 -> 0 | AG26: =+AG25/AF25-1 -> 0
D28: Change in FTEs in future periods (net no. annual change) | Y28: -12.2185031 | Z28: -17.44865251 | AA28: 0 | AB28: 0 | AC28: 0 | AD28: 0 | AE28: 0 | AF28: 0 | AG28: 0
D29: Increase or decrease in labour costs ($m) | Y29: -1.446960305 | Z29: -3.144163987 | AA29: -3.111268808 | AB29: -3.075276805 | AC29: -3.075276805 | AD29: -3.075276805 | AE29: -3.075276805 | AF29: -3.075276805 | AG29: -3.075276805
D33: Total FTEs | R33: =+R23 -> 0 | S33: 0 | T33: 0 | U33: 519.8681137 | V33: 524.2788933 | W33: 461.14265 | X33: 450.3671556 | Y33: =+$X$23+SUM($Y28:Y28) -> 438.1486525 | Z33: =+$X$23+SUM($Y28:Z28) -> 420.7 | AA33: =+$X$23+SUM($Y28:AA28) -> 420.7 | AB33: =+$X$23+SUM($Y28:AB28) -> 420.7 | AC33: =+$X$23+SUM($Y28:AC28) -> 420.7 | AD33: =+$X$23+SUM($Y28:AD28) -> 420.7 | AE33: =+$X$23+SUM($Y28:AE28) -> 420.7 | AF33: =+$X$23+SUM($Y28:AF28) -> 420.7 | AG33: =+$X$23+SUM($Y28:AG28) -> 420.7
D34: Total labour costs ($m) | R34: 0 | S34: 0 | T34: 0 | U34: 57.45544737 | V34: 59.48953515 | W34: 56.44241997 | X34: 55.16609759 | Y34: =+Y29+Y24 -> 51.88718315 | Z34: =+Z29+Z24 -> 44.58633672 | AA34: 44.1198612 | AB34: 43.60947066 | AC34: 43.60947066 | AD34: 43.60947066 | AE34: 43.60947066 | AF34: 43.60947066 | AG34: 43.60947066
D35: Cost per FTE | R35: =+R34/R33 ->  | U35: 0.1105192757 | V35: 0.1134692545 | W35: 0.1223968765 | X35: 0.1224913871 | Y35: 0.1184236967 | Z35: 0.1059813091 | AA35: 0.1048725011 | AB35: 0.1036593075 | AC35: 0.1036593075 | AD35: 0.1036593075 | AE35: 0.1036593075 | AF35: 0.1036593075 | AG35: 0.1036593075
D36: Annual growth in total labour costs | S36: =+S34/R34-1 ->  | V36: 0.03540287083 | W36: =+W34/V34-1 -> -0.0512210286 | X36: =+X34/W34-1 -> -0.02261282162 | Y36: =+Y34/X34-1 -> -0.0594371287 | Z36: =+Z34/Y34-1 -> -0.1407061626 | AA36: =+AA34/Z34-1 -> -0.01046229752 | AB36: =+AB34/AA34-1 -> -0.01156827166 | AC36: =+AC34/AB34-1 -> 0 | AD36: =+AD34/AC34-1 -> 0 | AE36: =+AE34/AD34-1 -> 0 | AF36: =+AF34/AE34-1 -> 0 | AG36: =+AG34/AF34-1 -> 0
D37: Annual growth in total labour costs per FTE | V37: 0.02669198457 | W37: 0.07867877557 | X37: 0.0007721654066 | Y37: -0.03320797042 | Z37: -0.1050667056 | AA37: -0.01046229752 | AB37: -0.01156827166 | AC37: =+AC35/AB35-1 -> 0 | AD37: 0 | AE37: 0 | AF37: 0 | AG37: 0
C42: Energy assumptions
D44: Electricity - traditional sources
D46: BASE LOAD
D48: Large sites
D49: Total kWh | U49: 5616535 | V49: 4876742 | W49: 5717664 | X49: 6065298.182 | Y49: 6077770.882 | Z49: 6077770.882 | AA49: 6077770.882 | AB49: 6077770.882 | AC49: 6077770.882 | AD49: 6077770.882 | AE49: 6077770.882 | AF49: 6077770.882 | AG49: 6077770.882
D50: Total electricity costs ($m) | U50: 1.576859425 | V50: 1.112226869 | W50: 1.264057624 | X50: 1.494235401 | Y50: 1.403484445 | Z50: 1.403484445 | AA50: 1.403484445 | AB50: 1.403484445 | AC50: 1.403484445 | AD50: 1.473658668 | AE50: 1.473658668 | AF50: 1.473658668 | AG50: 1.473658668
D51: Average c/kWh | R51: =+R50/R49*100*10^6 ->  | U51: 28.07530667 | V51: 22.80676053 | W51: 22.10793821 | X51: 24.63581107 | Y51: 23.09209203 | Z51: 23.09209203 | AA51: 23.09209203 | AB51: 23.09209203 | AC51: =+AC50/AC49*100*10^6 -> 23.09209203 | AD51: 24.24669663 | AE51: 24.24669663 | AF51: 24.24669663 | AG51: 24.24669663
D52: % increase p.a. | S52: =+S51/R51-1 ->  | V52: -0.1876576524 | W52: -0.03064101588 | X52: 0.1143423158 | Y52: -0.0626615877 | Z52: 0 | AA52: 0 | AB52: 0 | AC52: =+AC51/AB51-1 -> 0 | AD52: =+AD51/AC51-1 -> 0.05 | AE52: =+AE51/AD51-1 -> 0 | AF52: =+AF51/AE51-1 -> 0 | AG52: =+AG51/AF51-1 -> 0
D54: Medium sites
D55: Total kWh | V55: 0 | Z55: 0 | AA55: 0 | AB55: 0 | AC55: 0
D56: Total electricity costs ($m) | U56: 0.132135 | V56: 0 | Z56: 0 | AA56: 0 | AB56: 0 | AC56: 0
D57: Average c/kWh | R57: =+R56/R55*100*10^6 ->  | AC57: =+AC56/AC55*100*10^6 -> 
D58: % increase p.a. | S58: =+S57/R57-1 ->  | AC58: =+AC57/AB57-1 ->  | AD58: =+AD57/AC57-1 ->  | AE58: =+AE57/AD57-1 ->  | AF58: =+AF57/AE57-1 ->  | AG58: =+AG57/AF57-1 -> 
D60: Small sites
D61: Total kWh | V61: 1043010.937 | W61: 1375417.444 | X61: 1243430.085 | Y61: 1352878.878 | Z61: 1352878.878 | AA61: 1352878.878 | AB61: 1352878.878 | AC61: 1352878.878 | AD61: 1352878.878 | AE61: 1352878.878 | AF61: 1352878.878 | AG61: 1352878.878
D62: Total electricity costs ($m) | U62: 0.22477439 | V62: 0.2991747084 | W62: 0.3494644887 | X62: 0.4344659942 | Y62: 0.3980064272 | Z62: 0.3980064272 | AA62: 0.3980064272 | AB62: 0.3980064272 | AC62: 0.3980064272 | AD62: 0.4179067486 | AE62: 0.4179067486 | AF62: 0.4179067486 | AG62: 0.4179067486
D63: Average c/kWh | R63: =+R62/R61*100*10^6 ->  | V63: 28.68375564 | W63: 25.40788546 | X63: 34.94092667 | Y63: 29.41922102 | Z63: 29.41922102 | AA63: 29.41922102 | AB63: 29.41922102 | AC63: =+AC62/AC61*100*10^6 -> 29.41922102 | AD63: 30.89018207 | AE63: 30.89018207 | AF63: 30.89018207 | AG63: 30.89018207
D64: % increase p.a. | S64: =+S63/R63-1 ->  | W64: -0.1142064596 | X64: 0.375200102 | Y64: -0.1580297429 | Z64: 0 | AA64: 0 | AB64: 0 | AC64: =+AC63/AB63-1 -> 0 | AD64: =+AD63/AC63-1 -> 0.05 | AE64: =+AE63/AD63-1 -> 0 | AF64: =+AF63/AE63-1 -> 0 | AG64: =+AG63/AF63-1 -> 0
D67: NEW PROJECTS
D69: Large sites
D70: Total kWh | Y70: 138550 | Z70: -19853 | AA70: -369853 | AB70: -362853 | AC70: -355993 | AD70: -355993 | AE70: -355993 | AF70: -355993 | AG70: -355993
D71: Total electricity costs ($m) | Y71: 0.03199409351 | Z71: -0.004584473031 | AA71: -0.08540679514 | AB71: -0.0837903487 | AC71: -0.08220623118 | AD71: -0.08220623118 | AE71: -0.08220623118 | AF71: -0.08220623118 | AG71: -0.08220623118
D72: Average c/kWh | R72: =+R71/R70*100*10^6 ->  | Y72: 23.09209203 | Z72: 23.09209203 | AA72: 23.09209203 | AB72: 23.09209203 | AC72: =+AC71/AC70*100*10^6 -> 23.09209203 | AD72: 23.09209203 | AE72: 23.09209203 | AF72: 23.09209203 | AG72: 23.09209203
D73: % increase p.a. | S73: =+S72/R72-1 ->  | Z73: 0 | AA73: 0 | AB73: 0 | AC73: =+AC72/AB72-1 -> 0 | AD73: =+AD72/AC72-1 -> 0 | AE73: =+AE72/AD72-1 -> 0 | AF73: =+AF72/AE72-1 -> 0 | AG73: =+AG72/AF72-1 -> 0
D75: Medium sites
D76: Total kWh
D77: Total electricity costs ($m)
D78: Average c/kWh | R78: =+R77/R76*100*10^6 ->  | AC78: =+AC77/AC76*100*10^6 -> 
D79: % increase p.a. | S79: =+S78/R78-1 ->  | AC79: =+AC78/AB78-1 ->  | AD79: =+AD78/AC78-1 ->  | AE79: =+AE78/AD78-1 ->  | AF79: =+AF78/AE78-1 ->  | AG79: =+AG78/AF78-1 -> 
D81: Small sites
D82: Total kWh | Y82: 248000 | Z82: 248000 | AA82: 248000 | AB82: 248000 | AC82: 248000 | AD82: 248000 | AE82: 248000 | AF82: 248000 | AG82: 248000
D83: Total electricity costs ($m) | Y83: 0.07295966812 | Z83: 0.07295966812 | AA83: 0.07295966812 | AB83: 0.07295966812 | AC83: 0.07295966812 | AD83: 0.07660765153 | AE83: 0.07660765153 | AF83: 0.07660765153 | AG83: 0.07660765153
D84: Average c/kWh | R84: =+R83/R82*100*10^6 ->  | Y84: 29.41922102 | Z84: 29.41922102 | AA84: 29.41922102 | AB84: 29.41922102 | AC84: 29.41922102 | AD84: 30.89018207 | AE84: 30.89018207 | AF84: 30.89018207 | AG84: 30.89018207
D85: % increase p.a. | S85: =+S84/R84-1 ->  | Z85: 0 | AA85: 0 | AB85: 0 | AC85: =+AC84/AB84-1 -> 0 | AD85: =+AD84/AC84-1 -> 0.05 | AE85: =+AE84/AD84-1 -> 0 | AF85: =+AF84/AE84-1 -> 0 | AG85: =+AG84/AF84-1 -> 0
D88: Greenhouse Gas Offsets
D89: % increase p.a. | S89: =S88/R88-1 ->  | T89: =T88/S88-1 -> 
D92: TOTAL ENERGY COSTS | N92: =+SUM(N50,N56,N62,N71,N77,N83,N88) -> 0 | O92: =+SUM(O50,O56,O62,O71,O77,O83,O88) -> 0 | P92: 0 | Q92: 0 | R92: 0 | S92: 0 | T92: 0 | U92: 1.933768815 | V92: 1.411401578 | W92: 1.613522113 | X92: 1.928701395 | Y92: 1.906444634 | Z92: 1.869866068 | AA92: 1.789043746 | AB92: 1.790660192 | AC92: 1.79224431 | AD92: 1.885966837 | AE92: 1.885966837 | AF92: 1.885966837 | AG92: 1.885966837
D93: % increase p.a. | S93: =S92/R92-1 ->  | T93: =T92/S92-1 ->  | V93: -0.270129104 | W93: 0.1432055472 | X93: 0.1953362022 | Y93: -0.0115397649 | Z93: -0.01918679718 | AA93: -0.04322358884 | AB93: 0.0009035253867 | AC93: 0.0008846555702 | AD93: 0.05229338798 | AE93: 0 | AF93: 0 | AG93: 0
C98: IT cost assumptions
D100: Water related IT costs
D101: Sewerage and trade waste related IT costs
D102: Other IT costs | U102: 6.503057579 | V102: 6.577885932 | W102: 6.082837111 | X102: 6.143796265 | Y102: 5.65948116 | Z102: 5.137881194 | AA102: 5.101281301 | AB102: 5.080454355 | AC102: 5.058284875 | AD102: 5.033926622 | AE102: 5.033926622 | AF102: 5.033926622 | AG102: 5.033926622
D103: Total IT costs | R103: =SUM(R100:R102) -> 0 | S103: 0 | T103: 0 | U103: 6.503057579 | V103: 6.577885932 | W103: 6.082837111 | X103: 6.143796265 | Y103: 5.65948116 | Z103: 5.137881194 | AA103: 5.101281301 | AB103: 5.080454355 | AC103: =SUM(AC100:AC102) -> 5.058284875 | AD103: 5.033926622 | AE103: 5.033926622 | AF103: 5.033926622 | AG103: 5.033926622
D104: % increase p.a. | S104: =S103/R103-1 ->  | T104: =T103/S103-1 ->  | V104: 0.01150664175 | W104: -0.0752595631 | X104: 0.01002150029 | Y104: -0.07882994227 | Z104: -0.09216391952 | AA104: -0.007123538255 | AB104: -0.004082689161 | AC104: -0.004363680526 | AD104: -0.004815516161 | AE104: 0 | AF104: 0 | AG104: 0
C109: Chemical cost assumptions
D111: Water related chemical costs
D112: Sewerage and trade waste related chemical costs
D113: Other chemical costs
D114: Total chemical costs | R114: =SUM(R111:R113) -> 0 | S114: 0 | T114: 0 | U114: 0 | V114: 0 | W114: 0 | X114: 0 | Y114: 0 | Z114: 0 | AA114: 0 | AB114: 0 | AC114: =SUM(AC111:AC113) -> 0 | AD114: 0 | AE114: 0 | AF114: 0 | AG114: 0
D115: % increase p.a. | S115: =S114/R114-1 ->  | T115: =T114/S114-1 -> 

Sheet Opex_FO
B1: Operating Expenditure - Forecast
B2: =+Model_Name -> Goulburn Murray Water
B3: Go to Table of Contents
L4: FIRST REG PERIOD | P4: SECOND REG PERIOD | T4: THIRD REG PERIOD | V4: FOURTH REG PERIOD | AA4: FIFTH REG PERIOD | AE4: SIXTH REG PERIOD
K5: 2006 | L5: 2007 | M5: 2008 | N5: 2009 | O5: 2010 | P5: 2011 | Q5: 2012 | R5: 2013 | S5: 2014 | T5: 2015 | U5: 2016 | V5: 2017 | W5: 2018 | X5: 2019 | Y5: 2020 | Z5: 2021 | AA5: 2022 | AB5: 2023 | AC5: 2024 | AD5: 2025 | AE5: 2026 | AF5: 2027 | AG5: 2028
B6: =Expenditure_Detail!B6 -> $m, 01/01/20 | K6: =+CONCATENATE(K5-1,"-",RIGHT(K5,2)) -> 2005-06 | L6: =+CONCATENATE(L5-1,"-",RIGHT(L5,2)) -> 2006-07 | M6: 2007-08 | N6: 2008-09 | O6: 2009-10 | P6: 2010-11 | Q6: 2011-12 | R6: 2012-13 | S6: 2013-14 | T6: 2014-15 | U6: 2015-16 | V6: 2016-17 | W6: 2017-18 | X6: 2018-19 | Y6: 2019-20 | Z6: 2020-21 | AA6: 2021-22 | AB6: 2022-23 | AC6: 2023-24 | AD6: 2024-25 | AE6: 2025-26 | AF6: 2026-27 | AG6: 2027-28
C9: Parameters | F9: 5th period | H9: 6th period
D11: Cost efficiency improvement rate (% per annum) | F11: =IFERROR(AVERAGE(Z11:AC11),"") ->  | H11: =IFERROR(AVERAGE(AD11:AG11),"") -> 
C15: Baseline Forecast
D17: Baseline year - total prescribed operating expenditure in 2018-19: | X17: =Opex_Breakdown!X39 -> 96.96090889
D19: Less non-controllable expenditure items incurred in 2018-19:
E20: External bulk water charges (excl. temporary purchases) | X20: =Opex_Breakdown!X30 -> 0
E21: External temporary water purchases | X21: =Opex_Breakdown!X31 -> 0 | Z21: Comparison with approved 2018-19 total controllable opex
E22: Licence fees | X22: =Opex_Breakdown!X32 -> 0.07648347957 | Z22: per 2016 determination model
E23: Environment Contribution | X23: =Opex_Breakdown!X33 -> 2.744739461
E24: Murray Darling Basin Contribution | X24: =Opex_Breakdown!X34 -> 14.59182948
E25: Other non-controllable | X25: =Opex_Breakdown!X35 -> 0
X26: =SUM(X20:X25) -> 17.41305243 | AA26: 2018-19 | AB26: Difference | AC26: %
D28: Baseline year - total controllable operating expenditure in 2018-19: | X28: =+X17-X26 -> 79.54785646 | AA28: =91.8478670518544/KeyAssumptionsPriceControl_FO!$U$15 -> 98.12585796 | AB28: =+X44-AA28 -> -19.86482274 | AC28: =+AB28/AA28 -> -0.2024422833
D30: Adjustments for non-recurring expenditure items incurred in 2018-19 and any efficiency savings to be realised from 2018-19: | Z30: ($, 2019-20)
D32: 1 | E32: Termination packages | X32: 0.2810019016
D33: 2 | E33: Consultants - Price Submission | X33: 0.4394329014
D34: 3 | E34: Labour hire | X34: 0.2435447832
D35: 4 | E35: Surplus plant disposal | X35: 0.3228416535
D36: 5
D37: 6
D38: 7
D39: 8
D40: 9
D41: 10
X42: =SUM(X32:X41) -> 1.28682124
D44: Adjusted baseline controllable operating expenditure (2018-19) | X44: =+X28-X42 -> 78.26103522
D46: Adjusted baseline controllable operating expenditure (Forecast) | Y46: =+X44*(1-Y11) -> 78.26103522 | Z46: =Y46*(1+-Z11) -> 78.26103522 | AA46: =Z46*(1+-AA11) -> 78.26103522 | AB46: 78.26103522 | AC46: 78.26103522 | AD46: 78.26103522 | AE46: 78.26103522 | AF46: 78.26103522 | AG46: 78.26103522
C50: Operating expenditure - reconciliation
D53: Adjusted baseline controllable operating expenditure (Forecast) | Z53: =+Z46 -> 78.26103522 | AA53: =+AA46 -> 78.26103522 | AB53: 78.26103522 | AC53: 78.26103522 | AD53: 78.26103522 | AE53: 78.26103522 | AF53: 78.26103522 | AG53: 78.26103522
H54: Controllable
D55: Forecast variations to adjusted baseline operating expenditure (above or below baseline) | H55: only
D57: 1 | E57: Water Storage Projects | H57: Bulk water services | Z57: 2.680946 | AA57: 0.807 | AB57: 0.893931 | AC57: 0.93949973 | AD57: 0.5 | AE57: 0.3 | AF57: 0.1 | AG57: 0
D58: 2 | E58: Productivity: Modernisation savings in Gravity Irrigation | H58: Irrigation | Z58: -5.392513349 | AA58: -5.415802609 | AB58: -5.390989122 | AC58: -5.380833483 | AD58: -5.283263405 | AE58: -5.283263394 | AF58: -5.283263394 | AG58: -5.283263394
D59: 3 | E59: Transformation costs | Z59: 4
D60: 4 | E60: Productivity: Tranformation savings | Z60: -6.60458547 | AA60: -6.72243277 | AB60: -7.350997112 | AC60: -7.437703748 | AD60: -7.285151235 | AE60: -7.399796528 | AF60: -7.387794855 | AG60: -7.303121446
D61: 5
D62: 6
D63: 7
D64: 8
D65: 9
D66: 10
D67: 11
D68: 12
D69: 13
D70: 14
D71: 15
D73: Total changes required to baseline operating expenditure | Z73: =SUM(Z57:Z71) -> -5.316152819 | AA73: -11.33123538 | AB73: -11.84805523 | AC73: =SUM(AC57:AC72) -> -11.8790375 | AD73: -12.06841464 | AE73: -12.38305992 | AF73: -12.57105825 | AG73: -12.58638484
D76: Total controllable operating expenditure | Z76: =+Z73+Z53 -> 72.94488241 | AA76: 66.92979985 | AB76: 66.41297999 | AC76: 66.38199772 | AD76: 66.19262058 | AE76: 65.8779753 | AF76: 65.68997698 | AG76: 65.67465038
D78: Non-controllable operating expenditure
D79: External bulk water charges (excl. temporary purchases) | Z79: =+Opex_Breakdown!Z30 -> 0 | AA79: =+Opex_Breakdown!AA30 -> 0 | AB79: =+Opex_Breakdown!AB30 -> 0 | AC79: =+Opex_Breakdown!AC30 -> 0 | AD79: =+Opex_Breakdown!AD30 -> 0 | AE79: =+Opex_Breakdown!AE30 -> 0 | AF79: =+Opex_Breakdown!AF30 -> 0 | AG79: =+Opex_Breakdown!AG30 -> 0
D80: External temporary water purchases | Z80: =+Opex_Breakdown!Z31 -> 0 | AA80: =+Opex_Breakdown!AA31 -> 0 | AB80: =+Opex_Breakdown!AB31 -> 0 | AC80: =+Opex_Breakdown!AC31 -> 0 | AD80: =+Opex_Breakdown!AD31 -> 0 | AE80: =+Opex_Breakdown!AE31 -> 0 | AF80: =+Opex_Breakdown!AF31 -> 0 | AG80: =+Opex_Breakdown!AG31 -> 0
D81: Licence fees | Z81: =+Opex_Breakdown!Z32 -> 0.08 | AA81: =+Opex_Breakdown!AA32 -> 0.08 | AB81: =+Opex_Breakdown!AB32 -> 0.08 | AC81: =+Opex_Breakdown!AC32 -> 0.08 | AD81: =+Opex_Breakdown!AD32 -> 0.08 | AE81: =+Opex_Breakdown!AE32 -> 0.08 | AF81: =+Opex_Breakdown!AF32 -> 0.08 | AG81: =+Opex_Breakdown!AG32 -> 0.08
D82: Environment Contribution | Z82: =+Opex_Breakdown!Z33 -> 2.68883219 | AA82: =+Opex_Breakdown!AA33 -> 2.68883219 | AB82: =+Opex_Breakdown!AB33 -> 2.68883219 | AC82: =+Opex_Breakdown!AC33 -> 2.68883219 | AD82: =+Opex_Breakdown!AD33 -> 2.68883219 | AE82: =+Opex_Breakdown!AE33 -> 2.68883219 | AF82: =+Opex_Breakdown!AF33 -> 2.68883219 | AG82: =+Opex_Breakdown!AG33 -> 2.68883219
D83: Murray Darling Basin Contribution | Z83: =+Opex_Breakdown!Z34 -> 13.4 | AA83: =+Opex_Breakdown!AA34 -> 13.4 | AB83: =+Opex_Breakdown!AB34 -> 13.4 | AC83: =+Opex_Breakdown!AC34 -> 13.4 | AD83: =+Opex_Breakdown!AD34 -> 13.4 | AE83: =+Opex_Breakdown!AE34 -> 13.4 | AF83: =+Opex_Breakdown!AF34 -> 13.4 | AG83: =+Opex_Breakdown!AG34 -> 13.4
D84: Other non-controllable | Z84: =+Opex_Breakdown!Z35 -> 0 | AA84: =+Opex_Breakdown!AA35 -> 0 | AB84: =+Opex_Breakdown!AB35 -> 0 | AC84: =+Opex_Breakdown!AC35 -> 0 | AD84: =+Opex_Breakdown!AD35 -> 0 | AE84: =+Opex_Breakdown!AE35 -> 0 | AF84: =+Opex_Breakdown!AF35 -> 0 | AG84: =+Opex_Breakdown!AG35 -> 0
D85: Total non-controllable operating expenditure | Z85: =SUM(Z79:Z84) -> 16.16883219 | AA85: 16.16883219 | AB85: 16.16883219 | AC85: 16.16883219 | AD85: 16.16883219 | AE85: 16.16883219 | AF85: 16.16883219 | AG85: 16.16883219
D88: Total prescribed operating expenditure | Z88: =+Z85+Z76 -> 89.1137146 | AA88: 83.09863204 | AB88: 82.58181218 | AC88: 82.55082991 | AD88: 82.36145277 | AE88: 82.04680749 | AF88: 81.85880917 | AG88: =+AG85+AG76 -> 81.84348257
Y91: To reconcile to 'Opex_Breakdown' tab row 37 >> | Z91: =+Opex_Breakdown!Z39 -> 89.11224508 | AA91: =+Opex_Breakdown!AA39 -> 83.09716253 | AB91: =+Opex_Breakdown!AB39 -> 82.58034267 | AC91: =+Opex_Breakdown!AC39 -> 82.5493604 | AD91: =+Opex_Breakdown!AD39 -> 82.35998327 | AE91: =+Opex_Breakdown!AE39 -> 82.04533798 | AF91: =+Opex_Breakdown!AF39 -> 81.85733966 | AG91: =+Opex_Breakdown!AG39 -> 81.84201307
Y92: Difference | Z92: =+Z91-Z88 -> -0.001469519005 | AA92: -0.001469509005 | AB92: -0.001469509005 | AC92: -0.001469509005 | AD92: -0.001469509005 | AE92: -0.001469509005 | AF92: -0.001469509005 | AG92: -0.001469509005
Y93: Test | Z93: =ROUND(Z91,2)=ROUND(Z88,2) -> TRUE | AA93: =ROUND(AA91,2)=ROUND(AA88,2) -> TRUE | AB93: TRUE | AC93: TRUE | AD93: TRUE | AE93: TRUE | AF93: TRUE | AG93: TRUE
Z132: =+Z$153 -> 2020-21 | AA132: 2021-22 | AB132: 2022-23 | AC132: 2023-24 | AD132: 2024-25 | AE132: 2025-26 | AF132: 2026-27 | AG132: 2027-28
Y133: Total controllable opex | Z133: =+Z76 -> 72.94488241 | AA133: 66.92979985 | AB133: 66.41297999 | AC133: 66.38199772 | AD133: 66.19262058 | AE133: 65.8779753 | AF133: 65.68997698 | AG133: 65.67465038
Y134: Change - $ | AA134: =+AA133-Z133 -> -6.01508256 | AB134: -0.5168198547 | AC134: -0.03098226732 | AD134: -0.1893771386 | AE134: -0.3146452819 | AF134: -0.1879983265 | AG134: -0.01532659183
Y135: Change - % | Z135: =IFERROR(Z134/#REF!,"") ->  | AA135: =IFERROR(AA134/Z133,"") -> -0.08246065196 | AB135: -0.007721819815 | AC135: -0.0004665092173 | AD135: -0.002852838799 | AE135: -0.004753479755 | AF135: -0.002853735648 | AG135: -0.0002333170529
Z137: =+Z$153 -> 2020-21 | AA137: 2021-22 | AB137: 2022-23 | AC137: 2023-24 | AD137: 2024-25 | AE137: 2025-26 | AF137: 2026-27 | AG137: 2027-28
Y138: Total non-controllable opex | Z138: =+Z85 -> 16.16883219 | AA138: 16.16883219 | AB138: 16.16883219 | AC138: 16.16883219 | AD138: 16.16883219 | AE138: 16.16883219 | AF138: 16.16883219 | AG138: 16.16883219
Y139: Change - $ | AA139: =+AA138-Z138 -> 0 | AB139: 0 | AC139: 0 | AD139: 0 | AE139: 0 | AF139: 0 | AG139: 0
Y140: Change - % | Z140: =IFERROR(Z139/#REF!,"") ->  | AA140: =IFERROR(AA139/Z138,"") -> 0 | AB140: 0 | AC140: 0 | AD140: 0 | AE140: 0 | AF140: 0 | AG140: 0
Z142: =+Z$153 -> 2020-21 | AA142: 2021-22 | AB142: 2022-23 | AC142: 2023-24 | AD142: 2024-25 | AE142: 2025-26 | AF142: 2026-27 | AG142: 2027-28
Y143: Total prescribed opex | Z143: =+Z133+Z138 -> 89.1137146 | AA143: 83.09863204 | AB143: 82.58181218 | AC143: 82.55082991 | AD143: 82.36145277 | AE143: 82.04680749 | AF143: 81.85880917 | AG143: 81.84348257
Y144: Change - $ | AA144: =+AA143-Z143 -> -6.01508256 | AB144: -0.5168198547 | AC144: -0.03098226732 | AD144: -0.1893771386 | AE144: -0.3146452819 | AF144: -0.1879983265 | AG144: -0.01532659183
Y145: Change - % | Z145: =IFERROR(Z144/#REF!,"") ->  | AA145: =IFERROR(AA144/Z143,"") -> -0.06749895442 | AB145: -0.006219354543 | AC145: -0.0003751705914 | AD145: -0.002294067047 | AE145: -0.003820297861 | AF145: -0.002291354561 | AG145: -0.00018723204
Y148: Controllable vs. Non-controllable opex - % | Z148: =+Z$153 -> 2020-21 | AA148: 2021-22 | AB148: 2022-23 | AC148: 2023-24 | AD148: 2024-25 | AE148: 2025-26 | AF148: 2026-27 | AG148: 2027-28
Y149: Controllable opex - % | Z149: =+Z76/Z88 -> 0.8185595532 | AA149: 0.8054260125 | AB149: 0.8042083146 | AC149: 0.8041348318 | AD149: 0.8036844708 | AE149: 0.8029316108 | AF149: 0.8024790202 | AG149: 0.802442031
Y150: Non-controllable opex - % | Z150: =+Z85/Z88 -> 0.1814404468 | AA150: 0.1945739875 | AB150: 0.1957916854 | AC150: 0.1958651682 | AD150: 0.1963155292 | AE150: 0.1970683892 | AF150: 0.1975209798 | AG150: 0.197557969
Z151: =SUM(Z149:Z150) -> 1 | AA151: 1 | AB151: 1 | AC151: 1 | AD151: 1 | AE151: 1 | AF151: 1 | AG151: 1
X153: =+X6 -> 2018-19 | Y153: 2019-20 | Z153: 2020-21 | AA153: 2021-22 | AB153: 2022-23 | AC153: 2023-24 | AD153: 2024-25 | AE153: 2025-26 | AF153: 2026-27 | AG153: 2027-28
W154: Third Reg period Opex | X154: =+X162-SUM(X155:X161) -> 94.13968595 | Y154: =+Y162-SUM(Y155:Y161) -> 91.33068614
W155: baseline opex | Z155: =+Z53 -> 78.26103522 | AA155: 78.26103522 | AB155: 78.26103522 | AC155: 78.26103522 | AD155: 78.26103522 | AE155: 78.26103522 | AF155: 78.26103522 | AG155: 78.26103522
W156: Forecast variations to baseline operating expenditure | Z156: =+Z73 -> -5.316152819 | AA156: -11.33123538 | AB156: -11.84805523 | AC156: -11.8790375 | AD156: -12.06841464 | AE156: -12.38305992 | AF156: -12.57105825 | AG156: -12.58638484
W157: Licence fees | X157: =+X187 -> 0.07648347957 | Y157: =+Y187 -> 0.08 | Z157: =+Z81 -> 0.08 | AA157: 0.08 | AB157: 0.08 | AC157: 0.08 | AD157: 0.08 | AE157: 0.08 | AF157: 0.08 | AG157: 0.08
W158: Environment Contribution | X158: =+X188 -> 2.744739461 | Y158: =+Y188 -> 2.68883219 | Z158: =+Z82 -> 2.68883219 | AA158: 2.68883219 | AB158: 2.68883219 | AC158: 2.68883219 | AD158: 2.68883219 | AE158: 2.68883219 | AF158: 2.68883219 | AG158: 2.68883219
W159: External bulk water charges | X159: =+X185 -> 0 | Y159: =+Y185 -> 0 | Z159: =+Z79 -> 0 | AA159: 0 | AB159: 0 | AC159: 0 | AD159: 0 | AE159: 0 | AF159: 0 | AG159: 0
W160: External temporary water purchases | X160: =+X186 -> 0 | Y160: =+Y186 -> 0 | Z160: =+Z80 -> 0 | AA160: 0 | AB160: 0 | AC160: 0 | AD160: 0 | AE160: 0 | AF160: 0 | AG160: 0
W161: Other non-controllable | X161: =+X189 -> 0 | Y161: =+Y189 -> 0 | Z161: =+Z84 -> 0 | AA161: 0 | AB161: 0 | AC161: 0 | AD161: 0 | AE161: 0 | AF161: 0 | AG161: 0
W162: Total prescribed opex | X162: =Opex_Breakdown!X39 -> 96.96090889 | Y162: =Opex_Breakdown!Y39 -> 94.09951833 | Z162: =SUM(Z155:Z161) -> 75.7137146 | AA162: 69.69863204 | AB162: 69.18181218 | AC162: 69.15082991 | AD162: 68.96145277 | AE162: 68.64680749 | AF162: 68.45880917 | AG162: 68.44348257
Z164: =+Z$153 -> 2020-21 | AA164: 2021-22 | AB164: 2022-23 | AC164: 2023-24 | AD164: 2024-25 | AE164: 2025-26 | AF164: 2026-27 | AG164: 2027-28
Y165: baseline opex | Z165: =+Z155/Z$162 -> 1.033644111 | AA165: 1.122848942 | AB165: 1.131237138 | AC165: 1.131743977 | AD165: 1.134851893 | AE165: 1.14005353 | AF165: 1.143184291 | AG165: 1.143440285
Y166: Forecast variations to baseline operating expenditure | Z166: =+Z156/Z$162 -> -0.07021386875 | AA166: -0.162574717 | AB166: -0.1712596832 | AC166: -0.1717844531 | AD166: -0.175002326 | AE166: -0.1803879943 | AF166: -0.1836295197 | AG166: -0.1838945706
Y167: Licence fees | Z167: =+Z157/Z$162 -> 0.001056611744 | AA167: 0.001147798711 | AB167: 0.001156373293 | AC167: 0.001156891394 | AD167: 0.001160068368 | AE167: 0.001165385586 | AF167: 0.001168585913 | AG167: 0.001168847595
Y168: Environment Contribution | Z168: =+Z158/Z$162 -> 0.03551314586 | AA168: 0.03857797652 | AB168: 0.03886617169 | AC168: 0.03888358525 | AD168: 0.03899036464 | AE168: 0.03916907848 | AF168: 0.03927664274 | AG168: 0.03928543798
Y169: External bulk water charges (excl. temporary purchases) | Z169: =+Z159/Z$162 -> 0 | AA169: 0 | AB169: 0 | AC169: 0 | AD169: 0 | AE169: 0 | AF169: 0 | AG169: 0
Y170: External temporary water purchases | Z170: =+Z160/Z$162 -> 0 | AA170: 0 | AB170: 0 | AC170: 0 | AD170: 0 | AE170: 0 | AF170: 0 | AG170: 0
Y171: Other non-controllable | Z171: =+Z161/Z$162 -> 0 | AA171: 0 | AB171: 0 | AC171: 0 | AD171: 0 | AE171: 0 | AF171: 0 | AG171: 0
Y172: Total prescribed opex | Z172: =+Z162/Z$162 -> 1 | AA172: 1 | AB172: 1 | AC172: 1 | AD172: 1 | AE172: 1 | AF172: 1 | AG172: 1
Z174: =+Z$153 -> 2020-21 | AA174: 2021-22 | AB174: 2022-23 | AC174: 2023-24 | AD174: 2024-25 | AE174: 2025-26 | AF174: 2026-27 | AG174: 2027-28
Y175: Irrigation | Z175: =+SUMIF($H$57:$H$72,$Y175,Z$57:Z$72) -> -5.392513349 | AA175: -5.415802609 | AB175: -5.390989122 | AC175: -5.380833483 | AD175: -5.283263405 | AE175: -5.283263394 | AF175: -5.283263394 | AG175: -5.283263394
Y176: Drainage | Z176: 0 | AA176: 0 | AB176: 0 | AC176: 0 | AD176: 0 | AE176: 0 | AF176: 0 | AG176: 0
Y177: Water districts | Z177: 0 | AA177: 0 | AB177: 0 | AC177: 0 | AD177: 0 | AE177: 0 | AF177: 0 | AG177: 0
Y178: Surface water diversions | Z178: 0 | AA178: 0 | AB178: 0 | AC178: 0 | AD178: 0 | AE178: 0 | AF178: 0 | AG178: 0
Y179: Groundwater diversions | Z179: 0 | AA179: 0 | AB179: 0 | AC179: 0 | AD179: 0 | AE179: 0 | AF179: 0 | AG179: 0
Y180: Bulk water services | Z180: 2.680946 | AA180: 0.807 | AB180: 0.893931 | AC180: 0.93949973 | AD180: 0.5 | AE180: 0.3 | AF180: 0.1 | AG180: 0
Y181: Forecast variations to baseline operating expenditure | Z181: =SUM(Z175:Z180) -> -2.711567349 | AA181: -4.608802609 | AB181: -4.497058122 | AC181: -4.441333753 | AD181: -4.783263405 | AE181: -4.983263394 | AF181: -5.183263394 | AG181: -5.283263394
X184: =+X6 -> 2018-19 | Y184: 2019-20 | Z184: 2020-21 | AA184: 2021-22 | AB184: 2022-23 | AC184: 2023-24 | AD184: 2024-25 | AE184: 2025-26 | AF184: 2026-27 | AG184: 2027-28
U185: External bulk water charges (excl. temporary purchases) | W185: External bulk water charges (excl. temporary purchases) | X185: =Opex_Breakdown!X30 -> 0 | Y185: =Opex_Breakdown!Y30 -> 0 | Z185: =+Z79 -> 0 | AA185: 0 | AB185: 0 | AC185: 0 | AD185: 0 | AE185: 0 | AF185: 0 | AG185: 0
U186: External temporary water purchases | W186: External temporary water purchases | X186: =Opex_Breakdown!X31 -> 0 | Y186: =Opex_Breakdown!Y31 -> 0 | Z186: =+Z80 -> 0 | AA186: 0 | AB186: 0 | AC186: 0 | AD186: 0 | AE186: 0 | AF186: 0 | AG186: 0
U187: Licence fees | W187: Licence fees | X187: =Opex_Breakdown!X32 -> 0.07648347957 | Y187: =Opex_Breakdown!Y32 -> 0.08 | Z187: =+Z81 -> 0.08 | AA187: 0.08 | AB187: 0.08 | AC187: 0.08 | AD187: 0.08 | AE187: 0.08 | AF187: 0.08 | AG187: 0.08
U188: Environment Contribution | W188: Environment Contribution | X188: =Opex_Breakdown!X33 -> 2.744739461 | Y188: =Opex_Breakdown!Y33 -> 2.68883219 | Z188: =+Z82 -> 2.68883219 | AA188: 2.68883219 | AB188: 2.68883219 | AC188: 2.68883219 | AD188: 2.68883219 | AE188: 2.68883219 | AF188: 2.68883219 | AG188: 2.68883219
U189: Other non-controllable | W189: Other non-controllable | X189: =Opex_Breakdown!X35 -> 0 | Y189: =Opex_Breakdown!Y35 -> 0 | Z189: =+Z84 -> 0 | AA189: 0 | AB189: 0 | AC189: 0 | AD189: 0 | AE189: 0 | AF189: 0 | AG189: 0
U190: Total Non-controllable operating expenditure | W190: Total Non-controllable operating expenditure | X190: =SUM(X185:X189) -> 2.82122294 | Y190: 2.76883219 | Z190: 2.76883219 | AA190: 2.76883219 | AB190: 2.76883219 | AC190: 2.76883219 | AD190: 2.76883219 | AE190: 2.76883219 | AF190: 2.76883219 | AG190: 2.76883219
X192: ERROR CHECK | Z192: =+Z162=Z88 -> FALSE | AA192: FALSE | AB192: FALSE | AC192: FALSE | AD192: FALSE | AE192: FALSE | AF192: FALSE | AG192: FALSE
Z193: =+Z181=Z156 -> FALSE | AA193: FALSE | AB193: FALSE | AC193: FALSE | AD193: FALSE | AE193: FALSE | AF193: FALSE | AG193: FALSE
Z194: =+Z143=Z162 -> FALSE | AA194: FALSE | AB194: FALSE | AC194: FALSE | AD194: FALSE | AE194: FALSE | AF194: FALSE | AG194: FALSE
Z195: =+Z190=Z138 -> FALSE | AA195: FALSE | AB195: FALSE | AC195: FALSE | AD195: FALSE | AE195: FALSE | AF195: FALSE | AG195: FALSE

Sheet Opex_Breakdown
A1: 80 | B1: Operating Expenditure - Breakdown
B2: =+Contents!H7 -> Goulburn Murray Water
B3: Go to Table of Contents
L4: FIRST REG PERIOD | P4: SECOND REG PERIOD | T4: THIRD REG PERIOD | W4: FOURTH REG PERIOD | AA4: FIFTH REG PERIOD | AE4: SIXTH REG PERIOD
K6: 2006 | L6: 2007 | M6: 2008 | N6: 2009 | O6: 2010 | P6: 2011 | Q6: 2012 | R6: 2013 | S6: 2014 | T6: 2015 | U6: 2016 | V6: 2017 | W6: 2018 | X6: 2019 | Y6: 2020 | Z6: 2021 | AA6: 2022 | AB6: 2023 | AC6: 2024 | AD6: 2025 | AE6: 2026 | AF6: 2027 | AG6: 2028
B7: =Expenditure_Detail!B6 -> $m, 01/01/20 | K7: =+CONCATENATE(K6-1,"-",RIGHT(K6,2)) -> 2005-06 | L7: =+CONCATENATE(L6-1,"-",RIGHT(L6,2)) -> 2006-07 | M7: 2007-08 | N7: 2008-09 | O7: 2009-10 | P7: 2010-11 | Q7: 2011-12 | R7: 2012-13 | S7: 2013-14 | T7: 2014-15 | U7: 2015-16 | V7: 2016-17 | W7: 2017-18 | X7: =+CONCATENATE(X6-1,"-",RIGHT(X6,2)) -> 2018-19 | Y7: =+CONCATENATE(Y6-1,"-",RIGHT(Y6,2)) -> 2019-20 | Z7: =+CONCATENATE(Z6-1,"-",RIGHT(Z6,2)) -> 2020-21 | AA7: =+CONCATENATE(AA6-1,"-",RIGHT(AA6,2)) -> 2021-22 | AB7: =+CONCATENATE(AB6-1,"-",RIGHT(AB6,2)) -> 2022-23 | AC7: =+CONCATENATE(AC6-1,"-",RIGHT(AC6,2)) -> 2023-24 | AD7: 2024-25 | AE7: 2025-26 | AF7: 2026-27 | AG7: 2027-28
D10: Operating Expenditure Summary
E12: Irrigation | K12: =+K63-K57-K60 -> 0 | L12: 0 | M12: 0 | N12: 0 | O12: 0 | P12: 0 | Q12: 0 | R12: 0 | S12: 0 | T12: 0 | U12: 59.54169848 | V12: 58.85932948 | W12: 53.04109376 | X12: 51.93666494 | Y12: 49.15360228 | Z12: =+Z63-Z57-Z60 -> 43.49301828 | AA12: 41.01564691 | AB12: 40.97531216 | AC12: 40.95194775 | AD12: 41.08467944 | AE12: 41.35949894 | AF12: 41.34537345 | AG12: 41.33805994
E13: Drainage | K13: =K73-K67-K70 -> 0 | L13: 0 | M13: 0 | N13: 0 | O13: 0 | P13: 0 | Q13: 0 | R13: 0 | S13: 0 | T13: 0 | U13: 4.170757295 | V13: 4.777459037 | W13: 3.969445592 | X13: 3.370932241 | Y13: 4.439131462 | Z13: 3.608769106 | AA13: 3.373273011 | AB13: 3.368846752 | AC13: 3.368055269 | AD13: 3.360473869 | AE13: 3.396662538 | AF13: 3.456248869 | AG13: 3.452723538
E14: Water supply districts | K14: =K83-K77-K80 -> 0 | L14: 0 | M14: 0 | N14: 0 | O14: 0 | P14: 0 | Q14: 0 | R14: 0 | S14: 0 | T14: 0 | U14: 0.7177848399 | V14: 1.549244186 | W14: 1.278246733 | X14: 0.6849291215 | Y14: 0.7882073052 | Z14: 0.7125034148 | AA14: 0.693729391 | AB14: 0.6776675653 | AC14: 0.6764373813 | AD14: 0.6757267673 | AE14: 0.6922125931 | AF14: 0.6891617673 | AG14: 0.6786075931
E15: Surface water diversions | K15: =K93-K87-K90 -> 0 | L15: 0 | M15: 0 | N15: 0 | O15: 0 | P15: 0 | Q15: 0 | R15: 0 | S15: 0 | T15: 0 | U15: 2.868134587 | V15: 2.938416876 | W15: 2.860484427 | X15: 2.986996135 | Y15: 2.658773203 | Z15: 2.623233428 | AA15: 2.503457568 | AB15: 2.430685712 | AC15: 2.429689123 | AD15: 2.451584887 | AE15: 2.450208497 | AF15: 2.454675887 | AG15: 2.462384497
E16: Groundwater diversions | K16: =K103-K97-K100 -> 0 | L16: =L103-L97-L100 -> 0 | M16: 0 | N16: 0 | O16: 0 | P16: 0 | Q16: 0 | R16: 0 | S16: 0 | T16: 0 | U16: 1.898773365 | V16: 2.055937219 | W16: 1.901847295 | X16: 1.919247058 | Y16: 1.900990028 | Z16: 1.947169593 | AA16: 1.802568002 | AB16: 1.767636457 | AC16: 1.766778195 | AD16: 1.778322354 | AE16: 1.777294666 | AF16: 1.780630354 | AG16: 1.786385666
E17: Bulk water services | K17: =K112-K109 -> 0 | L17: =L112-L109 -> 0 | M17: 0 | N17: 0 | O17: 0 | P17: 0 | Q17: 0 | R17: 0 | S17: 0 | T17: 0 | U17: 15.14590996 | V17: 13.49353586 | W17: 13.00546374 | X17: 14.61081626 | Y17: 14.95878817 | Z17: 17.24229894 | AA17: 14.36997478 | AB17: 14.07114344 | AC17: 14.05798263 | AD17: 13.69563021 | AE17: 13.05770401 | AF17: 12.81360259 | AG17: 12.79602509
E18: Customer Service and billing | U18: =U115 -> 5.378527486 | V18: =V115 -> 4.811898341 | W18: 4.481050671 | X18: 4.038270714 | Y18: 4.0311937 | Z18: 3.316420132 | AA18: 3.169680674 | AB18: 3.120218397 | AC18: 3.129637873 | AD18: 3.144733552 | AE18: 3.142924552 | AF18: 3.148814552 | AG18: 3.158994552
E19: Total controllable operating expenditure | K19: =SUM(K12:K17) -> 0 | L19: 0 | M19: 0 | N19: 0 | O19: 0 | P19: 0 | Q19: 0 | R19: 0 | S19: 0 | T19: 0 | U19: =SUM(U12:U18) -> 89.721586 | V19: =SUM(V12:V18) -> 88.485821 | W19: 80.53763223 | X19: 79.54785646 | Y19: 77.93068614 | Z19: 72.94341289 | AA19: 66.92833034 | AB19: 66.41151048 | AC19: 66.38052821 | AD19: 66.19115108 | AE19: 65.87650579 | AF19: 65.68850747 | AG19: 65.67318088
E22: Operations & Maintenance | K22: =K56+K66+K76+K86+K96+K106 -> 0 | L22: =L56+L66+L76+L86+L96+L106 -> 0 | M22: 0 | N22: 0 | O22: 0 | P22: 0 | Q22: 0 | R22: 0 | S22: 0 | T22: 0 | U22: 62.32670873 | V22: 60.72461066 | W22: 54.17769855 | X22: 52.69589396 | Y22: 51.02168422 | Z22: 48.50031675 | AA22: 46.59522166 | AB22: 46.49602008 | AC22: 46.35364034 | AD22: 46.19313552 | AE22: 45.87865824 | AF22: 45.69725392 | AG22: 45.69329532
E23: Customer Service and billing | K23: =K58+K68+K78+K88+K98+K107 -> 0 | L23: 0 | M23: 0 | N23: 0 | O23: 0 | P23: 0 | Q23: 0 | R23: 0 | S23: 0 | T23: 0 | U23: =U58+U68+U78+U88+U98+U107+U115 -> 5.378527486 | V23: =V58+V68+V78+V88+V98+V107+V115 -> 4.811898341 | W23: 4.481050671 | X23: 4.038270714 | Y23: 4.0311937 | Z23: 3.316420132 | AA23: 3.169680674 | AB23: 3.120218397 | AC23: 3.129637873 | AD23: 3.144733552 | AE23: 3.142924552 | AF23: 3.148814552 | AG23: 3.158994552
E24: GSL Payments | K24: =K59+K69+K79+K89+K99+K108 -> 0 | L24: 0 | M24: 0 | N24: 0 | O24: 0 | P24: 0 | Q24: 0 | R24: 0 | S24: 0 | T24: 0 | U24: 0 | V24: 0 | W24: 0 | X24: 0 | Y24: 0 | Z24: 0 | AA24: 0 | AB24: 0 | AC24: 0 | AD24: 0 | AE24: 0 | AF24: 0 | AG24: 0
E25: Corporate | K25: =K61+K71+K81+K91+K101+K110 -> 0 | L25: 0 | M25: 0 | N25: 0 | O25: 0 | P25: 0 | Q25: 0 | R25: 0 | S25: 0 | T25: 0 | U25: 22.01634979 | V25: 22.949312 | W25: 21.878883 | X25: 22.81369179 | Y25: 22.87780823 | Z25: 21.126676 | AA25: 17.163428 | AB25: 16.795272 | AC25: 16.89725 | AD25: 16.853282 | AE25: 16.854923 | AF25: 16.842439 | AG25: 16.820891
E26: Other operating expenditure | K26: =K62+K72+K82+K92+K102+K111 -> 0 | L26: 0 | M26: 0 | N26: 0 | O26: 0 | P26: 0 | Q26: 0 | R26: 0 | S26: 0 | T26: 0 | U26: 0 | V26: 0 | W26: 0 | X26: 0 | Y26: 0 | Z26: 0 | AA26: 0 | AB26: 0 | AC26: 0 | AD26: 0 | AE26: 0 | AF26: 0 | AG26: 0
E27: Total controllable operating expenditure | K27: =SUM(K22:K26) -> 0 | L27: 0 | M27: 0 | N27: 0 | O27: 0 | P27: 0 | Q27: 0 | R27: 0 | S27: 0 | T27: 0 | U27: 89.721586 | V27: 88.485821 | W27: 80.53763223 | X27: 79.54785646 | Y27: 77.93068614 | Z27: 72.94341289 | AA27: 66.92833034 | AB27: 66.41151048 | AC27: 66.38052821 | AD27: 66.19115108 | AE27: 65.87650579 | AF27: 65.68850747 | AG27: 65.67318088
U28: =ROUND(U27,2)=ROUND(U19,2) -> TRUE | V28: =ROUND(V27,2)=ROUND(V19,2) -> TRUE | W28: TRUE | X28: TRUE | Y28: TRUE | Z28: TRUE | AA28: TRUE | AB28: TRUE | AC28: TRUE | AD28: TRUE | AE28: TRUE | AF28: TRUE | AG28: TRUE
E30: External bulk water charges (excl. temporary purchases) | K30: =K57+K67+K77+K87+K97 -> 0 | L30: =L57+L67+L77+L87+L97 -> 0 | M30: 0 | N30: 0 | O30: 0 | P30: 0 | Q30: 0 | R30: 0 | S30: 0 | T30: 0 | U30: 0 | V30: 0 | W30: 0 | X30: 0 | Y30: 0 | Z30: 0 | AA30: 0 | AB30: 0 | AC30: 0 | AD30: 0 | AE30: 0 | AF30: 0 | AG30: 0
E31: External temporary water purchases | K31: =+K119 -> 0 | L31: 0 | M31: 0 | N31: 0 | O31: 0 | P31: 0 | Q31: 0 | R31: 0 | S31: 0 | T31: 0 | U31: 0 | V31: 0 | W31: 0 | X31: 0 | Y31: 0 | Z31: 0 | AA31: 0 | AB31: 0 | AC31: 0 | AD31: 0 | AE31: 0 | AF31: 0 | AG31: 0
E32: Licence fees | K32: =+K125 -> 0 | L32: 0 | M32: 0 | N32: 0 | O32: 0 | P32: 0 | Q32: 0 | R32: 0 | S32: 0 | T32: 0 | U32: 0.04114330618 | V32: 0.1348657782 | W32: 0.045431419 | X32: 0.07648347957 | Y32: 0.08 | Z32: 0.08 | AA32: 0.08 | AB32: 0.08 | AC32: 0.08 | AD32: 0.08 | AE32: 0.08 | AF32: 0.08 | AG32: 0.08
E33: Environment Contribution | K33: =K128 -> 0 | L33: 0 | M33: 0 | N33: 0 | O33: 0 | P33: 0 | Q33: 0 | R33: 0 | S33: 0 | T33: 0 | U33: 1.801241573 | V33: 1.777935305 | W33: 1.740928507 | X33: 2.744739461 | Y33: 2.68883219 | Z33: 2.68883219 | AA33: 2.68883219 | AB33: 2.68883219 | AC33: 2.68883219 | AD33: 2.68883219 | AE33: 2.68883219 | AF33: 2.68883219 | AG33: 2.68883219
E34: Murray Darling Basin Contribution | U34: =U131 -> 10.72646545 | V34: =V131 -> 6.731902868 | W34: 15.99154499 | X34: 14.59182948 | Y34: 13.4 | Z34: 13.4 | AA34: 13.4 | AB34: 13.4 | AC34: 13.4 | AD34: 13.4 | AE34: 13.4 | AF34: 13.4 | AG34: 13.4
E35: Other non-controllable | K35: =+K144 -> 0 | L35: 0 | M35: 0 | N35: 0 | O35: 0 | P35: 0 | Q35: 0 | R35: 0 | S35: 0 | T35: 0 | U35: 0 | V35: 0 | W35: 0 | X35: 0 | Y35: 0 | Z35: 0 | AA35: 0 | AB35: 0 | AC35: 0 | AD35: 0 | AE35: 0 | AF35: 0 | AG35: =+AG144 -> 0
E36: Total non-controllable operating expenditure | K36: =SUM(K30:K35) -> 0 | L36: 0 | M36: 0 | N36: 0 | O36: 0 | P36: 0 | Q36: 0 | R36: 0 | S36: 0 | T36: 0 | U36: 12.56885033 | V36: 8.644703951 | W36: 17.77790491 | X36: 17.41305243 | Y36: 16.16883219 | Z36: 16.16883219 | AA36: 16.16883219 | AB36: 16.16883219 | AC36: 16.16883219 | AD36: 16.16883219 | AE36: 16.16883219 | AF36: 16.16883219 | AG36: 16.16883219
E39: Total prescribed operating expenditure | K39: =+K36+K19 -> 0 | L39: 0 | M39: 0 | N39: 0 | O39: 0 | P39: 0 | Q39: 0 | R39: 0 | S39: 0 | T39: 0 | U39: 102.2904363 | V39: 97.13052495 | W39: 98.31553714 | X39: 96.96090889 | Y39: 94.09951833 | Z39: 89.11224508 | AA39: 83.09716253 | AB39: 82.58034267 | AC39: 82.5493604 | AD39: 82.35998327 | AE39: 82.04533798 | AF39: 81.85733966 | AG39: 81.84201307
E42: Fully government funded programs/projects (opex) | U42: =U162 -> 0.1037287053 | V42: =V162 -> 0.5691962358 | W42: 0.7921799448 | X42: 0.199257919 | Y42: 0.117811 | Z42: 0 | AA42: 0 | AB42: 0 | AC42: 0 | AD42: 0 | AE42: 0 | AF42: 0 | AG42: 0
E43: Fully customer funded programs/projects (opex) | U43: =U163 -> 0 | V43: =V163 -> 0 | W43: 0 | X43: 0 | Y43: 0 | Z43: 0 | AA43: 0 | AB43: 0 | AC43: 0 | AD43: 0 | AE43: 0 | AF43: 0 | AG43: 0
Y45: To reconcile to 'Opex_FO' tab row 92>> | Z45: =+Opex_FO!Z88 -> 89.1137146 | AA45: =+Opex_FO!AA88 -> 83.09863204 | AB45: =+Opex_FO!AB88 -> 82.58181218 | AC45: =+Opex_FO!AC88 -> 82.55082991 | AD45: =+Opex_FO!AD88 -> 82.36145277 | AE45: =+Opex_FO!AE88 -> 82.04680749 | AF45: =+Opex_FO!AF88 -> 81.85880917 | AG45: =+Opex_FO!AG88 -> 81.84348257
Y46: Difference | Z46: =+Opex_FO!Z89 -> 0 | AA46: =+Opex_FO!AA89 -> 0 | AB46: =+Opex_FO!AB89 -> 0 | AC46: =+AC45-AC39 -> 0.001469509005 | AD46: =+AD45-AD39 -> 0.001469509005 | AE46: =+AE45-AE39 -> 0.001469509005 | AF46: =+AF45-AF39 -> 0.001469509005 | AG46: =+AG45-AG39 -> 0.001469509005
Y47: Test | Z47: =ROUND(Z45,2)=ROUND(Z39,2) -> TRUE | AA47: TRUE | AB47: TRUE | AC47: TRUE | AD47: TRUE | AE47: TRUE | AF47: TRUE | AG47: TRUE
U50: Note: bad debts must be excluded from operating expenditure => instead it must be entered in RevenuePriceCap/RevenueTariffBasket tab (row 59 - revenue not collected)
B51: Total operating expenditure
B53: Controllable costs:
C55: =E12 -> Irrigation
D56: Operations & Maintenance | U56: 44.09175903 | V56: 42.04435648 | W56: 37.23043376 | X56: 36.37513995 | Y56: 35.04489889 | Z56: 30.26586128 | AA56: 30.23775591 | AB56: 30.23700116 | AC56: 30.24669875 | AD56: 30.33983444 | AE56: 30.33974594 | AF56: 30.33983445 | AG56: 30.33974594
D57: External bulk charges (excl. temporary purchases)
D58: Customer Service and billing
D59: GSL Payments
D60: Licence Fees
D61: Corporate | U61: 15.44993945 | V61: 16.814973 | W61: 15.81066 | X61: 15.56152499 | Y61: 14.10870339 | Z61: 13.227157 | AA61: 10.777891 | AB61: 10.738311 | AC61: 10.705249 | AD61: 10.744845 | AE61: 11.019753 | AF61: 11.005539 | AG61: 10.998314
D62: Other operating expenditure
C63: =+CONCATENATE("Total ",C55) -> Total Irrigation | K63: =+SUM(K56:K62) -> 0 | L63: 0 | M63: 0 | N63: 0 | O63: 0 | P63: 0 | Q63: 0 | R63: 0 | S63: 0 | T63: 0 | U63: 59.54169848 | V63: 58.85932948 | W63: 53.04109376 | X63: 51.93666494 | Y63: 49.15360228 | Z63: 43.49301828 | AA63: 41.01564691 | AB63: 40.97531216 | AC63: 40.95194775 | AD63: 41.08467944 | AE63: 41.35949894 | AF63: 41.34537345 | AG63: 41.33805994
C65: =E13 -> Drainage
D66: =+D56 -> Operations & Maintenance | U66: 3.17097613 | V66: 3.624145037 | W66: 2.899853592 | X66: 2.43918229 | Y66: 2.808106078 | Z66: 2.486350106 | AA66: 2.423732011 | AB66: 2.422758752 | AC66: 2.422811269 | AD66: 2.440116869 | AE66: 2.440106538 | AF66: 2.440116869 | AG66: 2.440106538
D67: External bulk charges (excl. temporary purchases)
D68: Customer Service and billing
D69: GSL Payments
D70: Licence Fees
D71: Corporate | U71: 0.999781165 | V71: 1.153314 | W71: 1.069592 | X71: 0.931749951 | Y71: 1.631025384 | Z71: 1.122419 | AA71: 0.949541 | AB71: 0.946088 | AC71: 0.945244 | AD71: 0.920357 | AE71: 0.956556 | AF71: 1.016132 | AG71: 1.012617
D72: Other operating expenditure
C73: =+CONCATENATE("Total ",C65) -> Total Drainage | K73: =+SUM(K66:K72) -> 0 | L73: 0 | M73: 0 | N73: 0 | O73: 0 | P73: 0 | Q73: 0 | R73: 0 | S73: 0 | T73: 0 | U73: 4.170757295 | V73: 4.777459037 | W73: 3.969445592 | X73: 3.370932241 | Y73: 4.439131462 | Z73: 3.608769106 | AA73: 3.373273011 | AB73: 3.368846752 | AC73: 3.368055269 | AD73: 3.360473869 | AE73: 3.396662538 | AF73: 3.456248869 | AG73: 3.452723538
C75: =E14 -> Water supply districts
D76: =+D66 -> Operations & Maintenance | U76: 0.582936695 | V76: 1.201755186 | W76: 1.020309733 | X76: 0.5087821261 | Y76: 0.5590747085 | Z76: 0.5422004148 | AA76: 0.542021391 | AB76: 0.5434225653 | AC76: 0.5448403813 | AD76: 0.5419707673 | AE76: 0.5419695931 | AF76: 0.5419707673 | AG76: 0.5419695931
D77: External bulk charges (excl. temporary purchases)
D78: Customer Service and billing
D79: GSL Payments
D80: Licence Fees
D81: Corporate | U81: 0.1348481449 | V81: 0.347489 | W81: 0.257937 | X81: 0.1761469954 | Y81: 0.2291325967 | Z81: 0.170303 | AA81: 0.151708 | AB81: 0.134245 | AC81: 0.131597 | AD81: 0.133756 | AE81: 0.150243 | AF81: 0.147191 | AG81: 0.136638
D82: Other operating expenditure
C83: =+CONCATENATE("Total ",C75) -> Total Water supply districts | K83: =+SUM(K76:K82) -> 0 | L83: 0 | M83: 0 | N83: 0 | O83: 0 | P83: 0 | Q83: 0 | R83: 0 | S83: 0 | T83: 0 | U83: 0.7177848399 | V83: 1.549244186 | W83: 1.278246733 | X83: 0.6849291215 | Y83: 0.7882073052 | Z83: 0.7125034148 | AA83: 0.693729391 | AB83: 0.6776675653 | AC83: 0.6764373813 | AD83: 0.6757267673 | AE83: 0.6922125931 | AF83: 0.6891617673 | AG83: 0.6786075931
C85: =E15 -> Surface water diversions
D86: =+D66 -> Operations & Maintenance | U86: 1.830789095 | V86: 2.092051876 | W86: 1.978476427 | X86: 1.939297389 | Y86: 1.666754039 | Z86: 1.737177428 | AA86: 1.736565568 | AB86: 1.685353712 | AC86: 1.685142123 | AD86: 1.685151887 | AE86: 1.685146497 | AF86: 1.685151887 | AG86: 1.685146497
D87: External bulk charges (excl. temporary purchases)
D88: Customer Service and billing
D89: GSL Payments
D90: Licence Fees
D91: Corporate | U91: 1.037345492 | V91: 0.846365 | W91: 0.882008 | X91: 1.047698746 | Y91: 0.9920191643 | Z91: 0.886056 | AA91: 0.766892 | AB91: 0.745332 | AC91: 0.744547 | AD91: 0.766433 | AE91: 0.765062 | AF91: 0.769524 | AG91: 0.777238
D92: Other operating expenditure
C93: =+CONCATENATE("Total ",C85) -> Total Surface water diversions | K93: =+SUM(K86:K92) -> 0 | L93: 0 | M93: 0 | N93: 0 | O93: 0 | P93: 0 | Q93: 0 | R93: 0 | S93: 0 | T93: 0 | U93: 2.868134587 | V93: 2.938416876 | W93: 2.860484427 | X93: 2.986996135 | Y93: 2.658773203 | Z93: 2.623233428 | AA93: 2.503457568 | AB93: 2.430685712 | AC93: 2.429689123 | AD93: 2.451584887 | AE93: 2.450208497 | AF93: 2.454675887 | AG93: 2.462384497
C95: =E16 -> Groundwater diversions
D96: =+D76 -> Operations & Maintenance | U96: 1.506485492 | V96: 1.628069219 | W96: 1.475289295 | X96: 1.403848957 | Y96: 1.350201303 | Z96: 1.467111593 | AA96: 1.419279002 | AB96: 1.395113457 | AC96: 1.395004195 | AD96: 1.395012354 | AE96: 1.395008666 | AF96: 1.395012354 | AG96: 1.395008666
D97: External bulk charges (excl. temporary purchases)
D98: Customer Service and billing
D99: GSL Payments
D100: Licence fees
D101: Corporate | U101: 0.3922878724 | V101: 0.427868 | W101: 0.426558 | X101: 0.5153981015 | Y101: 0.5507887256 | Z101: 0.480058 | AA101: 0.383289 | AB101: 0.372523 | AC101: 0.371774 | AD101: 0.38331 | AE101: 0.382286 | AF101: 0.385618 | AG101: 0.391377
D102: Other operating expenditure
C103: =+CONCATENATE("Total ",C95) -> Total Groundwater diversions | K103: =+SUM(K96:K102) -> 0 | L103: 0 | M103: 0 | N103: 0 | O103: 0 | P103: 0 | Q103: 0 | R103: 0 | S103: 0 | T103: 0 | U103: 1.898773365 | V103: 2.055937219 | W103: 1.901847295 | X103: 1.919247058 | Y103: 1.900990028 | Z103: 1.947169593 | AA103: 1.802568002 | AB103: 1.767636457 | AC103: 1.766778195 | AD103: 1.778322354 | AE103: 1.777294666 | AF103: 1.780630354 | AG103: 1.786385666
C105: =E17 -> Bulk water services
D106: =+D56 -> Operations & Maintenance | U106: 11.14376229 | V106: 10.13423286 | W106: 9.573335745 | X106: 10.02964326 | Y106: 9.592649199 | Z106: 12.00161594 | AA106: 10.23586778 | AB106: 10.21237044 | AC106: 10.05914363 | AD106: 9.79104921 | AE106: 9.476681006 | AF106: 9.29516759 | AG106: 9.291318087
D107: Customer Service and billing
D108: GSL Payments
D109: Licence fees
D110: Corporate | U110: 4.002147669 | V110: 3.359303 | W110: 3.432128 | X110: 4.581173 | Y110: 5.366138969 | Z110: 5.240683 | AA110: 4.134107 | AB110: 3.858773 | AC110: 3.998839 | AD110: 3.904581 | AE110: 3.581023 | AF110: 3.518435 | AG110: 3.504707
D111: Other operating expenditure
C112: =+CONCATENATE("Total ",C105) -> Total Bulk water services | K112: =+SUM(K106:K111) -> 0 | L112: 0 | M112: 0 | N112: 0 | O112: 0 | P112: 0 | Q112: 0 | R112: 0 | S112: 0 | T112: 0 | U112: 15.14590996 | V112: 13.49353586 | W112: 13.00546374 | X112: 14.61081626 | Y112: 14.95878817 | Z112: 17.24229894 | AA112: 14.36997478 | AB112: 14.07114344 | AC112: 14.05798263 | AD112: 13.69563021 | AE112: 13.05770401 | AF112: 12.81360259 | AG112: 12.79602509
C115: Customer Service and billing | U115: 5.378527486 | V115: 4.811898341 | W115: 4.481050671 | X115: 4.038270714 | Y115: 4.0311937 | Z115: 3.316420132 | AA115: 3.169680674 | AB115: 3.120218397 | AC115: 3.129637873 | AD115: 3.144733552 | AE115: 3.142924552 | AF115: 3.148814552 | AG115: 3.158994552 | AH115: <<< enter total data here ONLY IF the breakdown data is not entered above
U116: =IF(OR(U58>0,U68>0,U78>0,U88>0,U98>0,U107>0)*AND(U115>0),"FLAG","") ->  | V116: =IF(OR(V58>0,V68>0,V78>0,V88>0,V98>0,V107>0)*AND(V115>0),"FLAG","") -> 
B117: Non-controllable costs:
C119: External temporary water purchases
C121: Licence fees
D122: Essential Services Commission | U122: 0.04114330618 | V122: 0.1348657782 | W122: 0.045431419 | X122: 0.07648347957 | Y122: 0.08 | Z122: 0.08 | AA122: 0.08 | AB122: 0.08 | AC122: 0.08 | AD122: 0.08 | AE122: 0.08 | AF122: 0.08 | AG122: 0.08
D123: Department of Human Services
D124: Environment Protection Authority
C125: =+CONCATENATE("Total ",C121) -> Total Licence fees | K125: =+SUM(K122:K124) -> 0 | L125: =+SUM(L122:L124) -> 0 | M125: 0 | N125: 0 | O125: 0 | P125: 0 | Q125: 0 | R125: 0 | S125: 0 | T125: 0 | U125: 0.04114330618 | V125: 0.1348657782 | W125: 0.045431419 | X125: =+SUM(X122:X124) -> 0.07648347957 | Y125: =+SUM(Y122:Y124) -> 0.08 | Z125: =+SUM(Z122:Z124) -> 0.08 | AA125: =+SUM(AA122:AA124) -> 0.08 | AB125: =+SUM(AB122:AB124) -> 0.08 | AC125: =+SUM(AC122:AC124) -> 0.08 | AD125: 0.08 | AE125: 0.08 | AF125: 0.08 | AG125: 0.08
C128: Environment Contribution | U128: 1.801241573 | V128: 1.777935305 | W128: 1.740928507 | X128: 2.744739461 | Y128: 2.68883219 | Z128: 2.68883219 | AA128: 2.68883219 | AB128: 2.68883219 | AC128: 2.68883219 | AD128: 2.68883219 | AE128: 2.68883219 | AF128: 2.68883219 | AG128: 2.68883219
C131: Murray Darling Basin Contribution | U131: 10.72646545 | V131: 6.731902868 | W131: 15.99154499 | X131: 14.59182948 | Y131: 13.4 | Z131: 13.4 | AA131: 13.4 | AB131: 13.4 | AC131: 13.4 | AD131: 13.4 | AE131: 13.4 | AF131: 13.4 | AG131: 13.4
C133: Other non-controllable
D134: [Non-controllable 1] | E134: 0 | F134: 0 | G134: 0 | H134: 0 | I134: 0 | J134: 0
D135: [Non-controllable 2] | E135: 0 | F135: 0 | G135: 0 | H135: 0 | I135: 0 | J135: 0
D136: [Non-controllable 3] | E136: 0 | F136: 0 | G136: 0 | H136: 0 | I136: 0 | J136: 0
D137: [Non-controllable 4] | E137: 0 | F137: 0 | G137: 0 | H137: 0 | I137: 0 | J137: 0
D138: [Non-controllable 5] | E138: 0 | F138: 0 | G138: 0 | H138: 0 | I138: 0 | J138: 0
D139: [Non-controllable 6] | E139: 0 | F139: 0 | G139: 0 | H139: 0 | I139: 0 | J139: 0
D140: [Non-controllable 7] | E140: 0 | F140: 0 | G140: 0 | H140: 0 | I140: 0 | J140: 0
D141: [Non-controllable 8] | E141: 0 | F141: 0 | G141: 0 | H141: 0 | I141: 0 | J141: 0
D142: [Non-controllable 9] | E142: 0 | F142: 0 | G142: 0 | H142: 0 | I142: 0 | J142: 0
D143: [Non-controllable 10] | E143: 0 | F143: 0 | G143: 0 | H143: 0 | I143: 0 | J143: 0
K144: =SUM(K134:K143) -> 0 | L144: 0 | M144: 0 | N144: 0 | O144: 0 | P144: 0 | Q144: 0 | R144: 0 | S144: 0 | T144: 0 | U144: 0 | V144: 0 | W144: 0 | X144: 0 | Y144: 0 | Z144: 0 | AA144: 0 | AB144: 0 | AC144: 0 | AD144: 0 | AE144: 0 | AF144: 0 | AG144: =SUM(AG134:AG143) -> 0
B147: Fully funded government or customer programs/projects (opex)
H149: Contribution | I149: Service
D150: Mitiamo pipeline business case | H150: Government | I150: Water supply districts | U150: 0 | V150: 0.4675463995 | W150: 0.4636744894 | X150: 0.02374575025 | Y150: 0
D151: Water Savings Program | H151: Government | I151: Irrigation | Y151: 0.117811
D152: Water Savings - Lake Mokoan | H152: Government | I152: Irrigation | U152: 0.04528476226 | V152: 0.03402777467 | W152: 0.220938711 | X152: 0.1315244998
D153: Streamflow Planning | H153: Government | I153: Surface water diversions | U153: 0.01578779692
D154: Groundwater (externally funded) | H154: Government | I154: Groundwater diversions | U154: 0.04265614611 | V154: 0.06762206166 | W154: 0.1075667444 | X154: 0.04398766901
D155: Project 6
D156: Project 7
D157: Project 8
D158: Project 9
D159: Project 10
K160: =SUM(K150:K159) -> 0 | L160: 0 | M160: 0 | N160: 0 | O160: 0 | P160: 0 | Q160: 0 | R160: 0 | S160: 0 | T160: 0
C161: Total fully funded programs/projects (opex) by:
D162: Government | U162: =SUMIF($H150:$H159,$D162,U150:U159) -> 0.1037287053 | V162: =SUMIF($H150:$H159,$D162,V150:V159) -> 0.5691962358 | W162: 0.7921799448 | X162: 0.199257919 | Y162: 0.117811 | Z162: 0 | AA162: 0 | AB162: 0 | AC162: 0 | AD162: 0 | AE162: 0 | AF162: 0 | AG162: 0
D163: Customer | U163: =SUMIF($H150:$H159,$D163,U150:U159) -> 0 | V163: =SUMIF($H150:$H159,$D163,V150:V159) -> 0 | W163: 0 | X163: 0 | Y163: 0 | Z163: 0 | AA163: 0 | AB163: 0 | AC163: 0 | AD163: 0 | AE163: 0 | AF163: 0 | AG163: 0

Sheet Capex_FO input
B1: Capital Expenditure - Forecast Input
B2: =+Contents!H7 -> Goulburn Murray Water
B3: Go to Table of Contents
C7: Input Summary | E7: FIFTH REG PERIOD | I7: SIXTH REG PERIOD
D9: =+O39 -> 2020-21 | E9: 2021-22 | F9: 2022-23 | G9: 2023-24 | H9: 2024-25 | I9: 2025-26 | J9: 2026-27 | K9: 2027-28
C10: By Cost Driver
C11: Net capital expenditure - Renewals | D11: =+SUMIF($F$42:$F$1454,"Renewals",AP$42:AP$1454) -> 20.58821226 | E11: =+SUMIF($F$42:$F$1454,"Renewals",AQ$42:AQ$1454) -> 21.34723365 | F11: =+SUMIF($F$42:$F$1454,"Renewals",AR$42:AR$1454) -> 21.46854571 | G11: =+SUMIF($F$42:$F$1454,"Renewals",AS$42:AS$1454) -> 20.38982582 | H11: =+SUMIF($F$42:$F$1454,"Renewals",AT$42:AT$1454) -> 19.69070338 | I11: =+SUMIF($F$42:$F$1454,"Renewals",AU$42:AU$1454) -> 21.83967296 | J11: =+SUMIF($F$42:$F$1454,"Renewals",AV$42:AV$1454) -> 22.66740384 | K11: =+SUMIF($F$42:$F$1454,"Renewals",AW$42:AW$1454) -> 18.47490021
C12: Net capital expenditure - Growth | D12: =+SUMIF($F$42:$F$1454,"Growth",AP$42:AP$1454) -> 4.35 | E12: =+SUMIF($F$42:$F$1454,"Growth",AQ$42:AQ$1454) -> 0 | F12: =+SUMIF($F$42:$F$1454,"Growth",AR$42:AR$1454) -> 0 | G12: =+SUMIF($F$42:$F$1454,"Growth",AS$42:AS$1454) -> 0 | H12: =+SUMIF($F$42:$F$1454,"Growth",AT$42:AT$1454) -> 0 | I12: =+SUMIF($F$42:$F$1454,"Growth",AU$42:AU$1454) -> 0 | J12: =+SUMIF($F$42:$F$1454,"Growth",AV$42:AV$1454) -> 0 | K12: =+SUMIF($F$42:$F$1454,"Growth",AW$42:AW$1454) -> 0
C13: Net capital expenditure - Improvements / Compliance | D13: =+SUMIF($F$42:$F$1454,"Improvements / Compliance",AP$42:AP$1454) -> 0.2 | E13: =+SUMIF($F$42:$F$1454,"Improvements / Compliance",AQ$42:AQ$1454) -> 1 | F13: =+SUMIF($F$42:$F$1454,"Improvements / Compliance",AR$42:AR$1454) -> 0.4499999603 | G13: =+SUMIF($F$42:$F$1454,"Improvements / Compliance",AS$42:AS$1454) -> 1.96 | H13: =+SUMIF($F$42:$F$1454,"Improvements / Compliance",AT$42:AT$1454) -> 2 | I13: =+SUMIF($F$42:$F$1454,"Improvements / Compliance",AU$42:AU$1454) -> 0 | J13: =+SUMIF($F$42:$F$1454,"Improvements / Compliance",AV$42:AV$1454) -> 0 | K13: =+SUMIF($F$42:$F$1454,"Improvements / Compliance",AW$42:AW$1454) -> 0
C14: Government Contributions | D14: =+X41 -> 2.9 | E14: 1.2 | F14: 0.2 | G14: 0.2 | H14: 0.15 | I14: 0.15 | J14: 0.15 | K14: 0.15
C15: Customer Contributions | D15: =+AG41 -> 0 | E15: 0 | F15: 0 | G15: 0 | H15: 0 | I15: 0 | J15: 0 | K15: 0
C16: Total prescribed capex | D16: =SUM(D11:D15) -> 28.03821226 | E16: 23.54723365 | F16: 22.11854567 | G16: 22.54982582 | H16: 21.84070338 | I16: 21.98967296 | J16: 22.81740384 | K16: 18.62490021
C18: By Capital Type
C19: Top 10 Major Projects | D19: =+SUMIF($H$42:$H$1454,$C$19,O$42:O$1454) -> 7.256078 | E19: =+SUMIF($H$42:$H$1454,$C$19,P$42:P$1454) -> 2.31928 | F19: =+SUMIF($H$42:$H$1454,$C$19,Q$42:Q$1454) -> 1.304335 | G19: =+SUMIF($H$42:$H$1454,$C$19,R$42:R$1454) -> 0 | H19: =+SUMIF($H$42:$H$1454,$C$19,S$42:S$1454) -> 0 | I19: =+SUMIF($H$42:$H$1454,$C$19,T$42:T$1454) -> 0 | J19: =+SUMIF($H$42:$H$1454,$C$19,U$42:U$1454) -> 0 | K19: =+SUMIF($H$42:$H$1454,$C$19,V$42:V$1454) -> 0
C20: Significant projects | D20: =+SUMIF($H$42:$H$1454,$C$20,O$42:O$1454) -> 0 | E20: =+SUMIF($H$42:$H$1454,$C$20,P$42:P$1454) -> 0 | F20: =+SUMIF($H$42:$H$1454,$C$20,Q$42:Q$1454) -> 0 | G20: =+SUMIF($H$42:$H$1454,$C$20,R$42:R$1454) -> 0 | H20: =+SUMIF($H$42:$H$1454,$C$20,S$42:S$1454) -> 0 | I20: =+SUMIF($H$42:$H$1454,$C$20,T$42:T$1454) -> 0 | J20: =+SUMIF($H$42:$H$1454,$C$20,U$42:U$1454) -> 0 | K20: =+SUMIF($H$42:$H$1454,$C$20,V$42:V$1454) -> 0
C21: Capital Programs / Allocation | D21: =+SUMIF($H$42:$H$1454,$C$21,O$42:O$1454) -> 0 | E21: =+SUMIF($H$42:$H$1454,$C$21,P$42:P$1454) -> 0 | F21: =+SUMIF($H$42:$H$1454,$C$21,Q$42:Q$1454) -> 0 | G21: =+SUMIF($H$42:$H$1454,$C$21,R$42:R$1454) -> 0 | H21: =+SUMIF($H$42:$H$1454,$C$21,S$42:S$1454) -> 0 | I21: =+SUMIF($H$42:$H$1454,$C$21,T$42:T$1454) -> 0 | J21: =+SUMIF($H$42:$H$1454,$C$21,U$42:U$1454) -> 0 | K21: =+SUMIF($H$42:$H$1454,$C$21,V$42:V$1454) -> 0
C22: Other Capital expenditure | D22: =+SUMIF($H$42:$H$1454,$C$22,O$42:O$1454) -> 20.78213426 | E22: =+SUMIF($H$42:$H$1454,$C$22,P$42:P$1454) -> 21.22795365 | F22: =+SUMIF($H$42:$H$1454,$C$22,Q$42:Q$1454) -> 20.81421067 | G22: =+SUMIF($H$42:$H$1454,$C$22,R$42:R$1454) -> 22.54982582 | H22: =+SUMIF($H$42:$H$1454,$C$22,S$42:S$1454) -> 21.84070338 | I22: =+SUMIF($H$42:$H$1454,$C$22,T$42:T$1454) -> 21.98967296 | J22: =+SUMIF($H$42:$H$1454,$C$22,U$42:U$1454) -> 22.81740384 | K22: =+SUMIF($H$42:$H$1454,$C$22,V$42:V$1454) -> 18.62490021
C23: Total prescribed capex | D23: =SUM(D19:D22) -> 28.03821226 | E23: 23.54723365 | F23: 22.11854567 | G23: 22.54982582 | H23: 21.84070338 | I23: 21.98967296 | J23: 22.81740384 | K23: 18.62490021
C25: Difference | D25: =+D23-D16 -> 0 | E25: 0 | F25: 0 | G25: 0 | H25: 0 | I25: 0 | J25: 0 | K25: 0
C26: Test | D26: =+D23=D16 -> TRUE | E26: TRUE | F26: TRUE | G26: TRUE | H26: TRUE | I26: TRUE | J26: TRUE | K26: TRUE
C29: Total prescribed capex | D29: =+D23 -> 28.03821226 | E29: 23.54723365 | F29: =+F23 -> 22.11854567 | G29: 22.54982582 | H29: 21.84070338 | I29: 21.98967296 | J29: 22.81740384 | K29: 18.62490021
C32: Regulatory Depreciation | D32: =+AY41 -> 0.5458344824 | E32: 1.567325278 | F32: 2.525693507 | G32: 3.495680436 | H32: 4.384103423 | I32: 4.968349871 | J32: 5.442649393 | K32: 5.902460311
AP34: =O41-X41 -> 25.13821226
B35: =Expenditure_Detail!B6 -> $m, 01/01/20
O36: Gross capital expenditure | X36: Government contributions | AG36: Customer contributions | AP36: Net capital expenditure | AY36: Regulatory Depreciation | BH36: Accumulated capex | BQ36: Gross capital expenditure | BZ36: Tax Depreciation
O37: =B35 -> $m, 01/01/20 | X37: =O37 -> $m, 01/01/20 | AG37: =X37 -> $m, 01/01/20 | AP37: =AG37 -> $m, 01/01/20 | AY37: =AP37 -> $m, 01/01/20 | BH37: =AY37 -> $m, 01/01/20 | BQ37: Nominal,$ | BZ37: Nominal,$
O39: 2020-21 | P39: 2021-22 | Q39: 2022-23 | R39: 2023-24 | S39: 2024-25 | T39: 2025-26 | U39: 2026-27 | V39: 2027-28 | X39: 2020-21 | Y39: 2021-22 | Z39: 2022-23 | AA39: 2023-24 | AB39: 2024-25 | AC39: 2025-26 | AD39: 2026-27 | AE39: 2027-28 | AG39: 2020-21 | AH39: 2021-22 | AI39: 2022-23 | AJ39: 2023-24 | AK39: 2024-25 | AL39: 2025-26 | AM39: 2026-27 | AN39: 2027-28 | AP39: 2020-21 | AQ39: 2021-22 | AR39: 2022-23 | AS39: 2023-24 | AT39: 2024-25 | AU39: 2025-26 | AV39: 2026-27 | AW39: 2027-28 | AY39: 2020-21 | AZ39: 2021-22 | BA39: 2022-23 | BB39: 2023-24 | BC39: 2024-25 | BD39: 2025-26 | BE39: 2026-27 | BF39: 2027-28 | BH39: 2020-21 | BI39: 2021-22 | BJ39: 2022-23 | BK39: 2023-24 | BL39: 2024-25 | BM39: 2025-26 | BN39: 2026-27 | BO39: 2027-28 | BQ39: 2020-21 | BR39: 2021-22 | BS39: 2022-23 | BT39: 2023-24 | BU39: 2024-25 | BV39: 2025-26 | BW39: 2026-27 | BX39: 2027-28 | BZ39: 2020-21 | CA39: 2021-22 | CB39: 2022-23 | CC39: 2023-24 | CD39: 2024-25 | CE39: 2025-26 | CF39: 2026-27 | CG39: 2027-28
AY40: 1 | AZ40: 2 | BA40: 3 | BB40: 4 | BC40: 5 | BD40: 6 | BE40: 7 | BF40: 8 | BZ40: 1 | CA40: 2 | CB40: 3 | CC40: 4 | CD40: 5 | CE40: 6 | CF40: 7 | CG40: 8
C41: Project/program Name | E41: Service | F41: Major cost driver | G41: Asset category | H41: Capital type | J41: Depreciation Method | K41: Year asset operational | L41: Asset life (Regulatory) | M41: Asset life (Tax) | O41: =SUM(O42:O1454) -> 28.03821226 | P41: =SUM(P42:P1454) -> 23.54723365 | Q41: =SUM(Q42:Q1454) -> 22.11854567 | R41: =SUM(R42:R1454) -> 22.54982582 | S41: =SUM(S42:S1454) -> 21.84070338 | T41: =SUM(T42:T1454) -> 21.98967296 | U41: =SUM(U42:U1454) -> 22.81740384 | V41: =SUM(V42:V1454) -> 18.62490021 | X41: =SUM(X42:X1454) -> 2.9 | Y41: =SUM(Y42:Y1454) -> 1.2 | Z41: =SUM(Z42:Z1454) -> 0.2 | AA41: =SUM(AA42:AA1454) -> 0.2 | AB41: =SUM(AB42:AB1454) -> 0.15 | AC41: =SUM(AC42:AC1454) -> 0.15 | AD41: =SUM(AD42:AD1454) -> 0.15 | AE41: =SUM(AE42:AE1454) -> 0.15 | AG41: =SUM(AG42:AG1454) -> 0 | AH41: =SUM(AH42:AH1454) -> 0 | AI41: =SUM(AI42:AI1454) -> 0 | AJ41: =SUM(AJ42:AJ1454) -> 0 | AK41: =SUM(AK42:AK1454) -> 0 | AL41: =SUM(AL42:AL1454) -> 0 | AM41: =SUM(AM42:AM1454) -> 0 | AN41: =SUM(AN42:AN1454) -> 0 | AP41: =SUM(AP42:AP1454) -> 25.13821226 | AQ41: =SUM(AQ42:AQ1454) -> 22.34723365 | AR41: =SUM(AR42:AR1454) -> 21.91854567 | AS41: =SUM(AS42:AS1454) -> 22.34982582 | AT41: =SUM(AT42:AT1454) -> 21.69070338 | AU41: =SUM(AU42:AU1454) -> 21.83967296 | AV41: =SUM(AV42:AV1454) -> 22.66740384 | AW41: =SUM(AW42:AW1454) -> 18.47490021 | AY41: =SUM(AY42:AY1454) -> 0.5458344824 | AZ41: =SUM(AZ42:AZ1454) -> 1.567325278 | BA41: =SUM(BA42:BA1454) -> 2.525693507 | BB41: =SUM(BB42:BB1454) -> 3.495680436 | BC41: =SUM(BC42:BC1454) -> 4.384103423 | BD41: =SUM(BD42:BD1454) -> 4.968349871 | BE41: =SUM(BE42:BE1454) -> 5.442649393 | BF41: =SUM(BF42:BF1454) -> 5.902460311 | BH41: =SUM(BH42:BH1454) -> 25.13821226 | BI41: =SUM(BI42:BI1454) -> 22.34723365 | BJ41: =SUM(BJ42:BJ1454) -> 21.91854567 | BK41: =SUM(BK42:BK1454) -> 22.34982582 | BL41: =SUM(BL42:BL1454) -> 21.69070338 | BM41: =SUM(BM42:BM1454) -> 21.83967296 | BN41: =SUM(BN42:BN1454) -> 22.66740384 | BO41: =SUM(BO42:BO1454) -> 18.47490021 | BQ41: =SUM(BQ42:BQ1454) -> 28.68309114 | BR41: =SUM(BR42:BR1454) -> 24.64286288 | BS41: =SUM(BS42:BS1454) -> 23.68009657 | BT41: =SUM(BT42:BT1454) -> 24.69708671 | BU41: =SUM(BU42:BU1454) -> 24.47060965 | BV41: =SUM(BV42:BV1454) -> 25.20418001 | BW41: =SUM(BW42:BW1454) -> 26.75442766 | BX41: =SUM(BX42:BX1454) -> 22.34081561 | BZ41: =SUM(BZ42:BZ1454) -> 0 | CA41: =SUM(CA42:CA1454) -> 0 | CB41: =SUM(CB42:CB1454) -> 0 | CC41: =SUM(CC42:CC1454) -> 0 | CD41: =SUM(CD42:CD1454) -> 0 | CE41: =SUM(CE42:CE1454) -> 0 | CF41: =SUM(CF42:CF1454) -> 0 | CG41: =SUM(CG42:CG1454) -> 0
C42: ='[1]capital WP5'!C6 -> 361 - Cohuna Weir Fishladder | E42: Irrigation | F42: Renewals | G42: Headworks | H42: Top 10 Major Projects | J42: Straight line | K42: 2020-21 | L42: 80 | O42: 0.206078 | AP42: =+O42-X42-AG42 -> 0.206078 | AQ42: =+P42-Y42-AH42 -> 0 | AR42: =+Q42-Z42-AI42 -> 0 | AS42: =+R42-AA42-AJ42 -> 0 | AT42: =+S42-AB42-AK42 -> 0 | AU42: =+T42-AC42-AL42 -> 0 | AV42: =+U42-AD42-AM42 -> 0 | AW42: =+V42-AE42-AN42 -> 0 | AY42: =IF($L42=0,0, IF($L42<=0.5,BH42, IF($J42="straight line", IF((LEFT(AY$39,4)*1)-INT($L42)<LEFT($AY$39,4)*1,0,((OFFSET(BH42,0,-INT($L42+0.5),1,1))/$L42)*(IF($L42-INT($L42)>0.5,$L42-0.5-INT($L42),IF($L42-INT($L42)<=0.5,$L42-0.5-INT($L42)+1,0)))) +BH42/$L42*0.5, IF($J42="Declining Balance",-$AY$38,0)))) -> 0.0012879875 | AZ42: =IF($L42=0,0, IF($L42<=0.5,BI42, IF(AND($J42="straight line",$L42<1.51),(BH42-((BH42/$L42)*0.5))+BI42/$L42*0.5, IF($J42="straight line", IF((LEFT(AZ$39,4)*1)-INT($L42)<LEFT($AY$39,4)*1,0,((OFFSET(BI42,0,-INT($L42+0.5),1,1))/$L42)*(IF($L42-INT($L42)>0.5,$L42-0.5-INT($L42),IF($L42-INT($L42)<=0.5,$L42-0.5-INT($L42)+1,0)))) +BI42/$L42*0.5 +SUM(OFFSET(BI42,0,MAX(-INT($L42+(0.5-(10^-12))),-AZ$40)+1,1,MIN(INT($L42+(0.5-(10^-12))),AZ$40)-1))*1/$L42, IF($J42="Declining Balance",-$AY$38,0))))) -> 0.002575975 | BA42: =IF($L42=0,0, IF($L42<=0.5,BJ42, IF(AND($J42="straight line",$L42<1.51),(BI42-((BI42/$L42)*0.5))+BJ42/$L42*0.5, IF($J42="straight line", IF((LEFT(BA$39,4)*1)-INT($L42)<LEFT($AY$39,4)*1,0,((OFFSET(BJ42,0,-INT($L42+0.5),1,1))/$L42)*(IF($L42-INT($L42)>0.5,$L42-0.5-INT($L42),IF($L42-INT($L42)<=0.5,$L42-0.5-INT($L42)+1,0)))) +BJ42/$L42*0.5 +SUM(OFFSET(BJ42,0,MAX(-INT($L42+(0.5-(10^-12))),-BA$40)+1,1,MIN(INT($L42+(0.5-(10^-12))),BA$40)-1))*1/$L42, IF($J42="Declining Balance",-$AY$38,0))))) -> 0.002575975 | BB42: =IF($L42=0,0, IF($L42<=0.5,BK42, IF(AND($J42="straight line",$L42<1.51),(BJ42-((BJ42/$L42)*0.5))+BK42/$L42*0.5, IF($J42="straight line", IF((LEFT(BB$39,4)*1)-INT($L42)<LEFT($AY$39,4)*1,0,((OFFSET(BK42,0,-INT($L42+0.5),1,1))/$L42)*(IF($L42-INT($L42)>0.5,$L42-0.5-INT($L42),IF($L42-INT($L42)<=0.5,$L42-0.5-INT($L42)+1,0)))) +BK42/$L42*0.5 +SUM(OFFSET(BK42,0,MAX(-INT($L42+(0.5-(10^-12))),-BB$40)+1,1,MIN(INT($L42+(0.5-(10^-12))),BB$40)-1))*1/$L42, IF($J42="Declining Balance",-$AY$38,0))))) -> 0.002575975 | BC42: =IF($L42=0,0, IF($L42<=0.5,BL42, IF(AND($J42="straight line",$L42<1.51),(BK42-((BK42/$L42)*0.5))+BL42/$L42*0.5, IF($J42="straight line", IF((LEFT(BC$39,4)*1)-INT($L42)<LEFT($AY$39,4)*1,0,((OFFSET(BL42,0,-INT($L42+0.5),1,1))/$L42)*(IF($L42-INT($L42)>0.5,$L42-0.5-INT($L42),IF($L42-INT($L42)<=0.5,$L42-0.5-INT($L42)+1,0)))) +BL42/$L42*0.5 +SUM(OFFSET(BL42,0,MAX(-INT($L42+(0.5-(10^-12))),-BC$40)+1,1,MIN(INT($L42+(0.5-(10^-12))),BC$40)-1))*1/$L42, IF($J42="Declining Balance",-$AY$38,0))))) -> 0.002575975 | BD42: =IF($L42=0,0, IF($L42<=0.5,BM42, IF(AND($J42="straight line",$L42<1.51),(BL42-((BL42/$L42)*0.5))+BM42/$L42*0.5, IF($J42="straight line", IF((LEFT(BD$39,4)*1)-INT($L42)<LEFT($AY$39,4)*1,0,((OFFSET(BM42,0,-INT($L42+0.5),1,1))/$L42)*(IF($L42-INT($L42)>0.5,$L42-0.5-INT($L42),IF($L42-INT($L42)<=0.5,$L42-0.5-INT($L42)+1,0)))) +BM42/$L42*0.5 +SUM(OFFSET(BM42,0,MAX(-INT($L42+(0.5-(10^-12))),-BD$40)+1,1,MIN(INT($L42+(0.5-(10^-12))),BD$40)-1))*1/$L42, IF($J42="Declining Balance",-$AY$38,0))))) -> 0.002575975 | BE42: =IF($L42=0,0, IF($L42<=0.5,BN42, IF(AND($J42="straight line",$L42<1.51),(BM42-((BM42/$L42)*0.5))+BN42/$L42*0.5, IF($J42="straight line", IF((LEFT(BE$39,4)*1)-INT($L42)<LEFT($AY$39,4)*1,0,((OFFSET(BN42,0,-INT($L42+0.5),1,1))/$L42)*(IF($L42-INT($L42)>0.5,$L42-0.5-INT($L42),IF($L42-INT($L42)<=0.5,$L42-0.5-INT($L42)+1,0)))) +BN42/$L42*0.5 +SUM(OFFSET(BN42,0,MAX(-INT($L42+(0.5-(10^-12))),-BE$40)+1,1,MIN(INT($L42+(0.5-(10^-12))),BE$40)-1))*1/$L42, IF($J42="Declining Balance",-$AY$38,0))))) -> 0.002575975 | BF42: =IF($L42=0,0, IF($L42<=0.5,BO42, IF(AND($J42="straight line",$L42<1.51),(BN42-((BN42/$L42)*0.5))+BO42/$L42*0.5, IF($J42="straight line", IF((LEFT(BF$39,4)*1)-INT($L42)<LEFT($AY$39,4)*1,0,((OFFSET(BO42,0,-INT($L42+0.5),1,1))/$L42)*(IF($L42-INT($L42)>0.5,$L42-0.5-INT($L42),IF($L42-INT($L42)<=0.5,$L42-0.5-INT($L42)+1,0)))) +BO42/$L42*0.5 +SUM(OFFSET(BO42,0,MAX(-INT($L42+(0.5-(10^-12))),-BF$40)+1,1,MIN(INT($L42+(0.5-(10^-12))),BF$40)-1))*1/$L42, IF($J42="Declining Balance",-$AY$38,0))))) -> 0.002575975 | BH42: =+IF($K42="Ongoing",AP42,IF(RIGHT($K42,2)=RIGHT(BH$39,2),SUM($AP42:AP42),0)+IF(RIGHT(BH$39,2)>RIGHT($K42,2),AP42,0)) -> 0.206078 | BI42: =+IF($K42="Ongoing",AQ42,IF(RIGHT($K42,2)=RIGHT(BI$39,2),SUM($AP42:AQ42),0)+IF(RIGHT(BI$39,2)>RIGHT($K42,2),AQ42,0)) -> 0 | BJ42: =+IF($K42="Ongoing",AR42,IF(RIGHT($K42,2)=RIGHT(BJ$39,2),SUM($AP42:AR42),0)+IF(RIGHT(BJ$39,2)>RIGHT($K42,2),AR42,0)) -> 0 | BK42: =+IF($K42="Ongoing",AS42,IF(RIGHT($K42,2)=RIGHT(BK$39,2),SUM($AP42:AS42),0)+IF(RIGHT(BK$39,2)>RIGHT($K42,2),AS42,0)) -> 0 | BL42: =+IF($K42="Ongoing",AT42,IF(RIGHT($K42,2)=RIGHT(BL$39,2),SUM($AP42:AT42),0)+IF(RIGHT(BL$39,2)>RIGHT($K42,2),AT42,0)) -> 0 | BM42: =+IF($K42="Ongoing",AU42,IF(RIGHT($K42,2)=RIGHT(BM$39,2),SUM($AP42:AU42),0)+IF(RIGHT(BM$39,2)>RIGHT($K42,2),AU42,0)) -> 0 | BN42: =+IF($K42="Ongoing",AV42,IF(RIGHT($K42,2)=RIGHT(BN$39,2),SUM($AP42:AV42),0)+IF(RIGHT(BN$39,2)>RIGHT($K42,2),AV42,0)) -> 0 | BO42: =+IF($K42="Ongoing",AW42,IF(RIGHT($K42,2)=RIGHT(BO$39,2),SUM($AP42:AW42),0)+IF(RIGHT(BO$39,2)>RIGHT($K42,2),AW42,0)) -> 0 | BQ42: =+O42*KeyAssumptionsPriceControl_FO!Z$15 -> 0.210817794 | BR42: =+P42*KeyAssumptionsPriceControl_FO!AA$15 -> 0 | BS42: =+Q42*KeyAssumptionsPriceControl_FO!AB$15 -> 0 | BT42: =+R42*KeyAssumptionsPriceControl_FO!AC$15 -> 0 | BU42: =+S42*KeyAssumptionsPriceControl_FO!AD$15 -> 0 | BV42: =+T42*KeyAssumptionsPriceControl_FO!AE$15 -> 0 | BW42: =+U42*KeyAssumptionsPriceControl_FO!AF$15 -> 0 | BX42: =+V42*KeyAssumptionsPriceControl_FO!AG$15 -> 0 | BZ42: =IF($M42=0,0, IF($M42<=0.5,BQ42, IF($J42="straight line", IF((LEFT(BZ$39,4)*1)-INT($M42)<LEFT($BZ$39,4)*1,0,((OFFSET(BQ42,0,-INT($M42+0.5),1,1))/$M42)*(IF($M42-INT($M42)>0.5,$M42-0.5-INT($M42),IF($M42-INT($M42)<=0.5,$M42-0.5-INT($M42)+1,0)))) +BQ42/$M42*0.5, IF($J42="Declining Balance",-$BZ$38,0)))) -> 0 | CA42: =IF($M42=0,0, IF($M42<=0.5,BR42, IF(AND($J42="straight line",$M42<1.51),(BQ42-((BQ42/$M42)*0.5))+BR42/$M42*0.5, IF($J42="straight line", IF((LEFT(CA$39,4)*1)-INT($M42)<LEFT($BZ$39,4)*1,0,((OFFSET(BR42,0,-INT($M42+0.5),1,1))/$M42)*(IF($M42-INT($M42)>0.5,$M42-0.5-INT($M42),IF($M42-INT($M42)<=0.5,$M42-0.5-INT($M42)+1,0)))) +BR42/$M42*0.5 +SUM(OFFSET(BR42,0,MAX(-INT($M42+(0.5-(10^-12))),-CA$40)+1,1,MIN(INT($M42+(0.5-(10^-12))),CA$40)-1))*1/$M42, IF($J42="Declining Balance",-$BZ$38,0))))) -> 0 | CB42: =IF($M42=0,0, IF($M42<=0.5,BS42, IF(AND($J42="straight line",$M42<1.51),(BR42-((BR42/$M42)*0.5))+BS42/$M42*0.5, IF($J42="straight line", IF((LEFT(CB$39,4)*1)-INT($M42)<LEFT($BZ$39,4)*1,0,((OFFSET(BS42,0,-INT($M42+0.5),1,1))/$M42)*(IF($M42-INT($M42)>0.5,$M42-0.5-INT($M42),IF($M42-INT($M42)<=0.5,$M42-0.5-INT($M42)+1,0)))) +BS42/$M42*0.5 +SUM(OFFSET(BS42,0,MAX(-INT($M42+(0.5-(10^-12))),-CB$40)+1,1,MIN(INT($M42+(0.5-(10^-12))),CB$40)-1))*1/$M42, IF($J42="Declining Balance",-$BZ$38,0))))) -> 0 | CC42: =IF($M42=0,0, IF($M42<=0.5,BT42, IF(AND($J42="straight line",$M42<1.51),(BS42-((BS42/$M42)*0.5))+BT42/$M42*0.5, IF($J42="straight line", IF((LEFT(CC$39,4)*1)-INT($M42)<LEFT($BZ$39,4)*1,0,((OFFSET(BT42,0,-INT($M42+0.5),1,1))/$M42)*(IF($M42-INT($M42)>0.5,$M42-0.5-INT($M42),IF($M42-INT($M42)<=0.5,$M42-0.5-INT($M42)+1,0)))) +BT42/$M42*0.5 +SUM(OFFSET(BT42,0,MAX(-INT($M42+(0.5-(10^-12))),-CC$40)+1,1,MIN(INT($M42+(0.5-(10^-12))),CC$40)-1))*1/$M42, IF($J42="Declining Balance",-$BZ$38,0))))) -> 0 | CD42: =IF($M42=0,0, IF($M42<=0.5,BU42, IF(AND($J42="straight line",$M42<1.51),(BT42-((BT42/$M42)*0.5))+BU42/$M42*0.5, IF($J42="straight line", IF((LEFT(CD$39,4)*1)-INT($M42)<LEFT($BZ$39,4)*1,0,((OFFSET(BU42,0,-INT($M42+0.5),1,1))/$M42)*(IF($M42-INT($M42)>0.5,$M42-0.5-INT($M42),IF($M42-INT($M42)<=0.5,$M42-0.5-INT($M42)+1,0)))) +BU42/$M42*0.5 +SUM(OFFSET(BU42,0,MAX(-INT($M42+(0.5-(10^-12))),-CD$40)+1,1,MIN(INT($M42+(0.5-(10^-12))),CD$40)-1))*1/$M42, IF($J42="Declining Balance",-$BZ$38,0))))) -> 0 | CE42: =IF($M42=0,0, IF($M42<=0.5,BV42, IF(AND($J42="straight line",$M42<1.51),(BU42-((BU42/$M42)*0.5))+BV42/$M42*0.5, IF($J42="straight line", IF((LEFT(CE$39,4)*1)-INT($M42)<LEFT($BZ$39,4)*1,0,((OFFSET(BV42,0,-INT($M42+0.5),1,1))/$M42)*(IF($M42-INT($M42)>0.5,$M42-0.5-INT($M42),IF($M42-INT($M42)<=0.5,$M42-0.5-INT($M42)+1,0)))) +BV42/$M42*0.5 +SUM(OFFSET(BV42,0,MAX(-INT($M42+(0.5-(10^-12))),-CE$40)+1,1,MIN(INT($M42+(0.5-(10^-12))),CE$40)-1))*1/$M42, IF($J42="Declining Balance",-$BZ$38,0))))) -> 0 | CF42: =IF($M42=0,0, IF($M42<=0.5,BW42, IF(AND($J42="straight line",$M42<1.51),(BV42-((BV42/$M42)*0.5))+BW42/$M42*0.5, IF($J42="straight line", IF((LEFT(CF$39,4)*1)-INT($M42)<LEFT($BZ$39,4)*1,0,((OFFSET(BW42,0,-INT($M42+0.5),1,1))/$M42)*(IF($M42-INT($M42)>0.5,$M42-0.5-INT($M42),IF($M42-INT($M42)<=0.5,$M42-0.5-INT($M42)+1,0)))) +BW42/$M42*0.5 +SUM(OFFSET(BW42,0,MAX(-INT($M42+(0.5-(10^-12))),-CF$40)+1,1,MIN(INT($M42+(0.5-(10^-12))),CF$40)-1))*1/$M42, IF($J42="Declining Balance",-$BZ$38,0))))) -> 0 | CG42: =IF($M42=0,0, IF($M42<=0.5,BX42, IF(AND($J42="straight line",$M42<1.51),(BW42-((BW42/$M42)*0.5))+BX42/$M42*0.5, IF($J42="straight line", IF((LEFT(CG$39,4)*1)-INT($M42)<LEFT($BZ$39,4)*1,0,((OFFSET(BX42,0,-INT($M42+0.5),1,1))/$M42)*(IF($M42-INT($M42)>0.5,$M42-0.5-INT($M42),IF($M42-INT($M42)<=0.5,$M42-0.5-INT($M42)+1,0)))) +BX42/$M42*0.5 +SUM(OFFSET(BX42,0,MAX(-INT($M42+(0.5-(10^-12))),-CG$40)+1,1,MIN(INT($M42+(0.5-(10^-12))),CG$40)-1))*1/$M42, IF($J42="Declining Balance",-$BZ$38,0))))) -> 0
C43: 361 - Cohuna Weir Fishladder | E43: Irrigation | F43: Renewals | G43: Headworks | H43: Top 10 Major Projects | J43: Straight line | K43: 2021-22 | L43: 80 | P43: 1.31928 | AP43: 0 | AQ43: 1.31928 | AR43: 0 | AS43: 0 | AT43: 0 | AU43: 0 | AV43: 0 | AW43: 0 | AY43: 0 | AZ43: 0.0082455 | BA43: 0.016491 | BB43: 0.016491 | BC43: 0.016491 | BD43: 0.016491 | BE43: 0.016491 | BF43: 0.016491 | BH43: =+IF($K43="Ongoing",AP43,IF(RIGHT($K43,2)=RIGHT(BH$39,2),SUM($AP43:AP43),0)+IF(RIGHT(BH$39,2)>RIGHT($K43,2),AP43,0)) -> 0 | BI43: =+IF($K43="Ongoing",AQ43,IF(RIGHT($K43,2)=RIGHT(BI$39,2),SUM($AP43:AQ43),0)+IF(RIGHT(BI$39,2)>RIGHT($K43,2),AQ43,0)) -> 1.31928 | BJ43: =+IF($K43="Ongoing",AR43,IF(RIGHT($K43,2)=RIGHT(BJ$39,2),SUM($AP43:AR43),0)+IF(RIGHT(BJ$39,2)>RIGHT($K43,2),AR43,0)) -> 0 | BK43: =+IF($K43="Ongoing",AS43,IF(RIGHT($K43,2)=RIGHT(BK$39,2),SUM($AP43:AS43),0)+IF(RIGHT(BK$39,2)>RIGHT($K43,2),AS43,0)) -> 0 | BL43: =+IF($K43="Ongoing",AT43,IF(RIGHT($K43,2)=RIGHT(BL$39,2),SUM($AP43:AT43),0)+IF(RIGHT(BL$39,2)>RIGHT($K43,2),AT43,0)) -> 0 | BM43: =+IF($K43="Ongoing",AU43,IF(RIGHT($K43,2)=RIGHT(BM$39,2),SUM($AP43:AU43),0)+IF(RIGHT(BM$39,2)>RIGHT($K43,2),AU43,0)) -> 0 | BN43: =+IF($K43="Ongoing",AV43,IF(RIGHT($K43,2)=RIGHT(BN$39,2),SUM($AP43:AV43),0)+IF(RIGHT(BN$39,2)>RIGHT($K43,2),AV43,0)) -> 0 | BO43: =+IF($K43="Ongoing",AW43,IF(RIGHT($K43,2)=RIGHT(BO$39,2),SUM($AP43:AW43),0)+IF(RIGHT(BO$39,2)>RIGHT($K43,2),AW43,0)) -> 0 | BQ43: =+O43*KeyAssumptionsPriceControl_FO!Z$15 -> 0 | BR43: =+P43*KeyAssumptionsPriceControl_FO!AA$15 -> 1.380664779 | BS43: =+Q43*KeyAssumptionsPriceControl_FO!AB$15 -> 0 | BT43: =+R43*KeyAssumptionsPriceControl_FO!AC$15 -> 0 | BU43: =+S43*KeyAssumptionsPriceControl_FO!AD$15 -> 0 | BV43: =+T43*KeyAssumptionsPriceControl_FO!AE$15 -> 0 | BW43: =+U43*KeyAssumptionsPriceControl_FO!AF$15 -> 0 | BX43: =+V43*KeyAssumptionsPriceControl_FO!AG$15 -> 0 | BZ43: 0 | CA43: 0 | CB43: 0 | CC43: 0 | CD43: 0 | CE43: 0 | CF43: 0 | CG43: 0
C44: 361 - Cohuna Weir Fishladder | E44: Irrigation | F44: Renewals | G44: Headworks | H44: Top 10 Major Projects | J44: Straight line | K44: 2022-23 | L44: 80 | Q44: 1.304335 | AP44: 0 | AQ44: 0 | AR44: 1.304335 | AS44: 0 | AT44: 0 | AU44: 0 | AV44: 0 | AW44: 0 | AY44: 0 | AZ44: 0 | BA44: 0.00815209375 | BB44: 0.0163041875 | BC44: 0.0163041875 | BD44: 0.0163041875 | BE44: 0.0163041875 | BF44: 0.0163041875 | BH44: =+IF($K44="Ongoing",AP44,IF(RIGHT($K44,2)=RIGHT(BH$39,2),SUM($AP44:AP44),0)+IF(RIGHT(BH$39,2)>RIGHT($K44,2),AP44,0)) -> 0 | BI44: =+IF($K44="Ongoing",AQ44,IF(RIGHT($K44,2)=RIGHT(BI$39,2),SUM($AP44:AQ44),0)+IF(RIGHT(BI$39,2)>RIGHT($K44,2),AQ44,0)) -> 0 | BJ44: =+IF($K44="Ongoing",AR44,IF(RIGHT($K44,2)=RIGHT(BJ$39,2),SUM($AP44:AR44),0)+IF(RIGHT(BJ$39,2)>RIGHT($K44,2),AR44,0)) -> 1.304335 | BK44: =+IF($K44="Ongoing",AS44,IF(RIGHT($K44,2)=RIGHT(BK$39,2),SUM($AP44:AS44),0)+IF(RIGHT(BK$39,2)>RIGHT($K44,2),AS44,0)) -> 0 | BL44: =+IF($K44="Ongoing",AT44,IF(RIGHT($K44,2)=RIGHT(BL$39,2),SUM($AP44:AT44),0)+IF(RIGHT(BL$39,2)>RIGHT($K44,2),AT44,0)) -> 0 | BM44: =+IF($K44="Ongoing",AU44,IF(RIGHT($K44,2)=RIGHT(BM$39,2),SUM($AP44:AU44),0)+IF(RIGHT(BM$39,2)>RIGHT($K44,2),AU44,0)) -> 0 | BN44: =+IF($K44="Ongoing",AV44,IF(RIGHT($K44,2)=RIGHT(BN$39,2),SUM($AP44:AV44),0)+IF(RIGHT(BN$39,2)>RIGHT($K44,2),AV44,0)) -> 0 | BO44: =+IF($K44="Ongoing",AW44,IF(RIGHT($K44,2)=RIGHT(BO$39,2),SUM($AP44:AW44),0)+IF(RIGHT(BO$39,2)>RIGHT($K44,2),AW44,0)) -> 0 | BQ44: =+O44*KeyAssumptionsPriceControl_FO!Z$15 -> 0 | BR44: =+P44*KeyAssumptionsPriceControl_FO!AA$15 -> 0 | BS44: =+Q44*KeyAssumptionsPriceControl_FO!AB$15 -> 1.396419964 | BT44: =+R44*KeyAssumptionsPriceControl_FO!AC$15 -> 0 | BU44: =+S44*KeyAssumptionsPriceControl_FO!AD$15 -> 0 | BV44: =+T44*KeyAssumptionsPriceControl_FO!AE$15 -> 0 | BW44: =+U44*KeyAssumptionsPriceControl_FO!AF$15 -> 0 | BX44: =+V44*KeyAssumptionsPriceControl_FO!AG$15 -> 0 | BZ44: 0 | CA44: 0 | CB44: 0 | CC44: 0 | CD44: 0 | CE44: 0 | CF44: 0 | CG44: 0
C45: 361-Koondrook Weir Fishway | E45: Irrigation | F45: Renewals | G45: Headworks | H45: Top 10 Major Projects | J45: Straight line | K45: 2021-22 | L45: 80 | O45: 2.7 | P45: 1 | X45: 2.7 | Y45: 1 | AP45: 0 | AQ45: 0 | AR45: 0 | AS45: 0 | AT45: 0 | AU45: 0 | AV45: 0 | AW45: 0 | AY45: 0 | AZ45: 0 | BA45: 0 | BB45: 0 | BC45: 0 | BD45: 0 | BE45: 0 | BF45: 0 | BH45: =+IF($K45="Ongoing",AP45,IF(RIGHT($K45,2)=RIGHT(BH$39,2),SUM($AP45:AP45),0)+IF(RIGHT(BH$39,2)>RIGHT($K45,2),AP45,0)) -> 0 | BI45: =+IF($K45="Ongoing",AQ45,IF(RIGHT($K45,2)=RIGHT(BI$39,2),SUM($AP45:AQ45),0)+IF(RIGHT(BI$39,2)>RIGHT($K45,2),AQ45,0)) -> 0 | BJ45: =+IF($K45="Ongoing",AR45,IF(RIGHT($K45,2)=RIGHT(BJ$39,2),SUM($AP45:AR45),0)+IF(RIGHT(BJ$39,2)>RIGHT($K45,2),AR45,0)) -> 0 | BK45: =+IF($K45="Ongoing",AS45,IF(RIGHT($K45,2)=RIGHT(BK$39,2),SUM($AP45:AS45),0)+IF(RIGHT(BK$39,2)>RIGHT($K45,2),AS45,0)) -> 0 | BL45: =+IF($K45="Ongoing",AT45,IF(RIGHT($K45,2)=RIGHT(BL$39,2),SUM($AP45:AT45),0)+IF(RIGHT(BL$39,2)>RIGHT($K45,2),AT45,0)) -> 0 | BM45: =+IF($K45="Ongoing",AU45,IF(RIGHT($K45,2)=RIGHT(BM$39,2),SUM($AP45:AU45),0)+IF(RIGHT(BM$39,2)>RIGHT($K45,2),AU45,0)) -> 0 | BN45: =+IF($K45="Ongoing",AV45,IF(RIGHT($K45,2)=RIGHT(BN$39,2),SUM($AP45:AV45),0)+IF(RIGHT(BN$39,2)>RIGHT($K45,2),AV45,0)) -> 0 | BO45: =+IF($K45="Ongoing",AW45,IF(RIGHT($K45,2)=RIGHT(BO$39,2),SUM($AP45:AW45),0)+IF(RIGHT(BO$39,2)>RIGHT($K45,2),AW45,0)) -> 0 | BQ45: =+O45*KeyAssumptionsPriceControl_FO!Z$15 -> 2.7621 | BR45: =+P45*KeyAssumptionsPriceControl_FO!AA$15 -> 1.046529 | BS45: =+Q45*KeyAssumptionsPriceControl_FO!AB$15 -> 0 | BT45: =+R45*KeyAssumptionsPriceControl_FO!AC$15 -> 0 | BU45: =+S45*KeyAssumptionsPriceControl_FO!AD$15 -> 0 | BV45: =+T45*KeyAssumptionsPriceControl_FO!AE$15 -> 0 | BW45: =+U45*KeyAssumptionsPriceControl_FO!AF$15 -> 0 | BX45: =+V45*KeyAssumptionsPriceControl_FO!AG$15 -> 0 | BZ45: 0 | CA45: 0 | CB45: 0 | CC45: 0 | CD45: 0 | CE45: 0 | CF45: 0 | CG45: 0
C46: ='[1]capital WP5'!C346 -> Mitiamo Pipeline | E46: Water supply districts | F46: Growth | G46: Pipelines/network | H46: Top 10 Major Projects | J46: Straight line | K46: 2020-21 | L46: 75 | O46: 3.989387317 | P46: 0 | Q46: 0 | R46: 0 | S46: 0 | T46: 0 | U46: 0 | V46: 0 | AP46: 3.989387317 | AQ46: 0 | AR46: 0 | AS46: 0 | AT46: 0 | AU46: 0 | AV46: 0 | AW46: 0 | AY46: 0.02659591545 | AZ46: 0.0531918309 | BA46: 0.0531918309 | BB46: 0.0531918309 | BC46: 0.0531918309 | BD46: 0.0531918309 | BE46: 0.0531918309 | BF46: 0.0531918309 | BH46: =+IF($K46="Ongoing",AP46,IF(RIGHT($K46,2)=RIGHT(BH$39,2),SUM($AP46:AP46),0)+IF(RIGHT(BH$39,2)>RIGHT($K46,2),AP46,0)) -> 3.989387317 | BI46: =+IF($K46="Ongoing",AQ46,IF(RIGHT($K46,2)=RIGHT(BI$39,2),SUM($AP46:AQ46),0)+IF(RIGHT(BI$39,2)>RIGHT($K46,2),AQ46,0)) -> 0 | BJ46: =+IF($K46="Ongoing",AR46,IF(RIGHT($K46,2)=RIGHT(BJ$39,2),SUM($AP46:AR46),0)+IF(RIGHT(BJ$39,2)>RIGHT($K46,2),AR46,0)) -> 0 | BK46: =+IF($K46="Ongoing",AS46,IF(RIGHT($K46,2)=RIGHT(BK$39,2),SUM($AP46:AS46),0)+IF(RIGHT(BK$39,2)>RIGHT($K46,2),AS46,0)) -> 0 | BL46: =+IF($K46="Ongoing",AT46,IF(RIGHT($K46,2)=RIGHT(BL$39,2),SUM($AP46:AT46),0)+IF(RIGHT(BL$39,2)>RIGHT($K46,2),AT46,0)) -> 0 | BM46: =+IF($K46="Ongoing",AU46,IF(RIGHT($K46,2)=RIGHT(BM$39,2),SUM($AP46:AU46),0)+IF(RIGHT(BM$39,2)>RIGHT($K46,2),AU46,0)) -> 0 | BN46: =+IF($K46="Ongoing",AV46,IF(RIGHT($K46,2)=RIGHT(BN$39,2),SUM($AP46:AV46),0)+IF(RIGHT(BN$39,2)>RIGHT($K46,2),AV46,0)) -> 0 | BO46: =+IF($K46="Ongoing",AW46,IF(RIGHT($K46,2)=RIGHT(BO$39,2),SUM($AP46:AW46),0)+IF(RIGHT(BO$39,2)>RIGHT($K46,2),AW46,0)) -> 0 | BQ46: =+O46*KeyAssumptionsPriceControl_FO!Z$15 -> 4.081143226 | BR46: =+P46*KeyAssumptionsPriceControl_FO!AA$15 -> 0 | BS46: =+Q46*KeyAssumptionsPriceControl_FO!AB$15 -> 0 | BT46: =+R46*KeyAssumptionsPriceControl_FO!AC$15 -> 0 | BU46: =+S46*KeyAssumptionsPriceControl_FO!AD$15 -> 0 | BV46: =+T46*KeyAssumptionsPriceControl_FO!AE$15 -> 0 | BW46: =+U46*KeyAssumptionsPriceControl_FO!AF$15 -> 0 | BX46: =+V46*KeyAssumptionsPriceControl_FO!AG$15 -> 0 | BZ46: 0 | CA46: 0 | CB46: 0 | CC46: 0 | CD46: 0 | CE46: 0 | CF46: 0 | CG46: 0
C47: ='[1]capital WP5'!C347 -> Mitiamo Pipeline - meters | E47: Water supply districts | F47: Growth | G47: Pipelines/network | H47: Top 10 Major Projects | J47: Straight line | K47: 2020-21 | L47: 30 | O47: 0.2286811578 | P47: 0 | Q47: 0 | R47: 0 | S47: 0 | T47: 0 | U47: 0 | V47: 0 | AP47: 0.2286811578 | AQ47: 0 | AR47: 0 | AS47: 0 | AT47: 0 | AU47: 0 | AV47: 0 | AW47: 0 | AY47: 0.003811352631 | AZ47: 0.007622705261 | BA47: 0.007622705261 | BB47: 0.007622705261 | BC47: 0.007622705261 | BD47: 0.007622705261 | BE47: 0.007622705261 | BF47: 0.007622705261 | BH47: =+IF($K47="Ongoing",AP47,IF(RIGHT($K47,2)=RIGHT(BH$39,2),SUM($AP47:AP47),0)+IF(RIGHT(BH$39,2)>RIGHT($K47,2),AP47,0)) -> 0.2286811578 | BI47: =+IF($K47="Ongoing",AQ47,IF(RIGHT($K47,2)=RIGHT(BI$39,2),SUM($AP47:AQ47),0)+IF(RIGHT(BI$39,2)>RIGHT($K47,2),AQ47,0)) -> 0 | BJ47: =+IF($K47="Ongoing",AR47,IF(RIGHT($K47,2)=RIGHT(BJ$39,2),SUM($AP47:AR47),0)+IF(RIGHT(BJ$39,2)>RIGHT($K47,2),AR47,0)) -> 0 | BK47: =+IF($K47="Ongoing",AS47,IF(RIGHT($K47,2)=RIGHT(BK$39,2),SUM($AP47:AS47),0)+IF(RIGHT(BK$39,2)>RIGHT($K47,2),AS47,0)) -> 0 | BL47: =+IF($K47="Ongoing",AT47,IF(RIGHT($K47,2)=RIGHT(BL$39,2),SUM($AP47:AT47),0)+IF(RIGHT(BL$39,2)>RIGHT($K47,2),AT47,0)) -> 0 | BM47: =+IF($K47="Ongoing",AU47,IF(RIGHT($K47,2)=RIGHT(BM$39,2),SUM($AP47:AU47),0)+IF(RIGHT(BM$39,2)>RIGHT($K47,2),AU47,0)) -> 0 | BN47: =+IF($K47="Ongoing",AV47,IF(RIGHT($K47,2)=RIGHT(BN$39,2),SUM($AP47:AV47),0)+IF(RIGHT(BN$39,2)>RIGHT($K47,2),AV47,0)) -> 0 | BO47: =+IF($K47="Ongoing",AW47,IF(RIGHT($K47,2)=RIGHT(BO$39,2),SUM($AP47:AW47),0)+IF(RIGHT(BO$39,2)>RIGHT($K47,2),AW47,0)) -> 0 | BQ47: =+O47*KeyAssumptionsPriceControl_FO!Z$15 -> 0.2339408245 | BR47: =+P47*KeyAssumptionsPriceControl_FO!AA$15 -> 0 | BS47: =+Q47*KeyAssumptionsPriceControl_FO!AB$15 -> 0 | BT47: =+R47*KeyAssumptionsPriceControl_FO!AC$15 -> 0 | BU47: =+S47*KeyAssumptionsPriceControl_FO!AD$15 -> 0 | BV47: =+T47*KeyAssumptionsPriceControl_FO!AE$15 -> 0 | BW47: =+U47*KeyAssumptionsPriceControl_FO!AF$15 -> 0 | BX47: =+V47*KeyAssumptionsPriceControl_FO!AG$15 -> 0 | BZ47: 0 | CA47: 0 | CB47: 0 | CC47: 0 | CD47: 0 | CE47: 0 | CF47: 0 | CG47: 0
C48: ='[1]capital WP5'!C348 -> Mitiamo Pipeline - pumps & motors | E48: Water supply districts | F48: Growth | G48: Pipelines/network | H48: Top 10 Major Projects | J48: Straight line | K48: 2020-21 | L48: 15 | O48: 0.1319315248 | P48: 0 | Q48: 0 | R48: 0 | S48: 0 | T48: 0 | U48: 0 | V48: 0 | AP48: 0.1319315248 | AQ48: 0 | AR48: 0 | AS48: 0 | AT48: 0 | AU48: 0 | AV48: 0 | AW48: 0 | AY48: 0.004397717492 | AZ48: 0.008795434984 | BA48: 0.008795434984 | BB48: 0.008795434984 | BC48: 0.008795434984 | BD48: 0.008795434984 | BE48: 0.008795434984 | BF48: 0.008795434984 | BH48: =+IF($K48="Ongoing",AP48,IF(RIGHT($K48,2)=RIGHT(BH$39,2),SUM($AP48:AP48),0)+IF(RIGHT(BH$39,2)>RIGHT($K48,2),AP48,0)) -> 0.1319315248 | BI48: =+IF($K48="Ongoing",AQ48,IF(RIGHT($K48,2)=RIGHT(BI$39,2),SUM($AP48:AQ48),0)+IF(RIGHT(BI$39,2)>RIGHT($K48,2),AQ48,0)) -> 0 | BJ48: =+IF($K48="Ongoing",AR48,IF(RIGHT($K48,2)=RIGHT(BJ$39,2),SUM($AP48:AR48),0)+IF(RIGHT(BJ$39,2)>RIGHT($K48,2),AR48,0)) -> 0 | BK48: =+IF($K48="Ongoing",AS48,IF(RIGHT($K48,2)=RIGHT(BK$39,2),SUM($AP48:AS48),0)+IF(RIGHT(BK$39,2)>RIGHT($K48,2),AS48,0)) -> 0 | BL48: =+IF($K48="Ongoing",AT48,IF(RIGHT($K48,2)=RIGHT(BL$39,2),SUM($AP48:AT48),0)+IF(RIGHT(BL$39,2)>RIGHT($K48,2),AT48,0)) -> 0 | BM48: =+IF($K48="Ongoing",AU48,IF(RIGHT($K48,2)=RIGHT(BM$39,2),SUM($AP48:AU48),0)+IF(RIGHT(BM$39,2)>RIGHT($K48,2),AU48,0)) -> 0 | BN48: =+IF($K48="Ongoing",AV48,IF(RIGHT($K48,2)=RIGHT(BN$39,2),SUM($AP48:AV48),0)+IF(RIGHT(BN$39,2)>RIGHT($K48,2),AV48,0)) -> 0 | BO48: =+IF($K48="Ongoing",AW48,IF(RIGHT($K48,2)=RIGHT(BO$39,2),SUM($AP48:AW48),0)+IF(RIGHT(BO$39,2)>RIGHT($K48,2),AW48,0)) -> 0 | BQ48: =+O48*KeyAssumptionsPriceControl_FO!Z$15 -> 0.1349659498 | BR48: =+P48*KeyAssumptionsPriceControl_FO!AA$15 -> 0 | BS48: =+Q48*KeyAssumptionsPriceControl_FO!AB$15 -> 0 | BT48: =+R48*KeyAssumptionsPriceControl_FO!AC$15 -> 0 | BU48: =+S48*KeyAssumptionsPriceControl_FO!AD$15 -> 0 | BV48: =+T48*KeyAssumptionsPriceControl_FO!AE$15 -> 0 | BW48: =+U48*KeyAssumptionsPriceControl_FO!AF$15 -> 0 | BX48: =+V48*KeyAssumptionsPriceControl_FO!AG$15 -> 0 | BZ48: 0 | CA48: 0 | CB48: 0 | CC48: 0 | CD48: 0 | CE48: 0 | CF48: 0 | CG48: 0
C49: Major Project 8 | E49: [Service] | F49: [Major Cost Driver] | G49: [Asset category] | H49: Top 10 Major Projects | J49: Straight line | K49: [Year finalised?] | AP49: 0 | AQ49: 0 | AR49: 0 | AS49: 0 | AT49: 0 | AU49: 0 | AV49: 0 | AW49: 0 | AY49: 0 | AZ49: 0 | BA49: 0 | BB49: 0 | BC49: 0 | BD49: 0 | BE49: 0 | BF49: 0 | BH49: =+IF($K49="Ongoing",AP49,IF(RIGHT($K49,2)=RIGHT(BH$39,2),SUM($AP49:AP49),0)+IF(RIGHT(BH$39,2)>RIGHT($K49,2),AP49,0)) -> 0 | BI49: =+IF($K49="Ongoing",AQ49,IF(RIGHT($K49,2)=RIGHT(BI$39,2),SUM($AP49:AQ49),0)+IF(RIGHT(BI$39,2)>RIGHT($K49,2),AQ49,0)) -> 0 | BJ49: =+IF($K49="Ongoing",AR49,IF(RIGHT($K49,2)=RIGHT(BJ$39,2),SUM($AP49:AR49),0)+IF(RIGHT(BJ$39,2)>RIGHT($K49,2),AR49,0)) -> 0 | BK49: =+IF($K49="Ongoing",AS49,IF(RIGHT($K49,2)=RIGHT(BK$39,2),SUM($AP49:AS49),0)+IF(RIGHT(BK$39,2)>RIGHT($K49,2),AS49,0)) -> 0 | BL49: =+IF($K49="Ongoing",AT49,IF(RIGHT($K49,2)=RIGHT(BL$39,2),SUM($AP49:AT49),0)+IF(RIGHT(BL$39,2)>RIGHT($K49,2),AT49,0)) -> 0 | BM49: =+IF($K49="Ongoing",AU49,IF(RIGHT($K49,2)=RIGHT(BM$39,2),SUM($AP49:AU49),0)+IF(RIGHT(BM$39,2)>RIGHT($K49,2),AU49,0)) -> 0 | BN49: =+IF($K49="Ongoing",AV49,IF(RIGHT($K49,2)=RIGHT(BN$39,2),SUM($AP49:AV49),0)+IF(RIGHT(BN$39,2)>RIGHT($K49,2),AV49,0)) -> 0 | BO49: =+IF($K49="Ongoing",AW49,IF(RIGHT($K49,2)=RIGHT(BO$39,2),SUM($AP49:AW49),0)+IF(RIGHT(BO$39,2)>RIGHT($K49,2),AW49,0)) -> 0 | BQ49: =+O49*KeyAssumptionsPriceControl_FO!Z$15 -> 0 | BR49: =+P49*KeyAssumptionsPriceControl_FO!AA$15 -> 0 | BS49: =+Q49*KeyAssumptionsPriceControl_FO!AB$15 -> 0 | BT49: =+R49*KeyAssumptionsPriceControl_FO!AC$15 -> 0 | BU49: =+S49*KeyAssumptionsPriceControl_FO!AD$15 -> 0 | BV49: =+T49*KeyAssumptionsPriceControl_FO!AE$15 -> 0 | BW49: =+U49*KeyAssumptionsPriceControl_FO!AF$15 -> 0 | BX49: =+V49*KeyAssumptionsPriceControl_FO!AG$15 -> 0 | BZ49: 0 | CA49: 0 | CB49: 0 | CC49: 0 | CD49: 0 | CE49: 0 | CF49: 0 | CG49: 0
C50: Major Project 9 | E50: [Service] | F50: [Major Cost Driver] | G50: [Asset category] | H50: Top 10 Major Projects | J50: Straight line | K50: [Year finalised?] | AP50: 0 | AQ50: 0 | AR50: 0 | AS50: 0 | AT50: 0 | AU50: 0 | AV50: 0 | AW50: 0 | AY50: 0 | AZ50: 0 | BA50: 0 | BB50: 0 | BC50: 0 | BD50: 0 | BE50: 0 | BF50: 0 | BH50: =+IF($K50="Ongoing",AP50,IF(RIGHT($K50,2)=RIGHT(BH$39,2),SUM($AP50:AP50),0)+IF(RIGHT(BH$39,2)>RIGHT($K50,2),AP50,0)) -> 0 | BI50: =+IF($K50="Ongoing",AQ50,IF(RIGHT($K50,2)=RIGHT(BI$39,2),SUM($AP50:AQ50),0)+IF(RIGHT(BI$39,2)>RIGHT($K50,2),AQ50,0)) -> 0 | BJ50: =+IF($K50="Ongoing",AR50,IF(RIGHT($K50,2)=RIGHT(BJ$39,2),SUM($AP50:AR50),0)+IF(RIGHT(BJ$39,2)>RIGHT($K50,2),AR50,0)) -> 0 | BK50: =+IF($K50="Ongoing",AS50,IF(RIGHT($K50,2)=RIGHT(BK$39,2),SUM($AP50:AS50),0)+IF(RIGHT(BK$39,2)>RIGHT($K50,2),AS50,0)) -> 0 | BL50: =+IF($K50="Ongoing",AT50,IF(RIGHT($K50,2)=RIGHT(BL$39,2),SUM($AP50:AT50),0)+IF(RIGHT(BL$39,2)>RIGHT($K50,2),AT50,0)) -> 0 | BM50: =+IF($K50="Ongoing",AU50,IF(RIGHT($K50,2)=RIGHT(BM$39,2),SUM($AP50:AU50),0)+IF(RIGHT(BM$39,2)>RIGHT($K50,2),AU50,0)) -> 0 | BN50: =+IF($K50="Ongoing",AV50,IF(RIGHT($K50,2)=RIGHT(BN$39,2),SUM($AP50:AV50),0)+IF(RIGHT(BN$39,2)>RIGHT($K50,2),AV50,0)) -> 0 | BO50: =+IF($K50="Ongoing",AW50,IF(RIGHT($K50,2)=RIGHT(BO$39,2),SUM($AP50:AW50),0)+IF(RIGHT(BO$39,2)>RIGHT($K50,2),AW50,0)) -> 0 | BQ50: =+O50*KeyAssumptionsPriceControl_FO!Z$15 -> 0 | BR50: =+P50*KeyAssumptionsPriceControl_FO!AA$15 -> 0 | BS50: =+Q50*KeyAssumptionsPriceControl_FO!AB$15 -> 0 | BT50: =+R50*KeyAssumptionsPriceControl_FO!AC$15 -> 0 | BU50: =+S50*KeyAssumptionsPriceControl_FO!AD$15 -> 0 | BV50: =+T50*KeyAssumptionsPriceControl_FO!AE$15 -> 0 | BW50: =+U50*KeyAssumptionsPriceControl_FO!AF$15 -> 0 | BX50: =+V50*KeyAssumptionsPriceControl_FO!AG$15 -> 0 | BZ50: 0 | CA50: 0 | CB50: 0 | CC50: 0 | CD50: 0 | CE50: 0 | CF50: 0 | CG50: 0
C51: Major Project 10 | E51: [Service] | F51: [Major Cost Driver] | G51: [Asset category] | H51: Top 10 Major Projects | J51: Straight line | K51: [Year finalised?] | AP51: 0 | AQ51: 0 | AR51: 0 | AS51: 0 | AT51: 0 | AU51: 0 | AV51: 0 | AW51: 0 | AY51: 0 | AZ51: 0 | BA51: 0 | BB51: 0 | BC51: 0 | BD51: 0 | BE51: 0 | BF51: 0 | BH51: =+IF($K51="Ongoing",AP51,IF(RIGHT($K51,2)=RIGHT(BH$39,2),SUM($AP51:AP51),0)+IF(RIGHT(BH$39,2)>RIGHT($K51,2),AP51,0)) -> 0 | BI51: =+IF($K51="Ongoing",AQ51,IF(RIGHT($K51,2)=RIGHT(BI$39,2),SUM($AP51:AQ51),0)+IF(RIGHT(BI$39,2)>RIGHT($K51,2),AQ51,0)) -> 0 | BJ51: =+IF($K51="Ongoing",AR51,IF(RIGHT($K51,2)=RIGHT(BJ$39,2),SUM($AP51:AR51),0)+IF(RIGHT(BJ$39,2)>RIGHT($K51,2),AR51,0)) -> 0 | BK51: =+IF($K51="Ongoing",AS51,IF(RIGHT($K51,2)=RIGHT(BK$39,2),SUM($AP51:AS51),0)+IF(RIGHT(BK$39,2)>RIGHT($K51,2),AS51,0)) -> 0 | BL51: =+IF($K51="Ongoing",AT51,IF(RIGHT($K51,2)=RIGHT(BL$39,2),SUM($AP51:AT51),0)+IF(RIGHT(BL$39,2)>RIGHT($K51,2),AT51,0)) -> 0 | BM51: =+IF($K51="Ongoing",AU51,IF(RIGHT($K51,2)=RIGHT(BM$39,2),SUM($AP51:AU51),0)+IF(RIGHT(BM$39,2)>RIGHT($K51,2),AU51,0)) -> 0 | BN51: =+IF($K51="Ongoing",AV51,IF(RIGHT($K51,2)=RIGHT(BN$39,2),SUM($AP51:AV51),0)+IF(RIGHT(BN$39,2)>RIGHT($K51,2),AV51,0)) -> 0 | BO51: =+IF($K51="Ongoing",AW51,IF(RIGHT($K51,2)=RIGHT(BO$39,2),SUM($AP51:AW51),0)+IF(RIGHT(BO$39,2)>RIGHT($K51,2),AW51,0)) -> 0 | BQ51: =+O51*KeyAssumptionsPriceControl_FO!Z$15 -> 0 | BR51: =+P51*KeyAssumptionsPriceControl_FO!AA$15 -> 0 | BS51: =+Q51*KeyAssumptionsPriceControl_FO!AB$15 -> 0 | BT51: =+R51*KeyAssumptionsPriceControl_FO!AC$15 -> 0 | BU51: =+S51*KeyAssumptionsPriceControl_FO!AD$15 -> 0 | BV51: =+T51*KeyAssumptionsPriceControl_FO!AE$15 -> 0 | BW51: =+U51*KeyAssumptionsPriceControl_FO!AF$15 -> 0 | BX51: =+V51*KeyAssumptionsPriceControl_FO!AG$15 -> 0 | BZ51: 0 | CA51: 0 | CB51: 0 | CC51: 0 | CD51: 0 | CE51: 0 | CF51: 0 | CG51: 0
A53: 1 | B53: 1 | C53: 241 - Structure Program | E53: Irrigation | F53: Renewals | G53: Channels | H53: Other Capital expenditure | J53: Straight line | K53: 2023-24 | L53: 80 | O53: 0 | P53: 0 | Q53: 0 | R53: 0.15 | S53: 0 | T53: 1.5 | U53: 1.5 | V53: 0 | AP53: =+O53-X53-AG53 -> 0 | AQ53: =+P53-Y53-AH53 -> 0 | AR53: =+Q53-Z53-AI53 -> 0 | AS53: =+R53-AA53-AJ53 -> 0.15 | AT53: =+S53-AB53-AK53 -> 0 | AU53: =+T53-AC53-AL53 -> 1.5 | AV53: =+U53-AD53-AM53 -> 1.5 | AW53: =+V53-AE53-AN53 -> 0 | AY53: =IF($L53=0,0, IF($L53<=0.5,BH53, IF($J53="straight line", IF((LEFT(AY$39,4)*1)-INT($L53)<LEFT($AY$39,4)*1,0,((OFFSET(BH53,0,-INT($L53+0.5),1,1))/$L53)*(IF($L53-INT($L53)>0.5,$L53-0.5-INT($L53),IF($L53-INT($L53)<=0.5,$L53-0.5-INT($L53)+1,0)))) +BH53/$L53*0.5, IF($J53="Declining Balance",-$AY$38,0)))) -> 0 | AZ53: =IF($L53=0,0, IF($L53<=0.5,BI53, IF(AND($J53="straight line",$L53<1.51),(BH53-((BH53/$L53)*0.5))+BI53/$L53*0.5, IF($J53="straight line", IF((LEFT(AZ$39,4)*1)-INT($L53)<LEFT($AY$39,4)*1,0,((OFFSET(BI53,0,-INT($L53+0.5),1,1))/$L53)*(IF($L53-INT($L53)>0.5,$L53-0.5-INT($L53),IF($L53-INT($L53)<=0.5,$L53-0.5-INT($L53)+1,0)))) +BI53/$L53*0.5 +SUM(OFFSET(BI53,0,MAX(-INT($L53+(0.5-(10^-12))),-AZ$40)+1,1,MIN(INT($L53+(0.5-(10^-12))),AZ$40)-1))*1/$L53, IF($J53="Declining Balance",-$AY$38,0))))) -> 0 | BA53: =IF($L53=0,0, IF($L53<=0.5,BJ53, IF(AND($J53="straight line",$L53<1.51),(BI53-((BI53/$L53)*0.5))+BJ53/$L53*0.5, IF($J53="straight line", IF((LEFT(BA$39,4)*1)-INT($L53)<LEFT($AY$39,4)*1,0,((OFFSET(BJ53,0,-INT($L53+0.5),1,1))/$L53)*(IF($L53-INT($L53)>0.5,$L53-0.5-INT($L53),IF($L53-INT($L53)<=0.5,$L53-0.5-INT($L53)+1,0)))) +BJ53/$L53*0.5 +SUM(OFFSET(BJ53,0,MAX(-INT($L53+(0.5-(10^-12))),-BA$40)+1,1,MIN(INT($L53+(0.5-(10^-12))),BA$40)-1))*1/$L53, IF($J53="Declining Balance",-$AY$38,0))))) -> 0 | BB53: =IF($L53=0,0, IF($L53<=0.5,BK53, IF(AND($J53="straight line",$L53<1.51),(BJ53-((BJ53/$L53)*0.5))+BK53/$L53*0.5, IF($J53="straight line", IF((LEFT(BB$39,4)*1)-INT($L53)<LEFT($AY$39,4)*1,0,((OFFSET(BK53,0,-INT($L53+0.5),1,1))/$L53)*(IF($L53-INT($L53)>0.5,$L53-0.5-INT($L53),IF($L53-INT($L53)<=0.5,$L53-0.5-INT($L53)+1,0)))) +BK53/$L53*0.5 +SUM(OFFSET(BK53,0,MAX(-INT($L53+(0.5-(10^-12))),-BB$40)+1,1,MIN(INT($L53+(0.5-(10^-12))),BB$40)-1))*1/$L53, IF($J53="Declining Balance",-$AY$38,0))))) -> 0.0009375 | BC53: =IF($L53=0,0, IF($L53<=0.5,BL53, IF(AND($J53="straight line",$L53<1.51),(BK53-((BK53/$L53)*0.5))+BL53/$L53*0.5, IF($J53="straight line", IF((LEFT(BC$39,4)*1)-INT($L53)<LEFT($AY$39,4)*1,0,((OFFSET(BL53,0,-INT($L53+0.5),1,1))/$L53)*(IF($L53-INT($L53)>0.5,$L53-0.5-INT($L53),IF($L53-INT($L53)<=0.5,$L53-0.5-INT($L53)+1,0)))) +BL53/$L53*0.5 +SUM(OFFSET(BL53,0,MAX(-INT($L53+(0.5-(10^-12))),-BC$40)+1,1,MIN(INT($L53+(0.5-(10^-12))),BC$40)-1))*1/$L53, IF($J53="Declining Balance",-$AY$38,0))))) -> 0.001875 | BD53: =IF($L53=0,0, IF($L53<=0.5,BM53, IF(AND($J53="straight line",$L53<1.51),(BL53-((BL53/$L53)*0.5))+BM53/$L53*0.5, IF($J53="straight line", IF((LEFT(BD$39,4)*1)-INT($L53)<LEFT($AY$39,4)*1,0,((OFFSET(BM53,0,-INT($L53+0.5),1,1))/$L53)*(IF($L53-INT($L53)>0.5,$L53-0.5-INT($L53),IF($L53-INT($L53)<=0.5,$L53-0.5-INT($L53)+1,0)))) +BM53/$L53*0.5 +SUM(OFFSET(BM53,0,MAX(-INT($L53+(0.5-(10^-12))),-BD$40)+1,1,MIN(INT($L53+(0.5-(10^-12))),BD$40)-1))*1/$L53, IF($J53="Declining Balance",-$AY$38,0))))) -> 0.01125 | BE53: =IF($L53=0,0, IF($L53<=0.5,BN53, IF(AND($J53="straight line",$L53<1.51),(BM53-((BM53/$L53)*0.5))+BN53/$L53*0.5, IF($J53="straight line", IF((LEFT(BE$39,4)*1)-INT($L53)<LEFT($AY$39,4)*1,0,((OFFSET(BN53,0,-INT($L53+0.5),1,1))/$L53)*(IF($L53-INT($L53)>0.5,$L53-0.5-INT($L53),IF($L53-INT($L53)<=0.5,$L53-0.5-INT($L53)+1,0)))) +BN53/$L53*0.5 +SUM(OFFSET(BN53,0,MAX(-INT($L53+(0.5-(10^-12))),-BE$40)+1,1,MIN(INT($L53+(0.5-(10^-12))),BE$40)-1))*1/$L53, IF($J53="Declining Balance",-$AY$38,0))))) -> 0.03 | BF53: =IF($L53=0,0, IF($L53<=0.5,BO53, IF(AND($J53="straight line",$L53<1.51),(BN53-((BN53/$L53)*0.5))+BO53/$L53*0.5, IF($J53="straight line", IF((LEFT(BF$39,4)*1)-INT($L53)<LEFT($AY$39,4)*1,0,((OFFSET(BO53,0,-INT($L53+0.5),1,1))/$L53)*(IF($L53-INT($L53)>0.5,$L53-0.5-INT($L53),IF($L53-INT($L53)<=0.5,$L53-0.5-INT($L53)+1,0)))) +BO53/$L53*0.5 +SUM(OFFSET(BO53,0,MAX(-INT($L53+(0.5-(10^-12))),-BF$40)+1,1,MIN(INT($L53+(0.5-(10^-12))),BF$40)-1))*1/$L53, IF($J53="Declining Balance",-$AY$38,0))))) -> 0.039375 | BH53: =+IF($K53="Ongoing",AP53,IF(RIGHT($K53,2)=RIGHT(BH$39,2),SUM($AP53:AP53),0)+IF(RIGHT(BH$39,2)>RIGHT($K53,2),AP53,0)) -> 0 | BI53: =+IF($K53="Ongoing",AQ53,IF(RIGHT($K53,2)=RIGHT(BI$39,2),SUM($AP53:AQ53),0)+IF(RIGHT(BI$39,2)>RIGHT($K53,2),AQ53,0)) -> 0 | BJ53: =+IF($K53="Ongoing",AR53,IF(RIGHT($K53,2)=RIGHT(BJ$39,2),SUM($AP53:AR53),0)+IF(RIGHT(BJ$39,2)>RIGHT($K53,2),AR53,0)) -> 0 | BK53: =+IF($K53="Ongoing",AS53,IF(RIGHT($K53,2)=RIGHT(BK$39,2),SUM($AP53:AS53),0)+IF(RIGHT(BK$39,2)>RIGHT($K53,2),AS53,0)) -> 0.15 | BL53: =+IF($K53="Ongoing",AT53,IF(RIGHT($K53,2)=RIGHT(BL$39,2),SUM($AP53:AT53),0)+IF(RIGHT(BL$39,2)>RIGHT($K53,2),AT53,0)) -> 0 | BM53: =+IF($K53="Ongoing",AU53,IF(RIGHT($K53,2)=RIGHT(BM$39,2),SUM($AP53:AU53),0)+IF(RIGHT(BM$39,2)>RIGHT($K53,2),AU53,0)) -> 1.5 | BN53: =+IF($K53="Ongoing",AV53,IF(RIGHT($K53,2)=RIGHT(BN$39,2),SUM($AP53:AV53),0)+IF(RIGHT(BN$39,2)>RIGHT($K53,2),AV53,0)) -> 1.5 | BO53: =+IF($K53="Ongoing",AW53,IF(RIGHT($K53,2)=RIGHT(BO$39,2),SUM($AP53:AW53),0)+IF(RIGHT(BO$39,2)>RIGHT($K53,2),AW53,0)) -> 0 | BQ53: =+O53*KeyAssumptionsPriceControl_FO!Z$15 -> 0 | BR53: =+P53*KeyAssumptionsPriceControl_FO!AA$15 -> 0 | BS53: =+Q53*KeyAssumptionsPriceControl_FO!AB$15 -> 0 | BT53: =+R53*KeyAssumptionsPriceControl_FO!AC$15 -> 0.1642834422 | BU53: =+S53*KeyAssumptionsPriceControl_FO!AD$15 -> 0 | BV53: =+T53*KeyAssumptionsPriceControl_FO!AE$15 -> 1.719273865 | BW53: =+U53*KeyAssumptionsPriceControl_FO!AF$15 -> 1.758817163 | BX53: =+V53*KeyAssumptionsPriceControl_FO!AG$15 -> 0 | BZ53: =IF($M53=0,0, IF($M53<=0.5,BQ53, IF($J53="straight line", IF((LEFT(BZ$39,4)*1)-INT($M53)<LEFT($BZ$39,4)*1,0,((OFFSET(BQ53,0,-INT($M53+0.5),1,1))/$M53)*(IF($M53-INT($M53)>0.5,$M53-0.5-INT($M53),IF($M53-INT($M53)<=0.5,$M53-0.5-INT($M53)+1,0)))) +BQ53/$M53*0.5, IF($J53="Declining Balance",-$BZ$38,0)))) -> 0 | CA53: =IF($M53=0,0, IF($M53<=0.5,BR53, IF(AND($J53="straight line",$M53<1.51),(BQ53-((BQ53/$M53)*0.5))+BR53/$M53*0.5, IF($J53="straight line", IF((LEFT(CA$39,4)*1)-INT($M53)<LEFT($BZ$39,4)*1,0,((OFFSET(BR53,0,-INT($M53+0.5),1,1))/$M53)*(IF($M53-INT($M53)>0.5,$M53-0.5-INT($M53),IF($M53-INT($M53)<=0.5,$M53-0.5-INT($M53)+1,0)))) +BR53/$M53*0.5 +SUM(OFFSET(BR53,0,MAX(-INT($M53+(0.5-(10^-12))),-CA$40)+1,1,MIN(INT($M53+(0.5-(10^-12))),CA$40)-1))*1/$M53, IF($J53="Declining Balance",-$BZ$38,0))))) -> 0 | CB53: =IF($M53=0,0, IF($M53<=0.5,BS53, IF(AND($J53="straight line",$M53<1.51),(BR53-((BR53/$M53)*0.5))+BS53/$M53*0.5, IF($J53="straight line", IF((LEFT(CB$39,4)*1)-INT($M53)<LEFT($BZ$39,4)*1,0,((OFFSET(BS53,0,-INT($M53+0.5),1,1))/$M53)*(IF($M53-INT($M53)>0.5,$M53-0.5-INT($M53),IF($M53-INT($M53)<=0.5,$M53-0.5-INT($M53)+1,0)))) +BS53/$M53*0.5 +SUM(OFFSET(BS53,0,MAX(-INT($M53+(0.5-(10^-12))),-CB$40)+1,1,MIN(INT($M53+(0.5-(10^-12))),CB$40)-1))*1/$M53, IF($J53="Declining Balance",-$BZ$38,0))))) -> 0 | CC53: =IF($M53=0,0, IF($M53<=0.5,BT53, IF(AND($J53="straight line",$M53<1.51),(BS53-((BS53/$M53)*0.5))+BT53/$M53*0.5, IF($J53="straight line", IF((LEFT(CC$39,4)*1)-INT($M53)<LEFT($BZ$39,4)*1,0,((OFFSET(BT53,0,-INT($M53+0.5),1,1))/$M53)*(IF($M53-INT($M53)>0.5,$M53-0.5-INT($M53),IF($M53-INT($M53)<=0.5,$M53-0.5-INT($M53)+1,0)))) +BT53/$M53*0.5 +SUM(OFFSET(BT53,0,MAX(-INT($M53+(0.5-(10^-12))),-CC$40)+1,1,MIN(INT($M53+(0.5-(10^-12))),CC$40)-1))*1/$M53, IF($J53="Declining Balance",-$BZ$38,0))))) -> 0 | CD53: =IF($M53=0,0, IF($M53<=0.5,BU53, IF(AND($J53="straight line",$M53<1.51),(BT53-((BT53/$M53)*0.5))+BU53/$M53*0.5, IF($J53="straight line", IF((LEFT(CD$39,4)*1)-INT($M53)<LEFT($BZ$39,4)*1,0,((OFFSET(BU53,0,-INT($M53+0.5),1,1))/$M53)*(IF($M53-INT($M53)>0.5,$M53-0.5-INT($M53),IF($M53-INT($M53)<=0.5,$M53-0.5-INT($M53)+1,0)))) +BU53/$M53*0.5 +SUM(OFFSET(BU53,0,MAX(-INT($M53+(0.5-(10^-12))),-CD$40)+1,1,MIN(INT($M53+(0.5-(10^-12))),CD$40)-1))*1/$M53, IF($J53="Declining Balance",-$BZ$38,0))))) -> 0 | CE53: =IF($M53=0,0, IF($M53<=0.5,BV53, IF(AND($J53="straight line",$M53<1.51),(BU53-((BU53/$M53)*0.5))+BV53/$M53*0.5, IF($J53="straight line", IF((LEFT(CE$39,4)*1)-INT($M53)<LEFT($BZ$39,4)*1,0,((OFFSET(BV53,0,-INT($M53+0.5),1,1))/$M53)*(IF($M53-INT($M53)>0.5,$M53-0.5-INT($M53),IF($M53-INT($M53)<=0.5,$M53-0.5-INT($M53)+1,0)))) +BV53/$M53*0.5 +SUM(OFFSET(BV53,0,MAX(-INT($M53+(0.5-(10^-12))),-CE$40)+1,1,MIN(INT($M53+(0.5-(10^-12))),CE$40)-1))*1/$M53, IF($J53="Declining Balance",-$BZ$38,0))))) -> 0 | CF53: =IF($M53=0,0, IF($M53<=0.5,BW53, IF(AND($J53="straight line",$M53<1.51),(BV53-((BV53/$M53)*0.5))+BW53/$M53*0.5, IF($J53="straight line", IF((LEFT(CF$39,4)*1)-INT($M53)<LEFT($BZ$39,4)*1,0,((OFFSET(BW53,0,-INT($M53+0.5),1,1))/$M53)*(IF($M53-INT($M53)>0.5,$M53-0.5-INT($M53),IF($M53-INT($M53)<=0.5,$M53-0.5-INT($M53)+1,0)))) +BW53/$M53*0.5 +SUM(OFFSET(BW53,0,MAX(-INT($M53+(0.5-(10^-12))),-CF$40)+1,1,MIN(INT($M53+(0.5-(10^-12))),CF$40)-1))*1/$M53, IF($J53="Declining Balance",-$BZ$38,0))))) -> 0 | CG53: =IF($M53=0,0, IF($M53<=0.5,BX53, IF(AND($J53="straight line",$M53<1.51),(BW53-((BW53/$M53)*0.5))+BX53/$M53*0.5, IF($J53="straight line", IF((LEFT(CG$39,4)*1)-INT($M53)<LEFT($BZ$39,4)*1,0,((OFFSET(BX53,0,-INT($M53+0.5),1,1))/$M53)*(IF($M53-INT($M53)>0.5,$M53-0.5-INT($M53),IF($M53-INT($M53)<=0.5,$M53-0.5-INT($M53)+1,0)))) +BX53/$M53*0.5 +SUM(OFFSET(BX53,0,MAX(-INT($M53+(0.5-(10^-12))),-CG$40)+1,1,MIN(INT($M53+(0.5-(10^-12))),CG$40)-1))*1/$M53, IF($J53="Declining Balance",-$BZ$38,0))))) -> 0
A54: =A53+1 -> 2 | B54: =B53+1 -> 2 | C54: 301 - Structure Program | E54: Irrigation | F54: Renewals | G54: Channels | H54: Other Capital expenditure | J54: Straight line | K54: 2020-21 | L54: 80 | O54: 0.4646 | P54: 0.2085 | Q54: 0.512097 | R54: 0.85 | S54: 0.4646 | T54: 0.2085 | U54: 0.512097 | V54: 0.85 | AP54: 0.4646 | AQ54: 0.2085 | AR54: 0.512097 | AS54: 0.85 | AT54: 0.4646 | AU54: 0.2085 | AV54: 0.512097 | AW54: 0.85 | AY54: 0.00290375 | AZ54: 0.007110625 | BA54: 0.01161435625 | BB54: 0.0201274625 | BC54: 0.0283437125 | BD54: 0.0325505875 | BE54: 0.03705431875 | BF54: 0.045567425 | BH54: =+IF($K54="Ongoing",AP54,IF(RIGHT($K54,2)=RIGHT(BH$39,2),SUM($AP54:AP54),0)+IF(RIGHT(BH$39,2)>RIGHT($K54,2),AP54,0)) -> 0.4646 | BI54: =+IF($K54="Ongoing",AQ54,IF(RIGHT($K54,2)=RIGHT(BI$39,2),SUM($AP54:AQ54),0)+IF(RIGHT(BI$39,2)>RIGHT($K54,2),AQ54,0)) -> 0.2085 | BJ54: =+IF($K54="Ongoing",AR54,IF(RIGHT($K54,2)=RIGHT(BJ$39,2),SUM($AP54:AR54),0)+IF(RIGHT(BJ$39,2)>RIGHT($K54,2),AR54,0)) -> 0.512097 | BK54: =+IF($K54="Ongoing",AS54,IF(RIGHT($K54,2)=RIGHT(BK$39,2),SUM($AP54:AS54),0)+IF(RIGHT(BK$39,2)>RIGHT($K54,2),AS54,0)) -> 0.85 | BL54: =+IF($K54="Ongoing",AT54,IF(RIGHT($K54,2)=RIGHT(BL$39,2),SUM($AP54:AT54),0)+IF(RIGHT(BL$39,2)>RIGHT($K54,2),AT54,0)) -> 0.4646 | BM54: =+IF($K54="Ongoing",AU54,IF(RIGHT($K54,2)=RIGHT(BM$39,2),SUM($AP54:AU54),0)+IF(RIGHT(BM$39,2)>RIGHT($K54,2),AU54,0)) -> 0.2085 | BN54: =+IF($K54="Ongoing",AV54,IF(RIGHT($K54,2)=RIGHT(BN$39,2),SUM($AP54:AV54),0)+IF(RIGHT(BN$39,2)>RIGHT($K54,2),AV54,0)) -> 0.512097 | BO54: =+IF($K54="Ongoing",AW54,IF(RIGHT($K54,2)=RIGHT(BO$39,2),SUM($AP54:AW54),0)+IF(RIGHT(BO$39,2)>RIGHT($K54,2),AW54,0)) -> 0.85 | BQ54: =+O54*KeyAssumptionsPriceControl_FO!Z$15 -> 0.4752858 | BR54: =+P54*KeyAssumptionsPriceControl_FO!AA$15 -> 0.2182012965 | BS54: =+Q54*KeyAssumptionsPriceControl_FO!AB$15 -> 0.5482506216 | BT54: =+R54*KeyAssumptionsPriceControl_FO!AC$15 -> 0.9309395057 | BU54: =+S54*KeyAssumptionsPriceControl_FO!AD$15 -> 0.5205439149 | BV54: =+T54*KeyAssumptionsPriceControl_FO!AE$15 -> 0.2389790672 | BW54: =+U54*KeyAssumptionsPriceControl_FO!AF$15 -> 0.600456662 | BX54: =+V54*KeyAssumptionsPriceControl_FO!AG$15 -> 1.01958631 | BZ54: 0 | CA54: 0 | CB54: 0 | CC54: 0 | CD54: 0 | CE54: 0 | CF54: 0 | CG54: 0
A55: =A54+1 -> 3 | B55: 3 | C55: 311 - Structure Program | E55: Irrigation | F55: Renewals | G55: Channels | H55: Other Capital expenditure | J55: Straight line | K55: 2020-21 | L55: 80 | O55: 0.25543 | P55: 0 | Q55: 0.0620945 | R55: 0 | S55: 0.25543 | T55: 0 | U55: 0.0620945 | V55: 0 | AP55: 0.25543 | AQ55: 0 | AR55: 0.0620945 | AS55: 0 | AT55: 0.25543 | AU55: 0 | AV55: 0.0620945 | AW55: 0 | AY55: 0.0015964375 | AZ55: 0.003192875 | BA55: 0.003580965625 | BB55: 0.00396905625 | BC55: 0.00556549375 | BD55: 0.00716193125 | BE55: 0.007550021875 | BF55: 0.0079381125 | BH55: =+IF($K55="Ongoing",AP55,IF(RIGHT($K55,2)=RIGHT(BH$39,2),SUM($AP55:AP55),0)+IF(RIGHT(BH$39,2)>RIGHT($K55,2),AP55,0)) -> 0.25543 | BI55: =+IF($K55="Ongoing",AQ55,IF(RIGHT($K55,2)=RIGHT(BI$39,2),SUM($AP55:AQ55),0)+IF(RIGHT(BI$39,2)>RIGHT($K55,2),AQ55,0)) -> 0 | BJ55: =+IF($K55="Ongoing",AR55,IF(RIGHT($K55,2)=RIGHT(BJ$39,2),SUM($AP55:AR55),0)+IF(RIGHT(BJ$39,2)>RIGHT($K55,2),AR55,0)) -> 0.0620945 | BK55: =+IF($K55="Ongoing",AS55,IF(RIGHT($K55,2)=RIGHT(BK$39,2),SUM($AP55:AS55),0)+IF(RIGHT(BK$39,2)>RIGHT($K55,2),AS55,0)) -> 0 | BL55: =+IF($K55="Ongoing",AT55,IF(RIGHT($K55,2)=RIGHT(BL$39,2),SUM($AP55:AT55),0)+IF(RIGHT(BL$39,2)>RIGHT($K55,2),AT55,0)) -> 0.25543 | BM55: =+IF($K55="Ongoing",AU55,IF(RIGHT($K55,2)=RIGHT(BM$39,2),SUM($AP55:AU55),0)+IF(RIGHT(BM$39,2)>RIGHT($K55,2),AU55,0)) -> 0 | BN55: =+IF($K55="Ongoing",AV55,IF(RIGHT($K55,2)=RIGHT(BN$39,2),SUM($AP55:AV55),0)+IF(RIGHT(BN$39,2)>RIGHT($K55,2),AV55,0)) -> 0.0620945 | BO55: =+IF($K55="Ongoing",AW55,IF(RIGHT($K55,2)=RIGHT(BO$39,2),SUM($AP55:AW55),0)+IF(RIGHT(BO$39,2)>RIGHT($K55,2),AW55,0)) -> 0 | BQ55: =+O55*KeyAssumptionsPriceControl_FO!Z$15 -> 0.26130489 | BR55: =+P55*KeyAssumptionsPriceControl_FO!AA$15 -> 0 | BS55: =+Q55*KeyAssumptionsPriceControl_FO!AB$15 -> 0.06647831998 | BT55: =+R55*KeyAssumptionsPriceControl_FO!AC$15 -> 0 | BU55: =+S55*KeyAssumptionsPriceControl_FO!AD$15 -> 0.2861871119 | BV55: =+T55*KeyAssumptionsPriceControl_FO!AE$15 -> 0 | BW55: =+U55*KeyAssumptionsPriceControl_FO!AF$15 -> 0.07280858157 | BX55: =+V55*KeyAssumptionsPriceControl_FO!AG$15 -> 0 | BZ55: 0 | CA55: 0 | CB55: 0 | CC55: 0 | CD55: 0 | CE55: 0 | CF55: 0 | CG55: 0
A56: 4 | B56: 4 | C56: 321 - Structure Program | E56: Irrigation | F56: Renewals | G56: Channels | H56: Other Capital expenditure | J56: Straight line | K56: 2020-21 | L56: 80 | O56: 0.32316 | P56: 0.722 | Q56: 0.27853 | R56: 0.4374 | S56: 0.32316 | T56: 0.722 | U56: 0.27853 | V56: 0.4374 | AP56: 0.32316 | AQ56: 0.722 | AR56: 0.27853 | AS56: 0.4374 | AT56: 0.32316 | AU56: 0.722 | AV56: 0.27853 | AW56: 0.4374 | AY56: 0.00201975 | AZ56: 0.008552 | BA56: 0.0148053125 | BB56: 0.019279875 | BC56: 0.024033375 | BD56: 0.030565625 | BE56: 0.0368189375 | BF56: 0.0412935 | BH56: =+IF($K56="Ongoing",AP56,IF(RIGHT($K56,2)=RIGHT(BH$39,2),SUM($AP56:AP56),0)+IF(RIGHT(BH$39,2)>RIGHT($K56,2),AP56,0)) -> 0.32316 | BI56: =+IF($K56="Ongoing",AQ56,IF(RIGHT($K56,2)=RIGHT(BI$39,2),SUM($AP56:AQ56),0)+IF(RIGHT(BI$39,2)>RIGHT($K56,2),AQ56,0)) -> 0.722 | BJ56: =+IF($K56="Ongoing",AR56,IF(RIGHT($K56,2)=RIGHT(BJ$39,2),SUM($AP56:AR56),0)+IF(RIGHT(BJ$39,2)>RIGHT($K56,2),AR56,0)) -> 0.27853 | BK56: =+IF($K56="Ongoing",AS56,IF(RIGHT($K56,2)=RIGHT(BK$39,2),SUM($AP56:AS56),0)+IF(RIGHT(BK$39,2)>RIGHT($K56,2),AS56,0)) -> 0.4374 | BL56: =+IF($K56="Ongoing",AT56,IF(RIGHT($K56,2)=RIGHT(BL$39,2),SUM($AP56:AT56),0)+IF(RIGHT(BL$39,2)>RIGHT($K56,2),AT56,0)) -> 0.32316 | BM56: =+IF($K56="Ongoing",AU56,IF(RIGHT($K56,2)=RIGHT(BM$39,2),SUM($AP56:AU56),0)+IF(RIGHT(BM$39,2)>RIGHT($K56,2),AU56,0)) -> 0.722 | BN56: =+IF($K56="Ongoing",AV56,IF(RIGHT($K56,2)=RIGHT(BN$39,2),SUM($AP56:AV56),0)+IF(RIGHT(BN$39,2)>RIGHT($K56,2),AV56,0)) -> 0.27853 | BO56: =+IF($K56="Ongoing",AW56,IF(RIGHT($K56,2)=RIGHT(BO$39,2),SUM($AP56:AW56),0)+IF(RIGHT(BO$39,2)>RIGHT($K56,2),AW56,0)) -> 0.4374 | BQ56: =+O56*KeyAssumptionsPriceControl_FO!Z$15 -> 0.33059268 | BR56: =+P56*KeyAssumptionsPriceControl_FO!AA$15 -> 0.755593938 | BS56: =+Q56*KeyAssumptionsPriceControl_FO!AB$15 -> 0.298193986 | BT56: =+R56*KeyAssumptionsPriceControl_FO!AC$15 -> 0.4790505174 | BU56: =+S56*KeyAssumptionsPriceControl_FO!AD$15 -> 0.3620726895 | BV56: =+T56*KeyAssumptionsPriceControl_FO!AE$15 -> 0.8275438201 | BW56: =+U56*KeyAssumptionsPriceControl_FO!AF$15 -> 0.3265888964 | BX56: =+V56*KeyAssumptionsPriceControl_FO!AG$15 -> 0.5246671198 | BZ56: 0 | CA56: 0 | CB56: 0 | CC56: 0 | CD56: 0 | CE56: 0 | CF56: 0 | CG56: 0
A57: 5 | B57: 5 | C57: 341 - Structure Program | E57: Irrigation | F57: Renewals | G57: Channels | H57: Other Capital expenditure | J57: Straight line | K57: 2020-21 | L57: 80 | O57: 0.3184 | P57: 0.20192 | Q57: 0.2046 | R57: 0.14114 | S57: 0.3184 | T57: 0.20192 | U57: 0.2046 | V57: 0.14114 | AP57: 0.3184 | AQ57: 0.20192 | AR57: 0.2046 | AS57: 0.14114 | AT57: 0.3184 | AU57: 0.20192 | AV57: 0.2046 | AW57: 0.14114 | AY57: 0.00199 | AZ57: 0.005242 | BA57: 0.00778275 | BB57: 0.009943625 | BC57: 0.01281575 | BD57: 0.01606775 | BE57: 0.0186085 | BF57: 0.020769375 | BH57: =+IF($K57="Ongoing",AP57,IF(RIGHT($K57,2)=RIGHT(BH$39,2),SUM($AP57:AP57),0)+IF(RIGHT(BH$39,2)>RIGHT($K57,2),AP57,0)) -> 0.3184 | BI57: =+IF($K57="Ongoing",AQ57,IF(RIGHT($K57,2)=RIGHT(BI$39,2),SUM($AP57:AQ57),0)+IF(RIGHT(BI$39,2)>RIGHT($K57,2),AQ57,0)) -> 0.20192 | BJ57: =+IF($K57="Ongoing",AR57,IF(RIGHT($K57,2)=RIGHT(BJ$39,2),SUM($AP57:AR57),0)+IF(RIGHT(BJ$39,2)>RIGHT($K57,2),AR57,0)) -> 0.2046 | BK57: =+IF($K57="Ongoing",AS57,IF(RIGHT($K57,2)=RIGHT(BK$39,2),SUM($AP57:AS57),0)+IF(RIGHT(BK$39,2)>RIGHT($K57,2),AS57,0)) -> 0.14114 | BL57: =+IF($K57="Ongoing",AT57,IF(RIGHT($K57,2)=RIGHT(BL$39,2),SUM($AP57:AT57),0)+IF(RIGHT(BL$39,2)>RIGHT($K57,2),AT57,0)) -> 0.3184 | BM57: =+IF($K57="Ongoing",AU57,IF(RIGHT($K57,2)=RIGHT(BM$39,2),SUM($AP57:AU57),0)+IF(RIGHT(BM$39,2)>RIGHT($K57,2),AU57,0)) -> 0.20192 | BN57: =+IF($K57="Ongoing",AV57,IF(RIGHT($K57,2)=RIGHT(BN$39,2),SUM($AP57:AV57),0)+IF(RIGHT(BN$39,2)>RIGHT($K57,2),AV57,0)) -> 0.2046 | BO57: =+IF($K57="Ongoing",AW57,IF(RIGHT($K57,2)=RIGHT(BO$39,2),SUM($AP57:AW57),0)+IF(RIGHT(BO$39,2)>RIGHT($K57,2),AW57,0)) -> 0.14114 | BQ57: =+O57*KeyAssumptionsPriceControl_FO!Z$15 -> 0.3257232 | BR57: =+P57*KeyAssumptionsPriceControl_FO!AA$15 -> 0.2113151357 | BS57: =+Q57*KeyAssumptionsPriceControl_FO!AB$15 -> 0.2190445896 | BT57: =+R57*KeyAssumptionsPriceControl_FO!AC$15 -> 0.1545797669 | BU57: =+S57*KeyAssumptionsPriceControl_FO!AD$15 -> 0.3567395233 | BV57: =+T57*KeyAssumptionsPriceControl_FO!AE$15 -> 0.2314371858 | BW57: =+U57*KeyAssumptionsPriceControl_FO!AF$15 -> 0.2399026611 | BX57: =+V57*KeyAssumptionsPriceControl_FO!AG$15 -> 0.1692993079 | BZ57: 0 | CA57: 0 | CB57: 0 | CC57: 0 | CD57: 0 | CE57: 0 | CF57: 0 | CG57: 0
A58: 6 | B58: 6 | C58: 351 - Structure Program | E58: Irrigation | F58: Renewals | G58: Channels | H58: Other Capital expenditure | J58: Straight line | K58: 2020-21 | L58: 80 | O58: 0.4666 | P58: 0.39996 | Q58: 0.3931 | R58: 0.7532 | S58: 0.4666 | T58: 0.39996 | U58: 0.3931 | V58: 0.7532 | AP58: 0.4666 | AQ58: 0.39996 | AR58: 0.3931 | AS58: 0.7532 | AT58: 0.4666 | AU58: 0.39996 | AV58: 0.3931 | AW58: 0.7532 | AY58: 0.00291625 | AZ58: 0.00833225 | BA58: 0.013288875 | BB58: 0.02045325 | BC58: 0.028077 | BD58: 0.033493 | BE58: 0.038449625 | BF58: 0.045614 | BH58: =+IF($K58="Ongoing",AP58,IF(RIGHT($K58,2)=RIGHT(BH$39,2),SUM($AP58:AP58),0)+IF(RIGHT(BH$39,2)>RIGHT($K58,2),AP58,0)) -> 0.4666 | BI58: =+IF($K58="Ongoing",AQ58,IF(RIGHT($K58,2)=RIGHT(BI$39,2),SUM($AP58:AQ58),0)+IF(RIGHT(BI$39,2)>RIGHT($K58,2),AQ58,0)) -> 0.39996 | BJ58: =+IF($K58="Ongoing",AR58,IF(RIGHT($K58,2)=RIGHT(BJ$39,2),SUM($AP58:AR58),0)+IF(RIGHT(BJ$39,2)>RIGHT($K58,2),AR58,0)) -> 0.3931 | BK58: =+IF($K58="Ongoing",AS58,IF(RIGHT($K58,2)=RIGHT(BK$39,2),SUM($AP58:AS58),0)+IF(RIGHT(BK$39,2)>RIGHT($K58,2),AS58,0)) -> 0.7532 | BL58: =+IF($K58="Ongoing",AT58,IF(RIGHT($K58,2)=RIGHT(BL$39,2),SUM($AP58:AT58),0)+IF(RIGHT(BL$39,2)>RIGHT($K58,2),AT58,0)) -> 0.4666 | BM58: =+IF($K58="Ongoing",AU58,IF(RIGHT($K58,2)=RIGHT(BM$39,2),SUM($AP58:AU58),0)+IF(RIGHT(BM$39,2)>RIGHT($K58,2),AU58,0)) -> 0.39996 | BN58: =+IF($K58="Ongoing",AV58,IF(RIGHT($K58,2)=RIGHT(BN$39,2),SUM($AP58:AV58),0)+IF(RIGHT(BN$39,2)>RIGHT($K58,2),AV58,0)) -> 0.3931 | BO58: =+IF($K58="Ongoing",AW58,IF(RIGHT($K58,2)=RIGHT(BO$39,2),SUM($AP58:AW58),0)+IF(RIGHT(BO$39,2)>RIGHT($K58,2),AW58,0)) -> 0.7532 | BQ58: =+O58*KeyAssumptionsPriceControl_FO!Z$15 -> 0.4773318 | BR58: =+P58*KeyAssumptionsPriceControl_FO!AA$15 -> 0.4185697388 | BS58: =+Q58*KeyAssumptionsPriceControl_FO!AB$15 -> 0.4208525325 | BT58: =+R58*KeyAssumptionsPriceControl_FO!AC$15 -> 0.8249219243 | BU58: =+S58*KeyAssumptionsPriceControl_FO!AD$15 -> 0.5227847411 | BV58: =+T58*KeyAssumptionsPriceControl_FO!AE$15 -> 0.4584271832 | BW58: =+U58*KeyAssumptionsPriceControl_FO!AF$15 -> 0.4609273513 | BX58: =+V58*KeyAssumptionsPriceControl_FO!AG$15 -> 0.9034734217 | BZ58: 0 | CA58: 0 | CB58: 0 | CC58: 0 | CD58: 0 | CE58: 0 | CF58: 0 | CG58: 0
A59: 7 | B59: 7 | C59: 361 - Structure Program | E59: Irrigation | F59: Renewals | G59: Channels | H59: Other Capital expenditure | J59: Straight line | K59: 2020-21 | L59: 80 | O59: 0.6494 | P59: 0.2381 | Q59: 0.2083 | R59: 0.7108 | S59: 0.6494 | T59: 0.2381 | U59: 0.2083 | V59: 0.7108 | AP59: 0.6494 | AQ59: 0.2381 | AR59: 0.2083 | AS59: 0.7108 | AT59: 0.6494 | AU59: 0.2381 | AV59: 0.2083 | AW59: 0.7108 | AY59: 0.00405875 | AZ59: 0.009605625 | BA59: 0.012395625 | BB59: 0.01814 | BC59: 0.02664125 | BD59: 0.032188125 | BE59: 0.034978125 | BF59: 0.0407225 | BH59: =+IF($K59="Ongoing",AP59,IF(RIGHT($K59,2)=RIGHT(BH$39,2),SUM($AP59:AP59),0)+IF(RIGHT(BH$39,2)>RIGHT($K59,2),AP59,0)) -> 0.6494 | BI59: =+IF($K59="Ongoing",AQ59,IF(RIGHT($K59,2)=RIGHT(BI$39,2),SUM($AP59:AQ59),0)+IF(RIGHT(BI$39,2)>RIGHT($K59,2),AQ59,0)) -> 0.2381 | BJ59: =+IF($K59="Ongoing",AR59,IF(RIGHT($K59,2)=RIGHT(BJ$39,2),SUM($AP59:AR59),0)+IF(RIGHT(BJ$39,2)>RIGHT($K59,2),AR59,0)) -> 0.2083 | BK59: =+IF($K59="Ongoing",AS59,IF(RIGHT($K59,2)=RIGHT(BK$39,2),SUM($AP59:AS59),0)+IF(RIGHT(BK$39,2)>RIGHT($K59,2),AS59,0)) -> 0.7108 | BL59: =+IF($K59="Ongoing",AT59,IF(RIGHT($K59,2)=RIGHT(BL$39,2),SUM($AP59:AT59),0)+IF(RIGHT(BL$39,2)>RIGHT($K59,2),AT59,0)) -> 0.6494 | BM59: =+IF($K59="Ongoing",AU59,IF(RIGHT($K59,2)=RIGHT(BM$39,2),SUM($AP59:AU59),0)+IF(RIGHT(BM$39,2)>RIGHT($K59,2),AU59,0)) -> 0.2381 | BN59: =+IF($K59="Ongoing",AV59,IF(RIGHT($K59,2)=RIGHT(BN$39,2),SUM($AP59:AV59),0)+IF(RIGHT(BN$39,2)>RIGHT($K59,2),AV59,0)) -> 0.2083 | BO59: =+IF($K59="Ongoing",AW59,IF(RIGHT($K59,2)=RIGHT(BO$39,2),SUM($AP59:AW59),0)+IF(RIGHT(BO$39,2)>RIGHT($K59,2),AW59,0)) -> 0.7108 | BQ59: =+O59*KeyAssumptionsPriceControl_FO!Z$15 -> 0.6643362 | BR59: =+P59*KeyAssumptionsPriceControl_FO!AA$15 -> 0.2491785549 | BS59: =+Q59*KeyAssumptionsPriceControl_FO!AB$15 -> 0.2230058065 | BT59: =+R59*KeyAssumptionsPriceControl_FO!AC$15 -> 0.7784844713 | BU59: =+S59*KeyAssumptionsPriceControl_FO!AD$15 -> 0.7275962513 | BV59: =+T59*KeyAssumptionsPriceControl_FO!AE$15 -> 0.2729060714 | BW59: =+U59*KeyAssumptionsPriceControl_FO!AF$15 -> 0.2442410768 | BX59: =+V59*KeyAssumptionsPriceControl_FO!AG$15 -> 0.8526140575 | BZ59: 0 | CA59: 0 | CB59: 0 | CC59: 0 | CD59: 0 | CE59: 0 | CF59: 0 | CG59: 0
A60: 8 | B60: 8 | C60: 232 - Linear Program - Channel Remodelling | E60: Irrigation | F60: Renewals | G60: Channels | H60: Other Capital expenditure | J60: Straight line | K60: 2023-24 | L60: 100 | O60: 0 | P60: 0 | Q60: 0 | R60: 0.6437656 | S60: 0 | T60: 0 | U60: 0 | V60: 0.6437656 | AP60: 0 | AQ60: 0 | AR60: 0 | AS60: 0.6437656 | AT60: 0 | AU60: 0 | AV60: 0 | AW60: 0.6437656 | AY60: 0 | AZ60: 0 | BA60: 0 | BB60: 0.003218828 | BC60: 0.006437656 | BD60: 0.006437656 | BE60: 0.006437656 | BF60: 0.009656484 | BH60: =+IF($K60="Ongoing",AP60,IF(RIGHT($K60,2)=RIGHT(BH$39,2),SUM($AP60:AP60),0)+IF(RIGHT(BH$39,2)>RIGHT($K60,2),AP60,0)) -> 0 | BI60: =+IF($K60="Ongoing",AQ60,IF(RIGHT($K60,2)=RIGHT(BI$39,2),SUM($AP60:AQ60),0)+IF(RIGHT(BI$39,2)>RIGHT($K60,2),AQ60,0)) -> 0 | BJ60: =+IF($K60="Ongoing",AR60,IF(RIGHT($K60,2)=RIGHT(BJ$39,2),SUM($AP60:AR60),0)+IF(RIGHT(BJ$39,2)>RIGHT($K60,2),AR60,0)) -> 0 | BK60: =+IF($K60="Ongoing",AS60,IF(RIGHT($K60,2)=RIGHT(BK$39,2),SUM($AP60:AS60),0)+IF(RIGHT(BK$39,2)>RIGHT($K60,2),AS60,0)) -> 0.6437656 | BL60: =+IF($K60="Ongoing",AT60,IF(RIGHT($K60,2)=RIGHT(BL$39,2),SUM($AP60:AT60),0)+IF(RIGHT(BL$39,2)>RIGHT($K60,2),AT60,0)) -> 0 | BM60: =+IF($K60="Ongoing",AU60,IF(RIGHT($K60,2)=RIGHT(BM$39,2),SUM($AP60:AU60),0)+IF(RIGHT(BM$39,2)>RIGHT($K60,2),AU60,0)) -> 0 | BN60: =+IF($K60="Ongoing",AV60,IF(RIGHT($K60,2)=RIGHT(BN$39,2),SUM($AP60:AV60),0)+IF(RIGHT(BN$39,2)>RIGHT($K60,2),AV60,0)) -> 0 | BO60: =+IF($K60="Ongoing",AW60,IF(RIGHT($K60,2)=RIGHT(BO$39,2),SUM($AP60:AW60),0)+IF(RIGHT(BO$39,2)>RIGHT($K60,2),AW60,0)) -> 0.6437656 | BQ60: =+O60*KeyAssumptionsPriceControl_FO!Z$15 -> 0 | BR60: =+P60*KeyAssumptionsPriceControl_FO!AA$15 -> 0 | BS60: =+Q60*KeyAssumptionsPriceControl_FO!AB$15 -> 0 | BT60: =+R60*KeyAssumptionsPriceControl_FO!AC$15 -> 0.7050668582 | BU60: =+S60*KeyAssumptionsPriceControl_FO!AD$15 -> 0 | BV60: =+T60*KeyAssumptionsPriceControl_FO!AE$15 -> 0 | BW60: =+U60*KeyAssumptionsPriceControl_FO!AF$15 -> 0 | BX60: =+V60*KeyAssumptionsPriceControl_FO!AG$15 -> 0.7722054028 | BZ60: 0 | CA60: 0 | CB60: 0 | CC60: 0 | CD60: 0 | CE60: 0 | CF60: 0 | CG60: 0
A61: 9 | B61: 9 | C61: 241 - Linear Program - Channel Remodelling | E61: Irrigation | F61: Renewals | G61: Channels | H61: Other Capital expenditure | J61: Straight line | K61: 2021-22 | L61: 100 | O61: 0 | P61: 0.1155 | Q61: 0.8375695125 | R61: 0 | S61: 0 | T61: 0.1155 | U61: 0.8375695125 | V61: 0 | AP61: 0 | AQ61: 0.1155 | AR61: 0.8375695125 | AS61: 0 | AT61: 0 | AU61: 0.1155 | AV61: 0.8375695125 | AW61: 0 | AY61: 0 | AZ61: 0.0005775 | BA61: 0.005342847563 | BB61: 0.009530695125 | BC61: 0.009530695125 | BD61: 0.01010819513 | BE61: 0.01487354269 | BF61: 0.01906139025 | BH61: =+IF($K61="Ongoing",AP61,IF(RIGHT($K61,2)=RIGHT(BH$39,2),SUM($AP61:AP61),0)+IF(RIGHT(BH$39,2)>RIGHT($K61,2),AP61,0)) -> 0 | BI61: =+IF($K61="Ongoing",AQ61,IF(RIGHT($K61,2)=RIGHT(BI$39,2),SUM($AP61:AQ61),0)+IF(RIGHT(BI$39,2)>RIGHT($K61,2),AQ61,0)) -> 0.1155 | BJ61: =+IF($K61="Ongoing",AR61,IF(RIGHT($K61,2)=RIGHT(BJ$39,2),SUM($AP61:AR61),0)+IF(RIGHT(BJ$39,2)>RIGHT($K61,2),AR61,0)) -> 0.8375695125 | BK61: =+IF($K61="Ongoing",AS61,IF(RIGHT($K61,2)=RIGHT(BK$39,2),SUM($AP61:AS61),0)+IF(RIGHT(BK$39,2)>RIGHT($K61,2),AS61,0)) -> 0 | BL61: =+IF($K61="Ongoing",AT61,IF(RIGHT($K61,2)=RIGHT(BL$39,2),SUM($AP61:AT61),0)+IF(RIGHT(BL$39,2)>RIGHT($K61,2),AT61,0)) -> 0 | BM61: =+IF($K61="Ongoing",AU61,IF(RIGHT($K61,2)=RIGHT(BM$39,2),SUM($AP61:AU61),0)+IF(RIGHT(BM$39,2)>RIGHT($K61,2),AU61,0)) -> 0.1155 | BN61: =+IF($K61="Ongoing",AV61,IF(RIGHT($K61,2)=RIGHT(BN$39,2),SUM($AP61:AV61),0)+IF(RIGHT(BN$39,2)>RIGHT($K61,2),AV61,0)) -> 0.8375695125 | BO61: =+IF($K61="Ongoing",AW61,IF(RIGHT($K61,2)=RIGHT(BO$39,2),SUM($AP61:AW61),0)+IF(RIGHT(BO$39,2)>RIGHT($K61,2),AW61,0)) -> 0 | BQ61: =+O61*KeyAssumptionsPriceControl_FO!Z$15 -> 0 | BR61: =+P61*KeyAssumptionsPriceControl_FO!AA$15 -> 0.1208740995 | BS61: =+Q61*KeyAssumptionsPriceControl_FO!AB$15 -> 0.8967012224 | BT61: =+R61*KeyAssumptionsPriceControl_FO!AC$15 -> 0 | BU61: =+S61*KeyAssumptionsPriceControl_FO!AD$15 -> 0 | BV61: =+T61*KeyAssumptionsPriceControl_FO!AE$15 -> 0.1323840876 | BW61: =+U61*KeyAssumptionsPriceControl_FO!AF$15 -> 0.9820877561 | BX61: =+V61*KeyAssumptionsPriceControl_FO!AG$15 -> 0 | BZ61: 0 | CA61: 0 | CB61: 0 | CC61: 0 | CD61: 0 | CE61: 0 | CF61: 0 | CG61: 0
A62: 10 | B62: 10 | C62: 301 - Linear Program - Channel Desilt and Place Material | E62: Irrigation | F62: Renewals | G62: Channels | H62: Other Capital expenditure | J62: Straight line | K62: 2020-21 | L62: 10 | O62: 0.2776 | P62: 0.11468 | Q62: 0.05 | R62: 0.2732 | S62: 0.2776 | T62: 0.11468 | U62: 0.05 | V62: 0.2732 | AP62: 0.2776 | AQ62: 0.11468 | AR62: 0.05 | AS62: 0.2732 | AT62: 0.2776 | AU62: 0.11468 | AV62: 0.05 | AW62: 0.2732 | AY62: 0.01388 | AZ62: 0.033494 | BA62: 0.041728 | BB62: 0.057888 | BC62: 0.085428 | BD62: 0.105042 | BE62: 0.113276 | BF62: 0.129436 | BH62: =+IF($K62="Ongoing",AP62,IF(RIGHT($K62,2)=RIGHT(BH$39,2),SUM($AP62:AP62),0)+IF(RIGHT(BH$39,2)>RIGHT($K62,2),AP62,0)) -> 0.2776 | BI62: =+IF($K62="Ongoing",AQ62,IF(RIGHT($K62,2)=RIGHT(BI$39,2),SUM($AP62:AQ62),0)+IF(RIGHT(BI$39,2)>RIGHT($K62,2),AQ62,0)) -> 0.11468 | BJ62: =+IF($K62="Ongoing",AR62,IF(RIGHT($K62,2)=RIGHT(BJ$39,2),SUM($AP62:AR62),0)+IF(RIGHT(BJ$39,2)>RIGHT($K62,2),AR62,0)) -> 0.05 | BK62: =+IF($K62="Ongoing",AS62,IF(RIGHT($K62,2)=RIGHT(BK$39,2),SUM($AP62:AS62),0)+IF(RIGHT(BK$39,2)>RIGHT($K62,2),AS62,0)) -> 0.2732 | BL62: =+IF($K62="Ongoing",AT62,IF(RIGHT($K62,2)=RIGHT(BL$39,2),SUM($AP62:AT62),0)+IF(RIGHT(BL$39,2)>RIGHT($K62,2),AT62,0)) -> 0.2776 | BM62: =+IF($K62="Ongoing",AU62,IF(RIGHT($K62,2)=RIGHT(BM$39,2),SUM($AP62:AU62),0)+IF(RIGHT(BM$39,2)>RIGHT($K62,2),AU62,0)) -> 0.11468 | BN62: =+IF($K62="Ongoing",AV62,IF(RIGHT($K62,2)=RIGHT(BN$39,2),SUM($AP62:AV62),0)+IF(RIGHT(BN$39,2)>RIGHT($K62,2),AV62,0)) -> 0.05 | BO62: =+IF($K62="Ongoing",AW62,IF(RIGHT($K62,2)=RIGHT(BO$39,2),SUM($AP62:AW62),0)+IF(RIGHT(BO$39,2)>RIGHT($K62,2),AW62,0)) -> 0.2732 | BQ62: =+O62*KeyAssumptionsPriceControl_FO!Z$15 -> 0.2839848 | BR62: =+P62*KeyAssumptionsPriceControl_FO!AA$15 -> 0.1200159457 | BS62: =+Q62*KeyAssumptionsPriceControl_FO!AB$15 -> 0.05352995835 | BT62: =+R62*KeyAssumptionsPriceControl_FO!AC$15 -> 0.2992149094 | BU62: =+S62*KeyAssumptionsPriceControl_FO!AD$15 -> 0.3110266698 | BV62: =+T62*KeyAssumptionsPriceControl_FO!AE$15 -> 0.1314442179 | BW62: =+U62*KeyAssumptionsPriceControl_FO!AF$15 -> 0.05862723878 | BX62: =+V62*KeyAssumptionsPriceControl_FO!AG$15 -> 0.3277070351 | BZ62: 0 | CA62: 0 | CB62: 0 | CC62: 0 | CD62: 0 | CE62: 0 | CF62: 0 | CG62: 0
A63: 11 | B63: 11 | C63: 301 - Linear Program - Rip and Roll | E63: Irrigation | F63: Renewals | G63: Channels | H63: Other Capital expenditure | J63: Straight line | K63: 2020-21 | L63: 60 | O63: 0.05 | P63: 0.05 | Q63: 0.1377 | R63: 0.05 | S63: 0.05 | T63: 0.05 | U63: 0.1377 | V63: 0.05 | AP63: 0.05 | AQ63: 0.05 | AR63: 0.1377 | AS63: 0.05 | AT63: 0.05 | AU63: 0.05 | AV63: 0.1377 | AW63: 0.05 | AY63: 0.0004166666667 | AZ63: 0.00125 | BA63: 0.002814166667 | BB63: 0.004378333333 | BC63: 0.005211666667 | BD63: 0.006045 | BE63: 0.007609166667 | BF63: 0.009173333333 | BH63: =+IF($K63="Ongoing",AP63,IF(RIGHT($K63,2)=RIGHT(BH$39,2),SUM($AP63:AP63),0)+IF(RIGHT(BH$39,2)>RIGHT($K63,2),AP63,0)) -> 0.05 | BI63: =+IF($K63="Ongoing",AQ63,IF(RIGHT($K63,2)=RIGHT(BI$39,2),SUM($AP63:AQ63),0)+IF(RIGHT(BI$39,2)>RIGHT($K63,2),AQ63,0)) -> 0.05 | BJ63: =+IF($K63="Ongoing",AR63,IF(RIGHT($K63,2)=RIGHT(BJ$39,2),SUM($AP63:AR63),0)+IF(RIGHT(BJ$39,2)>RIGHT($K63,2),AR63,0)) -> 0.1377 | BK63: =+IF($K63="Ongoing",AS63,IF(RIGHT($K63,2)=RIGHT(BK$39,2),SUM($AP63:AS63),0)+IF(RIGHT(BK$39,2)>RIGHT($K63,2),AS63,0)) -> 0.05 | BL63: =+IF($K63="Ongoing",AT63,IF(RIGHT($K63,2)=RIGHT(BL$39,2),SUM($AP63:AT63),0)+IF(RIGHT(BL$39,2)>RIGHT($K63,2),AT63,0)) -> 0.05 | BM63: =+IF($K63="Ongoing",AU63,IF(RIGHT($K63,2)=RIGHT(BM$39,2),SUM($AP63:AU63),0)+IF(RIGHT(BM$39,2)>RIGHT($K63,2),AU63,0)) -> 0.05 | BN63: =+IF($K63="Ongoing",AV63,IF(RIGHT($K63,2)=RIGHT(BN$39,2),SUM($AP63:AV63),0)+IF(RIGHT(BN$39,2)>RIGHT($K63,2),AV63,0)) -> 0.1377 | BO63: =+IF($K63="Ongoing",AW63,IF(RIGHT($K63,2)=RIGHT(BO$39,2),SUM($AP63:AW63),0)+IF(RIGHT(BO$39,2)>RIGHT($K63,2),AW63,0)) -> 0.05 | BQ63: =+O63*KeyAssumptionsPriceControl_FO!Z$15 -> 0.05115 | BR63: =+P63*KeyAssumptionsPriceControl_FO!AA$15 -> 0.05232645 | BS63: =+Q63*KeyAssumptionsPriceControl_FO!AB$15 -> 0.1474215053 | BT63: =+R63*KeyAssumptionsPriceControl_FO!AC$15 -> 0.05476114739 | BU63: =+S63*KeyAssumptionsPriceControl_FO!AD$15 -> 0.05602065378 | BV63: =+T63*KeyAssumptionsPriceControl_FO!AE$15 -> 0.05730912882 | BW63: =+U63*KeyAssumptionsPriceControl_FO!AF$15 -> 0.1614594156 | BX63: =+V63*KeyAssumptionsPriceControl_FO!AG$15 -> 0.05997566527 | BZ63: 0 | CA63: 0 | CB63: 0 | CC63: 0 | CD63: 0 | CE63: 0 | CF63: 0 | CG63: 0
A64: 12 | B64: 12 | C64: 301 - Linear Program - Pipeline | E64: Irrigation | F64: Renewals | G64: Channels | H64: Other Capital expenditure | J64: Straight line | K64: 2021-22 | L64: 80 | O64: 0 | P64: 0.03230635294 | Q64: 0.4904058854 | R64: 0 | S64: 0 | T64: 0.03230635294 | U64: 0.4904058854 | V64: 0 | AP64: 0 | AQ64: 0.03230635294 | AR64: 0.4904058854 | AS64: 0 | AT64: 0 | AU64: 0.03230635294 | AV64: 0.4904058854 | AW64: 0 | AY64: 0 | AZ64: 0.0002019147059 | BA64: 0.003468866195 | BB64: 0.006533902979 | BC64: 0.006533902979 | BD64: 0.006735817685 | BE64: 0.01000276917 | BF64: 0.01306780596 | BH64: =+IF($K64="Ongoing",AP64,IF(RIGHT($K64,2)=RIGHT(BH$39,2),SUM($AP64:AP64),0)+IF(RIGHT(BH$39,2)>RIGHT($K64,2),AP64,0)) -> 0 | BI64: =+IF($K64="Ongoing",AQ64,IF(RIGHT($K64,2)=RIGHT(BI$39,2),SUM($AP64:AQ64),0)+IF(RIGHT(BI$39,2)>RIGHT($K64,2),AQ64,0)) -> 0.03230635294 | BJ64: =+IF($K64="Ongoing",AR64,IF(RIGHT($K64,2)=RIGHT(BJ$39,2),SUM($AP64:AR64),0)+IF(RIGHT(BJ$39,2)>RIGHT($K64,2),AR64,0)) -> 0.4904058854 | BK64: =+IF($K64="Ongoing",AS64,IF(RIGHT($K64,2)=RIGHT(BK$39,2),SUM($AP64:AS64),0)+IF(RIGHT(BK$39,2)>RIGHT($K64,2),AS64,0)) -> 0 | BL64: =+IF($K64="Ongoing",AT64,IF(RIGHT($K64,2)=RIGHT(BL$39,2),SUM($AP64:AT64),0)+IF(RIGHT(BL$39,2)>RIGHT($K64,2),AT64,0)) -> 0 | BM64: =+IF($K64="Ongoing",AU64,IF(RIGHT($K64,2)=RIGHT(BM$39,2),SUM($AP64:AU64),0)+IF(RIGHT(BM$39,2)>RIGHT($K64,2),AU64,0)) -> 0.03230635294 | BN64: =+IF($K64="Ongoing",AV64,IF(RIGHT($K64,2)=RIGHT(BN$39,2),SUM($AP64:AV64),0)+IF(RIGHT(BN$39,2)>RIGHT($K64,2),AV64,0)) -> 0.4904058854 | BO64: =+IF($K64="Ongoing",AW64,IF(RIGHT($K64,2)=RIGHT(BO$39,2),SUM($AP64:AW64),0)+IF(RIGHT(BO$39,2)>RIGHT($K64,2),AW64,0)) -> 0 | BQ64: =+O64*KeyAssumptionsPriceControl_FO!Z$15 -> 0 | BR64: =+P64*KeyAssumptionsPriceControl_FO!AA$15 -> 0.03380953524 | BS64: =+Q64*KeyAssumptionsPriceControl_FO!AB$15 -> 0.5250281324 | BT64: =+R64*KeyAssumptionsPriceControl_FO!AC$15 -> 0 | BU64: =+S64*KeyAssumptionsPriceControl_FO!AD$15 -> 0 | BV64: =+T64*KeyAssumptionsPriceControl_FO!AE$15 -> 0.03702897885 | BW64: =+U64*KeyAssumptionsPriceControl_FO!AF$15 -> 0.5750228589 | BX64: =+V64*KeyAssumptionsPriceControl_FO!AG$15 -> 0 | BZ64: 0 | CA64: 0 | CB64: 0 | CC64: 0 | CD64: 0 | CE64: 0 | CF64: 0 | CG64: 0
A65: 13 | B65: 13 | C65: 301 - Linear Program - Channel Remodelling | E65: Irrigation | F65: Renewals | G65: Channels | H65: Other Capital expenditure | J65: Straight line | K65: 2020-21 | L65: 100 | O65: 0.4357231139 | P65: 0.6358002882 | Q65: 0.6009873447 | R65: 0.34265 | S65: 0.4357231139 | T65: 0.6358002882 | U65: 0.6009873447 | V65: 0.34265 | AP65: 0.4357231139 | AQ65: 0.6358002882 | AR65: 0.6009873447 | AS65: 0.34265 | AT65: 0.4357231139 | AU65: 0.6358002882 | AV65: 0.6009873447 | AW65: 0.34265 | AY65: 0.002178615569 | AZ65: 0.00753623258 | BA65: 0.01372017074 | BB65: 0.01843835747 | BC65: 0.02233022304 | BD65: 0.02768784005 | BE65: 0.03387177821 | BF65: 0.03858996494 | BH65: =+IF($K65="Ongoing",AP65,IF(RIGHT($K65,2)=RIGHT(BH$39,2),SUM($AP65:AP65),0)+IF(RIGHT(BH$39,2)>RIGHT($K65,2),AP65,0)) -> 0.4357231139 | BI65: =+IF($K65="Ongoing",AQ65,IF(RIGHT($K65,2)=RIGHT(BI$39,2),SUM($AP65:AQ65),0)+IF(RIGHT(BI$39,2)>RIGHT($K65,2),AQ65,0)) -> 0.6358002882 | BJ65: =+IF($K65="Ongoing",AR65,IF(RIGHT($K65,2)=RIGHT(BJ$39,2),SUM($AP65:AR65),0)+IF(RIGHT(BJ$39,2)>RIGHT($K65,2),AR65,0)) -> 0.6009873447 | BK65: =+IF($K65="Ongoing",AS65,IF(RIGHT($K65,2)=RIGHT(BK$39,2),SUM($AP65:AS65),0)+IF(RIGHT(BK$39,2)>RIGHT($K65,2),AS65,0)) -> 0.34265 | BL65: =+IF($K65="Ongoing",AT65,IF(RIGHT($K65,2)=RIGHT(BL$39,2),SUM($AP65:AT65),0)+IF(RIGHT(BL$39,2)>RIGHT($K65,2),AT65,0)) -> 0.4357231139 | BM65: =+IF($K65="Ongoing",AU65,IF(RIGHT($K65,2)=RIGHT(BM$39,2),SUM($AP65:AU65),0)+IF(RIGHT(BM$39,2)>RIGHT($K65,2),AU65,0)) -> 0.6358002882 | BN65: =+IF($K65="Ongoing",AV65,IF(RIGHT($K65,2)=RIGHT(BN$39,2),SUM($AP65:AV65),0)+IF(RIGHT(BN$39,2)>RIGHT($K65,2),AV65,0)) -> 0.6009873447 | BO65: =+IF($K65="Ongoing",AW65,IF(RIGHT($K65,2)=RIGHT(BO$39,2),SUM($AP65:AW65),0)+IF(RIGHT(BO$39,2)>RIGHT($K65,2),AW65,0)) -> 0.34265 | BQ65: =+O65*KeyAssumptionsPriceControl_FO!Z$15 -> 0.4457447455 | BR65: =+P65*KeyAssumptionsPriceControl_FO!AA$15 -> 0.6653834398 | BS65: =+Q65*KeyAssumptionsPriceControl_FO!AB$15 -> 0.6434165506 | BT65: =+R65*KeyAssumptionsPriceControl_FO!AC$15 -> 0.3752781431 | BU65: =+S65*KeyAssumptionsPriceControl_FO!AD$15 -> 0.4881898742 | BV65: =+T65*KeyAssumptionsPriceControl_FO!AE$15 -> 0.7287432124 | BW65: =+U65*KeyAssumptionsPriceControl_FO!AF$15 -> 0.7046845713 | BX65: =+V65*KeyAssumptionsPriceControl_FO!AG$15 -> 0.4110132341 | BZ65: 0 | CA65: 0 | CB65: 0 | CC65: 0 | CD65: 0 | CE65: 0 | CF65: 0 | CG65: 0
A66: 14 | B66: 14 | C66: 311 - Linear Program - Channel Desilt and Place Material | E66: Irrigation | F66: Renewals | G66: Channels | H66: Other Capital expenditure | J66: Straight line | K66: 2020-21 | L66: 10 | O66: 0.09113815686 | P66: 0 | Q66: 0.06072 | R66: 0.1165829176 | S66: 0.09113815686 | T66: 0 | U66: 0.06072 | V66: 0.1165829176 | AP66: 0.09113815686 | AQ66: 0 | AR66: 0.06072 | AS66: 0.1165829176 | AT66: 0.09113815686 | AU66: 0 | AV66: 0.06072 | AW66: 0.1165829176 | AY66: 0.004556907843 | AZ66: 0.009113815686 | BA66: 0.01214981569 | BB66: 0.02101496157 | BC66: 0.03140101529 | BD66: 0.03595792314 | BE66: 0.03899392314 | BF66: 0.04785906902 | BH66: =+IF($K66="Ongoing",AP66,IF(RIGHT($K66,2)=RIGHT(BH$39,2),SUM($AP66:AP66),0)+IF(RIGHT(BH$39,2)>RIGHT($K66,2),AP66,0)) -> 0.09113815686 | BI66: =+IF($K66="Ongoing",AQ66,IF(RIGHT($K66,2)=RIGHT(BI$39,2),SUM($AP66:AQ66),0)+IF(RIGHT(BI$39,2)>RIGHT($K66,2),AQ66,0)) -> 0 | BJ66: =+IF($K66="Ongoing",AR66,IF(RIGHT($K66,2)=RIGHT(BJ$39,2),SUM($AP66:AR66),0)+IF(RIGHT(BJ$39,2)>RIGHT($K66,2),AR66,0)) -> 0.06072 | BK66: =+IF($K66="Ongoing",AS66,IF(RIGHT($K66,2)=RIGHT(BK$39,2),SUM($AP66:AS66),0)+IF(RIGHT(BK$39,2)>RIGHT($K66,2),AS66,0)) -> 0.1165829176 | BL66: =+IF($K66="Ongoing",AT66,IF(RIGHT($K66,2)=RIGHT(BL$39,2),SUM($AP66:AT66),0)+IF(RIGHT(BL$39,2)>RIGHT($K66,2),AT66,0)) -> 0.09113815686 | BM66: =+IF($K66="Ongoing",AU66,IF(RIGHT($K66,2)=RIGHT(BM$39,2),SUM($AP66:AU66),0)+IF(RIGHT(BM$39,2)>RIGHT($K66,2),AU66,0)) -> 0 | BN66: =+IF($K66="Ongoing",AV66,IF(RIGHT($K66,2)=RIGHT(BN$39,2),SUM($AP66:AV66),0)+IF(RIGHT(BN$39,2)>RIGHT($K66,2),AV66,0)) -> 0.06072 | BO66: =+IF($K66="Ongoing",AW66,IF(RIGHT($K66,2)=RIGHT(BO$39,2),SUM($AP66:AW66),0)+IF(RIGHT(BO$39,2)>RIGHT($K66,2),AW66,0)) -> 0.1165829176 | BQ66: =+O66*KeyAssumptionsPriceControl_FO!Z$15 -> 0.09323433447 | BR66: =+P66*KeyAssumptionsPriceControl_FO!AA$15 -> 0 | BS66: =+Q66*KeyAssumptionsPriceControl_FO!AB$15 -> 0.06500678142 | BT66: =+R66*KeyAssumptionsPriceControl_FO!AC$15 -> 0.1276842867 | BU66: =+S66*KeyAssumptionsPriceControl_FO!AD$15 -> 0.1021123826 | BV66: =+T66*KeyAssumptionsPriceControl_FO!AE$15 -> 0 | BW66: =+U66*KeyAssumptionsPriceControl_FO!AF$15 -> 0.07119691878 | BX66: =+V66*KeyAssumptionsPriceControl_FO!AG$15 -> 0.1398427609 | BZ66: 0 | CA66: 0 | CB66: 0 | CC66: 0 | CD66: 0 | CE66: 0 | CF66: 0 | CG66: 0
A67: 15 | B67: 15 | C67: 311 - Linear Program - Core Trenching | E67: Irrigation | F67: Renewals | G67: Channels | H67: Other Capital expenditure | J67: Straight line | K67: 2020-21 | L67: 15 | O67: 0.015 | P67: 0 | Q67: 0 | R67: 0 | S67: 0.015 | T67: 0 | U67: 0 | V67: 0 | AP67: 0.015 | AQ67: 0 | AR67: 0 | AS67: 0 | AT67: 0.015 | AU67: 0 | AV67: 0 | AW67: 0 | AY67: 0.0005 | AZ67: 0.001 | BA67: 0.001 | BB67: 0.001 | BC67: 0.0015 | BD67: 0.002 | BE67: 0.002 | BF67: 0.002 | BH67: =+IF($K67="Ongoing",AP67,IF(RIGHT($K67,2)=RIGHT(BH$39,2),SUM($AP67:AP67),0)+IF(RIGHT(BH$39,2)>RIGHT($K67,2),AP67,0)) -> 0.015 | BI67: =+IF($K67="Ongoing",AQ67,IF(RIGHT($K67,2)=RIGHT(BI$39,2),SUM($AP67:AQ67),0)+IF(RIGHT(BI$39,2)>RIGHT($K67,2),AQ67,0)) -> 0 | BJ67: =+IF($K67="Ongoing",AR67,IF(RIGHT($K67,2)=RIGHT(BJ$39,2),SUM($AP67:AR67),0)+IF(RIGHT(BJ$39,2)>RIGHT($K67,2),AR67,0)) -> 0 | BK67: =+IF($K67="Ongoing",AS67,IF(RIGHT($K67,2)=RIGHT(BK$39,2),SUM($AP67:AS67),0)+IF(RIGHT(BK$39,2)>RIGHT($K67,2),AS67,0)) -> 0 | BL67: =+IF($K67="Ongoing",AT67,IF(RIGHT($K67,2)=RIGHT(BL$39,2),SUM($AP67:AT67),0)+IF(RIGHT(BL$39,2)>RIGHT($K67,2),AT67,0)) -> 0.015 | BM67: =+IF($K67="Ongoing",AU67,IF(RIGHT($K67,2)=RIGHT(BM$39,2),SUM($AP67:AU67),0)+IF(RIGHT(BM$39,2)>RIGHT($K67,2),AU67,0)) -> 0 | BN67: =+IF($K67="Ongoing",AV67,IF(RIGHT($K67,2)=RIGHT(BN$39,2),SUM($AP67:AV67),0)+IF(RIGHT(BN$39,2)>RIGHT($K67,2),AV67,0)) -> 0 | BO67: =+IF($K67="Ongoing",AW67,IF(RIGHT($K67,2)=RIGHT(BO$39,2),SUM($AP67:AW67),0)+IF(RIGHT(BO$39,2)>RIGHT($K67,2),AW67,0)) -> 0 | BQ67: =+O67*KeyAssumptionsPriceControl_FO!Z$15 -> 0.015345 | BR67: =+P67*KeyAssumptionsPriceControl_FO!AA$15 -> 0 | BS67: =+Q67*KeyAssumptionsPriceControl_FO!AB$15 -> 0 | BT67: =+R67*KeyAssumptionsPriceControl_FO!AC$15 -> 0 | BU67: =+S67*KeyAssumptionsPriceControl_FO!AD$15 -> 0.01680619613 | BV67: =+T67*KeyAssumptionsPriceControl_FO!AE$15 -> 0 | BW67: =+U67*KeyAssumptionsPriceControl_FO!AF$15 -> 0 | BX67: =+V67*KeyAssumptionsPriceControl_FO!AG$15 -> 0 | BZ67: 0 | CA67: 0 | CB67: 0 | CC67: 0 | CD67: 0 | CE67: 0 | CF67: 0 | CG67: 0
A68: 16 | B68: 16 | C68: 311 - Linear Program - Channel Remodelling | E68: Irrigation | F68: Renewals | G68: Channels | H68: Other Capital expenditure | J68: Straight line | K68: 2020-21 | L68: 100 | O68: 0.09254658261 | P68: 0.2525 | Q68: 0.11781 | R68: 0 | S68: 0.09254658261 | T68: 0.2525 | U68: 0.11781 | V68: 0 | AP68: 0.09254658261 | AQ68: 0.2525 | AR68: 0.11781 | AS68: 0 | AT68: 0.09254658261 | AU68: 0.2525 | AV68: 0.11781 | AW68: 0 | AY68: 0.000462732913 | AZ68: 0.002187965826 | BA68: 0.004039515826 | BB68: 0.004628565826 | BC68: 0.005091298739 | BD68: 0.006816531652 | BE68: 0.008668081652 | BF68: 0.009257131652 | BH68: =+IF($K68="Ongoing",AP68,IF(RIGHT($K68,2)=RIGHT(BH$39,2),SUM($AP68:AP68),0)+IF(RIGHT(BH$39,2)>RIGHT($K68,2),AP68,0)) -> 0.09254658261 | BI68: =+IF($K68="Ongoing",AQ68,IF(RIGHT($K68,2)=RIGHT(BI$39,2),SUM($AP68:AQ68),0)+IF(RIGHT(BI$39,2)>RIGHT($K68,2),AQ68,0)) -> 0.2525 | BJ68: =+IF($K68="Ongoing",AR68,IF(RIGHT($K68,2)=RIGHT(BJ$39,2),SUM($AP68:AR68),0)+IF(RIGHT(BJ$39,2)>RIGHT($K68,2),AR68,0)) -> 0.11781 | BK68: =+IF($K68="Ongoing",AS68,IF(RIGHT($K68,2)=RIGHT(BK$39,2),SUM($AP68:AS68),0)+IF(RIGHT(BK$39,2)>RIGHT($K68,2),AS68,0)) -> 0 | BL68: =+IF($K68="Ongoing",AT68,IF(RIGHT($K68,2)=RIGHT(BL$39,2),SUM($AP68:AT68),0)+IF(RIGHT(BL$39,2)>RIGHT($K68,2),AT68,0)) -> 0.09254658261 | BM68: =+IF($K68="Ongoing",AU68,IF(RIGHT($K68,2)=RIGHT(BM$39,2),SUM($AP68:AU68),0)+IF(RIGHT(BM$39,2)>RIGHT($K68,2),AU68,0)) -> 0.2525 | BN68: =+IF($K68="Ongoing",AV68,IF(RIGHT($K68,2)=RIGHT(BN$39,2),SUM($AP68:AV68),0)+IF(RIGHT(BN$39,2)>RIGHT($K68,2),AV68,0)) -> 0.11781 | BO68: =+IF($K68="Ongoing",AW68,IF(RIGHT($K68,2)=RIGHT(BO$39,2),SUM($AP68:AW68),0)+IF(RIGHT(BO$39,2)>RIGHT($K68,2),AW68,0)) -> 0 | BQ68: =+O68*KeyAssumptionsPriceControl_FO!Z$15 -> 0.09467515401 | BR68: =+P68*KeyAssumptionsPriceControl_FO!AA$15 -> 0.2642485725 | BS68: =+Q68*KeyAssumptionsPriceControl_FO!AB$15 -> 0.1261272879 | BT68: =+R68*KeyAssumptionsPriceControl_FO!AC$15 -> 0 | BU68: =+S68*KeyAssumptionsPriceControl_FO!AD$15 -> 0.1036904013 | BV68: =+T68*KeyAssumptionsPriceControl_FO!AE$15 -> 0.2894111005 | BW68: =+U68*KeyAssumptionsPriceControl_FO!AF$15 -> 0.1381375 | BX68: =+V68*KeyAssumptionsPriceControl_FO!AG$15 -> 0 | BZ68: 0 | CA68: 0 | CB68: 0 | CC68: 0 | CD68: 0 | CE68: 0 | CF68: 0 | CG68: 0
A69: 17 | B69: 17 | C69: 321 - Linear Program - Channel Desilt and Place Material | E69: Irrigation | F69: Renewals | G69: Channels | H69: Other Capital expenditure | J69: Straight line | K69: 2020-21 | L69: 10 | O69: 0.118 | P69: 0.05 | Q69: 0.09749 | R69: 0.05 | S69: 0.118 | T69: 0.05 | U69: 0.09749 | V69: 0.05 | AP69: 0.118 | AQ69: 0.05 | AR69: 0.09749 | AS69: 0.05 | AT69: 0.118 | AU69: 0.05 | AV69: 0.09749 | AW69: 0.05 | AY69: 0.0059 | AZ69: 0.0143 | BA69: 0.0216745 | BB69: 0.029049 | BC69: 0.037449 | BD69: 0.045849 | BE69: 0.0532235 | BF69: 0.060598 | BH69: =+IF($K69="Ongoing",AP69,IF(RIGHT($K69,2)=RIGHT(BH$39,2),SUM($AP69:AP69),0)+IF(RIGHT(BH$39,2)>RIGHT($K69,2),AP69,0)) -> 0.118 | BI69: =+IF($K69="Ongoing",AQ69,IF(RIGHT($K69,2)=RIGHT(BI$39,2),SUM($AP69:AQ69),0)+IF(RIGHT(BI$39,2)>RIGHT($K69,2),AQ69,0)) -> 0.05 | BJ69: =+IF($K69="Ongoing",AR69,IF(RIGHT($K69,2)=RIGHT(BJ$39,2),SUM($AP69:AR69),0)+IF(RIGHT(BJ$39,2)>RIGHT($K69,2),AR69,0)) -> 0.09749 | BK69: =+IF($K69="Ongoing",AS69,IF(RIGHT($K69,2)=RIGHT(BK$39,2),SUM($AP69:AS69),0)+IF(RIGHT(BK$39,2)>RIGHT($K69,2),AS69,0)) -> 0.05 | BL69: =+IF($K69="Ongoing",AT69,IF(RIGHT($K69,2)=RIGHT(BL$39,2),SUM($AP69:AT69),0)+IF(RIGHT(BL$39,2)>RIGHT($K69,2),AT69,0)) -> 0.118 | BM69: =+IF($K69="Ongoing",AU69,IF(RIGHT($K69,2)=RIGHT(BM$39,2),SUM($AP69:AU69),0)+IF(RIGHT(BM$39,2)>RIGHT($K69,2),AU69,0)) -> 0.05 | BN69: =+IF($K69="Ongoing",AV69,IF(RIGHT($K69,2)=RIGHT(BN$39,2),SUM($AP69:AV69),0)+IF(RIGHT(BN$39,2)>RIGHT($K69,2),AV69,0)) -> 0.09749 | BO69: =+IF($K69="Ongoing",AW69,IF(RIGHT($K69,2)=RIGHT(BO$39,2),SUM($AP69:AW69),0)+IF(RIGHT(BO$39,2)>RIGHT($K69,2),AW69,0)) -> 0.05 | BQ69: =+O69*KeyAssumptionsPriceControl_FO!Z$15 -> 0.120714 | BR69: =+P69*KeyAssumptionsPriceControl_FO!AA$15 -> 0.05232645 | BS69: =+Q69*KeyAssumptionsPriceControl_FO!AB$15 -> 0.1043727128 | BT69: =+R69*KeyAssumptionsPriceControl_FO!AC$15 -> 0.05476114739 | BU69: =+S69*KeyAssumptionsPriceControl_FO!AD$15 -> 0.1322087429 | BV69: =+T69*KeyAssumptionsPriceControl_FO!AE$15 -> 0.05730912882 | BW69: =+U69*KeyAssumptionsPriceControl_FO!AF$15 -> 0.1143113902 | BX69: =+V69*KeyAssumptionsPriceControl_FO!AG$15 -> 0.05997566527 | BZ69: 0 | CA69: 0 | CB69: 0 | CC69: 0 | CD69: 0 | CE69: 0 | CF69: 0 | CG69: 0
A70: 18 | B70: 18 | C70: 321 - Linear Program - Core Trenching | E70: Irrigation | F70: Renewals | G70: Channels | H70: Other Capital expenditure | J70: Straight line | K70: 2020-21 | L70: 15 | O70: 0.1055 | P70: 0.78 | Q70: 0.6758 | R70: 0.72071 | S70: 0.1055 | T70: 0.78 | U70: 0.6758 | V70: 0.72071 | AP70: 0.1055 | AQ70: 0.78 | AR70: 0.6758 | AS70: 0.72071 | AT70: 0.1055 | AU70: 0.78 | AV70: 0.6758 | AW70: 0.72071 | AY70: 0.003516666667 | AZ70: 0.03303333333 | BA70: 0.08156 | BB70: 0.1281103333 | BC70: 0.1556506667 | BD70: 0.1851673333 | BE70: 0.233694 | BF70: 0.2802443333 | BH70: =+IF($K70="Ongoing",AP70,IF(RIGHT($K70,2)=RIGHT(BH$39,2),SUM($AP70:AP70),0)+IF(RIGHT(BH$39,2)>RIGHT($K70,2),AP70,0)) -> 0.1055 | BI70: =+IF($K70="Ongoing",AQ70,IF(RIGHT($K70,2)=RIGHT(BI$39,2),SUM($AP70:AQ70),0)+IF(RIGHT(BI$39,2)>RIGHT($K70,2),AQ70,0)) -> 0.78 | BJ70: =+IF($K70="Ongoing",AR70,IF(RIGHT($K70,2)=RIGHT(BJ$39,2),SUM($AP70:AR70),0)+IF(RIGHT(BJ$39,2)>RIGHT($K70,2),AR70,0)) -> 0.6758 | BK70: =+IF($K70="Ongoing",AS70,IF(RIGHT($K70,2)=RIGHT(BK$39,2),SUM($AP70:AS70),0)+IF(RIGHT(BK$39,2)>RIGHT($K70,2),AS70,0)) -> 0.72071 | BL70: =+IF($K70="Ongoing",AT70,IF(RIGHT($K70,2)=RIGHT(BL$39,2),SUM($AP70:AT70),0)+IF(RIGHT(BL$39,2)>RIGHT($K70,2),AT70,0)) -> 0.1055 | BM70: =+IF($K70="Ongoing",AU70,IF(RIGHT($K70,2)=RIGHT(BM$39,2),SUM($AP70:AU70),0)+IF(RIGHT(BM$39,2)>RIGHT($K70,2),AU70,0)) -> 0.78 | BN70: =+IF($K70="Ongoing",AV70,IF(RIGHT($K70,2)=RIGHT(BN$39,2),SUM($AP70:AV70),0)+IF(RIGHT(BN$39,2)>RIGHT($K70,2),AV70,0)) -> 0.6758 | BO70: =+IF($K70="Ongoing",AW70,IF(RIGHT($K70,2)=RIGHT(BO$39,2),SUM($AP70:AW70),0)+IF(RIGHT(BO$39,2)>RIGHT($K70,2),AW70,0)) -> 0.72071 | BQ70: =+O70*KeyAssumptionsPriceControl_FO!Z$15 -> 0.1079265 | BR70: =+P70*KeyAssumptionsPriceControl_FO!AA$15 -> 0.81629262 | BS70: =+Q70*KeyAssumptionsPriceControl_FO!AB$15 -> 0.7235109171 | BT70: =+R70*KeyAssumptionsPriceControl_FO!AC$15 -> 0.7893381307 | BU70: =+S70*KeyAssumptionsPriceControl_FO!AD$15 -> 0.1182035795 | BV70: =+T70*KeyAssumptionsPriceControl_FO!AE$15 -> 0.8940224096 | BW70: =+U70*KeyAssumptionsPriceControl_FO!AF$15 -> 0.7924057594 | BX70: =+V70*KeyAssumptionsPriceControl_FO!AG$15 -> 0.8645012344 | BZ70: 0 | CA70: 0 | CB70: 0 | CC70: 0 | CD70: 0 | CE70: 0 | CF70: 0 | CG70: 0
A71: 19 | B71: 19 | C71: 321 - Linear Program - Channel Remodelling | E71: Irrigation | F71: Renewals | G71: Channels | H71: Other Capital expenditure | J71: Straight line | K71: 2020-21 | L71: 100 | O71: 0.56105 | P71: 0 | Q71: 0.05 | R71: 0 | S71: 0.56105 | T71: 0 | U71: 0.05 | V71: 0 | AP71: 0.56105 | AQ71: 0 | AR71: 0.05 | AS71: 0 | AT71: 0.56105 | AU71: 0 | AV71: 0.05 | AW71: 0 | AY71: 0.00280525 | AZ71: 0.0056105 | BA71: 0.0058605 | BB71: 0.0061105 | BC71: 0.00891575 | BD71: 0.011721 | BE71: 0.011971 | BF71: 0.012221 | BH71: =+IF($K71="Ongoing",AP71,IF(RIGHT($K71,2)=RIGHT(BH$39,2),SUM($AP71:AP71),0)+IF(RIGHT(BH$39,2)>RIGHT($K71,2),AP71,0)) -> 0.56105 | BI71: =+IF($K71="Ongoing",AQ71,IF(RIGHT($K71,2)=RIGHT(BI$39,2),SUM($AP71:AQ71),0)+IF(RIGHT(BI$39,2)>RIGHT($K71,2),AQ71,0)) -> 0 | BJ71: =+IF($K71="Ongoing",AR71,IF(RIGHT($K71,2)=RIGHT(BJ$39,2),SUM($AP71:AR71),0)+IF(RIGHT(BJ$39,2)>RIGHT($K71,2),AR71,0)) -> 0.05 | BK71: =+IF($K71="Ongoing",AS71,IF(RIGHT($K71,2)=RIGHT(BK$39,2),SUM($AP71:AS71),0)+IF(RIGHT(BK$39,2)>RIGHT($K71,2),AS71,0)) -> 0 | BL71: =+IF($K71="Ongoing",AT71,IF(RIGHT($K71,2)=RIGHT(BL$39,2),SUM($AP71:AT71),0)+IF(RIGHT(BL$39,2)>RIGHT($K71,2),AT71,0)) -> 0.56105 | BM71: =+IF($K71="Ongoing",AU71,IF(RIGHT($K71,2)=RIGHT(BM$39,2),SUM($AP71:AU71),0)+IF(RIGHT(BM$39,2)>RIGHT($K71,2),AU71,0)) -> 0 | BN71: =+IF($K71="Ongoing",AV71,IF(RIGHT($K71,2)=RIGHT(BN$39,2),SUM($AP71:AV71),0)+IF(RIGHT(BN$39,2)>RIGHT($K71,2),AV71,0)) -> 0.05 | BO71: =+IF($K71="Ongoing",AW71,IF(RIGHT($K71,2)=RIGHT(BO$39,2),SUM($AP71:AW71),0)+IF(RIGHT(BO$39,2)>RIGHT($K71,2),AW71,0)) -> 0 | BQ71: =+O71*KeyAssumptionsPriceControl_FO!Z$15 -> 0.57395415 | BR71: =+P71*KeyAssumptionsPriceControl_FO!AA$15 -> 0 | BS71: =+Q71*KeyAssumptionsPriceControl_FO!AB$15 -> 0.05352995835 | BT71: =+R71*KeyAssumptionsPriceControl_FO!AC$15 -> 0 | BU71: =+S71*KeyAssumptionsPriceControl_FO!AD$15 -> 0.6286077561 | BV71: =+T71*KeyAssumptionsPriceControl_FO!AE$15 -> 0 | BW71: =+U71*KeyAssumptionsPriceControl_FO!AF$15 -> 0.05862723878 | BX71: =+V71*KeyAssumptionsPriceControl_FO!AG$15 -> 0 | BZ71: 0 | CA71: 0 | CB71: 0 | CC71: 0 | CD71: 0 | CE71: 0 | CF71: 0 | CG71: 0
A72: 20 | B72: 20 | C72: 341 - Linear Program - Channel Desilt and Place Material | E72: Irrigation | F72: Renewals | G72: Channels | H72: Other Capital expenditure | J72: Straight line | K72: 2020-21 | L72: 10 | O72: 0.08539471387 | P72: 0.07673 | Q72: 0.05 | R72: 0.0580117711 | S72: 0.08539471387 | T72: 0.07673 | U72: 0.05 | V72: 0.0580117711 | AP72: 0.08539471387 | AQ72: 0.07673 | AR72: 0.05 | AS72: 0.0580117711 | AT72: 0.08539471387 | AU72: 0.07673 | AV72: 0.05 | AW72: 0.0580117711 | AY72: 0.004269735694 | AZ72: 0.01237597139 | BA72: 0.01871247139 | BB72: 0.02411305994 | BC72: 0.03128338419 | BD72: 0.03938961988 | BE72: 0.04572611988 | BF72: 0.05112670844 | BH72: =+IF($K72="Ongoing",AP72,IF(RIGHT($K72,2)=RIGHT(BH$39,2),SUM($AP72:AP72),0)+IF(RIGHT(BH$39,2)>RIGHT($K72,2),AP72,0)) -> 0.08539471387 | BI72: =+IF($K72="Ongoing",AQ72,IF(RIGHT($K72,2)=RIGHT(BI$39,2),SUM($AP72:AQ72),0)+IF(RIGHT(BI$39,2)>RIGHT($K72,2),AQ72,0)) -> 0.07673 | BJ72: =+IF($K72="Ongoing",AR72,IF(RIGHT($K72,2)=RIGHT(BJ$39,2),SUM($AP72:AR72),0)+IF(RIGHT(BJ$39,2)>RIGHT($K72,2),AR72,0)) -> 0.05 | BK72: =+IF($K72="Ongoing",AS72,IF(RIGHT($K72,2)=RIGHT(BK$39,2),SUM($AP72:AS72),0)+IF(RIGHT(BK$39,2)>RIGHT($K72,2),AS72,0)) -> 0.0580117711 | BL72: =+IF($K72="Ongoing",AT72,IF(RIGHT($K72,2)=RIGHT(BL$39,2),SUM($AP72:AT72),0)+IF(RIGHT(BL$39,2)>RIGHT($K72,2),AT72,0)) -> 0.08539471387 | BM72: =+IF($K72="Ongoing",AU72,IF(RIGHT($K72,2)=RIGHT(BM$39,2),SUM($AP72:AU72),0)+IF(RIGHT(BM$39,2)>RIGHT($K72,2),AU72,0)) -> 0.07673 | BN72: =+IF($K72="Ongoing",AV72,IF(RIGHT($K72,2)=RIGHT(BN$39,2),SUM($AP72:AV72),0)+IF(RIGHT(BN$39,2)>RIGHT($K72,2),AV72,0)) -> 0.05 | BO72: =+IF($K72="Ongoing",AW72,IF(RIGHT($K72,2)=RIGHT(BO$39,2),SUM($AP72:AW72),0)+IF(RIGHT(BO$39,2)>RIGHT($K72,2),AW72,0)) -> 0.0580117711 | BQ72: =+O72*KeyAssumptionsPriceControl_FO!Z$15 -> 0.08735879229 | BR72: =+P72*KeyAssumptionsPriceControl_FO!AA$15 -> 0.08030017017 | BS72: =+Q72*KeyAssumptionsPriceControl_FO!AB$15 -> 0.05352995835 | BT72: =+R72*KeyAssumptionsPriceControl_FO!AC$15 -> 0.06353582295 | BU72: =+S72*KeyAssumptionsPriceControl_FO!AD$15 -> 0.09567735401 | BV72: =+T72*KeyAssumptionsPriceControl_FO!AE$15 -> 0.08794658909 | BW72: =+U72*KeyAssumptionsPriceControl_FO!AF$15 -> 0.05862723878 | BX72: =+V72*KeyAssumptionsPriceControl_FO!AG$15 -> 0.0695858913 | BZ72: 0 | CA72: 0 | CB72: 0 | CC72: 0 | CD72: 0 | CE72: 0 | CF72: 0 | CG72: 0
A73: 21 | B73: 21 | C73: 341 - Linear Program - Core Trenching | E73: Irrigation | F73: Renewals | G73: Channels | H73: Other Capital expenditure | J73: Straight line | K73: 2020-21 | L73: 15 | O73: 0.05641132495 | P73: 0.1333472243 | Q73: 0.05 | R73: 0.05 | S73: 0.05641132495 | T73: 0.1333472243 | U73: 0.05 | V73: 0.05 | AP73: 0.05641132495 | AQ73: 0.1333472243 | AR73: 0.05 | AS73: 0.05 | AT73: 0.05641132495 | AU73: 0.1333472243 | AV73: 0.05 | AW73: 0.05 | AY73: 0.001880377498 | AZ73: 0.008205662474 | BA73: 0.01431723662 | BB73: 0.01765056995 | BC73: 0.02119761412 | BD73: 0.02752289909 | BE73: 0.03363447324 | BF73: 0.03696780657 | BH73: =+IF($K73="Ongoing",AP73,IF(RIGHT($K73,2)=RIGHT(BH$39,2),SUM($AP73:AP73),0)+IF(RIGHT(BH$39,2)>RIGHT($K73,2),AP73,0)) -> 0.05641132495 | BI73: =+IF($K73="Ongoing",AQ73,IF(RIGHT($K73,2)=RIGHT(BI$39,2),SUM($AP73:AQ73),0)+IF(RIGHT(BI$39,2)>RIGHT($K73,2),AQ73,0)) -> 0.1333472243 | BJ73: =+IF($K73="Ongoing",AR73,IF(RIGHT($K73,2)=RIGHT(BJ$39,2),SUM($AP73:AR73),0)+IF(RIGHT(BJ$39,2)>RIGHT($K73,2),AR73,0)) -> 0.05 | BK73: =+IF($K73="Ongoing",AS73,IF(RIGHT($K73,2)=RIGHT(BK$39,2),SUM($AP73:AS73),0)+IF(RIGHT(BK$39,2)>RIGHT($K73,2),AS73,0)) -> 0.05 | BL73: =+IF($K73="Ongoing",AT73,IF(RIGHT($K73,2)=RIGHT(BL$39,2),SUM($AP73:AT73),0)+IF(RIGHT(BL$39,2)>RIGHT($K73,2),AT73,0)) -> 0.05641132495 | BM73: =+IF($K73="Ongoing",AU73,IF(RIGHT($K73,2)=RIGHT(BM$39,2),SUM($AP73:AU73),0)+IF(RIGHT(BM$39,2)>RIGHT($K73,2),AU73,0)) -> 0.1333472243 | BN73: =+IF($K73="Ongoing",AV73,IF(RIGHT($K73,2)=RIGHT(BN$39,2),SUM($AP73:AV73),0)+IF(RIGHT(BN$39,2)>RIGHT($K73,2),AV73,0)) -> 0.05 | BO73: =+IF($K73="Ongoing",AW73,IF(RIGHT($K73,2)=RIGHT(BO$39,2),SUM($AP73:AW73),0)+IF(RIGHT(BO$39,2)>RIGHT($K73,2),AW73,0)) -> 0.05 | BQ73: =+O73*KeyAssumptionsPriceControl_FO!Z$15 -> 0.05770878542 | BR73: =+P73*KeyAssumptionsPriceControl_FO!AA$15 -> 0.1395517373 | BS73: =+Q73*KeyAssumptionsPriceControl_FO!AB$15 -> 0.05352995835 | BT73: =+R73*KeyAssumptionsPriceControl_FO!AC$15 -> 0.05476114739 | BU73: =+S73*KeyAssumptionsPriceControl_FO!AD$15 -> 0.06320398609 | BV73: =+T73*KeyAssumptionsPriceControl_FO!AE$15 -> 0.1528402651 | BW73: =+U73*KeyAssumptionsPriceControl_FO!AF$15 -> 0.05862723878 | BX73: =+V73*KeyAssumptionsPriceControl_FO!AG$15 -> 0.05997566527 | BZ73: 0 | CA73: 0 | CB73: 0 | CC73: 0 | CD73: 0 | CE73: 0 | CF73: 0 | CG73: 0
A74: 22 | B74: 22 | C74: 341- Linear Program - Channel Remodelling | E74: Irrigation | F74: Renewals | G74: Channels | H74: Other Capital expenditure | J74: Straight line | K74: 2020-21 | L74: 100 | O74: 1.105991438 | P74: 0.73 | Q74: 0.1225 | R74: 0.8531673212 | S74: 1.105991438 | T74: 0.73 | U74: 0.1225 | V74: 0.8531673212 | AP74: 1.105991438 | AQ74: 0.73 | AR74: 0.1225 | AS74: 0.8531673212 | AT74: 1.105991438 | AU74: 0.73 | AV74: 0.1225 | AW74: 0.8531673212 | AY74: 0.005529957189 | AZ74: 0.01470991438 | BA74: 0.01897241438 | BB74: 0.02385075098 | BC74: 0.03364654478 | BD74: 0.04282650197 | BE74: 0.04708900197 | BF74: 0.05196733857 | BH74: =+IF($K74="Ongoing",AP74,IF(RIGHT($K74,2)=RIGHT(BH$39,2),SUM($AP74:AP74),0)+IF(RIGHT(BH$39,2)>RIGHT($K74,2),AP74,0)) -> 1.105991438 | BI74: =+IF($K74="Ongoing",AQ74,IF(RIGHT($K74,2)=RIGHT(BI$39,2),SUM($AP74:AQ74),0)+IF(RIGHT(BI$39,2)>RIGHT($K74,2),AQ74,0)) -> 0.73 | BJ74: =+IF($K74="Ongoing",AR74,IF(RIGHT($K74,2)=RIGHT(BJ$39,2),SUM($AP74:AR74),0)+IF(RIGHT(BJ$39,2)>RIGHT($K74,2),AR74,0)) -> 0.1225 | BK74: =+IF($K74="Ongoing",AS74,IF(RIGHT($K74,2)=RIGHT(BK$39,2),SUM($AP74:AS74),0)+IF(RIGHT(BK$39,2)>RIGHT($K74,2),AS74,0)) -> 0.8531673212 | BL74: =+IF($K74="Ongoing",AT74,IF(RIGHT($K74,2)=RIGHT(BL$39,2),SUM($AP74:AT74),0)+IF(RIGHT(BL$39,2)>RIGHT($K74,2),AT74,0)) -> 1.105991438 | BM74: =+IF($K74="Ongoing",AU74,IF(RIGHT($K74,2)=RIGHT(BM$39,2),SUM($AP74:AU74),0)+IF(RIGHT(BM$39,2)>RIGHT($K74,2),AU74,0)) -> 0.73 | BN74: =+IF($K74="Ongoing",AV74,IF(RIGHT($K74,2)=RIGHT(BN$39,2),SUM($AP74:AV74),0)+IF(RIGHT(BN$39,2)>RIGHT($K74,2),AV74,0)) -> 0.1225 | BO74: =+IF($K74="Ongoing",AW74,IF(RIGHT($K74,2)=RIGHT(BO$39,2),SUM($AP74:AW74),0)+IF(RIGHT(BO$39,2)>RIGHT($K74,2),AW74,0)) -> 0.8531673212 | BQ74: =+O74*KeyAssumptionsPriceControl_FO!Z$15 -> 1.131429241 | BR74: =+P74*KeyAssumptionsPriceControl_FO!AA$15 -> 0.76396617 | BS74: =+Q74*KeyAssumptionsPriceControl_FO!AB$15 -> 0.131148398 | BT74: =+R74*KeyAssumptionsPriceControl_FO!AC$15 -> 0.9344084285 | BU74: =+S74*KeyAssumptionsPriceControl_FO!AD$15 -> 1.239167268 | BV74: =+T74*KeyAssumptionsPriceControl_FO!AE$15 -> 0.8367132808 | BW74: =+U74*KeyAssumptionsPriceControl_FO!AF$15 -> 0.143636735 | BX74: =+V74*KeyAssumptionsPriceControl_FO!AG$15 -> 1.023385554 | BZ74: 0 | CA74: 0 | CB74: 0 | CC74: 0 | CD74: 0 | CE74: 0 | CF74: 0 | CG74: 0
A75: 23 | B75: 23 | C75: 351 - Linear Program - Channel Desilt and Place Material | E75: Irrigation | F75: Renewals | G75: Channels | H75: Other Capital expenditure | J75: Straight line | K75: 2020-21 | L75: 10 | O75: 0.1286309058 | P75: 0.06707306101 | Q75: 0.05 | R75: 0.05 | S75: 0.1286309058 | T75: 0.06707306101 | U75: 0.05 | V75: 0.05 | AP75: 0.1286309058 | AQ75: 0.06707306101 | AR75: 0.05 | AS75: 0.05 | AT75: 0.1286309058 | AU75: 0.06707306101 | AV75: 0.05 | AW75: 0.05 | AY75: 0.006431545291 | AZ75: 0.01621674363 | BA75: 0.02207039668 | BB75: 0.02707039668 | BC75: 0.03600194198 | BD75: 0.04578714032 | BE75: 0.05164079337 | BF75: 0.05664079337 | BH75: =+IF($K75="Ongoing",AP75,IF(RIGHT($K75,2)=RIGHT(BH$39,2),SUM($AP75:AP75),0)+IF(RIGHT(BH$39,2)>RIGHT($K75,2),AP75,0)) -> 0.1286309058 | BI75: =+IF($K75="Ongoing",AQ75,IF(RIGHT($K75,2)=RIGHT(BI$39,2),SUM($AP75:AQ75),0)+IF(RIGHT(BI$39,2)>RIGHT($K75,2),AQ75,0)) -> 0.06707306101 | BJ75: =+IF($K75="Ongoing",AR75,IF(RIGHT($K75,2)=RIGHT(BJ$39,2),SUM($AP75:AR75),0)+IF(RIGHT(BJ$39,2)>RIGHT($K75,2),AR75,0)) -> 0.05 | BK75: =+IF($K75="Ongoing",AS75,IF(RIGHT($K75,2)=RIGHT(BK$39,2),SUM($AP75:AS75),0)+IF(RIGHT(BK$39,2)>RIGHT($K75,2),AS75,0)) -> 0.05 | BL75: =+IF($K75="Ongoing",AT75,IF(RIGHT($K75,2)=RIGHT(BL$39,2),SUM($AP75:AT75),0)+IF(RIGHT(BL$39,2)>RIGHT($K75,2),AT75,0)) -> 0.1286309058 | BM75: =+IF($K75="Ongoing",AU75,IF(RIGHT($K75,2)=RIGHT(BM$39,2),SUM($AP75:AU75),0)+IF(RIGHT(BM$39,2)>RIGHT($K75,2),AU75,0)) -> 0.06707306101 | BN75: =+IF($K75="Ongoing",AV75,IF(RIGHT($K75,2)=RIGHT(BN$39,2),SUM($AP75:AV75),0)+IF(RIGHT(BN$39,2)>RIGHT($K75,2),AV75,0)) -> 0.05 | BO75: =+IF($K75="Ongoing",AW75,IF(RIGHT($K75,2)=RIGHT(BO$39,2),SUM($AP75:AW75),0)+IF(RIGHT(BO$39,2)>RIGHT($K75,2),AW75,0)) -> 0.05 | BQ75: =+O75*KeyAssumptionsPriceControl_FO!Z$15 -> 0.1315894167 | BR75: =+P75*KeyAssumptionsPriceControl_FO!AA$15 -> 0.07019390346 | BS75: =+Q75*KeyAssumptionsPriceControl_FO!AB$15 -> 0.05352995835 | BT75: =+R75*KeyAssumptionsPriceControl_FO!AC$15 -> 0.05476114739 | BU75: =+S75*KeyAssumptionsPriceControl_FO!AD$15 -> 0.1441197488 | BV75: =+T75*KeyAssumptionsPriceControl_FO!AE$15 -> 0.07687797387 | BW75: =+U75*KeyAssumptionsPriceControl_FO!AF$15 -> 0.05862723878 | BX75: =+V75*KeyAssumptionsPriceControl_FO!AG$15 -> 0.05997566527 | BZ75: 0 | CA75: 0 | CB75: 0 | CC75: 0 | CD75: 0 | CE75: 0 | CF75: 0 | CG75: 0
A76: 24 | B76: 24 | C76: 351 - Linear Program - Core Trenching | E76: Irrigation | F76: Renewals | G76: Channels | H76: Other Capital expenditure | J76: Straight line | K76: 2021-22 | L76: 15 | O76: 0 | P76: 0.0479 | Q76: 0.22 | R76: 0 | S76: 0 | T76: 0.0479 | U76: 0.22 | V76: 0 | AP76: 0 | AQ76: 0.0479 | AR76: 0.22 | AS76: 0 | AT76: 0 | AU76: 0.0479 | AV76: 0.22 | AW76: 0 | AY76: 0 | AZ76: 0.001596666667 | BA76: 0.01052666667 | BB76: 0.01786 | BC76: 0.01786 | BD76: 0.01945666667 | BE76: 0.02838666667 | BF76: 0.03572 | BH76: =+IF($K76="Ongoing",AP76,IF(RIGHT($K76,2)=RIGHT(BH$39,2),SUM($AP76:AP76),0)+IF(RIGHT(BH$39,2)>RIGHT($K76,2),AP76,0)) -> 0 | BI76: =+IF($K76="Ongoing",AQ76,IF(RIGHT($K76,2)=RIGHT(BI$39,2),SUM($AP76:AQ76),0)+IF(RIGHT(BI$39,2)>RIGHT($K76,2),AQ76,0)) -> 0.0479 | BJ76: =+IF($K76="Ongoing",AR76,IF(RIGHT($K76,2)=RIGHT(BJ$39,2),SUM($AP76:AR76),0)+IF(RIGHT(BJ$39,2)>RIGHT($K76,2),AR76,0)) -> 0.22 | BK76: =+IF($K76="Ongoing",AS76,IF(RIGHT($K76,2)=RIGHT(BK$39,2),SUM($AP76:AS76),0)+IF(RIGHT(BK$39,2)>RIGHT($K76,2),AS76,0)) -> 0 | BL76: =+IF($K76="Ongoing",AT76,IF(RIGHT($K76,2)=RIGHT(BL$39,2),SUM($AP76:AT76),0)+IF(RIGHT(BL$39,2)>RIGHT($K76,2),AT76,0)) -> 0 | BM76: =+IF($K76="Ongoing",AU76,IF(RIGHT($K76,2)=RIGHT(BM$39,2),SUM($AP76:AU76),0)+IF(RIGHT(BM$39,2)>RIGHT($K76,2),AU76,0)) -> 0.0479 | BN76: =+IF($K76="Ongoing",AV76,IF(RIGHT($K76,2)=RIGHT(BN$39,2),SUM($AP76:AV76),0)+IF(RIGHT(BN$39,2)>RIGHT($K76,2),AV76,0)) -> 0.22 | BO76: =+IF($K76="Ongoing",AW76,IF(RIGHT($K76,2)=RIGHT(BO$39,2),SUM($AP76:AW76),0)+IF(RIGHT(BO$39,2)>RIGHT($K76,2),AW76,0)) -> 0 | BQ76: =+O76*KeyAssumptionsPriceControl_FO!Z$15 -> 0 | BR76: =+P76*KeyAssumptionsPriceControl_FO!AA$15 -> 0.0501287391 | BS76: =+Q76*KeyAssumptionsPriceControl_FO!AB$15 -> 0.2355318167 | BT76: =+R76*KeyAssumptionsPriceControl_FO!AC$15 -> 0 | BU76: =+S76*KeyAssumptionsPriceControl_FO!AD$15 -> 0 | BV76: =+T76*KeyAssumptionsPriceControl_FO!AE$15 -> 0.05490214541 | BW76: =+U76*KeyAssumptionsPriceControl_FO!AF$15 -> 0.2579598506 | BX76: =+V76*KeyAssumptionsPriceControl_FO!AG$15 -> 0 | BZ76: 0 | CA76: 0 | CB76: 0 | CC76: 0 | CD76: 0 | CE76: 0 | CF76: 0 | CG76: 0
A77: 25 | B77: 25 | C77: 351 - Linear Program - Rip and Roll | E77: Irrigation | F77: Renewals | G77: Channels | H77: Other Capital expenditure | J77: Straight line | K77: 2020-21 | L77: 60 | O77: 0.05 | P77: 0.133017446 | Q77: 0.05 | R77: 0.05 | S77: 0.05 | T77: 0.133017446 | U77: 0.05 | V77: 0.05 | AP77: 0.05 | AQ77: 0.133017446 | AR77: 0.05 | AS77: 0.05 | AT77: 0.05 | AU77: 0.133017446 | AV77: 0.05 | AW77: 0.05 | AY77: 0.0004166666667 | AZ77: 0.00194181205 | BA77: 0.003466957433 | BB77: 0.004300290766 | BC77: 0.005133624099 | BD77: 0.006658769482 | BE77: 0.008183914865 | BF77: 0.009017248198 | BH77: =+IF($K77="Ongoing",AP77,IF(RIGHT($K77,2)=RIGHT(BH$39,2),SUM($AP77:AP77),0)+IF(RIGHT(BH$39,2)>RIGHT($K77,2),AP77,0)) -> 0.05 | BI77: =+IF($K77="Ongoing",AQ77,IF(RIGHT($K77,2)=RIGHT(BI$39,2),SUM($AP77:AQ77),0)+IF(RIGHT(BI$39,2)>RIGHT($K77,2),AQ77,0)) -> 0.133017446 | BJ77: =+IF($K77="Ongoing",AR77,IF(RIGHT($K77,2)=RIGHT(BJ$39,2),SUM($AP77:AR77),0)+IF(RIGHT(BJ$39,2)>RIGHT($K77,2),AR77,0)) -> 0.05 | BK77: =+IF($K77="Ongoing",AS77,IF(RIGHT($K77,2)=RIGHT(BK$39,2),SUM($AP77:AS77),0)+IF(RIGHT(BK$39,2)>RIGHT($K77,2),AS77,0)) -> 0.05 | BL77: =+IF($K77="Ongoing",AT77,IF(RIGHT($K77,2)=RIGHT(BL$39,2),SUM($AP77:AT77),0)+IF(RIGHT(BL$39,2)>RIGHT($K77,2),AT77,0)) -> 0.05 | BM77: =+IF($K77="Ongoing",AU77,IF(RIGHT($K77,2)=RIGHT(BM$39,2),SUM($AP77:AU77),0)+IF(RIGHT(BM$39,2)>RIGHT($K77,2),AU77,0)) -> 0.133017446 | BN77: =+IF($K77="Ongoing",AV77,IF(RIGHT($K77,2)=RIGHT(BN$39,2),SUM($AP77:AV77),0)+IF(RIGHT(BN$39,2)>RIGHT($K77,2),AV77,0)) -> 0.05 | BO77: =+IF($K77="Ongoing",AW77,IF(RIGHT($K77,2)=RIGHT(BO$39,2),SUM($AP77:AW77),0)+IF(RIGHT(BO$39,2)>RIGHT($K77,2),AW77,0)) -> 0.05 | BQ77: =+O77*KeyAssumptionsPriceControl_FO!Z$15 -> 0.05115 | BR77: =+P77*KeyAssumptionsPriceControl_FO!AA$15 -> 0.1392066147 | BS77: =+Q77*KeyAssumptionsPriceControl_FO!AB$15 -> 0.05352995835 | BT77: =+R77*KeyAssumptionsPriceControl_FO!AC$15 -> 0.05476114739 | BU77: =+S77*KeyAssumptionsPriceControl_FO!AD$15 -> 0.05602065378 | BV77: =+T77*KeyAssumptionsPriceControl_FO!AE$15 -> 0.1524622789 | BW77: =+U77*KeyAssumptionsPriceControl_FO!AF$15 -> 0.05862723878 | BX77: =+V77*KeyAssumptionsPriceControl_FO!AG$15 -> 0.05997566527 | BZ77: 0 | CA77: 0 | CB77: 0 | CC77: 0 | CD77: 0 | CE77: 0 | CF77: 0 | CG77: 0
A78: 26 | B78: 26 | C78: 351 - Linear Program - Pipeline | E78: Irrigation | F78: Renewals | G78: Channels | H78: Other Capital expenditure | J78: Straight line | K78: 2023-24 | L78: 80 | O78: 0 | P78: 0 | Q78: 0 | R78: 0.3006693529 | S78: 0 | T78: 0 | U78: 0 | V78: 0.3006693529 | AP78: 0 | AQ78: 0 | AR78: 0 | AS78: 0.3006693529 | AT78: 0 | AU78: 0 | AV78: 0 | AW78: 0.3006693529 | AY78: 0 | AZ78: 0 | BA78: 0 | BB78: 0.001879183456 | BC78: 0.003758366912 | BD78: 0.003758366912 | BE78: 0.003758366912 | BF78: 0.005637550368 | BH78: =+IF($K78="Ongoing",AP78,IF(RIGHT($K78,2)=RIGHT(BH$39,2),SUM($AP78:AP78),0)+IF(RIGHT(BH$39,2)>RIGHT($K78,2),AP78,0)) -> 0 | BI78: =+IF($K78="Ongoing",AQ78,IF(RIGHT($K78,2)=RIGHT(BI$39,2),SUM($AP78:AQ78),0)+IF(RIGHT(BI$39,2)>RIGHT($K78,2),AQ78,0)) -> 0 | BJ78: =+IF($K78="Ongoing",AR78,IF(RIGHT($K78,2)=RIGHT(BJ$39,2),SUM($AP78:AR78),0)+IF(RIGHT(BJ$39,2)>RIGHT($K78,2),AR78,0)) -> 0 | BK78: =+IF($K78="Ongoing",AS78,IF(RIGHT($K78,2)=RIGHT(BK$39,2),SUM($AP78:AS78),0)+IF(RIGHT(BK$39,2)>RIGHT($K78,2),AS78,0)) -> 0.3006693529 | BL78: =+IF($K78="Ongoing",AT78,IF(RIGHT($K78,2)=RIGHT(BL$39,2),SUM($AP78:AT78),0)+IF(RIGHT(BL$39,2)>RIGHT($K78,2),AT78,0)) -> 0 | BM78: =+IF($K78="Ongoing",AU78,IF(RIGHT($K78,2)=RIGHT(BM$39,2),SUM($AP78:AU78),0)+IF(RIGHT(BM$39,2)>RIGHT($K78,2),AU78,0)) -> 0 | BN78: =+IF($K78="Ongoing",AV78,IF(RIGHT($K78,2)=RIGHT(BN$39,2),SUM($AP78:AV78),0)+IF(RIGHT(BN$39,2)>RIGHT($K78,2),AV78,0)) -> 0 | BO78: =+IF($K78="Ongoing",AW78,IF(RIGHT($K78,2)=RIGHT(BO$39,2),SUM($AP78:AW78),0)+IF(RIGHT(BO$39,2)>RIGHT($K78,2),AW78,0)) -> 0.3006693529 | BQ78: =+O78*KeyAssumptionsPriceControl_FO!Z$15 -> 0 | BR78: =+P78*KeyAssumptionsPriceControl_FO!AA$15 -> 0 | BS78: =+Q78*KeyAssumptionsPriceControl_FO!AB$15 -> 0 | BT78: =+R78*KeyAssumptionsPriceControl_FO!AC$15 -> 0.3292999751 | BU78: =+S78*KeyAssumptionsPriceControl_FO!AD$15 -> 0 | BV78: =+T78*KeyAssumptionsPriceControl_FO!AE$15 -> 0 | BW78: =+U78*KeyAssumptionsPriceControl_FO!AF$15 -> 0 | BX78: =+V78*KeyAssumptionsPriceControl_FO!AG$15 -> 0.3606568894 | BZ78: 0 | CA78: 0 | CB78: 0 | CC78: 0 | CD78: 0 | CE78: 0 | CF78: 0 | CG78: 0
A79: 27 | B79: 27 | C79: 351 - Linear Program - Channel Remodelling | E79: Irrigation | F79: Renewals | G79: Channels | H79: Other Capital expenditure | J79: Straight line | K79: 2020-21 | L79: 100 | O79: 1.260937336 | P79: 1.46558 | Q79: 0.9742 | R79: 1.498315404 | S79: 1.260937336 | T79: 1.46558 | U79: 0.9742 | V79: 1.498315404 | AP79: 1.260937336 | AQ79: 1.46558 | AR79: 0.9742 | AS79: 1.498315404 | AT79: 1.260937336 | AU79: 1.46558 | AV79: 0.9742 | AW79: 1.498315404 | AY79: 0.006304686681 | AZ79: 0.01993727336 | BA79: 0.03213617336 | BB79: 0.04449875038 | BC79: 0.05829501409 | BD79: 0.07192760077 | BE79: 0.08412650077 | BF79: 0.09648907779 | BH79: =+IF($K79="Ongoing",AP79,IF(RIGHT($K79,2)=RIGHT(BH$39,2),SUM($AP79:AP79),0)+IF(RIGHT(BH$39,2)>RIGHT($K79,2),AP79,0)) -> 1.260937336 | BI79: =+IF($K79="Ongoing",AQ79,IF(RIGHT($K79,2)=RIGHT(BI$39,2),SUM($AP79:AQ79),0)+IF(RIGHT(BI$39,2)>RIGHT($K79,2),AQ79,0)) -> 1.46558 | BJ79: =+IF($K79="Ongoing",AR79,IF(RIGHT($K79,2)=RIGHT(BJ$39,2),SUM($AP79:AR79),0)+IF(RIGHT(BJ$39,2)>RIGHT($K79,2),AR79,0)) -> 0.9742 | BK79: =+IF($K79="Ongoing",AS79,IF(RIGHT($K79,2)=RIGHT(BK$39,2),SUM($AP79:AS79),0)+IF(RIGHT(BK$39,2)>RIGHT($K79,2),AS79,0)) -> 1.498315404 | BL79: =+IF($K79="Ongoing",AT79,IF(RIGHT($K79,2)=RIGHT(BL$39,2),SUM($AP79:AT79),0)+IF(RIGHT(BL$39,2)>RIGHT($K79,2),AT79,0)) -> 1.260937336 | BM79: =+IF($K79="Ongoing",AU79,IF(RIGHT($K79,2)=RIGHT(BM$39,2),SUM($AP79:AU79),0)+IF(RIGHT(BM$39,2)>RIGHT($K79,2),AU79,0)) -> 1.46558 | BN79: =+IF($K79="Ongoing",AV79,IF(RIGHT($K79,2)=RIGHT(BN$39,2),SUM($AP79:AV79),0)+IF(RIGHT(BN$39,2)>RIGHT($K79,2),AV79,0)) -> 0.9742 | BO79: =+IF($K79="Ongoing",AW79,IF(RIGHT($K79,2)=RIGHT(BO$39,2),SUM($AP79:AW79),0)+IF(RIGHT(BO$39,2)>RIGHT($K79,2),AW79,0)) -> 1.498315404 | BQ79: =+O79*KeyAssumptionsPriceControl_FO!Z$15 -> 1.289938895 | BR79: =+P79*KeyAssumptionsPriceControl_FO!AA$15 -> 1.533771972 | BS79: =+Q79*KeyAssumptionsPriceControl_FO!AB$15 -> 1.042977708 | BT79: =+R79*KeyAssumptionsPriceControl_FO!AC$15 -> 1.640989414 | BU79: =+S79*KeyAssumptionsPriceControl_FO!AD$15 -> 1.412770679 | BV79: =+T79*KeyAssumptionsPriceControl_FO!AE$15 -> 1.67982226 | BW79: =+U79*KeyAssumptionsPriceControl_FO!AF$15 -> 1.14229312 | BX79: =+V79*KeyAssumptionsPriceControl_FO!AG$15 -> 1.797249263 | BZ79: 0 | CA79: 0 | CB79: 0 | CC79: 0 | CD79: 0 | CE79: 0 | CF79: 0 | CG79: 0
A80: 28 | B80: 28 | C80: 361 - Linear Program - Channel Desilt and Place Material | E80: Irrigation | F80: Renewals | G80: Channels | H80: Other Capital expenditure | J80: Straight line | K80: 2020-21 | L80: 10 | O80: 0.5258010096 | P80: 0.1 | Q80: 0.1 | R80: 0.1 | S80: 0.5258010096 | T80: 0.1 | U80: 0.1 | V80: 0.1 | AP80: 0.5258010096 | AQ80: 0.1 | AR80: 0.1 | AS80: 0.1 | AT80: 0.5258010096 | AU80: 0.1 | AV80: 0.1 | AW80: 0.1 | AY80: 0.02629005048 | AZ80: 0.05758010096 | BA80: 0.06758010096 | BB80: 0.07758010096 | BC80: 0.1088701514 | BD80: 0.1401602019 | BE80: 0.1501602019 | BF80: 0.1601602019 | BH80: =+IF($K80="Ongoing",AP80,IF(RIGHT($K80,2)=RIGHT(BH$39,2),SUM($AP80:AP80),0)+IF(RIGHT(BH$39,2)>RIGHT($K80,2),AP80,0)) -> 0.5258010096 | BI80: =+IF($K80="Ongoing",AQ80,IF(RIGHT($K80,2)=RIGHT(BI$39,2),SUM($AP80:AQ80),0)+IF(RIGHT(BI$39,2)>RIGHT($K80,2),AQ80,0)) -> 0.1 | BJ80: =+IF($K80="Ongoing",AR80,IF(RIGHT($K80,2)=RIGHT(BJ$39,2),SUM($AP80:AR80),0)+IF(RIGHT(BJ$39,2)>RIGHT($K80,2),AR80,0)) -> 0.1 | BK80: =+IF($K80="Ongoing",AS80,IF(RIGHT($K80,2)=RIGHT(BK$39,2),SUM($AP80:AS80),0)+IF(RIGHT(BK$39,2)>RIGHT($K80,2),AS80,0)) -> 0.1 | BL80: =+IF($K80="Ongoing",AT80,IF(RIGHT($K80,2)=RIGHT(BL$39,2),SUM($AP80:AT80),0)+IF(RIGHT(BL$39,2)>RIGHT($K80,2),AT80,0)) -> 0.5258010096 | BM80: =+IF($K80="Ongoing",AU80,IF(RIGHT($K80,2)=RIGHT(BM$39,2),SUM($AP80:AU80),0)+IF(RIGHT(BM$39,2)>RIGHT($K80,2),AU80,0)) -> 0.1 | BN80: =+IF($K80="Ongoing",AV80,IF(RIGHT($K80,2)=RIGHT(BN$39,2),SUM($AP80:AV80),0)+IF(RIGHT(BN$39,2)>RIGHT($K80,2),AV80,0)) -> 0.1 | BO80: =+IF($K80="Ongoing",AW80,IF(RIGHT($K80,2)=RIGHT(BO$39,2),SUM($AP80:AW80),0)+IF(RIGHT(BO$39,2)>RIGHT($K80,2),AW80,0)) -> 0.1 | BQ80: =+O80*KeyAssumptionsPriceControl_FO!Z$15 -> 0.5378944328 | BR80: =+P80*KeyAssumptionsPriceControl_FO!AA$15 -> 0.1046529 | BS80: =+Q80*KeyAssumptionsPriceControl_FO!AB$15 -> 0.1070599167 | BT80: =+R80*KeyAssumptionsPriceControl_FO!AC$15 -> 0.1095222948 | BU80: =+S80*KeyAssumptionsPriceControl_FO!AD$15 -> 0.5891143263 | BV80: =+T80*KeyAssumptionsPriceControl_FO!AE$15 -> 0.1146182576 | BW80: =+U80*KeyAssumptionsPriceControl_FO!AF$15 -> 0.1172544776 | BX80: =+V80*KeyAssumptionsPriceControl_FO!AG$15 -> 0.1199513305 | BZ80: 0 | CA80: 0 | CB80: 0 | CC80: 0 | CD80: 0 | CE80: 0 | CF80: 0 | CG80: 0
A81: 29 | B81: 29 | C81: 361 - Linear Program - Channel Remodelling | E81: Irrigation | F81: Renewals | G81: Channels | H81: Other Capital expenditure | J81: Straight line | K81: 2020-21 | L81: 100 | O81: 0.4678657933 | P81: 0.82661412 | Q81: 1.160214 | R81: 0.3 | S81: 0.4678657933 | T81: 0.82661412 | U81: 1.160214 | V81: 0.3 | AP81: 0.4678657933 | AQ81: 0.82661412 | AR81: 1.160214 | AS81: 0.3 | AT81: 0.4678657933 | AU81: 0.82661412 | AV81: 1.160214 | AW81: 0.3 | AY81: 0.002339328967 | AZ81: 0.008811728533 | BA81: 0.01874586913 | BB81: 0.02604693913 | BC81: 0.0298862681 | BD81: 0.03635866767 | BE81: 0.04629280827 | BF81: 0.05359387827 | BH81: =+IF($K81="Ongoing",AP81,IF(RIGHT($K81,2)=RIGHT(BH$39,2),SUM($AP81:AP81),0)+IF(RIGHT(BH$39,2)>RIGHT($K81,2),AP81,0)) -> 0.4678657933 | BI81: =+IF($K81="Ongoing",AQ81,IF(RIGHT($K81,2)=RIGHT(BI$39,2),SUM($AP81:AQ81),0)+IF(RIGHT(BI$39,2)>RIGHT($K81,2),AQ81,0)) -> 0.82661412 | BJ81: =+IF($K81="Ongoing",AR81,IF(RIGHT($K81,2)=RIGHT(BJ$39,2),SUM($AP81:AR81),0)+IF(RIGHT(BJ$39,2)>RIGHT($K81,2),AR81,0)) -> 1.160214 | BK81: =+IF($K81="Ongoing",AS81,IF(RIGHT($K81,2)=RIGHT(BK$39,2),SUM($AP81:AS81),0)+IF(RIGHT(BK$39,2)>RIGHT($K81,2),AS81,0)) -> 0.3 | BL81: =+IF($K81="Ongoing",AT81,IF(RIGHT($K81,2)=RIGHT(BL$39,2),SUM($AP81:AT81),0)+IF(RIGHT(BL$39,2)>RIGHT($K81,2),AT81,0)) -> 0.4678657933 | BM81: =+IF($K81="Ongoing",AU81,IF(RIGHT($K81,2)=RIGHT(BM$39,2),SUM($AP81:AU81),0)+IF(RIGHT(BM$39,2)>RIGHT($K81,2),AU81,0)) -> 0.82661412 | BN81: =+IF($K81="Ongoing",AV81,IF(RIGHT($K81,2)=RIGHT(BN$39,2),SUM($AP81:AV81),0)+IF(RIGHT(BN$39,2)>RIGHT($K81,2),AV81,0)) -> 1.160214 | BO81: =+IF($K81="Ongoing",AW81,IF(RIGHT($K81,2)=RIGHT(BO$39,2),SUM($AP81:AW81),0)+IF(RIGHT(BO$39,2)>RIGHT($K81,2),AW81,0)) -> 0.3 | BQ81: =+O81*KeyAssumptionsPriceControl_FO!Z$15 -> 0.4786267066 | BR81: =+P81*KeyAssumptionsPriceControl_FO!AA$15 -> 0.8650756484 | BS81: =+Q81*KeyAssumptionsPriceControl_FO!AB$15 -> 1.242124142 | BT81: =+R81*KeyAssumptionsPriceControl_FO!AC$15 -> 0.3285668844 | BU81: =+S81*KeyAssumptionsPriceControl_FO!AD$15 -> 0.5242029525 | BV81: =+T81*KeyAssumptionsPriceControl_FO!AE$15 -> 0.9474507017 | BW81: =+U81*KeyAssumptionsPriceControl_FO!AF$15 -> 1.360402864 | BX81: =+V81*KeyAssumptionsPriceControl_FO!AG$15 -> 0.3598539916 | BZ81: 0 | CA81: 0 | CB81: 0 | CC81: 0 | CD81: 0 | CE81: 0 | CF81: 0 | CG81: 0
A82: 30 | B82: 30 | C82: Mech/Elec Gravity | E82: 0 | F82: 0 | G82: 0 | H82: Other Capital expenditure | J82: Straight line | K82: 0 | L82: 0 | O82: 0 | P82: 0 | Q82: 0 | R82: 0 | S82: 0 | T82: 0 | U82: 0 | V82: 0 | AP82: 0 | AQ82: 0 | AR82: 0 | AS82: 0 | AT82: 0 | AU82: 0 | AV82: 0 | AW82: 0 | AY82: 0 | AZ82: 0 | BA82: 0 | BB82: 0 | BC82: 0 | BD82: 0 | BE82: 0 | BF82: 0 | BH82: =+IF($K82="Ongoing",AP82,IF(RIGHT($K82,2)=RIGHT(BH$39,2),SUM($AP82:AP82),0)+IF(RIGHT(BH$39,2)>RIGHT($K82,2),AP82,0)) -> 0 | BI82: =+IF($K82="Ongoing",AQ82,IF(RIGHT($K82,2)=RIGHT(BI$39,2),SUM($AP82:AQ82),0)+IF(RIGHT(BI$39,2)>RIGHT($K82,2),AQ82,0)) -> 0 | BJ82: =+IF($K82="Ongoing",AR82,IF(RIGHT($K82,2)=RIGHT(BJ$39,2),SUM($AP82:AR82),0)+IF(RIGHT(BJ$39,2)>RIGHT($K82,2),AR82,0)) -> 0 | BK82: =+IF($K82="Ongoing",AS82,IF(RIGHT($K82,2)=RIGHT(BK$39,2),SUM($AP82:AS82),0)+IF(RIGHT(BK$39,2)>RIGHT($K82,2),AS82,0)) -> 0 | BL82: =+IF($K82="Ongoing",AT82,IF(RIGHT($K82,2)=RIGHT(BL$39,2),SUM($AP82:AT82),0)+IF(RIGHT(BL$39,2)>RIGHT($K82,2),AT82,0)) -> 0 | BM82: =+IF($K82="Ongoing",AU82,IF(RIGHT($K82,2)=RIGHT(BM$39,2),SUM($AP82:AU82),0)+IF(RIGHT(BM$39,2)>RIGHT($K82,2),AU82,0)) -> 0 | BN82: =+IF($K82="Ongoing",AV82,IF(RIGHT($K82,2)=RIGHT(BN$39,2),SUM($AP82:AV82),0)+IF(RIGHT(BN$39,2)>RIGHT($K82,2),AV82,0)) -> 0 | BO82: =+IF($K82="Ongoing",AW82,IF(RIGHT($K82,2)=RIGHT(BO$39,2),SUM($AP82:AW82),0)+IF(RIGHT(BO$39,2)>RIGHT($K82,2),AW82,0)) -> 0 | BQ82: =+O82*KeyAssumptionsPriceControl_FO!Z$15 -> 0 | BR82: =+P82*KeyAssumptionsPriceControl_FO!AA$15 -> 0 | BS82: =+Q82*KeyAssumptionsPriceControl_FO!AB$15 -> 0 | BT82: =+R82*KeyAssumptionsPriceControl_FO!AC$15 -> 0 | BU82: =+S82*KeyAssumptionsPriceControl_FO!AD$15 -> 0 | BV82: =+T82*KeyAssumptionsPriceControl_FO!AE$15 -> 0 | BW82: =+U82*KeyAssumptionsPriceControl_FO!AF$15 -> 0 | BX82: =+V82*KeyAssumptionsPriceControl_FO!AG$15 -> 0 | BZ82: 0 | CA82: 0 | CB82: 0 | CC82: 0 | CD82: 0 | CE82: 0 | CF82: 0 | CG82: 0
A83: 31 | B83: 31 | C83: 311 - Elec/Mech Program | E83: Irrigation | F83: Renewals | G83: Channels | H83: Other Capital expenditure | J83: Straight line | K83: 2023-24 | L83: 15 | O83: 0 | P83: 0 | Q83: 0 | R83: 0.67625 | S83: 0 | T83: 0 | U83: 0 | V83: 0 | AP83: 0 | AQ83: 0 | AR83: 0 | AS83: 0.67625 | AT83: 0 | AU83: 0 | AV83: 0 | AW83: 0 | AY83: 0 | AZ83: 0 | BA83: 0 | BB83: 0.02254166667 | BC83: 0.04508333333 | BD83: 0.04508333333 | BE83: 0.04508333333 | BF83: 0.04508333333 | BH83: =+IF($K83="Ongoing",AP83,IF(RIGHT($K83,2)=RIGHT(BH$39,2),SUM($AP83:AP83),0)+IF(RIGHT(BH$39,2)>RIGHT($K83,2),AP83,0)) -> 0 | BI83: =+IF($K83="Ongoing",AQ83,IF(RIGHT($K83,2)=RIGHT(BI$39,2),SUM($AP83:AQ83),0)+IF(RIGHT(BI$39,2)>RIGHT($K83,2),AQ83,0)) -> 0 | BJ83: =+IF($K83="Ongoing",AR83,IF(RIGHT($K83,2)=RIGHT(BJ$39,2),SUM($AP83:AR83),0)+IF(RIGHT(BJ$39,2)>RIGHT($K83,2),AR83,0)) -> 0 | BK83: =+IF($K83="Ongoing",AS83,IF(RIGHT($K83,2)=RIGHT(BK$39,2),SUM($AP83:AS83),0)+IF(RIGHT(BK$39,2)>RIGHT($K83,2),AS83,0)) -> 0.67625 | BL83: =+IF($K83="Ongoing",AT83,IF(RIGHT($K83,2)=RIGHT(BL$39,2),SUM($AP83:AT83),0)+IF(RIGHT(BL$39,2)>RIGHT($K83,2),AT83,0)) -> 0 | BM83: =+IF($K83="Ongoing",AU83,IF(RIGHT($K83,2)=RIGHT(BM$39,2),SUM($AP83:AU83),0)+IF(RIGHT(BM$39,2)>RIGHT($K83,2),AU83,0)) -> 0 | BN83: =+IF($K83="Ongoing",AV83,IF(RIGHT($K83,2)=RIGHT(BN$39,2),SUM($AP83:AV83),0)+IF(RIGHT(BN$39,2)>RIGHT($K83,2),AV83,0)) -> 0 | BO83: =+IF($K83="Ongoing",AW83,IF(RIGHT($K83,2)=RIGHT(BO$39,2),SUM($AP83:AW83),0)+IF(RIGHT(BO$39,2)>RIGHT($K83,2),AW83,0)) -> 0 | BQ83: =+O83*KeyAssumptionsPriceControl_FO!Z$15 -> 0 | BR83: =+P83*KeyAssumptionsPriceControl_FO!AA$15 -> 0 | BS83: =+Q83*KeyAssumptionsPriceControl_FO!AB$15 -> 0 | BT83: =+R83*KeyAssumptionsPriceControl_FO!AC$15 -> 0.7406445185 | BU83: =+S83*KeyAssumptionsPriceControl_FO!AD$15 -> 0 | BV83: =+T83*KeyAssumptionsPriceControl_FO!AE$15 -> 0 | BW83: =+U83*KeyAssumptionsPriceControl_FO!AF$15 -> 0 | BX83: =+V83*KeyAssumptionsPriceControl_FO!AG$15 -> 0 | BZ83: 0 | CA83: 0 | CB83: 0 | CC83: 0 | CD83: 0 | CE83: 0 | CF83: 0 | CG83: 0
A84: 32 | B84: 32 | C84: 341 - Elec/Mech Program | E84: Irrigation | F84: Renewals | G84: Channels | H84: Other Capital expenditure | J84: Straight line | K84: 2020-21 | L84: 15 | O84: 0.02745 | P84: 0.0297375 | Q84: 0.02920833333 | R84: 0.01079166667 | S84: 0 | T84: 0 | U84: 0 | V84: 0 | AP84: 0.02745 | AQ84: 0.0297375 | AR84: 0.02920833333 | AS84: 0.01079166667 | AT84: 0 | AU84: 0 | AV84: 0 | AW84: 0 | AY84: 0.000915 | AZ84: 0.00282125 | BA84: 0.004786111111 | BB84: 0.006119444444 | BC84: 0.006479166667 | BD84: 0.006479166667 | BE84: 0.006479166667 | BF84: 0.006479166667 | BH84: =+IF($K84="Ongoing",AP84,IF(RIGHT($K84,2)=RIGHT(BH$39,2),SUM($AP84:AP84),0)+IF(RIGHT(BH$39,2)>RIGHT($K84,2),AP84,0)) -> 0.02745 | BI84: =+IF($K84="Ongoing",AQ84,IF(RIGHT($K84,2)=RIGHT(BI$39,2),SUM($AP84:AQ84),0)+IF(RIGHT(BI$39,2)>RIGHT($K84,2),AQ84,0)) -> 0.0297375 | BJ84: =+IF($K84="Ongoing",AR84,IF(RIGHT($K84,2)=RIGHT(BJ$39,2),SUM($AP84:AR84),0)+IF(RIGHT(BJ$39,2)>RIGHT($K84,2),AR84,0)) -> 0.02920833333 | BK84: =+IF($K84="Ongoing",AS84,IF(RIGHT($K84,2)=RIGHT(BK$39,2),SUM($AP84:AS84),0)+IF(RIGHT(BK$39,2)>RIGHT($K84,2),AS84,0)) -> 0.01079166667 | BL84: =+IF($K84="Ongoing",AT84,IF(RIGHT($K84,2)=RIGHT(BL$39,2),SUM($AP84:AT84),0)+IF(RIGHT(BL$39,2)>RIGHT($K84,2),AT84,0)) -> 0 | BM84: =+IF($K84="Ongoing",AU84,IF(RIGHT($K84,2)=RIGHT(BM$39,2),SUM($AP84:AU84),0)+IF(RIGHT(BM$39,2)>RIGHT($K84,2),AU84,0)) -> 0 | BN84: =+IF($K84="Ongoing",AV84,IF(RIGHT($K84,2)=RIGHT(BN$39,2),SUM($AP84:AV84),0)+IF(RIGHT(BN$39,2)>RIGHT($K84,2),AV84,0)) -> 0 | BO84: =+IF($K84="Ongoing",AW84,IF(RIGHT($K84,2)=RIGHT(BO$39,2),SUM($AP84:AW84),0)+IF(RIGHT(BO$39,2)>RIGHT($K84,2),AW84,0)) -> 0 | BQ84: =+O84*KeyAssumptionsPriceControl_FO!Z$15 -> 0.02808135 | BR84: =+P84*KeyAssumptionsPriceControl_FO!AA$15 -> 0.03112115614 | BS84: =+Q84*KeyAssumptionsPriceControl_FO!AB$15 -> 0.03127041734 | BT84: =+R84*KeyAssumptionsPriceControl_FO!AC$15 -> 0.01181928098 | BU84: =+S84*KeyAssumptionsPriceControl_FO!AD$15 -> 0 | BV84: =+T84*KeyAssumptionsPriceControl_FO!AE$15 -> 0 | BW84: =+U84*KeyAssumptionsPriceControl_FO!AF$15 -> 0 | BX84: =+V84*KeyAssumptionsPriceControl_FO!AG$15 -> 0 | BZ84: 0 | CA84: 0 | CB84: 0 | CC84: 0 | CD84: 0 | CE84: 0 | CF84: 0 | CG84: 0
A85: 33 | B85: 33 | C85: 301 - Elec/Mech Program | E85: Irrigation | F85: Renewals | G85: Channels | H85: Other Capital expenditure | J85: Straight line | K85: 2020-21 | L85: 15 | O85: 0.0429 | P85: 0.078625 | Q85: 0.253625 | R85: 0.2981 | S85: 0 | T85: 0.225 | U85: 0 | V85: 0.225 | AP85: =+O85-X85-AG85 -> 0.0429 | AQ85: =+P85-Y85-AH85 -> 0.078625 | AR85: =+Q85-Z85-AI85 -> 0.253625 | AS85: =+R85-AA85-AJ85 -> 0.2981 | AT85: =+S85-AB85-AK85 -> 0 | AU85: =+T85-AC85-AL85 -> 0.225 | AV85: =+U85-AD85-AM85 -> 0 | AW85: =+V85-AE85-AN85 -> 0.225 | AY85: =IF($L85=0,0, IF($L85<=0.5,BH85, IF($J85="straight line", IF((LEFT(AY$39,4)*1)-INT($L85)<LEFT($AY$39,4)*1,0,((OFFSET(BH85,0,-INT($L85+0.5),1,1))/$L85)*(IF($L85-INT($L85)>0.5,$L85-0.5-INT($L85),IF($L85-INT($L85)<=0.5,$L85-0.5-INT($L85)+1,0)))) +BH85/$L85*0.5, IF($J85="Declining Balance",-$AY$38,0)))) -> 0.00143 | AZ85: =IF($L85=0,0, IF($L85<=0.5,BI85, IF(AND($J85="straight line",$L85<1.51),(BH85-((BH85/$L85)*0.5))+BI85/$L85*0.5, IF($J85="straight line", IF((LEFT(AZ$39,4)*1)-INT($L85)<LEFT($AY$39,4)*1,0,((OFFSET(BI85,0,-INT($L85+0.5),1,1))/$L85)*(IF($L85-INT($L85)>0.5,$L85-0.5-INT($L85),IF($L85-INT($L85)<=0.5,$L85-0.5-INT($L85)+1,0)))) +BI85/$L85*0.5 +SUM(OFFSET(BI85,0,MAX(-INT($L85+(0.5-(10^-12))),-AZ$40)+1,1,MIN(INT($L85+(0.5-(10^-12))),AZ$40)-1))*1/$L85, IF($J85="Declining Balance",-$AY$38,0))))) -> 0.005480833333 | BA85: =IF($L85=0,0, IF($L85<=0.5,BJ85, IF(AND($J85="straight line",$L85<1.51),(BI85-((BI85/$L85)*0.5))+BJ85/$L85*0.5, IF($J85="straight line", IF((LEFT(BA$39,4)*1)-INT($L85)<LEFT($AY$39,4)*1,0,((OFFSET(BJ85,0,-INT($L85+0.5),1,1))/$L85)*(IF($L85-INT($L85)>0.5,$L85-0.5-INT($L85),IF($L85-INT($L85)<=0.5,$L85-0.5-INT($L85)+1,0)))) +BJ85/$L85*0.5 +SUM(OFFSET(BJ85,0,MAX(-INT($L85+(0.5-(10^-12))),-BA$40)+1,1,MIN(INT($L85+(0.5-(10^-12))),BA$40)-1))*1/$L85, IF($J85="Declining Balance",-$AY$38,0))))) -> 0.01655583333 | BB85: =IF($L85=0,0, IF($L85<=0.5,BK85, IF(AND($J85="straight line",$L85<1.51),(BJ85-((BJ85/$L85)*0.5))+BK85/$L85*0.5, IF($J85="straight line", IF((LEFT(BB$39,4)*1)-INT($L85)<LEFT($AY$39,4)*1,0,((OFFSET(BK85,0,-INT($L85+0.5),1,1))/$L85)*(IF($L85-INT($L85)>0.5,$L85-0.5-INT($L85),IF($L85-INT($L85)<=0.5,$L85-0.5-INT($L85)+1,0)))) +BK85/$L85*0.5 +SUM(OFFSET(BK85,0,MAX(-INT($L85+(0.5-(10^-12))),-BB$40)+1,1,MIN(INT($L85+(0.5-(10^-12))),BB$40)-1))*1/$L85, IF($J85="Declining Balance",-$AY$38,0))))) -> 0.03494666667 | BC85: =IF($L85=0,0, IF($L85<=0.5,BL85, IF(AND($J85="straight line",$L85<1.51),(BK85-((BK85/$L85)*0.5))+BL85/$L85*0.5, IF($J85="straight line", IF((LEFT(BC$39,4)*1)-INT($L85)<LEFT($AY$39,4)*1,0,((OFFSET(BL85,0,-INT($L85+0.5),1,1))/$L85)*(IF($L85-INT($L85)>0.5,$L85-0.5-INT($L85),IF($L85-INT($L85)<=0.5,$L85-0.5-INT($L85)+1,0)))) +BL85/$L85*0.5 +SUM(OFFSET(BL85,0,MAX(-INT($L85+(0.5-(10^-12))),-BC$40)+1,1,MIN(INT($L85+(0.5-(10^-12))),BC$40)-1))*1/$L85, IF($J85="Declining Balance",-$AY$38,0))))) -> 0.04488333333 | BD85: =IF($L85=0,0, IF($L85<=0.5,BM85, IF(AND($J85="straight line",$L85<1.51),(BL85-((BL85/$L85)*0.5))+BM85/$L85*0.5, IF($J85="straight line", IF((LEFT(BD$39,4)*1)-INT($L85)<LEFT($AY$39,4)*1,0,((OFFSET(BM85,0,-INT($L85+0.5),1,1))/$L85)*(IF($L85-INT($L85)>0.5,$L85-0.5-INT($L85),IF($L85-INT($L85)<=0.5,$L85-0.5-INT($L85)+1,0)))) +BM85/$L85*0.5 +SUM(OFFSET(BM85,0,MAX(-INT($L85+(0.5-(10^-12))),-BD$40)+1,1,MIN(INT($L85+(0.5-(10^-12))),BD$40)-1))*1/$L85, IF($J85="Declining Balance",-$AY$38,0))))) -> 0.05238333333 | BE85: =IF($L85=0,0, IF($L85<=0.5,BN85, IF(AND($J85="straight line",$L85<1.51),(BM85-((BM85/$L85)*0.5))+BN85/$L85*0.5, IF($J85="straight line", IF((LEFT(BE$39,4)*1)-INT($L85)<LEFT($AY$39,4)*1,0,((OFFSET(BN85,0,-INT($L85+0.5),1,1))/$L85)*(IF($L85-INT($L85)>0.5,$L85-0.5-INT($L85),IF($L85-INT($L85)<=0.5,$L85-0.5-INT($L85)+1,0)))) +BN85/$L85*0.5 +SUM(OFFSET(BN85,0,MAX(-INT($L85+(0.5-(10^-12))),-BE$40)+1,1,MIN(INT($L85+(0.5-(10^-12))),BE$40)-1))*1/$L85, IF($J85="Declining Balance",-$AY$38,0))))) -> 0.05988333333 | BF85: =IF($L85=0,0, IF($L85<=0.5,BO85, IF(AND($J85="straight line",$L85<1.51),(BN85-((BN85/$L85)*0.5))+BO85/$L85*0.5, IF($J85="straight line", IF((LEFT(BF$39,4)*1)-INT($L85)<LEFT($AY$39,4)*1,0,((OFFSET(BO85,0,-INT($L85+0.5),1,1))/$L85)*(IF($L85-INT($L85)>0.5,$L85-0.5-INT($L85),IF($L85-INT($L85)<=0.5,$L85-0.5-INT($L85)+1,0)))) +BO85/$L85*0.5 +SUM(OFFSET(BO85,0,MAX(-INT($L85+(0.5-(10^-12))),-BF$40)+1,1,MIN(INT($L85+(0.5-(10^-12))),BF$40)-1))*1/$L85, IF($J85="Declining Balance",-$AY$38,0))))) -> 0.06738333333 | BH85: =+IF($K85="Ongoing",AP85,IF(RIGHT($K85,2)=RIGHT(BH$39,2),SUM($AP85:AP85),0)+IF(RIGHT(BH$39,2)>RIGHT($K85,2),AP85,0)) -> 0.0429 | BI85: =+IF($K85="Ongoing",AQ85,IF(RIGHT($K85,2)=RIGHT(BI$39,2),SUM($AP85:AQ85),0)+IF(RIGHT(BI$39,2)>RIGHT($K85,2),AQ85,0)) -> 0.078625 | BJ85: =+IF($K85="Ongoing",AR85,IF(RIGHT($K85,2)=RIGHT(BJ$39,2),SUM($AP85:AR85),0)+IF(RIGHT(BJ$39,2)>RIGHT($K85,2),AR85,0)) -> 0.253625 | BK85: =+IF($K85="Ongoing",AS85,IF(RIGHT($K85,2)=RIGHT(BK$39,2),SUM($AP85:AS85),0)+IF(RIGHT(BK$39,2)>RIGHT($K85,2),AS85,0)) -> 0.2981 | BL85: =+IF($K85="Ongoing",AT85,IF(RIGHT($K85,2)=RIGHT(BL$39,2),SUM($AP85:AT85),0)+IF(RIGHT(BL$39,2)>RIGHT($K85,2),AT85,0)) -> 0 | BM85: =+IF($K85="Ongoing",AU85,IF(RIGHT($K85,2)=RIGHT(BM$39,2),SUM($AP85:AU85),0)+IF(RIGHT(BM$39,2)>RIGHT($K85,2),AU85,0)) -> 0.225 | BN85: =+IF($K85="Ongoing",AV85,IF(RIGHT($K85,2)=RIGHT(BN$39,2),SUM($AP85:AV85),0)+IF(RIGHT(BN$39,2)>RIGHT($K85,2),AV85,0)) -> 0 | BO85: =+IF($K85="Ongoing",AW85,IF(RIGHT($K85,2)=RIGHT(BO$39,2),SUM($AP85:AW85),0)+IF(RIGHT(BO$39,2)>RIGHT($K85,2),AW85,0)) -> 0.225 | BQ85: =+O85*KeyAssumptionsPriceControl_FO!Z$15 -> 0.0438867 | BR85: =+P85*KeyAssumptionsPriceControl_FO!AA$15 -> 0.08228334262 | BS85: =+Q85*KeyAssumptionsPriceControl_FO!AB$15 -> 0.2715307137 | BT85: =+R85*KeyAssumptionsPriceControl_FO!AC$15 -> 0.3264859608 | BU85: =+S85*KeyAssumptionsPriceControl_FO!AD$15 -> 0 | BV85: =+T85*KeyAssumptionsPriceControl_FO!AE$15 -> 0.2578910797 | BW85: =+U85*KeyAssumptionsPriceControl_FO!AF$15 -> 0 | BX85: =+V85*KeyAssumptionsPriceControl_FO!AG$15 -> 0.2698904937 | BZ85: =IF($M85=0,0, IF($M85<=0.5,BQ85, IF($J85="straight line", IF((LEFT(BZ$39,4)*1)-INT($M85)<LEFT($BZ$39,4)*1,0,((OFFSET(BQ85,0,-INT($M85+0.5),1,1))/$M85)*(IF($M85-INT($M85)>0.5,$M85-0.5-INT($M85),IF($M85-INT($M85)<=0.5,$M85-0.5-INT($M85)+1,0)))) +BQ85/$M85*0.5, IF($J85="Declining Balance",-$BZ$38,0)))) -> 0 | CA85: =IF($M85=0,0, IF($M85<=0.5,BR85, IF(AND($J85="straight line",$M85<1.51),(BQ85-((BQ85/$M85)*0.5))+BR85/$M85*0.5, IF($J85="straight line", IF((LEFT(CA$39,4)*1)-INT($M85)<LEFT($BZ$39,4)*1,0,((OFFSET(BR85,0,-INT($M85+0.5),1,1))/$M85)*(IF($M85-INT($M85)>0.5,$M85-0.5-INT($M85),IF($M85-INT($M85)<=0.5,$M85-0.5-INT($M85)+1,0)))) +BR85/$M85*0.5 +SUM(OFFSET(BR85,0,MAX(-INT($M85+(0.5-(10^-12))),-CA$40)+1,1,MIN(INT($M85+(0.5-(10^-12))),CA$40)-1))*1/$M85, IF($J85="Declining Balance",-$BZ$38,0))))) -> 0 | CB85: =IF($M85=0,0, IF($M85<=0.5,BS85, IF(AND($J85="straight line",$M85<1.51),(BR85-((BR85/$M85)*0.5))+BS85/$M85*0.5, IF($J85="straight line", IF((LEFT(CB$39,4)*1)-INT($M85)<LEFT($BZ$39,4)*1,0,((OFFSET(BS85,0,-INT($M85+0.5),1,1))/$M85)*(IF($M85-INT($M85)>0.5,$M85-0.5-INT($M85),IF($M85-INT($M85)<=0.5,$M85-0.5-INT($M85)+1,0)))) +BS85/$M85*0.5 +SUM(OFFSET(BS85,0,MAX(-INT($M85+(0.5-(10^-12))),-CB$40)+1,1,MIN(INT($M85+(0.5-(10^-12))),CB$40)-1))*1/$M85, IF($J85="Declining Balance",-$BZ$38,0))))) -> 0 | CC85: =IF($M85=0,0, IF($M85<=0.5,BT85, IF(AND($J85="straight line",$M85<1.51),(BS85-((BS85/$M85)*0.5))+BT85/$M85*0.5, IF($J85="straight line", IF((LEFT(CC$39,4)*1)-INT($M85)<LEFT($BZ$39,4)*1,0,((OFFSET(BT85,0,-INT($M85+0.5),1,1))/$M85)*(IF($M85-INT($M85)>0.5,$M85-0.5-INT($M85),IF($M85-INT($M85)<=0.5,$M85-0.5-INT($M85)+1,0)))) +BT85/$M85*0.5 +SUM(OFFSET(BT85,0,MAX(-INT($M85+(0.5-(10^-12))),-CC$40)+1,1,MIN(INT($M85+(0.5-(10^-12))),CC$40)-1))*1/$M85, IF($J85="Declining Balance",-$BZ$38,0))))) -> 0 | CD85: =IF($M85=0,0, IF($M85<=0.5,BU85, IF(AND($J85="straight line",$M85<1.51),(BT85-((BT85/$M85)*0.5))+BU85/$M85*0.5, IF($J85="straight line", IF((LEFT(CD$39,4)*1)-INT($M85)<LEFT($BZ$39,4)*1,0,((OFFSET(BU85,0,-INT($M85+0.5),1,1))/$M85)*(IF($M85-INT($M85)>0.5,$M85-0.5-INT($M85),IF($M85-INT($M85)<=0.5,$M85-0.5-INT($M85)+1,0)))) +BU85/$M85*0.5 +SUM(OFFSET(BU85,0,MAX(-INT($M85+(0.5-(10^-12))),-CD$40)+1,1,MIN(INT($M85+(0.5-(10^-12))),CD$40)-1))*1/$M85, IF($J85="Declining Balance",-$BZ$38,0))))) -> 0 | CE85: =IF($M85=0,0, IF($M85<=0.5,BV85, IF(AND($J85="straight line",$M85<1.51),(BU85-((BU85/$M85)*0.5))+BV85/$M85*0.5, IF($J85="straight line", IF((LEFT(CE$39,4)*1)-INT($M85)<LEFT($BZ$39,4)*1,0,((OFFSET(BV85,0,-INT($M85+0.5),1,1))/$M85)*(IF($M85-INT($M85)>0.5,$M85-0.5-INT($M85),IF($M85-INT($M85)<=0.5,$M85-0.5-INT($M85)+1,0)))) +BV85/$M85*0.5 +SUM(OFFSET(BV85,0,MAX(-INT($M85+(0.5-(10^-12))),-CE$40)+1,1,MIN(INT($M85+(0.5-(10^-12))),CE$40)-1))*1/$M85, IF($J85="Declining Balance",-$BZ$38,0))))) -> 0 | CF85: =IF($M85=0,0, IF($M85<=0.5,BW85, IF(AND($J85="straight line",$M85<1.51),(BV85-((BV85/$M85)*0.5))+BW85/$M85*0.5, IF($J85="straight line", IF((LEFT(CF$39,4)*1)-INT($M85)<LEFT($BZ$39,4)*1,0,((OFFSET(BW85,0,-INT($M85+0.5),1,1))/$M85)*(IF($M85-INT($M85)>0.5,$M85-0.5-INT($M85),IF($M85-INT($M85)<=0.5,$M85-0.5-INT($M85)+1,0)))) +BW85/$M85*0.5 +SUM(OFFSET(BW85,0,MAX(-INT($M85+(0.5-(10^-12))),-CF$40)+1,1,MIN(INT($M85+(0.5-(10^-12))),CF$40)-1))*1/$M85, IF($J85="Declining Balance",-$BZ$38,0))))) -> 0 | CG85: =IF($M85=0,0, IF($M85<=0.5,BX85, IF(AND($J85="straight line",$M85<1.51),(BW85-((BW85/$M85)*0.5))+BX85/$M85*0.5, IF($J85="straight line", IF((LEFT(CG$39,4)*1)-INT($M85)<LEFT($BZ$39,4)*1,0,((OFFSET(BX85,0,-INT($M85+0.5),1,1))/$M85)*(IF($M85-INT($M85)>0.5,$M85-0.5-INT($M85),IF($M85-INT($M85)<=0.5,$M85-0.5-INT($M85)+1,0)))) +BX85/$M85*0.5 +SUM(OFFSET(BX85,0,MAX(-INT($M85+(0.5-(10^-12))),-CG$40)+1,1,MIN(INT($M85+(0.5-(10^-12))),CG$40)-1))*1/$M85, IF($J85="Declining Balance",-$BZ$38,0))))) -> 0
A86: 34 | B86: 34 | C86: 321 - Elec/Mech Program | E86: Irrigation | F86: Renewals | G86: Channels | H86: Other Capital expenditure | J86: Straight line | K86: 2020-21 | L86: 15 | O86: 0.00875 | P86: 0 | Q86: 0.0289 | R86: 0 | S86: 0 | T86: 0 | U86: 0 | V86: 0 | AP86: 0.00875 | AQ86: 0 | AR86: 0.0289 | AS86: 0 | AT86: 0 | AU86: 0 | AV86: 0 | AW86: 0 | AY86: 0.0002916666667 | AZ86: 0.0005833333333 | BA86: 0.001546666667 | BB86: 0.00251 | BC86: 0.00251 | BD86: 0.00251 | BE86: 0.00251 | BF86: 0.00251 | BH86: =+IF($K86="Ongoing",AP86,IF(RIGHT($K86,2)=RIGHT(BH$39,2),SUM($AP86:AP86),0)+IF(RIGHT(BH$39,2)>RIGHT($K86,2),AP86,0)) -> 0.00875 | BI86: =+IF($K86="Ongoing",AQ86,IF(RIGHT($K86,2)=RIGHT(BI$39,2),SUM($AP86:AQ86),0)+IF(RIGHT(BI$39,2)>RIGHT($K86,2),AQ86,0)) -> 0 | BJ86: =+IF($K86="Ongoing",AR86,IF(RIGHT($K86,2)=RIGHT(BJ$39,2),SUM($AP86:AR86),0)+IF(RIGHT(BJ$39,2)>RIGHT($K86,2),AR86,0)) -> 0.0289 | BK86: =+IF($K86="Ongoing",AS86,IF(RIGHT($K86,2)=RIGHT(BK$39,2),SUM($AP86:AS86),0)+IF(RIGHT(BK$39,2)>RIGHT($K86,2),AS86,0)) -> 0 | BL86: =+IF($K86="Ongoing",AT86,IF(RIGHT($K86,2)=RIGHT(BL$39,2),SUM($AP86:AT86),0)+IF(RIGHT(BL$39,2)>RIGHT($K86,2),AT86,0)) -> 0 | BM86: =+IF($K86="Ongoing",AU86,IF(RIGHT($K86,2)=RIGHT(BM$39,2),SUM($AP86:AU86),0)+IF(RIGHT(BM$39,2)>RIGHT($K86,2),AU86,0)) -> 0 | BN86: =+IF($K86="Ongoing",AV86,IF(RIGHT($K86,2)=RIGHT(BN$39,2),SUM($AP86:AV86),0)+IF(RIGHT(BN$39,2)>RIGHT($K86,2),AV86,0)) -> 0 | BO86: =+IF($K86="Ongoing",AW86,IF(RIGHT($K86,2)=RIGHT(BO$39,2),SUM($AP86:AW86),0)+IF(RIGHT(BO$39,2)>RIGHT($K86,2),AW86,0)) -> 0 | BQ86: =+O86*KeyAssumptionsPriceControl_FO!Z$15 -> 0.00895125 | BR86: =+P86*KeyAssumptionsPriceControl_FO!AA$15 -> 0 | BS86: =+Q86*KeyAssumptionsPriceControl_FO!AB$15 -> 0.03094031593 | BT86: =+R86*KeyAssumptionsPriceControl_FO!AC$15 -> 0 | BU86: =+S86*KeyAssumptionsPriceControl_FO!AD$15 -> 0 | BV86: =+T86*KeyAssumptionsPriceControl_FO!AE$15 -> 0 | BW86: =+U86*KeyAssumptionsPriceControl_FO!AF$15 -> 0 | BX86: =+V86*KeyAssumptionsPriceControl_FO!AG$15 -> 0 | BZ86: 0 | CA86: 0 | CB86: 0 | CC86: 0 | CD86: 0 | CE86: 0 | CF86: 0 | CG86: 0
A87: 35 | B87: 35 | C87: 351 - Elec/Mech Program | E87: Irrigation | F87: Renewals | G87: Channels | H87: Other Capital expenditure | J87: Straight line | K87: 2020-21 | L87: 15 | O87: 0.013375 | P87: 0.025875 | Q87: 0.0672 | R87: 0.029625 | S87: 0 | T87: 0.05175 | U87: 0 | V87: 0 | AP87: 0.013375 | AQ87: 0.025875 | AR87: 0.0672 | AS87: 0.029625 | AT87: 0 | AU87: 0.05175 | AV87: 0 | AW87: 0 | AY87: 0.0004458333333 | AZ87: 0.001754166667 | BA87: 0.004856666667 | BB87: 0.008084166667 | BC87: 0.009071666667 | BD87: 0.01079666667 | BE87: 0.01252166667 | BF87: 0.01252166667 | BH87: =+IF($K87="Ongoing",AP87,IF(RIGHT($K87,2)=RIGHT(BH$39,2),SUM($AP87:AP87),0)+IF(RIGHT(BH$39,2)>RIGHT($K87,2),AP87,0)) -> 0.013375 | BI87: =+IF($K87="Ongoing",AQ87,IF(RIGHT($K87,2)=RIGHT(BI$39,2),SUM($AP87:AQ87),0)+IF(RIGHT(BI$39,2)>RIGHT($K87,2),AQ87,0)) -> 0.025875 | BJ87: =+IF($K87="Ongoing",AR87,IF(RIGHT($K87,2)=RIGHT(BJ$39,2),SUM($AP87:AR87),0)+IF(RIGHT(BJ$39,2)>RIGHT($K87,2),AR87,0)) -> 0.0672 | BK87: =+IF($K87="Ongoing",AS87,IF(RIGHT($K87,2)=RIGHT(BK$39,2),SUM($AP87:AS87),0)+IF(RIGHT(BK$39,2)>RIGHT($K87,2),AS87,0)) -> 0.029625 | BL87: =+IF($K87="Ongoing",AT87,IF(RIGHT($K87,2)=RIGHT(BL$39,2),SUM($AP87:AT87),0)+IF(RIGHT(BL$39,2)>RIGHT($K87,2),AT87,0)) -> 0 | BM87: =+IF($K87="Ongoing",AU87,IF(RIGHT($K87,2)=RIGHT(BM$39,2),SUM($AP87:AU87),0)+IF(RIGHT(BM$39,2)>RIGHT($K87,2),AU87,0)) -> 0.05175 | BN87: =+IF($K87="Ongoing",AV87,IF(RIGHT($K87,2)=RIGHT(BN$39,2),SUM($AP87:AV87),0)+IF(RIGHT(BN$39,2)>RIGHT($K87,2),AV87,0)) -> 0 | BO87: =+IF($K87="Ongoing",AW87,IF(RIGHT($K87,2)=RIGHT(BO$39,2),SUM($AP87:AW87),0)+IF(RIGHT(BO$39,2)>RIGHT($K87,2),AW87,0)) -> 0 | BQ87: =+O87*KeyAssumptionsPriceControl_FO!Z$15 -> 0.013682625 | BR87: =+P87*KeyAssumptionsPriceControl_FO!AA$15 -> 0.02707893787 | BS87: =+Q87*KeyAssumptionsPriceControl_FO!AB$15 -> 0.07194426402 | BT87: =+R87*KeyAssumptionsPriceControl_FO!AC$15 -> 0.03244597983 | BU87: =+S87*KeyAssumptionsPriceControl_FO!AD$15 -> 0 | BV87: =+T87*KeyAssumptionsPriceControl_FO!AE$15 -> 0.05931494833 | BW87: =+U87*KeyAssumptionsPriceControl_FO!AF$15 -> 0 | BX87: =+V87*KeyAssumptionsPriceControl_FO!AG$15 -> 0 | BZ87: 0 | CA87: 0 | CB87: 0 | CC87: 0 | CD87: 0 | CE87: 0 | CF87: 0 | CG87: 0
A88: 36 | B88: 36 | C88: 361 - Elec/Mech Program | E88: Irrigation | F88: Renewals | G88: Channels | H88: Other Capital expenditure | J88: Straight line | K88: 2020-21 | L88: 15 | O88: 0.11875 | P88: 0.1389 | Q88: 0.11 | R88: 0.111 | S88: 0.332 | T88: 0.96827 | U88: 0 | V88: 0 | AP88: 0.11875 | AQ88: 0.1389 | AR88: 0.11 | AS88: 0.111 | AT88: 0.332 | AU88: 0.96827 | AV88: 0 | AW88: 0 | AY88: 0.003958333333 | AZ88: 0.01254666667 | BA88: 0.02084333333 | BB88: 0.02821 | BC88: 0.04297666667 | BD88: 0.086319 | BE88: 0.1185946667 | BF88: 0.1185946667 | BH88: =+IF($K88="Ongoing",AP88,IF(RIGHT($K88,2)=RIGHT(BH$39,2),SUM($AP88:AP88),0)+IF(RIGHT(BH$39,2)>RIGHT($K88,2),AP88,0)) -> 0.11875 | BI88: =+IF($K88="Ongoing",AQ88,IF(RIGHT($K88,2)=RIGHT(BI$39,2),SUM($AP88:AQ88),0)+IF(RIGHT(BI$39,2)>RIGHT($K88,2),AQ88,0)) -> 0.1389 | BJ88: =+IF($K88="Ongoing",AR88,IF(RIGHT($K88,2)=RIGHT(BJ$39,2),SUM($AP88:AR88),0)+IF(RIGHT(BJ$39,2)>RIGHT($K88,2),AR88,0)) -> 0.11 | BK88: =+IF($K88="Ongoing",AS88,IF(RIGHT($K88,2)=RIGHT(BK$39,2),SUM($AP88:AS88),0)+IF(RIGHT(BK$39,2)>RIGHT($K88,2),AS88,0)) -> 0.111 | BL88: =+IF($K88="Ongoing",AT88,IF(RIGHT($K88,2)=RIGHT(BL$39,2),SUM($AP88:AT88),0)+IF(RIGHT(BL$39,2)>RIGHT($K88,2),AT88,0)) -> 0.332 | BM88: =+IF($K88="Ongoing",AU88,IF(RIGHT($K88,2)=RIGHT(BM$39,2),SUM($AP88:AU88),0)+IF(RIGHT(BM$39,2)>RIGHT($K88,2),AU88,0)) -> 0.96827 | BN88: =+IF($K88="Ongoing",AV88,IF(RIGHT($K88,2)=RIGHT(BN$39,2),SUM($AP88:AV88),0)+IF(RIGHT(BN$39,2)>RIGHT($K88,2),AV88,0)) -> 0 | BO88: =+IF($K88="Ongoing",AW88,IF(RIGHT($K88,2)=RIGHT(BO$39,2),SUM($AP88:AW88),0)+IF(RIGHT(BO$39,2)>RIGHT($K88,2),AW88,0)) -> 0 | BQ88: =+O88*KeyAssumptionsPriceControl_FO!Z$15 -> 0.12148125 | BR88: =+P88*KeyAssumptionsPriceControl_FO!AA$15 -> 0.1453628781 | BS88: =+Q88*KeyAssumptionsPriceControl_FO!AB$15 -> 0.1177659084 | BT88: =+R88*KeyAssumptionsPriceControl_FO!AC$15 -> 0.1215697472 | BU88: =+S88*KeyAssumptionsPriceControl_FO!AD$15 -> 0.3719771411 | BV88: =+T88*KeyAssumptionsPriceControl_FO!AE$15 -> 1.109814203 | BW88: =+U88*KeyAssumptionsPriceControl_FO!AF$15 -> 0 | BX88: =+V88*KeyAssumptionsPriceControl_FO!AG$15 -> 0 | BZ88: 0 | CA88: 0 | CB88: 0 | CC88: 0 | CD88: 0 | CE88: 0 | CF88: 0 | CG88: 0
A89: 37 | B89: 37 | C89: Meters Gravity | E89: 0 | F89: 0 | G89: 0 | H89: Other Capital expenditure | J89: Straight line | K89: 0 | L89: 0 | O89: 0 | P89: 0 | Q89: 0 | R89: 0 | S89: 0 | T89: 0 | U89: 0 | V89: 0 | AP89: 0 | AQ89: 0 | AR89: 0 | AS89: 0 | AT89: 0 | AU89: 0 | AV89: 0 | AW89: 0 | AY89: 0 | AZ89: 0 | BA89: 0 | BB89: 0 | BC89: 0 | BD89: 0 | BE89: 0 | BF89: 0 | BH89: =+IF($K89="Ongoing",AP89,IF(RIGHT($K89,2)=RIGHT(BH$39,2),SUM($AP89:AP89),0)+IF(RIGHT(BH$39,2)>RIGHT($K89,2),AP89,0)) -> 0 | BI89: =+IF($K89="Ongoing",AQ89,IF(RIGHT($K89,2)=RIGHT(BI$39,2),SUM($AP89:AQ89),0)+IF(RIGHT(BI$39,2)>RIGHT($K89,2),AQ89,0)) -> 0 | BJ89: =+IF($K89="Ongoing",AR89,IF(RIGHT($K89,2)=RIGHT(BJ$39,2),SUM($AP89:AR89),0)+IF(RIGHT(BJ$39,2)>RIGHT($K89,2),AR89,0)) -> 0 | BK89: =+IF($K89="Ongoing",AS89,IF(RIGHT($K89,2)=RIGHT(BK$39,2),SUM($AP89:AS89),0)+IF(RIGHT(BK$39,2)>RIGHT($K89,2),AS89,0)) -> 0 | BL89: =+IF($K89="Ongoing",AT89,IF(RIGHT($K89,2)=RIGHT(BL$39,2),SUM($AP89:AT89),0)+IF(RIGHT(BL$39,2)>RIGHT($K89,2),AT89,0)) -> 0 | BM89: =+IF($K89="Ongoing",AU89,IF(RIGHT($K89,2)=RIGHT(BM$39,2),SUM($AP89:AU89),0)+IF(RIGHT(BM$39,2)>RIGHT($K89,2),AU89,0)) -> 0 | BN89: =+IF($K89="Ongoing",AV89,IF(RIGHT($K89,2)=RIGHT(BN$39,2),SUM($AP89:AV89),0)+IF(RIGHT(BN$39,2)>RIGHT($K89,2),AV89,0)) -> 0 | BO89: =+IF($K89="Ongoing",AW89,IF(RIGHT($K89,2)=RIGHT(BO$39,2),SUM($AP89:AW89),0)+IF(RIGHT(BO$39,2)>RIGHT($K89,2),AW89,0)) -> 0 | BQ89: =+O89*KeyAssumptionsPriceControl_FO!Z$15 -> 0 | BR89: =+P89*KeyAssumptionsPriceControl_FO!AA$15 -> 0 | BS89: =+Q89*KeyAssumptionsPriceControl_FO!AB$15 -> 0 | BT89: =+R89*KeyAssumptionsPriceControl_FO!AC$15 -> 0 | BU89: =+S89*KeyAssumptionsPriceControl_FO!AD$15 -> 0 | BV89: =+T89*KeyAssumptionsPriceControl_FO!AE$15 -> 0 | BW89: =+U89*KeyAssumptionsPriceControl_FO!AF$15 -> 0 | BX89: =+V89*KeyAssumptionsPriceControl_FO!AG$15 -> 0 | BZ89: 0 | CA89: 0 | CB89: 0 | CC89: 0 | CD89: 0 | CE89: 0 | CF89: 0 | CG89: 0
A90: 38 | B90: 38 | C90: 301 - Meter Program | E90: Irrigation | F90: Renewals | G90: Channels | H90: Other Capital expenditure | J90: Straight line | K90: 2020-21 | L90: 15 | O90: 0.15 | P90: 0.15 | Q90: 0.15 | R90: 0.15 | S90: 0.135 | T90: 0.135 | U90: 0.135 | V90: 0.135 | AP90: 0.15 | AQ90: 0.15 | AR90: 0.15 | AS90: 0.15 | AT90: 0.135 | AU90: 0.135 | AV90: 0.135 | AW90: 0.135 | AY90: 0.005 | AZ90: 0.015 | BA90: 0.025 | BB90: 0.035 | BC90: 0.0445 | BD90: 0.0535 | BE90: 0.0625 | BF90: 0.0715 | BH90: =+IF($K90="Ongoing",AP90,IF(RIGHT($K90,2)=RIGHT(BH$39,2),SUM($AP90:AP90),0)+IF(RIGHT(BH$39,2)>RIGHT($K90,2),AP90,0)) -> 0.15 | BI90: =+IF($K90="Ongoing",AQ90,IF(RIGHT($K90,2)=RIGHT(BI$39,2),SUM($AP90:AQ90),0)+IF(RIGHT(BI$39,2)>RIGHT($K90,2),AQ90,0)) -> 0.15 | BJ90: =+IF($K90="Ongoing",AR90,IF(RIGHT($K90,2)=RIGHT(BJ$39,2),SUM($AP90:AR90),0)+IF(RIGHT(BJ$39,2)>RIGHT($K90,2),AR90,0)) -> 0.15 | BK90: =+IF($K90="Ongoing",AS90,IF(RIGHT($K90,2)=RIGHT(BK$39,2),SUM($AP90:AS90),0)+IF(RIGHT(BK$39,2)>RIGHT($K90,2),AS90,0)) -> 0.15 | BL90: =+IF($K90="Ongoing",AT90,IF(RIGHT($K90,2)=RIGHT(BL$39,2),SUM($AP90:AT90),0)+IF(RIGHT(BL$39,2)>RIGHT($K90,2),AT90,0)) -> 0.135 | BM90: =+IF($K90="Ongoing",AU90,IF(RIGHT($K90,2)=RIGHT(BM$39,2),SUM($AP90:AU90),0)+IF(RIGHT(BM$39,2)>RIGHT($K90,2),AU90,0)) -> 0.135 | BN90: =+IF($K90="Ongoing",AV90,IF(RIGHT($K90,2)=RIGHT(BN$39,2),SUM($AP90:AV90),0)+IF(RIGHT(BN$39,2)>RIGHT($K90,2),AV90,0)) -> 0.135 | BO90: =+IF($K90="Ongoing",AW90,IF(RIGHT($K90,2)=RIGHT(BO$39,2),SUM($AP90:AW90),0)+IF(RIGHT(BO$39,2)>RIGHT($K90,2),AW90,0)) -> 0.135 | BQ90: =+O90*KeyAssumptionsPriceControl_FO!Z$15 -> 0.15345 | BR90: =+P90*KeyAssumptionsPriceControl_FO!AA$15 -> 0.15697935 | BS90: =+Q90*KeyAssumptionsPriceControl_FO!AB$15 -> 0.160589875 | BT90: =+R90*KeyAssumptionsPriceControl_FO!AC$15 -> 0.1642834422 | BU90: =+S90*KeyAssumptionsPriceControl_FO!AD$15 -> 0.1512557652 | BV90: =+T90*KeyAssumptionsPriceControl_FO!AE$15 -> 0.1547346478 | BW90: =+U90*KeyAssumptionsPriceControl_FO!AF$15 -> 0.1582935447 | BX90: =+V90*KeyAssumptionsPriceControl_FO!AG$15 -> 0.1619342962 | BZ90: 0 | CA90: 0 | CB90: 0 | CC90: 0 | CD90: 0 | CE90: 0 | CF90: 0 | CG90: 0
A91: 39 | B91: 39 | C91: 311 - Meter Program | E91: Irrigation | F91: Renewals | G91: Channels | H91: Other Capital expenditure | J91: Straight line | K91: 2020-21 | L91: 15 | O91: 0.15 | P91: 0.15 | Q91: 0.24 | R91: 0.24 | S91: 0.135 | T91: 0.135 | U91: 0.216 | V91: 0.216 | AP91: 0.15 | AQ91: 0.15 | AR91: 0.24 | AS91: 0.24 | AT91: 0.135 | AU91: 0.135 | AV91: 0.216 | AW91: 0.216 | AY91: 0.005 | AZ91: 0.015 | BA91: 0.028 | BB91: 0.044 | BC91: 0.0565 | BD91: 0.0655 | BE91: 0.0772 | BF91: 0.0916 | BH91: =+IF($K91="Ongoing",AP91,IF(RIGHT($K91,2)=RIGHT(BH$39,2),SUM($AP91:AP91),0)+IF(RIGHT(BH$39,2)>RIGHT($K91,2),AP91,0)) -> 0.15 | BI91: =+IF($K91="Ongoing",AQ91,IF(RIGHT($K91,2)=RIGHT(BI$39,2),SUM($AP91:AQ91),0)+IF(RIGHT(BI$39,2)>RIGHT($K91,2),AQ91,0)) -> 0.15 | BJ91: =+IF($K91="Ongoing",AR91,IF(RIGHT($K91,2)=RIGHT(BJ$39,2),SUM($AP91:AR91),0)+IF(RIGHT(BJ$39,2)>RIGHT($K91,2),AR91,0)) -> 0.24 | BK91: =+IF($K91="Ongoing",AS91,IF(RIGHT($K91,2)=RIGHT(BK$39,2),SUM($AP91:AS91),0)+IF(RIGHT(BK$39,2)>RIGHT($K91,2),AS91,0)) -> 0.24 | BL91: =+IF($K91="Ongoing",AT91,IF(RIGHT($K91,2)=RIGHT(BL$39,2),SUM($AP91:AT91),0)+IF(RIGHT(BL$39,2)>RIGHT($K91,2),AT91,0)) -> 0.135 | BM91: =+IF($K91="Ongoing",AU91,IF(RIGHT($K91,2)=RIGHT(BM$39,2),SUM($AP91:AU91),0)+IF(RIGHT(BM$39,2)>RIGHT($K91,2),AU91,0)) -> 0.135 | BN91: =+IF($K91="Ongoing",AV91,IF(RIGHT($K91,2)=RIGHT(BN$39,2),SUM($AP91:AV91),0)+IF(RIGHT(BN$39,2)>RIGHT($K91,2),AV91,0)) -> 0.216 | BO91: =+IF($K91="Ongoing",AW91,IF(RIGHT($K91,2)=RIGHT(BO$39,2),SUM($AP91:AW91),0)+IF(RIGHT(BO$39,2)>RIGHT($K91,2),AW91,0)) -> 0.216 | BQ91: =+O91*KeyAssumptionsPriceControl_FO!Z$15 -> 0.15345 | BR91: =+P91*KeyAssumptionsPriceControl_FO!AA$15 -> 0.15697935 | BS91: =+Q91*KeyAssumptionsPriceControl_FO!AB$15 -> 0.2569438001 | BT91: =+R91*KeyAssumptionsPriceControl_FO!AC$15 -> 0.2628535075 | BU91: =+S91*KeyAssumptionsPriceControl_FO!AD$15 -> 0.1512557652 | BV91: =+T91*KeyAssumptionsPriceControl_FO!AE$15 -> 0.1547346478 | BW91: =+U91*KeyAssumptionsPriceControl_FO!AF$15 -> 0.2532696715 | BX91: =+V91*KeyAssumptionsPriceControl_FO!AG$15 -> 0.259094874 | BZ91: 0 | CA91: 0 | CB91: 0 | CC91: 0 | CD91: 0 | CE91: 0 | CF91: 0 | CG91: 0
A92: 40 | B92: 40 | C92: 321 - Meter Program | E92: Irrigation | F92: Renewals | G92: Channels | H92: Other Capital expenditure | J92: Straight line | K92: 2020-21 | L92: 15 | O92: 0.09 | P92: 0.12 | Q92: 0.15 | R92: 0.18 | S92: 0.081 | T92: 0.108 | U92: 0.135 | V92: 0.162 | AP92: 0.09 | AQ92: 0.12 | AR92: 0.15 | AS92: 0.18 | AT92: 0.081 | AU92: 0.108 | AV92: 0.135 | AW92: 0.162 | AY92: 0.003 | AZ92: 0.01 | BA92: 0.019 | BB92: 0.03 | BC92: 0.0387 | BD92: 0.045 | BE92: 0.0531 | BF92: 0.063 | BH92: =+IF($K92="Ongoing",AP92,IF(RIGHT($K92,2)=RIGHT(BH$39,2),SUM($AP92:AP92),0)+IF(RIGHT(BH$39,2)>RIGHT($K92,2),AP92,0)) -> 0.09 | BI92: =+IF($K92="Ongoing",AQ92,IF(RIGHT($K92,2)=RIGHT(BI$39,2),SUM($AP92:AQ92),0)+IF(RIGHT(BI$39,2)>RIGHT($K92,2),AQ92,0)) -> 0.12 | BJ92: =+IF($K92="Ongoing",AR92,IF(RIGHT($K92,2)=RIGHT(BJ$39,2),SUM($AP92:AR92),0)+IF(RIGHT(BJ$39,2)>RIGHT($K92,2),AR92,0)) -> 0.15 | BK92: =+IF($K92="Ongoing",AS92,IF(RIGHT($K92,2)=RIGHT(BK$39,2),SUM($AP92:AS92),0)+IF(RIGHT(BK$39,2)>RIGHT($K92,2),AS92,0)) -> 0.18 | BL92: =+IF($K92="Ongoing",AT92,IF(RIGHT($K92,2)=RIGHT(BL$39,2),SUM($AP92:AT92),0)+IF(RIGHT(BL$39,2)>RIGHT($K92,2),AT92,0)) -> 0.081 | BM92: =+IF($K92="Ongoing",AU92,IF(RIGHT($K92,2)=RIGHT(BM$39,2),SUM($AP92:AU92),0)+IF(RIGHT(BM$39,2)>RIGHT($K92,2),AU92,0)) -> 0.108 | BN92: =+IF($K92="Ongoing",AV92,IF(RIGHT($K92,2)=RIGHT(BN$39,2),SUM($AP92:AV92),0)+IF(RIGHT(BN$39,2)>RIGHT($K92,2),AV92,0)) -> 0.135 | BO92: =+IF($K92="Ongoing",AW92,IF(RIGHT($K92,2)=RIGHT(BO$39,2),SUM($AP92:AW92),0)+IF(RIGHT(BO$39,2)>RIGHT($K92,2),AW92,0)) -> 0.162 | BQ92: =+O92*KeyAssumptionsPriceControl_FO!Z$15 -> 0.09207 | BR92: =+P92*KeyAssumptionsPriceControl_FO!AA$15 -> 0.12558348 | BS92: =+Q92*KeyAssumptionsPriceControl_FO!AB$15 -> 0.160589875 | BT92: =+R92*KeyAssumptionsPriceControl_FO!AC$15 -> 0.1971401306 | BU92: =+S92*KeyAssumptionsPriceControl_FO!AD$15 -> 0.09075345913 | BV92: =+T92*KeyAssumptionsPriceControl_FO!AE$15 -> 0.1237877182 | BW92: =+U92*KeyAssumptionsPriceControl_FO!AF$15 -> 0.1582935447 | BX92: =+V92*KeyAssumptionsPriceControl_FO!AG$15 -> 0.1943211555 | BZ92: 0 | CA92: 0 | CB92: 0 | CC92: 0 | CD92: 0 | CE92: 0 | CF92: 0 | CG92: 0
A93: 41 | B93: 41 | C93: 341 - Meter Program | E93: Irrigation | F93: Renewals | G93: Channels | H93: Other Capital expenditure | J93: Straight line | K93: 2020-21 | L93: 15 | O93: 0.09 | P93: 0.12 | Q93: 0.15 | R93: 0.15 | S93: 0.081 | T93: 0.108 | U93: 0.135 | V93: 0.135 | AP93: 0.09 | AQ93: 0.12 | AR93: 0.15 | AS93: 0.15 | AT93: 0.081 | AU93: 0.108 | AV93: 0.135 | AW93: 0.135 | AY93: 0.003 | AZ93: 0.01 | BA93: 0.019 | BB93: 0.029 | BC93: 0.0367 | BD93: 0.043 | BE93: 0.0511 | BF93: 0.0601 | BH93: =+IF($K93="Ongoing",AP93,IF(RIGHT($K93,2)=RIGHT(BH$39,2),SUM($AP93:AP93),0)+IF(RIGHT(BH$39,2)>RIGHT($K93,2),AP93,0)) -> 0.09 | BI93: =+IF($K93="Ongoing",AQ93,IF(RIGHT($K93,2)=RIGHT(BI$39,2),SUM($AP93:AQ93),0)+IF(RIGHT(BI$39,2)>RIGHT($K93,2),AQ93,0)) -> 0.12 | BJ93: =+IF($K93="Ongoing",AR93,IF(RIGHT($K93,2)=RIGHT(BJ$39,2),SUM($AP93:AR93),0)+IF(RIGHT(BJ$39,2)>RIGHT($K93,2),AR93,0)) -> 0.15 | BK93: =+IF($K93="Ongoing",AS93,IF(RIGHT($K93,2)=RIGHT(BK$39,2),SUM($AP93:AS93),0)+IF(RIGHT(BK$39,2)>RIGHT($K93,2),AS93,0)) -> 0.15 | BL93: =+IF($K93="Ongoing",AT93,IF(RIGHT($K93,2)=RIGHT(BL$39,2),SUM($AP93:AT93),0)+IF(RIGHT(BL$39,2)>RIGHT($K93,2),AT93,0)) -> 0.081 | BM93: =+IF($K93="Ongoing",AU93,IF(RIGHT($K93,2)=RIGHT(BM$39,2),SUM($AP93:AU93),0)+IF(RIGHT(BM$39,2)>RIGHT($K93,2),AU93,0)) -> 0.108 | BN93: =+IF($K93="Ongoing",AV93,IF(RIGHT($K93,2)=RIGHT(BN$39,2),SUM($AP93:AV93),0)+IF(RIGHT(BN$39,2)>RIGHT($K93,2),AV93,0)) -> 0.135 | BO93: =+IF($K93="Ongoing",AW93,IF(RIGHT($K93,2)=RIGHT(BO$39,2),SUM($AP93:AW93),0)+IF(RIGHT(BO$39,2)>RIGHT($K93,2),AW93,0)) -> 0.135 | BQ93: =+O93*KeyAssumptionsPriceControl_FO!Z$15 -> 0.09207 | BR93: =+P93*KeyAssumptionsPriceControl_FO!AA$15 -> 0.12558348 | BS93: =+Q93*KeyAssumptionsPriceControl_FO!AB$15 -> 0.160589875 | BT93: =+R93*KeyAssumptionsPriceControl_FO!AC$15 -> 0.1642834422 | BU93: =+S93*KeyAssumptionsPriceControl_FO!AD$15 -> 0.09075345913 | BV93: =+T93*KeyAssumptionsPriceControl_FO!AE$15 -> 0.1237877182 | BW93: =+U93*KeyAssumptionsPriceControl_FO!AF$15 -> 0.1582935447 | BX93: =+V93*KeyAssumptionsPriceControl_FO!AG$15 -> 0.1619342962 | BZ93: 0 | CA93: 0 | CB93: 0 | CC93: 0 | CD93: 0 | CE93: 0 | CF93: 0 | CG93: 0
A94: 42 | B94: 42 | C94: 351 - Meter Program | E94: Irrigation | F94: Renewals | G94: Channels | H94: Other Capital expenditure | J94: Straight line | K94: 2020-21 | L94: 15 | O94: 0.09 | P94: 0.09 | Q94: 0.12 | R94: 0.15 | S94: 0.081 | T94: 0.081 | U94: 0.108 | V94: 0.135 | AP94: 0.09 | AQ94: 0.09 | AR94: 0.12 | AS94: 0.15 | AT94: 0.081 | AU94: 0.081 | AV94: 0.108 | AW94: 0.135 | AY94: 0.003 | AZ94: 0.009 | BA94: 0.016 | BB94: 0.025 | BC94: 0.0327 | BD94: 0.0381 | BE94: 0.0444 | BF94: 0.0525 | BH94: =+IF($K94="Ongoing",AP94,IF(RIGHT($K94,2)=RIGHT(BH$39,2),SUM($AP94:AP94),0)+IF(RIGHT(BH$39,2)>RIGHT($K94,2),AP94,0)) -> 0.09 | BI94: =+IF($K94="Ongoing",AQ94,IF(RIGHT($K94,2)=RIGHT(BI$39,2),SUM($AP94:AQ94),0)+IF(RIGHT(BI$39,2)>RIGHT($K94,2),AQ94,0)) -> 0.09 | BJ94: =+IF($K94="Ongoing",AR94,IF(RIGHT($K94,2)=RIGHT(BJ$39,2),SUM($AP94:AR94),0)+IF(RIGHT(BJ$39,2)>RIGHT($K94,2),AR94,0)) -> 0.12 | BK94: =+IF($K94="Ongoing",AS94,IF(RIGHT($K94,2)=RIGHT(BK$39,2),SUM($AP94:AS94),0)+IF(RIGHT(BK$39,2)>RIGHT($K94,2),AS94,0)) -> 0.15 | BL94: =+IF($K94="Ongoing",AT94,IF(RIGHT($K94,2)=RIGHT(BL$39,2),SUM($AP94:AT94),0)+IF(RIGHT(BL$39,2)>RIGHT($K94,2),AT94,0)) -> 0.081 | BM94: =+IF($K94="Ongoing",AU94,IF(RIGHT($K94,2)=RIGHT(BM$39,2),SUM($AP94:AU94),0)+IF(RIGHT(BM$39,2)>RIGHT($K94,2),AU94,0)) -> 0.081 | BN94: =+IF($K94="Ongoing",AV94,IF(RIGHT($K94,2)=RIGHT(BN$39,2),SUM($AP94:AV94),0)+IF(RIGHT(BN$39,2)>RIGHT($K94,2),AV94,0)) -> 0.108 | BO94: =+IF($K94="Ongoing",AW94,IF(RIGHT($K94,2)=RIGHT(BO$39,2),SUM($AP94:AW94),0)+IF(RIGHT(BO$39,2)>RIGHT($K94,2),AW94,0)) -> 0.135 | BQ94: =+O94*KeyAssumptionsPriceControl_FO!Z$15 -> 0.09207 | BR94: =+P94*KeyAssumptionsPriceControl_FO!AA$15 -> 0.09418761 | BS94: =+Q94*KeyAssumptionsPriceControl_FO!AB$15 -> 0.1284719 | BT94: =+R94*KeyAssumptionsPriceControl_FO!AC$15 -> 0.1642834422 | BU94: =+S94*KeyAssumptionsPriceControl_FO!AD$15 -> 0.09075345913 | BV94: =+T94*KeyAssumptionsPriceControl_FO!AE$15 -> 0.09284078869 | BW94: =+U94*KeyAssumptionsPriceControl_FO!AF$15 -> 0.1266348358 | BX94: =+V94*KeyAssumptionsPriceControl_FO!AG$15 -> 0.1619342962 | BZ94: 0 | CA94: 0 | CB94: 0 | CC94: 0 | CD94: 0 | CE94: 0 | CF94: 0 | CG94: 0
A95: 43 | B95: 43 | C95: 361 - Meter Program | E95: Irrigation | F95: Renewals | G95: Channels | H95: Other Capital expenditure | J95: Straight line | K95: 2020-21 | L95: 15 | O95: 0.03 | P95: 0.06 | Q95: 0.09 | R95: 0.12 | S95: 0.027 | T95: 0.054 | U95: 0.081 | V95: 0.108 | AP95: 0.03 | AQ95: 0.06 | AR95: 0.09 | AS95: 0.12 | AT95: 0.027 | AU95: 0.054 | AV95: 0.081 | AW95: 0.108 | AY95: 0.001 | AZ95: 0.004 | BA95: 0.009 | BB95: 0.016 | BC95: 0.0209 | BD95: 0.0236 | BE95: 0.0281 | BF95: 0.0344 | BH95: =+IF($K95="Ongoing",AP95,IF(RIGHT($K95,2)=RIGHT(BH$39,2),SUM($AP95:AP95),0)+IF(RIGHT(BH$39,2)>RIGHT($K95,2),AP95,0)) -> 0.03 | BI95: =+IF($K95="Ongoing",AQ95,IF(RIGHT($K95,2)=RIGHT(BI$39,2),SUM($AP95:AQ95),0)+IF(RIGHT(BI$39,2)>RIGHT($K95,2),AQ95,0)) -> 0.06 | BJ95: =+IF($K95="Ongoing",AR95,IF(RIGHT($K95,2)=RIGHT(BJ$39,2),SUM($AP95:AR95),0)+IF(RIGHT(BJ$39,2)>RIGHT($K95,2),AR95,0)) -> 0.09 | BK95: =+IF($K95="Ongoing",AS95,IF(RIGHT($K95,2)=RIGHT(BK$39,2),SUM($AP95:AS95),0)+IF(RIGHT(BK$39,2)>RIGHT($K95,2),AS95,0)) -> 0.12 | BL95: =+IF($K95="Ongoing",AT95,IF(RIGHT($K95,2)=RIGHT(BL$39,2),SUM($AP95:AT95),0)+IF(RIGHT(BL$39,2)>RIGHT($K95,2),AT95,0)) -> 0.027 | BM95: =+IF($K95="Ongoing",AU95,IF(RIGHT($K95,2)=RIGHT(BM$39,2),SUM($AP95:AU95),0)+IF(RIGHT(BM$39,2)>RIGHT($K95,2),AU95,0)) -> 0.054 | BN95: =+IF($K95="Ongoing",AV95,IF(RIGHT($K95,2)=RIGHT(BN$39,2),SUM($AP95:AV95),0)+IF(RIGHT(BN$39,2)>RIGHT($K95,2),AV95,0)) -> 0.081 | BO95: =+IF($K95="Ongoing",AW95,IF(RIGHT($K95,2)=RIGHT(BO$39,2),SUM($AP95:AW95),0)+IF(RIGHT(BO$39,2)>RIGHT($K95,2),AW95,0)) -> 0.108 | BQ95: =+O95*KeyAssumptionsPriceControl_FO!Z$15 -> 0.03069 | BR95: =+P95*KeyAssumptionsPriceControl_FO!AA$15 -> 0.06279174 | BS95: =+Q95*KeyAssumptionsPriceControl_FO!AB$15 -> 0.09635392503 | BT95: =+R95*KeyAssumptionsPriceControl_FO!AC$15 -> 0.1314267537 | BU95: =+S95*KeyAssumptionsPriceControl_FO!AD$15 -> 0.03025115304 | BV95: =+T95*KeyAssumptionsPriceControl_FO!AE$15 -> 0.06189385912 | BW95: =+U95*KeyAssumptionsPriceControl_FO!AF$15 -> 0.09497612683 | BX95: =+V95*KeyAssumptionsPriceControl_FO!AG$15 -> 0.129547437 | BZ95: 0 | CA95: 0 | CB95: 0 | CC95: 0 | CD95: 0 | CE95: 0 | CF95: 0 | CG95: 0
A96: 44 | B96: 44 | C96: 301 - Meter Program | E96: Irrigation | F96: Renewals | G96: Channels | H96: Other Capital expenditure | J96: Straight line | K96: 2020-21 | L96: 15 | O96: 0.04 | P96: 0 | Q96: 0 | R96: 0 | S96: 0.04 | T96: 0 | U96: 0 | V96: 0 | AP96: 0.04 | AQ96: 0 | AR96: 0 | AS96: 0 | AT96: 0.04 | AU96: 0 | AV96: 0 | AW96: 0 | AY96: 0.001333333333 | AZ96: 0.002666666667 | BA96: 0.002666666667 | BB96: 0.002666666667 | BC96: 0.004 | BD96: 0.005333333333 | BE96: 0.005333333333 | BF96: 0.005333333333 | BH96: =+IF($K96="Ongoing",AP96,IF(RIGHT($K96,2)=RIGHT(BH$39,2),SUM($AP96:AP96),0)+IF(RIGHT(BH$39,2)>RIGHT($K96,2),AP96,0)) -> 0.04 | BI96: =+IF($K96="Ongoing",AQ96,IF(RIGHT($K96,2)=RIGHT(BI$39,2),SUM($AP96:AQ96),0)+IF(RIGHT(BI$39,2)>RIGHT($K96,2),AQ96,0)) -> 0 | BJ96: =+IF($K96="Ongoing",AR96,IF(RIGHT($K96,2)=RIGHT(BJ$39,2),SUM($AP96:AR96),0)+IF(RIGHT(BJ$39,2)>RIGHT($K96,2),AR96,0)) -> 0 | BK96: =+IF($K96="Ongoing",AS96,IF(RIGHT($K96,2)=RIGHT(BK$39,2),SUM($AP96:AS96),0)+IF(RIGHT(BK$39,2)>RIGHT($K96,2),AS96,0)) -> 0 | BL96: =+IF($K96="Ongoing",AT96,IF(RIGHT($K96,2)=RIGHT(BL$39,2),SUM($AP96:AT96),0)+IF(RIGHT(BL$39,2)>RIGHT($K96,2),AT96,0)) -> 0.04 | BM96: =+IF($K96="Ongoing",AU96,IF(RIGHT($K96,2)=RIGHT(BM$39,2),SUM($AP96:AU96),0)+IF(RIGHT(BM$39,2)>RIGHT($K96,2),AU96,0)) -> 0 | BN96: =+IF($K96="Ongoing",AV96,IF(RIGHT($K96,2)=RIGHT(BN$39,2),SUM($AP96:AV96),0)+IF(RIGHT(BN$39,2)>RIGHT($K96,2),AV96,0)) -> 0 | BO96: =+IF($K96="Ongoing",AW96,IF(RIGHT($K96,2)=RIGHT(BO$39,2),SUM($AP96:AW96),0)+IF(RIGHT(BO$39,2)>RIGHT($K96,2),AW96,0)) -> 0 | BQ96: =+O96*KeyAssumptionsPriceControl_FO!Z$15 -> 0.04092 | BR96: =+P96*KeyAssumptionsPriceControl_FO!AA$15 -> 0 | BS96: =+Q96*KeyAssumptionsPriceControl_FO!AB$15 -> 0 | BT96: =+R96*KeyAssumptionsPriceControl_FO!AC$15 -> 0 | BU96: =+S96*KeyAssumptionsPriceControl_FO!AD$15 -> 0.04481652303 | BV96: =+T96*KeyAssumptionsPriceControl_FO!AE$15 -> 0 | BW96: =+U96*KeyAssumptionsPriceControl_FO!AF$15 -> 0 | BX96: =+V96*KeyAssumptionsPriceControl_FO!AG$15 -> 0 | BZ96: 0 | CA96: 0 | CB96: 0 | CC96: 0 | CD96: 0 | CE96: 0 | CF96: 0 | CG96: 0
A97: 45 | B97: 45 | C97: 311 - Meter Program | E97: Irrigation | F97: Renewals | G97: Channels | H97: Other Capital expenditure | J97: Straight line | K97: 2020-21 | L97: 15 | O97: 0.04 | P97: 0 | Q97: 0 | R97: 0 | S97: 0.04 | T97: 0 | U97: 0 | V97: 0 | AP97: 0.04 | AQ97: 0 | AR97: 0 | AS97: 0 | AT97: 0.04 | AU97: 0 | AV97: 0 | AW97: 0 | AY97: 0.001333333333 | AZ97: 0.002666666667 | BA97: 0.002666666667 | BB97: 0.002666666667 | BC97: 0.004 | BD97: 0.005333333333 | BE97: 0.005333333333 | BF97: 0.005333333333 | BH97: =+IF($K97="Ongoing",AP97,IF(RIGHT($K97,2)=RIGHT(BH$39,2),SUM($AP97:AP97),0)+IF(RIGHT(BH$39,2)>RIGHT($K97,2),AP97,0)) -> 0.04 | BI97: =+IF($K97="Ongoing",AQ97,IF(RIGHT($K97,2)=RIGHT(BI$39,2),SUM($AP97:AQ97),0)+IF(RIGHT(BI$39,2)>RIGHT($K97,2),AQ97,0)) -> 0 | BJ97: =+IF($K97="Ongoing",AR97,IF(RIGHT($K97,2)=RIGHT(BJ$39,2),SUM($AP97:AR97),0)+IF(RIGHT(BJ$39,2)>RIGHT($K97,2),AR97,0)) -> 0 | BK97: =+IF($K97="Ongoing",AS97,IF(RIGHT($K97,2)=RIGHT(BK$39,2),SUM($AP97:AS97),0)+IF(RIGHT(BK$39,2)>RIGHT($K97,2),AS97,0)) -> 0 | BL97: =+IF($K97="Ongoing",AT97,IF(RIGHT($K97,2)=RIGHT(BL$39,2),SUM($AP97:AT97),0)+IF(RIGHT(BL$39,2)>RIGHT($K97,2),AT97,0)) -> 0.04 | BM97: =+IF($K97="Ongoing",AU97,IF(RIGHT($K97,2)=RIGHT(BM$39,2),SUM($AP97:AU97),0)+IF(RIGHT(BM$39,2)>RIGHT($K97,2),AU97,0)) -> 0 | BN97: =+IF($K97="Ongoing",AV97,IF(RIGHT($K97,2)=RIGHT(BN$39,2),SUM($AP97:AV97),0)+IF(RIGHT(BN$39,2)>RIGHT($K97,2),AV97,0)) -> 0 | BO97: =+IF($K97="Ongoing",AW97,IF(RIGHT($K97,2)=RIGHT(BO$39,2),SUM($AP97:AW97),0)+IF(RIGHT(BO$39,2)>RIGHT($K97,2),AW97,0)) -> 0 | BQ97: =+O97*KeyAssumptionsPriceControl_FO!Z$15 -> 0.04092 | BR97: =+P97*KeyAssumptionsPriceControl_FO!AA$15 -> 0 | BS97: =+Q97*KeyAssumptionsPriceControl_FO!AB$15 -> 0 | BT97: =+R97*KeyAssumptionsPriceControl_FO!AC$15 -> 0 | BU97: =+S97*KeyAssumptionsPriceControl_FO!AD$15 -> 0.04481652303 | BV97: =+T97*KeyAssumptionsPriceControl_FO!AE$15 -> 0 | BW97: =+U97*KeyAssumptionsPriceControl_FO!AF$15 -> 0 | BX97: =+V97*KeyAssumptionsPriceControl_FO!AG$15 -> 0 | BZ97: 0 | CA97: 0 | CB97: 0 | CC97: 0 | CD97: 0 | CE97: 0 | CF97: 0 | CG97: 0
A98: 46 | B98: 46 | C98: 321 - Meter Program - Limit Switch Upgrade | E98: Irrigation | F98: Renewals | G98: Channels | H98: Other Capital expenditure | J98: Straight line | K98: 2020-21 | L98: 15 | O98: 0.04 | P98: 0 | Q98: 0 | R98: 0 | S98: 0.04 | T98: 0 | U98: 0 | V98: 0 | AP98: 0.04 | AQ98: 0 | AR98: 0 | AS98: 0 | AT98: 0.04 | AU98: 0 | AV98: 0 | AW98: 0 | AY98: 0.001333333333 | AZ98: 0.002666666667 | BA98: 0.002666666667 | BB98: 0.002666666667 | BC98: 0.004 | BD98: 0.005333333333 | BE98: 0.005333333333 | BF98: 0.005333333333 | BH98: =+IF($K98="Ongoing",AP98,IF(RIGHT($K98,2)=RIGHT(BH$39,2),SUM($AP98:AP98),0)+IF(RIGHT(BH$39,2)>RIGHT($K98,2),AP98,0)) -> 0.04 | BI98: =+IF($K98="Ongoing",AQ98,IF(RIGHT($K98,2)=RIGHT(BI$39,2),SUM($AP98:AQ98),0)+IF(RIGHT(BI$39,2)>RIGHT($K98,2),AQ98,0)) -> 0 | BJ98: =+IF($K98="Ongoing",AR98,IF(RIGHT($K98,2)=RIGHT(BJ$39,2),SUM($AP98:AR98),0)+IF(RIGHT(BJ$39,2)>RIGHT($K98,2),AR98,0)) -> 0 | BK98: =+IF($K98="Ongoing",AS98,IF(RIGHT($K98,2)=RIGHT(BK$39,2),SUM($AP98:AS98),0)+IF(RIGHT(BK$39,2)>RIGHT($K98,2),AS98,0)) -> 0 | BL98: =+IF($K98="Ongoing",AT98,IF(RIGHT($K98,2)=RIGHT(BL$39,2),SUM($AP98:AT98),0)+IF(RIGHT(BL$39,2)>RIGHT($K98,2),AT98,0)) -> 0.04 | BM98: =+IF($K98="Ongoing",AU98,IF(RIGHT($K98,2)=RIGHT(BM$39,2),SUM($AP98:AU98),0)+IF(RIGHT(BM$39,2)>RIGHT($K98,2),AU98,0)) -> 0 | BN98: =+IF($K98="Ongoing",AV98,IF(RIGHT($K98,2)=RIGHT(BN$39,2),SUM($AP98:AV98),0)+IF(RIGHT(BN$39,2)>RIGHT($K98,2),AV98,0)) -> 0 | BO98: =+IF($K98="Ongoing",AW98,IF(RIGHT($K98,2)=RIGHT(BO$39,2),SUM($AP98:AW98),0)+IF(RIGHT(BO$39,2)>RIGHT($K98,2),AW98,0)) -> 0 | BQ98: =+O98*KeyAssumptionsPriceControl_FO!Z$15 -> 0.04092 | BR98: =+P98*KeyAssumptionsPriceControl_FO!AA$15 -> 0 | BS98: =+Q98*KeyAssumptionsPriceControl_FO!AB$15 -> 0 | BT98: =+R98*KeyAssumptionsPriceControl_FO!AC$15 -> 0 | BU98: =+S98*KeyAssumptionsPriceControl_FO!AD$15 -> 0.04481652303 | BV98: =+T98*KeyAssumptionsPriceControl_FO!AE$15 -> 0 | BW98: =+U98*KeyAssumptionsPriceControl_FO!AF$15 -> 0 | BX98: =+V98*KeyAssumptionsPriceControl_FO!AG$15 -> 0 | BZ98: 0 | CA98: 0 | CB98: 0 | CC98: 0 | CD98: 0 | CE98: 0 | CF98: 0 | CG98: 0
A99: 47 | B99: 47 | C99: 341 - Meter Program - Limit Switch Upgrade | E99: Irrigation | F99: Renewals | G99: Channels | H99: Other Capital expenditure | J99: Straight line | K99: 2020-21 | L99: 15 | O99: 0.04 | P99: 0 | Q99: 0 | R99: 0 | S99: 0.04 | T99: 0 | U99: 0 | V99: 0 | AP99: 0.04 | AQ99: 0 | AR99: 0 | AS99: 0 | AT99: 0.04 | AU99: 0 | AV99: 0 | AW99: 0 | AY99: 0.001333333333 | AZ99: 0.002666666667 | BA99: 0.002666666667 | BB99: 0.002666666667 | BC99: 0.004 | BD99: 0.005333333333 | BE99: 0.005333333333 | BF99: 0.005333333333 | BH99: =+IF($K99="Ongoing",AP99,IF(RIGHT($K99,2)=RIGHT(BH$39,2),SUM($AP99:AP99),0)+IF(RIGHT(BH$39,2)>RIGHT($K99,2),AP99,0)) -> 0.04 | BI99: =+IF($K99="Ongoing",AQ99,IF(RIGHT($K99,2)=RIGHT(BI$39,2),SUM($AP99:AQ99),0)+IF(RIGHT(BI$39,2)>RIGHT($K99,2),AQ99,0)) -> 0 | BJ99: =+IF($K99="Ongoing",AR99,IF(RIGHT($K99,2)=RIGHT(BJ$39,2),SUM($AP99:AR99),0)+IF(RIGHT(BJ$39,2)>RIGHT($K99,2),AR99,0)) -> 0 | BK99: =+IF($K99="Ongoing",AS99,IF(RIGHT($K99,2)=RIGHT(BK$39,2),SUM($AP99:AS99),0)+IF(RIGHT(BK$39,2)>RIGHT($K99,2),AS99,0)) -> 0 | BL99: =+IF($K99="Ongoing",AT99,IF(RIGHT($K99,2)=RIGHT(BL$39,2),SUM($AP99:AT99),0)+IF(RIGHT(BL$39,2)>RIGHT($K99,2),AT99,0)) -> 0.04 | BM99: =+IF($K99="Ongoing",AU99,IF(RIGHT($K99,2)=RIGHT(BM$39,2),SUM($AP99:AU99),0)+IF(RIGHT(BM$39,2)>RIGHT($K99,2),AU99,0)) -> 0 | BN99: =+IF($K99="Ongoing",AV99,IF(RIGHT($K99,2)=RIGHT(BN$39,2),SUM($AP99:AV99),0)+IF(RIGHT(BN$39,2)>RIGHT($K99,2),AV99,0)) -> 0 | BO99: =+IF($K99="Ongoing",AW99,IF(RIGHT($K99,2)=RIGHT(BO$39,2),SUM($AP99:AW99),0)+IF(RIGHT(BO$39,2)>RIGHT($K99,2),AW99,0)) -> 0 | BQ99: =+O99*KeyAssumptionsPriceControl_FO!Z$15 -> 0.04092 | BR99: =+P99*KeyAssumptionsPriceControl_FO!AA$15 -> 0 | BS99: =+Q99*KeyAssumptionsPriceControl_FO!AB$15 -> 0 | BT99: =+R99*KeyAssumptionsPriceControl_FO!AC$15 -> 0 | BU99: =+S99*KeyAssumptionsPriceControl_FO!AD$15 -> 0.04481652303 | BV99: =+T99*KeyAssumptionsPriceControl_FO!AE$15 -> 0 | BW99: =+U99*KeyAssumptionsPriceControl_FO!AF$15 -> 0 | BX99: =+V99*KeyAssumptionsPriceControl_FO!AG$15 -> 0 | BZ99: 0 | CA99: 0 | CB99: 0 | CC99: 0 | CD99: 0 | CE99: 0 | CF99: 0 | CG99: 0
A100: 48 | B100: 48 | C100: 351 - Meter Program - Limit Switch Upgrade | E100: Irrigation | F100: Renewals | G100: Channels | H100: Other Capital expenditure | J100: Straight line | K100: 2020-21 | L100: 15 | O100: 0.02 | P100: 0 | Q100: 0 | R100: 0 | S100: 0.02 | T100: 0 | U100: 0 | V100: 0 | AP100: 0.02 | AQ100: 0 | AR100: 0 | AS100: 0 | AT100: 0.02 | AU100: 0 | AV100: 0 | AW100: 0 | AY100: 0.0006666666667 | AZ100: 0.001333333333 | BA100: 0.001333333333 | BB100: 0.001333333333 | BC100: 0.002 | BD100: 0.002666666667 | BE100: 0.002666666667 | BF100: 0.002666666667 | BH100: =+IF($K100="Ongoing",AP100,IF(RIGHT($K100,2)=RIGHT(BH$39,2),SUM($AP100:AP100),0)+IF(RIGHT(BH$39,2)>RIGHT($K100,2),AP100,0)) -> 0.02 | BI100: =+IF($K100="Ongoing",AQ100,IF(RIGHT($K100,2)=RIGHT(BI$39,2),SUM($AP100:AQ100),0)+IF(RIGHT(BI$39,2)>RIGHT($K100,2),AQ100,0)) -> 0 | BJ100: =+IF($K100="Ongoing",AR100,IF(RIGHT($K100,2)=RIGHT(BJ$39,2),SUM($AP100:AR100),0)+IF(RIGHT(BJ$39,2)>RIGHT($K100,2),AR100,0)) -> 0 | BK100: =+IF($K100="Ongoing",AS100,IF(RIGHT($K100,2)=RIGHT(BK$39,2),SUM($AP100:AS100),0)+IF(RIGHT(BK$39,2)>RIGHT($K100,2),AS100,0)) -> 0 | BL100: =+IF($K100="Ongoing",AT100,IF(RIGHT($K100,2)=RIGHT(BL$39,2),SUM($AP100:AT100),0)+IF(RIGHT(BL$39,2)>RIGHT($K100,2),AT100,0)) -> 0.02 | BM100: =+IF($K100="Ongoing",AU100,IF(RIGHT($K100,2)=RIGHT(BM$39,2),SUM($AP100:AU100),0)+IF(RIGHT(BM$39,2)>RIGHT($K100,2),AU100,0)) -> 0 | BN100: =+IF($K100="Ongoing",AV100,IF(RIGHT($K100,2)=RIGHT(BN$39,2),SUM($AP100:AV100),0)+IF(RIGHT(BN$39,2)>RIGHT($K100,2),AV100,0)) -> 0 | BO100: =+IF($K100="Ongoing",AW100,IF(RIGHT($K100,2)=RIGHT(BO$39,2),SUM($AP100:AW100),0)+IF(RIGHT(BO$39,2)>RIGHT($K100,2),AW100,0)) -> 0 | BQ100: =+O100*KeyAssumptionsPriceControl_FO!Z$15 -> 0.02046 | BR100: =+P100*KeyAssumptionsPriceControl_FO!AA$15 -> 0 | BS100: =+Q100*KeyAssumptionsPriceControl_FO!AB$15 -> 0 | BT100: =+R100*KeyAssumptionsPriceControl_FO!AC$15 -> 0 | BU100: =+S100*KeyAssumptionsPriceControl_FO!AD$15 -> 0.02240826151 | BV100: =+T100*KeyAssumptionsPriceControl_FO!AE$15 -> 0 | BW100: =+U100*KeyAssumptionsPriceControl_FO!AF$15 -> 0 | BX100: =+V100*KeyAssumptionsPriceControl_FO!AG$15 -> 0 | BZ100: 0 | CA100: 0 | CB100: 0 | CC100: 0 | CD100: 0 | CE100: 0 | CF100: 0 | CG100: 0
A101: 49 | B101: 49 | C101: 361 - Meter Program - Limit Switch Upgrade | E101: Irrigation | F101: Renewals | G101: Channels | H101: Other Capital expenditure | J101: Straight line | K101: 2020-21 | L101: 15 | O101: 0.01 | P101: 0 | Q101: 0 | R101: 0 | S101: 0.01 | T101: 0 | U101: 0 | V101: 0 | AP101: 0.01 | AQ101: 0 | AR101: 0 | AS101: 0 | AT101: 0.01 | AU101: 0 | AV101: 0 | AW101: 0 | AY101: 0.0003333333333 | AZ101: 0.0006666666667 | BA101: 0.0006666666667 | BB101: 0.0006666666667 | BC101: 0.001 | BD101: 0.001333333333 | BE101: 0.001333333333 | BF101: 0.001333333333 | BH101: =+IF($K101="Ongoing",AP101,IF(RIGHT($K101,2)=RIGHT(BH$39,2),SUM($AP101:AP101),0)+IF(RIGHT(BH$39,2)>RIGHT($K101,2),AP101,0)) -> 0.01 | BI101: =+IF($K101="Ongoing",AQ101,IF(RIGHT($K101,2)=RIGHT(BI$39,2),SUM($AP101:AQ101),0)+IF(RIGHT(BI$39,2)>RIGHT($K101,2),AQ101,0)) -> 0 | BJ101: =+IF($K101="Ongoing",AR101,IF(RIGHT($K101,2)=RIGHT(BJ$39,2),SUM($AP101:AR101),0)+IF(RIGHT(BJ$39,2)>RIGHT($K101,2),AR101,0)) -> 0 | BK101: =+IF($K101="Ongoing",AS101,IF(RIGHT($K101,2)=RIGHT(BK$39,2),SUM($AP101:AS101),0)+IF(RIGHT(BK$39,2)>RIGHT($K101,2),AS101,0)) -> 0 | BL101: =+IF($K101="Ongoing",AT101,IF(RIGHT($K101,2)=RIGHT(BL$39,2),SUM($AP101:AT101),0)+IF(RIGHT(BL$39,2)>RIGHT($K101,2),AT101,0)) -> 0.01 | BM101: =+IF($K101="Ongoing",AU101,IF(RIGHT($K101,2)=RIGHT(BM$39,2),SUM($AP101:AU101),0)+IF(RIGHT(BM$39,2)>RIGHT($K101,2),AU101,0)) -> 0 | BN101: =+IF($K101="Ongoing",AV101,IF(RIGHT($K101,2)=RIGHT(BN$39,2),SUM($AP101:AV101),0)+IF(RIGHT(BN$39,2)>RIGHT($K101,2),AV101,0)) -> 0 | BO101: =+IF($K101="Ongoing",AW101,IF(RIGHT($K101,2)=RIGHT(BO$39,2),SUM($AP101:AW101),0)+IF(RIGHT(BO$39,2)>RIGHT($K101,2),AW101,0)) -> 0 | BQ101: =+O101*KeyAssumptionsPriceControl_FO!Z$15 -> 0.01023 | BR101: =+P101*KeyAssumptionsPriceControl_FO!AA$15 -> 0 | BS101: =+Q101*KeyAssumptionsPriceControl_FO!AB$15 -> 0 | BT101: =+R101*KeyAssumptionsPriceControl_FO!AC$15 -> 0 | BU101: =+S101*KeyAssumptionsPriceControl_FO!AD$15 -> 0.01120413076 | BV101: =+T101*KeyAssumptionsPriceControl_FO!AE$15 -> 0 | BW101: =+U101*KeyAssumptionsPriceControl_FO!AF$15 -> 0 | BX101: =+V101*KeyAssumptionsPriceControl_FO!AG$15 -> 0 | BZ101: 0 | CA101: 0 | CB101: 0 | CC101: 0 | CD101: 0 | CE101: 0 | CF101: 0 | CG101: 0
A102: 50 | B102: 50 | C102: 321 - Meter Program - Limit Switch Upgrade | E102: Irrigation | F102: Renewals | G102: Channels | H102: Other Capital expenditure | J102: Straight line | K102: 2020-21 | L102: 15 | O102: 0.04 | P102: 0 | Q102: 0 | R102: 0 | S102: 0.04 | T102: 0 | U102: 0 | V102: 0 | AP102: 0.04 | AQ102: 0 | AR102: 0 | AS102: 0 | AT102: 0.04 | AU102: 0 | AV102: 0 | AW102: 0 | AY102: 0.001333333333 | AZ102: 0.002666666667 | BA102: 0.002666666667 | BB102: 0.002666666667 | BC102: 0.004 | BD102: 0.005333333333 | BE102: 0.005333333333 | BF102: 0.005333333333 | BH102: =+IF($K102="Ongoing",AP102,IF(RIGHT($K102,2)=RIGHT(BH$39,2),SUM($AP102:AP102),0)+IF(RIGHT(BH$39,2)>RIGHT($K102,2),AP102,0)) -> 0.04 | BI102: =+IF($K102="Ongoing",AQ102,IF(RIGHT($K102,2)=RIGHT(BI$39,2),SUM($AP102:AQ102),0)+IF(RIGHT(BI$39,2)>RIGHT($K102,2),AQ102,0)) -> 0 | BJ102: =+IF($K102="Ongoing",AR102,IF(RIGHT($K102,2)=RIGHT(BJ$39,2),SUM($AP102:AR102),0)+IF(RIGHT(BJ$39,2)>RIGHT($K102,2),AR102,0)) -> 0 | BK102: =+IF($K102="Ongoing",AS102,IF(RIGHT($K102,2)=RIGHT(BK$39,2),SUM($AP102:AS102),0)+IF(RIGHT(BK$39,2)>RIGHT($K102,2),AS102,0)) -> 0 | BL102: =+IF($K102="Ongoing",AT102,IF(RIGHT($K102,2)=RIGHT(BL$39,2),SUM($AP102:AT102),0)+IF(RIGHT(BL$39,2)>RIGHT($K102,2),AT102,0)) -> 0.04 | BM102: =+IF($K102="Ongoing",AU102,IF(RIGHT($K102,2)=RIGHT(BM$39,2),SUM($AP102:AU102),0)+IF(RIGHT(BM$39,2)>RIGHT($K102,2),AU102,0)) -> 0 | BN102: =+IF($K102="Ongoing",AV102,IF(RIGHT($K102,2)=RIGHT(BN$39,2),SUM($AP102:AV102),0)+IF(RIGHT(BN$39,2)>RIGHT($K102,2),AV102,0)) -> 0 | BO102: =+IF($K102="Ongoing",AW102,IF(RIGHT($K102,2)=RIGHT(BO$39,2),SUM($AP102:AW102),0)+IF(RIGHT(BO$39,2)>RIGHT($K102,2),AW102,0)) -> 0 | BQ102: =+O102*KeyAssumptionsPriceControl_FO!Z$15 -> 0.04092 | BR102: =+P102*KeyAssumptionsPriceControl_FO!AA$15 -> 0 | BS102: =+Q102*KeyAssumptionsPriceControl_FO!AB$15 -> 0 | BT102: =+R102*KeyAssumptionsPriceControl_FO!AC$15 -> 0 | BU102: =+S102*KeyAssumptionsPriceControl_FO!AD$15 -> 0.04481652303 | BV102: =+T102*KeyAssumptionsPriceControl_FO!AE$15 -> 0 | BW102: =+U102*KeyAssumptionsPriceControl_FO!AF$15 -> 0 | BX102: =+V102*KeyAssumptionsPriceControl_FO!AG$15 -> 0 | BZ102: 0 | CA102: 0 | CB102: 0 | CC102: 0 | CD102: 0 | CE102: 0 | CF102: 0 | CG102: 0
A103: 51 | B103: 51 | C103: Guardrailing | E103: 0 | F103: 0 | G103: 0 | H103: Other Capital expenditure | J103: Straight line | K103: 0 | L103: 0 | O103: 0 | P103: 0 | Q103: 0 | R103: 0 | S103: 0 | T103: 0 | U103: 0 | V103: 0 | AP103: 0 | AQ103: 0 | AR103: 0 | AS103: 0 | AT103: 0 | AU103: 0 | AV103: 0 | AW103: 0 | AY103: 0 | AZ103: 0 | BA103: 0 | BB103: 0 | BC103: 0 | BD103: 0 | BE103: 0 | BF103: 0 | BH103: =+IF($K103="Ongoing",AP103,IF(RIGHT($K103,2)=RIGHT(BH$39,2),SUM($AP103:AP103),0)+IF(RIGHT(BH$39,2)>RIGHT($K103,2),AP103,0)) -> 0 | BI103: =+IF($K103="Ongoing",AQ103,IF(RIGHT($K103,2)=RIGHT(BI$39,2),SUM($AP103:AQ103),0)+IF(RIGHT(BI$39,2)>RIGHT($K103,2),AQ103,0)) -> 0 | BJ103: =+IF($K103="Ongoing",AR103,IF(RIGHT($K103,2)=RIGHT(BJ$39,2),SUM($AP103:AR103),0)+IF(RIGHT(BJ$39,2)>RIGHT($K103,2),AR103,0)) -> 0 | BK103: =+IF($K103="Ongoing",AS103,IF(RIGHT($K103,2)=RIGHT(BK$39,2),SUM($AP103:AS103),0)+IF(RIGHT(BK$39,2)>RIGHT($K103,2),AS103,0)) -> 0 | BL103: =+IF($K103="Ongoing",AT103,IF(RIGHT($K103,2)=RIGHT(BL$39,2),SUM($AP103:AT103),0)+IF(RIGHT(BL$39,2)>RIGHT($K103,2),AT103,0)) -> 0 | BM103: =+IF($K103="Ongoing",AU103,IF(RIGHT($K103,2)=RIGHT(BM$39,2),SUM($AP103:AU103),0)+IF(RIGHT(BM$39,2)>RIGHT($K103,2),AU103,0)) -> 0 | BN103: =+IF($K103="Ongoing",AV103,IF(RIGHT($K103,2)=RIGHT(BN$39,2),SUM($AP103:AV103),0)+IF(RIGHT(BN$39,2)>RIGHT($K103,2),AV103,0)) -> 0 | BO103: =+IF($K103="Ongoing",AW103,IF(RIGHT($K103,2)=RIGHT(BO$39,2),SUM($AP103:AW103),0)+IF(RIGHT(BO$39,2)>RIGHT($K103,2),AW103,0)) -> 0 | BQ103: =+O103*KeyAssumptionsPriceControl_FO!Z$15 -> 0 | BR103: =+P103*KeyAssumptionsPriceControl_FO!AA$15 -> 0 | BS103: =+Q103*KeyAssumptionsPriceControl_FO!AB$15 -> 0 | BT103: =+R103*KeyAssumptionsPriceControl_FO!AC$15 -> 0 | BU103: =+S103*KeyAssumptionsPriceControl_FO!AD$15 -> 0 | BV103: =+T103*KeyAssumptionsPriceControl_FO!AE$15 -> 0 | BW103: =+U103*KeyAssumptionsPriceControl_FO!AF$15 -> 0 | BX103: =+V103*KeyAssumptionsPriceControl_FO!AG$15 -> 0 | BZ103: 0 | CA103: 0 | CB103: 0 | CC103: 0 | CD103: 0 | CE103: 0 | CF103: 0 | CG103: 0
A104: 52 | B104: 52 | C104: 301 - Structures Program - Guard Rail | E104: Irrigation | F104: Renewals | G104: Channels | H104: Other Capital expenditure | J104: Straight line | K104: 2024-25 | L104: 80 | O104: 0 | P104: 0 | Q104: 0 | R104: 0 | S104: 0.037044 | T104: 0 | U104: 0 | V104: 0 | AP104: 0 | AQ104: 0 | AR104: 0 | AS104: 0 | AT104: 0.037044 | AU104: 0 | AV104: 0 | AW104: 0 | AY104: 0 | AZ104: 0 | BA104: 0 | BB104: 0 | BC104: 0.000231525 | BD104: 0.00046305 | BE104: 0.00046305 | BF104: 0.00046305 | BH104: =+IF($K104="Ongoing",AP104,IF(RIGHT($K104,2)=RIGHT(BH$39,2),SUM($AP104:AP104),0)+IF(RIGHT(BH$39,2)>RIGHT($K104,2),AP104,0)) -> 0 | BI104: =+IF($K104="Ongoing",AQ104,IF(RIGHT($K104,2)=RIGHT(BI$39,2),SUM($AP104:AQ104),0)+IF(RIGHT(BI$39,2)>RIGHT($K104,2),AQ104,0)) -> 0 | BJ104: =+IF($K104="Ongoing",AR104,IF(RIGHT($K104,2)=RIGHT(BJ$39,2),SUM($AP104:AR104),0)+IF(RIGHT(BJ$39,2)>RIGHT($K104,2),AR104,0)) -> 0 | BK104: =+IF($K104="Ongoing",AS104,IF(RIGHT($K104,2)=RIGHT(BK$39,2),SUM($AP104:AS104),0)+IF(RIGHT(BK$39,2)>RIGHT($K104,2),AS104,0)) -> 0 | BL104: =+IF($K104="Ongoing",AT104,IF(RIGHT($K104,2)=RIGHT(BL$39,2),SUM($AP104:AT104),0)+IF(RIGHT(BL$39,2)>RIGHT($K104,2),AT104,0)) -> 0.037044 | BM104: =+IF($K104="Ongoing",AU104,IF(RIGHT($K104,2)=RIGHT(BM$39,2),SUM($AP104:AU104),0)+IF(RIGHT(BM$39,2)>RIGHT($K104,2),AU104,0)) -> 0 | BN104: =+IF($K104="Ongoing",AV104,IF(RIGHT($K104,2)=RIGHT(BN$39,2),SUM($AP104:AV104),0)+IF(RIGHT(BN$39,2)>RIGHT($K104,2),AV104,0)) -> 0 | BO104: =+IF($K104="Ongoing",AW104,IF(RIGHT($K104,2)=RIGHT(BO$39,2),SUM($AP104:AW104),0)+IF(RIGHT(BO$39,2)>RIGHT($K104,2),AW104,0)) -> 0 | BQ104: =+O104*KeyAssumptionsPriceControl_FO!Z$15 -> 0 | BR104: =+P104*KeyAssumptionsPriceControl_FO!AA$15 -> 0 | BS104: =+Q104*KeyAssumptionsPriceControl_FO!AB$15 -> 0 | BT104: =+R104*KeyAssumptionsPriceControl_FO!AC$15 -> 0 | BU104: =+S104*KeyAssumptionsPriceControl_FO!AD$15 -> 0.04150458197 | BV104: =+T104*KeyAssumptionsPriceControl_FO!AE$15 -> 0 | BW104: =+U104*KeyAssumptionsPriceControl_FO!AF$15 -> 0 | BX104: =+V104*KeyAssumptionsPriceControl_FO!AG$15 -> 0 | BZ104: 0 | CA104: 0 | CB104: 0 | CC104: 0 | CD104: 0 | CE104: 0 | CF104: 0 | CG104: 0
A105: 53 | B105: 53 | C105: 311 - Structures Program - Guard Rail | E105: Irrigation | F105: Renewals | G105: Channels | H105: Other Capital expenditure | J105: Straight line | K105: 2020-21 | L105: 80 | O105: 0.03024 | P105: 0.02772 | Q105: 0 | R105: 0.08316 | S105: 0.02772 | T105: 0 | U105: 0 | V105: 0.05418 | AP105: 0.03024 | AQ105: 0.02772 | AR105: 0 | AS105: 0.08316 | AT105: 0.02772 | AU105: 0 | AV105: 0 | AW105: 0.05418 | AY105: 0.000189 | AZ105: 0.00055125 | BA105: 0.0007245 | BB105: 0.00124425 | BC105: 0.00193725 | BD105: 0.0021105 | BE105: 0.0021105 | BF105: 0.002449125 | BH105: =+IF($K105="Ongoing",AP105,IF(RIGHT($K105,2)=RIGHT(BH$39,2),SUM($AP105:AP105),0)+IF(RIGHT(BH$39,2)>RIGHT($K105,2),AP105,0)) -> 0.03024 | BI105: =+IF($K105="Ongoing",AQ105,IF(RIGHT($K105,2)=RIGHT(BI$39,2),SUM($AP105:AQ105),0)+IF(RIGHT(BI$39,2)>RIGHT($K105,2),AQ105,0)) -> 0.02772 | BJ105: =+IF($K105="Ongoing",AR105,IF(RIGHT($K105,2)=RIGHT(BJ$39,2),SUM($AP105:AR105),0)+IF(RIGHT(BJ$39,2)>RIGHT($K105,2),AR105,0)) -> 0 | BK105: =+IF($K105="Ongoing",AS105,IF(RIGHT($K105,2)=RIGHT(BK$39,2),SUM($AP105:AS105),0)+IF(RIGHT(BK$39,2)>RIGHT($K105,2),AS105,0)) -> 0.08316 | BL105: =+IF($K105="Ongoing",AT105,IF(RIGHT($K105,2)=RIGHT(BL$39,2),SUM($AP105:AT105),0)+IF(RIGHT(BL$39,2)>RIGHT($K105,2),AT105,0)) -> 0.02772 | BM105: =+IF($K105="Ongoing",AU105,IF(RIGHT($K105,2)=RIGHT(BM$39,2),SUM($AP105:AU105),0)+IF(RIGHT(BM$39,2)>RIGHT($K105,2),AU105,0)) -> 0 | BN105: =+IF($K105="Ongoing",AV105,IF(RIGHT($K105,2)=RIGHT(BN$39,2),SUM($AP105:AV105),0)+IF(RIGHT(BN$39,2)>RIGHT($K105,2),AV105,0)) -> 0 | BO105: =+IF($K105="Ongoing",AW105,IF(RIGHT($K105,2)=RIGHT(BO$39,2),SUM($AP105:AW105),0)+IF(RIGHT(BO$39,2)>RIGHT($K105,2),AW105,0)) -> 0.05418 | BQ105: =+O105*KeyAssumptionsPriceControl_FO!Z$15 -> 0.03093552 | BR105: =+P105*KeyAssumptionsPriceControl_FO!AA$15 -> 0.02900978388 | BS105: =+Q105*KeyAssumptionsPriceControl_FO!AB$15 -> 0 | BT105: =+R105*KeyAssumptionsPriceControl_FO!AC$15 -> 0.09107874034 | BU105: =+S105*KeyAssumptionsPriceControl_FO!AD$15 -> 0.03105785046 | BV105: =+T105*KeyAssumptionsPriceControl_FO!AE$15 -> 0 | BW105: =+U105*KeyAssumptionsPriceControl_FO!AF$15 -> 0 | BX105: =+V105*KeyAssumptionsPriceControl_FO!AG$15 -> 0.06498963089 | BZ105: 0 | CA105: 0 | CB105: 0 | CC105: 0 | CD105: 0 | CE105: 0 | CF105: 0 | CG105: 0
A106: 54 | B106: 54 | C106: 321 - Structures Program - Guard Rail | E106: Irrigation | F106: Renewals | G106: Channels | H106: Other Capital expenditure | J106: Straight line | K106: 2020-21 | L106: 80 | O106: 0.03528 | P106: 0.03276 | Q106: 0.02772 | R106: 0 | S106: 0.03696 | T106: 0.02856 | U106: 0.06132 | V106: 0.02772 | AP106: 0.03528 | AQ106: 0.03276 | AR106: 0.02772 | AS106: 0 | AT106: 0.03696 | AU106: 0.02856 | AV106: 0.06132 | AW106: 0.02772 | AY106: 0.0002205 | AZ106: 0.00064575 | BA106: 0.00102375 | BB106: 0.001197 | BC106: 0.001428 | BD106: 0.0018375 | BE106: 0.00239925 | BF106: 0.00295575 | BH106: =+IF($K106="Ongoing",AP106,IF(RIGHT($K106,2)=RIGHT(BH$39,2),SUM($AP106:AP106),0)+IF(RIGHT(BH$39,2)>RIGHT($K106,2),AP106,0)) -> 0.03528 | BI106: =+IF($K106="Ongoing",AQ106,IF(RIGHT($K106,2)=RIGHT(BI$39,2),SUM($AP106:AQ106),0)+IF(RIGHT(BI$39,2)>RIGHT($K106,2),AQ106,0)) -> 0.03276 | BJ106: =+IF($K106="Ongoing",AR106,IF(RIGHT($K106,2)=RIGHT(BJ$39,2),SUM($AP106:AR106),0)+IF(RIGHT(BJ$39,2)>RIGHT($K106,2),AR106,0)) -> 0.02772 | BK106: =+IF($K106="Ongoing",AS106,IF(RIGHT($K106,2)=RIGHT(BK$39,2),SUM($AP106:AS106),0)+IF(RIGHT(BK$39,2)>RIGHT($K106,2),AS106,0)) -> 0 | BL106: =+IF($K106="Ongoing",AT106,IF(RIGHT($K106,2)=RIGHT(BL$39,2),SUM($AP106:AT106),0)+IF(RIGHT(BL$39,2)>RIGHT($K106,2),AT106,0)) -> 0.03696 | BM106: =+IF($K106="Ongoing",AU106,IF(RIGHT($K106,2)=RIGHT(BM$39,2),SUM($AP106:AU106),0)+IF(RIGHT(BM$39,2)>RIGHT($K106,2),AU106,0)) -> 0.02856 | BN106: =+IF($K106="Ongoing",AV106,IF(RIGHT($K106,2)=RIGHT(BN$39,2),SUM($AP106:AV106),0)+IF(RIGHT(BN$39,2)>RIGHT($K106,2),AV106,0)) -> 0.06132 | BO106: =+IF($K106="Ongoing",AW106,IF(RIGHT($K106,2)=RIGHT(BO$39,2),SUM($AP106:AW106),0)+IF(RIGHT(BO$39,2)>RIGHT($K106,2),AW106,0)) -> 0.02772 | BQ106: =+O106*KeyAssumptionsPriceControl_FO!Z$15 -> 0.03609144 | BR106: =+P106*KeyAssumptionsPriceControl_FO!AA$15 -> 0.03428429004 | BS106: =+Q106*KeyAssumptionsPriceControl_FO!AB$15 -> 0.02967700891 | BT106: =+R106*KeyAssumptionsPriceControl_FO!AC$15 -> 0 | BU106: =+S106*KeyAssumptionsPriceControl_FO!AD$15 -> 0.04141046728 | BV106: =+T106*KeyAssumptionsPriceControl_FO!AE$15 -> 0.03273497438 | BW106: =+U106*KeyAssumptionsPriceControl_FO!AF$15 -> 0.07190044564 | BX106: =+V106*KeyAssumptionsPriceControl_FO!AG$15 -> 0.03325050883 | BZ106: 0 | CA106: 0 | CB106: 0 | CC106: 0 | CD106: 0 | CE106: 0 | CF106: 0 | CG106: 0
A107: 55 | B107: 55 | C107: 341 - Structures Program - Guard Rail | E107: Irrigation | F107: Renewals | G107: Channels | H107: Other Capital expenditure | J107: Straight line | K107: 2020-21 | L107: 80 | O107: 0.03276 | P107: 0 | Q107: 0 | R107: 0 | S107: 0 | T107: 0 | U107: 0 | V107: 0 | AP107: 0.03276 | AQ107: 0 | AR107: 0 | AS107: 0 | AT107: 0 | AU107: 0 | AV107: 0 | AW107: 0 | AY107: 0.00020475 | AZ107: 0.0004095 | BA107: 0.0004095 | BB107: 0.0004095 | BC107: 0.0004095 | BD107: 0.0004095 | BE107: 0.0004095 | BF107: 0.0004095 | BH107: =+IF($K107="Ongoing",AP107,IF(RIGHT($K107,2)=RIGHT(BH$39,2),SUM($AP107:AP107),0)+IF(RIGHT(BH$39,2)>RIGHT($K107,2),AP107,0)) -> 0.03276 | BI107: =+IF($K107="Ongoing",AQ107,IF(RIGHT($K107,2)=RIGHT(BI$39,2),SUM($AP107:AQ107),0)+IF(RIGHT(BI$39,2)>RIGHT($K107,2),AQ107,0)) -> 0 | BJ107: =+IF($K107="Ongoing",AR107,IF(RIGHT($K107,2)=RIGHT(BJ$39,2),SUM($AP107:AR107),0)+IF(RIGHT(BJ$39,2)>RIGHT($K107,2),AR107,0)) -> 0 | BK107: =+IF($K107="Ongoing",AS107,IF(RIGHT($K107,2)=RIGHT(BK$39,2),SUM($AP107:AS107),0)+IF(RIGHT(BK$39,2)>RIGHT($K107,2),AS107,0)) -> 0 | BL107: =+IF($K107="Ongoing",AT107,IF(RIGHT($K107,2)=RIGHT(BL$39,2),SUM($AP107:AT107),0)+IF(RIGHT(BL$39,2)>RIGHT($K107,2),AT107,0)) -> 0 | BM107: =+IF($K107="Ongoing",AU107,IF(RIGHT($K107,2)=RIGHT(BM$39,2),SUM($AP107:AU107),0)+IF(RIGHT(BM$39,2)>RIGHT($K107,2),AU107,0)) -> 0 | BN107: =+IF($K107="Ongoing",AV107,IF(RIGHT($K107,2)=RIGHT(BN$39,2),SUM($AP107:AV107),0)+IF(RIGHT(BN$39,2)>RIGHT($K107,2),AV107,0)) -> 0 | BO107: =+IF($K107="Ongoing",AW107,IF(RIGHT($K107,2)=RIGHT(BO$39,2),SUM($AP107:AW107),0)+IF(RIGHT(BO$39,2)>RIGHT($K107,2),AW107,0)) -> 0 | BQ107: =+O107*KeyAssumptionsPriceControl_FO!Z$15 -> 0.03351348 | BR107: =+P107*KeyAssumptionsPriceControl_FO!AA$15 -> 0 | BS107: =+Q107*KeyAssumptionsPriceControl_FO!AB$15 -> 0 | BT107: =+R107*KeyAssumptionsPriceControl_FO!AC$15 -> 0 | BU107: =+S107*KeyAssumptionsPriceControl_FO!AD$15 -> 0 | BV107: =+T107*KeyAssumptionsPriceControl_FO!AE$15 -> 0 | BW107: =+U107*KeyAssumptionsPriceControl_FO!AF$15 -> 0 | BX107: =+V107*KeyAssumptionsPriceControl_FO!AG$15 -> 0 | BZ107: 0 | CA107: 0 | CB107: 0 | CC107: 0 | CD107: 0 | CE107: 0 | CF107: 0 | CG107: 0
A108: 56 | B108: 56 | C108: 351 - Structures Program - Guard Rail | E108: Irrigation | F108: Renewals | G108: Channels | H108: Other Capital expenditure | J108: Straight line | K108: 2020-21 | L108: 80 | O108: 0.03024 | P108: 0.028056 | Q108: 0.0252 | R108: 0.05796 | S108: 0 | T108: 0 | U108: 0 | V108: 0 | AP108: 0.03024 | AQ108: 0.028056 | AR108: 0.0252 | AS108: 0.05796 | AT108: 0 | AU108: 0 | AV108: 0 | AW108: 0 | AY108: 0.000189 | AZ108: 0.00055335 | BA108: 0.0008862 | BB108: 0.00140595 | BC108: 0.0017682 | BD108: 0.0017682 | BE108: 0.0017682 | BF108: 0.0017682 | BH108: =+IF($K108="Ongoing",AP108,IF(RIGHT($K108,2)=RIGHT(BH$39,2),SUM($AP108:AP108),0)+IF(RIGHT(BH$39,2)>RIGHT($K108,2),AP108,0)) -> 0.03024 | BI108: =+IF($K108="Ongoing",AQ108,IF(RIGHT($K108,2)=RIGHT(BI$39,2),SUM($AP108:AQ108),0)+IF(RIGHT(BI$39,2)>RIGHT($K108,2),AQ108,0)) -> 0.028056 | BJ108: =+IF($K108="Ongoing",AR108,IF(RIGHT($K108,2)=RIGHT(BJ$39,2),SUM($AP108:AR108),0)+IF(RIGHT(BJ$39,2)>RIGHT($K108,2),AR108,0)) -> 0.0252 | BK108: =+IF($K108="Ongoing",AS108,IF(RIGHT($K108,2)=RIGHT(BK$39,2),SUM($AP108:AS108),0)+IF(RIGHT(BK$39,2)>RIGHT($K108,2),AS108,0)) -> 0.05796 | BL108: =+IF($K108="Ongoing",AT108,IF(RIGHT($K108,2)=RIGHT(BL$39,2),SUM($AP108:AT108),0)+IF(RIGHT(BL$39,2)>RIGHT($K108,2),AT108,0)) -> 0 | BM108: =+IF($K108="Ongoing",AU108,IF(RIGHT($K108,2)=RIGHT(BM$39,2),SUM($AP108:AU108),0)+IF(RIGHT(BM$39,2)>RIGHT($K108,2),AU108,0)) -> 0 | BN108: =+IF($K108="Ongoing",AV108,IF(RIGHT($K108,2)=RIGHT(BN$39,2),SUM($AP108:AV108),0)+IF(RIGHT(BN$39,2)>RIGHT($K108,2),AV108,0)) -> 0 | BO108: =+IF($K108="Ongoing",AW108,IF(RIGHT($K108,2)=RIGHT(BO$39,2),SUM($AP108:AW108),0)+IF(RIGHT(BO$39,2)>RIGHT($K108,2),AW108,0)) -> 0 | BQ108: =+O108*KeyAssumptionsPriceControl_FO!Z$15 -> 0.03093552 | BR108: =+P108*KeyAssumptionsPriceControl_FO!AA$15 -> 0.02936141762 | BS108: =+Q108*KeyAssumptionsPriceControl_FO!AB$15 -> 0.02697909901 | BT108: =+R108*KeyAssumptionsPriceControl_FO!AC$15 -> 0.06347912206 | BU108: =+S108*KeyAssumptionsPriceControl_FO!AD$15 -> 0 | BV108: =+T108*KeyAssumptionsPriceControl_FO!AE$15 -> 0 | BW108: =+U108*KeyAssumptionsPriceControl_FO!AF$15 -> 0 | BX108: =+V108*KeyAssumptionsPriceControl_FO!AG$15 -> 0 | BZ108: 0 | CA108: 0 | CB108: 0 | CC108: 0 | CD108: 0 | CE108: 0 | CF108: 0 | CG108: 0
A109: 57 | B109: 57 | C109: 361 - Structures Program - Guard Rail | E109: Irrigation | F109: Renewals | G109: Channels | H109: Other Capital expenditure | J109: Straight line | K109: 2020-21 | L109: 80 | O109: 0.05082 | P109: 0.034188 | Q109: 0.037296 | R109: 0.03024 | S109: 0.0255192 | T109: 0.03318 | U109: 0 | V109: 0 | AP109: 0.05082 | AQ109: 0.034188 | AR109: 0.037296 | AS109: 0.03024 | AT109: 0.0255192 | AU109: 0.03318 | AV109: 0 | AW109: 0 | AY109: 0.000317625 | AZ109: 0.000848925 | BA109: 0.0012957 | BB109: 0.0017178 | BC109: 0.002066295 | BD109: 0.002433165 | BE109: 0.00264054 | BF109: 0.00264054 | BH109: =+IF($K109="Ongoing",AP109,IF(RIGHT($K109,2)=RIGHT(BH$39,2),SUM($AP109:AP109),0)+IF(RIGHT(BH$39,2)>RIGHT($K109,2),AP109,0)) -> 0.05082 | BI109: =+IF($K109="Ongoing",AQ109,IF(RIGHT($K109,2)=RIGHT(BI$39,2),SUM($AP109:AQ109),0)+IF(RIGHT(BI$39,2)>RIGHT($K109,2),AQ109,0)) -> 0.034188 | BJ109: =+IF($K109="Ongoing",AR109,IF(RIGHT($K109,2)=RIGHT(BJ$39,2),SUM($AP109:AR109),0)+IF(RIGHT(BJ$39,2)>RIGHT($K109,2),AR109,0)) -> 0.037296 | BK109: =+IF($K109="Ongoing",AS109,IF(RIGHT($K109,2)=RIGHT(BK$39,2),SUM($AP109:AS109),0)+IF(RIGHT(BK$39,2)>RIGHT($K109,2),AS109,0)) -> 0.03024 | BL109: =+IF($K109="Ongoing",AT109,IF(RIGHT($K109,2)=RIGHT(BL$39,2),SUM($AP109:AT109),0)+IF(RIGHT(BL$39,2)>RIGHT($K109,2),AT109,0)) -> 0.0255192 | BM109: =+IF($K109="Ongoing",AU109,IF(RIGHT($K109,2)=RIGHT(BM$39,2),SUM($AP109:AU109),0)+IF(RIGHT(BM$39,2)>RIGHT($K109,2),AU109,0)) -> 0.03318 | BN109: =+IF($K109="Ongoing",AV109,IF(RIGHT($K109,2)=RIGHT(BN$39,2),SUM($AP109:AV109),0)+IF(RIGHT(BN$39,2)>RIGHT($K109,2),AV109,0)) -> 0 | BO109: =+IF($K109="Ongoing",AW109,IF(RIGHT($K109,2)=RIGHT(BO$39,2),SUM($AP109:AW109),0)+IF(RIGHT(BO$39,2)>RIGHT($K109,2),AW109,0)) -> 0 | BQ109: =+O109*KeyAssumptionsPriceControl_FO!Z$15 -> 0.05198886 | BR109: =+P109*KeyAssumptionsPriceControl_FO!AA$15 -> 0.03577873345 | BS109: =+Q109*KeyAssumptionsPriceControl_FO!AB$15 -> 0.03992906653 | BT109: =+R109*KeyAssumptionsPriceControl_FO!AC$15 -> 0.03311954194 | BU109: =+S109*KeyAssumptionsPriceControl_FO!AD$15 -> 0.02859204536 | BV109: =+T109*KeyAssumptionsPriceControl_FO!AE$15 -> 0.03803033788 | BW109: =+U109*KeyAssumptionsPriceControl_FO!AF$15 -> 0 | BX109: =+V109*KeyAssumptionsPriceControl_FO!AG$15 -> 0 | BZ109: 0 | CA109: 0 | CB109: 0 | CC109: 0 | CD109: 0 | CE109: 0 | CF109: 0 | CG109: 0
A110: 58 | B110: 58 | C110: 232 - Structures Program - Guard Rail | E110: Irrigation | F110: Renewals | G110: Channels | H110: Other Capital expenditure | J110: Straight line | K110: 2021-22 | L110: 80 | O110: 0 | P110: 0.0504 | Q110: 0 | R110: 0 | S110: 0 | T110: 0 | U110: 0 | V110: 0 | AP110: 0 | AQ110: 0.0504 | AR110: 0 | AS110: 0 | AT110: 0 | AU110: 0 | AV110: 0 | AW110: 0 | AY110: 0 | AZ110: 0.000315 | BA110: 0.00063 | BB110: 0.00063 | BC110: 0.00063 | BD110: 0.00063 | BE110: 0.00063 | BF110: 0.00063 | BH110: =+IF($K110="Ongoing",AP110,IF(RIGHT($K110,2)=RIGHT(BH$39,2),SUM($AP110:AP110),0)+IF(RIGHT(BH$39,2)>RIGHT($K110,2),AP110,0)) -> 0 | BI110: =+IF($K110="Ongoing",AQ110,IF(RIGHT($K110,2)=RIGHT(BI$39,2),SUM($AP110:AQ110),0)+IF(RIGHT(BI$39,2)>RIGHT($K110,2),AQ110,0)) -> 0.0504 | BJ110: =+IF($K110="Ongoing",AR110,IF(RIGHT($K110,2)=RIGHT(BJ$39,2),SUM($AP110:AR110),0)+IF(RIGHT(BJ$39,2)>RIGHT($K110,2),AR110,0)) -> 0 | BK110: =+IF($K110="Ongoing",AS110,IF(RIGHT($K110,2)=RIGHT(BK$39,2),SUM($AP110:AS110),0)+IF(RIGHT(BK$39,2)>RIGHT($K110,2),AS110,0)) -> 0 | BL110: =+IF($K110="Ongoing",AT110,IF(RIGHT($K110,2)=RIGHT(BL$39,2),SUM($AP110:AT110),0)+IF(RIGHT(BL$39,2)>RIGHT($K110,2),AT110,0)) -> 0 | BM110: =+IF($K110="Ongoing",AU110,IF(RIGHT($K110,2)=RIGHT(BM$39,2),SUM($AP110:AU110),0)+IF(RIGHT(BM$39,2)>RIGHT($K110,2),AU110,0)) -> 0 | BN110: =+IF($K110="Ongoing",AV110,IF(RIGHT($K110,2)=RIGHT(BN$39,2),SUM($AP110:AV110),0)+IF(RIGHT(BN$39,2)>RIGHT($K110,2),AV110,0)) -> 0 | BO110: =+IF($K110="Ongoing",AW110,IF(RIGHT($K110,2)=RIGHT(BO$39,2),SUM($AP110:AW110),0)+IF(RIGHT(BO$39,2)>RIGHT($K110,2),AW110,0)) -> 0 | BQ110: =+O110*KeyAssumptionsPriceControl_FO!Z$15 -> 0 | BR110: =+P110*KeyAssumptionsPriceControl_FO!AA$15 -> 0.0527450616 | BS110: =+Q110*KeyAssumptionsPriceControl_FO!AB$15 -> 0 | BT110: =+R110*KeyAssumptionsPriceControl_FO!AC$15 -> 0 | BU110: =+S110*KeyAssumptionsPriceControl_FO!AD$15 -> 0 | BV110: =+T110*KeyAssumptionsPriceControl_FO!AE$15 -> 0 | BW110: =+U110*KeyAssumptionsPriceControl_FO!AF$15 -> 0 | BX110: =+V110*KeyAssumptionsPriceControl_FO!AG$15 -> 0 | BZ110: 0 | CA110: 0 | CB110: 0 | CC110: 0 | CD110: 0 | CE110: 0 | CF110: 0 | CG110: 0
A111: 59 | B111: 59 | C111: Bridge Abutments | E111: 0 | F111: 0 | G111: 0 | H111: Other Capital expenditure | J111: Straight line | K111: 0 | L111: 0 | O111: 0 | P111: 0 | Q111: 0 | R111: 0 | S111: 0 | T111: 0 | U111: 0 | V111: 0 | AP111: 0 | AQ111: 0 | AR111: 0 | AS111: 0 | AT111: 0 | AU111: 0 | AV111: 0 | AW111: 0 | AY111: 0 | AZ111: 0 | BA111: 0 | BB111: 0 | BC111: 0 | BD111: 0 | BE111: 0 | BF111: 0 | BH111: =+IF($K111="Ongoing",AP111,IF(RIGHT($K111,2)=RIGHT(BH$39,2),SUM($AP111:AP111),0)+IF(RIGHT(BH$39,2)>RIGHT($K111,2),AP111,0)) -> 0 | BI111: =+IF($K111="Ongoing",AQ111,IF(RIGHT($K111,2)=RIGHT(BI$39,2),SUM($AP111:AQ111),0)+IF(RIGHT(BI$39,2)>RIGHT($K111,2),AQ111,0)) -> 0 | BJ111: =+IF($K111="Ongoing",AR111,IF(RIGHT($K111,2)=RIGHT(BJ$39,2),SUM($AP111:AR111),0)+IF(RIGHT(BJ$39,2)>RIGHT($K111,2),AR111,0)) -> 0 | BK111: =+IF($K111="Ongoing",AS111,IF(RIGHT($K111,2)=RIGHT(BK$39,2),SUM($AP111:AS111),0)+IF(RIGHT(BK$39,2)>RIGHT($K111,2),AS111,0)) -> 0 | BL111: =+IF($K111="Ongoing",AT111,IF(RIGHT($K111,2)=RIGHT(BL$39,2),SUM($AP111:AT111),0)+IF(RIGHT(BL$39,2)>RIGHT($K111,2),AT111,0)) -> 0 | BM111: =+IF($K111="Ongoing",AU111,IF(RIGHT($K111,2)=RIGHT(BM$39,2),SUM($AP111:AU111),0)+IF(RIGHT(BM$39,2)>RIGHT($K111,2),AU111,0)) -> 0 | BN111: =+IF($K111="Ongoing",AV111,IF(RIGHT($K111,2)=RIGHT(BN$39,2),SUM($AP111:AV111),0)+IF(RIGHT(BN$39,2)>RIGHT($K111,2),AV111,0)) -> 0 | BO111: =+IF($K111="Ongoing",AW111,IF(RIGHT($K111,2)=RIGHT(BO$39,2),SUM($AP111:AW111),0)+IF(RIGHT(BO$39,2)>RIGHT($K111,2),AW111,0)) -> 0 | BQ111: =+O111*KeyAssumptionsPriceControl_FO!Z$15 -> 0 | BR111: =+P111*KeyAssumptionsPriceControl_FO!AA$15 -> 0 | BS111: =+Q111*KeyAssumptionsPriceControl_FO!AB$15 -> 0 | BT111: =+R111*KeyAssumptionsPriceControl_FO!AC$15 -> 0 | BU111: =+S111*KeyAssumptionsPriceControl_FO!AD$15 -> 0 | BV111: =+T111*KeyAssumptionsPriceControl_FO!AE$15 -> 0 | BW111: =+U111*KeyAssumptionsPriceControl_FO!AF$15 -> 0 | BX111: =+V111*KeyAssumptionsPriceControl_FO!AG$15 -> 0 | BZ111: 0 | CA111: 0 | CB111: 0 | CC111: 0 | CD111: 0 | CE111: 0 | CF111: 0 | CG111: 0
A112: 60 | B112: 60 | C112: 301 - Structures Program - Bridge Abutments | E112: Irrigation | F112: Renewals | G112: Channels | H112: Other Capital expenditure | J112: Straight line | K112: 2020-21 | L112: 80 | O112: 0.028334 | P112: 0.028334 | Q112: 0.028334 | R112: 0.028334 | S112: 0.028334 | T112: 0.028334 | U112: 0.028334 | V112: 0.028334 | AP112: 0.028334 | AQ112: 0.028334 | AR112: 0.028334 | AS112: 0.028334 | AT112: 0.028334 | AU112: 0.028334 | AV112: 0.028334 | AW112: 0.028334 | AY112: 0.0001770875 | AZ112: 0.0005312625 | BA112: 0.0008854375 | BB112: 0.0012396125 | BC112: 0.0015937875 | BD112: 0.0019479625 | BE112: 0.0023021375 | BF112: 0.0026563125 | BH112: =+IF($K112="Ongoing",AP112,IF(RIGHT($K112,2)=RIGHT(BH$39,2),SUM($AP112:AP112),0)+IF(RIGHT(BH$39,2)>RIGHT($K112,2),AP112,0)) -> 0.028334 | BI112: =+IF($K112="Ongoing",AQ112,IF(RIGHT($K112,2)=RIGHT(BI$39,2),SUM($AP112:AQ112),0)+IF(RIGHT(BI$39,2)>RIGHT($K112,2),AQ112,0)) -> 0.028334 | BJ112: =+IF($K112="Ongoing",AR112,IF(RIGHT($K112,2)=RIGHT(BJ$39,2),SUM($AP112:AR112),0)+IF(RIGHT(BJ$39,2)>RIGHT($K112,2),AR112,0)) -> 0.028334 | BK112: =+IF($K112="Ongoing",AS112,IF(RIGHT($K112,2)=RIGHT(BK$39,2),SUM($AP112:AS112),0)+IF(RIGHT(BK$39,2)>RIGHT($K112,2),AS112,0)) -> 0.028334 | BL112: =+IF($K112="Ongoing",AT112,IF(RIGHT($K112,2)=RIGHT(BL$39,2),SUM($AP112:AT112),0)+IF(RIGHT(BL$39,2)>RIGHT($K112,2),AT112,0)) -> 0.028334 | BM112: =+IF($K112="Ongoing",AU112,IF(RIGHT($K112,2)=RIGHT(BM$39,2),SUM($AP112:AU112),0)+IF(RIGHT(BM$39,2)>RIGHT($K112,2),AU112,0)) -> 0.028334 | BN112: =+IF($K112="Ongoing",AV112,IF(RIGHT($K112,2)=RIGHT(BN$39,2),SUM($AP112:AV112),0)+IF(RIGHT(BN$39,2)>RIGHT($K112,2),AV112,0)) -> 0.028334 | BO112: =+IF($K112="Ongoing",AW112,IF(RIGHT($K112,2)=RIGHT(BO$39,2),SUM($AP112:AW112),0)+IF(RIGHT(BO$39,2)>RIGHT($K112,2),AW112,0)) -> 0.028334 | BQ112: =+O112*KeyAssumptionsPriceControl_FO!Z$15 -> 0.028985682 | BR112: =+P112*KeyAssumptionsPriceControl_FO!AA$15 -> 0.02965235269 | BS112: =+Q112*KeyAssumptionsPriceControl_FO!AB$15 -> 0.0303343568 | BT112: =+R112*KeyAssumptionsPriceControl_FO!AC$15 -> 0.031032047 | BU112: =+S112*KeyAssumptionsPriceControl_FO!AD$15 -> 0.03174578409 | BV112: =+T112*KeyAssumptionsPriceControl_FO!AE$15 -> 0.03247593712 | BW112: =+U112*KeyAssumptionsPriceControl_FO!AF$15 -> 0.03322288367 | BX112: =+V112*KeyAssumptionsPriceControl_FO!AG$15 -> 0.03398701 | BZ112: 0 | CA112: 0 | CB112: 0 | CC112: 0 | CD112: 0 | CE112: 0 | CF112: 0 | CG112: 0
A113: 61 | B113: 61 | C113: 311 - Structures Program - Bridge Abutments | E113: Irrigation | F113: Renewals | G113: Channels | H113: Other Capital expenditure | J113: Straight line | K113: 2020-21 | L113: 80 | O113: 0.028334 | P113: 0.028334 | Q113: 0.028334 | R113: 0.028334 | S113: 0.028334 | T113: 0.028334 | U113: 0.028334 | V113: 0.028334 | AP113: =+O113-X113-AG113 -> 0.028334 | AQ113: =+P113-Y113-AH113 -> 0.028334 | AR113: =+Q113-Z113-AI113 -> 0.028334 | AS113: =+R113-AA113-AJ113 -> 0.028334 | AT113: =+S113-AB113-AK113 -> 0.028334 | AU113: =+T113-AC113-AL113 -> 0.028334 | AV113: =+U113-AD113-AM113 -> 0.028334 | AW113: =+V113-AE113-AN113 -> 0.028334 | AY113: =IF($L113=0,0, IF($L113<=0.5,BH113, IF($J113="straight line", IF((LEFT(AY$39,4)*1)-INT($L113)<LEFT($AY$39,4)*1,0,((OFFSET(BH113,0,-INT($L113+0.5),1,1))/$L113)*(IF($L113-INT($L113)>0.5,$L113-0.5-INT($L113),IF($L113-INT($L113)<=0.5,$L113-0.5-INT($L113)+1,0)))) +BH113/$L113*0.5, IF($J113="Declining Balance",-$AY$38,0)))) -> 0.0001770875 | AZ113: =IF($L113=0,0, IF($L113<=0.5,BI113, IF(AND($J113="straight line",$L113<1.51),(BH113-((BH113/$L113)*0.5))+BI113/$L113*0.5, IF($J113="straight line", IF((LEFT(AZ$39,4)*1)-INT($L113)<LEFT($AY$39,4)*1,0,((OFFSET(BI113,0,-INT($L113+0.5),1,1))/$L113)*(IF($L113-INT($L113)>0.5,$L113-0.5-INT($L113),IF($L113-INT($L113)<=0.5,$L113-0.5-INT($L113)+1,0)))) +BI113/$L113*0.5 +SUM(OFFSET(BI113,0,MAX(-INT($L113+(0.5-(10^-12))),-AZ$40)+1,1,MIN(INT($L113+(0.5-(10^-12))),AZ$40)-1))*1/$L113, IF($J113="Declining Balance",-$AY$38,0))))) -> 0.0005312625 | BA113: =IF($L113=0,0, IF($L113<=0.5,BJ113, IF(AND($J113="straight line",$L113<1.51),(BI113-((BI113/$L113)*0.5))+BJ113/$L113*0.5, IF($J113="straight line", IF((LEFT(BA$39,4)*1)-INT($L113)<LEFT($AY$39,4)*1,0,((OFFSET(BJ113,0,-INT($L113+0.5),1,1))/$L113)*(IF($L113-INT($L113)>0.5,$L113-0.5-INT($L113),IF($L113-INT($L113)<=0.5,$L113-0.5-INT($L113)+1,0)))) +BJ113/$L113*0.5 +SUM(OFFSET(BJ113,0,MAX(-INT($L113+(0.5-(10^-12))),-BA$40)+1,1,MIN(INT($L113+(0.5-(10^-12))),BA$40)-1))*1/$L113, IF($J113="Declining Balance",-$AY$38,0))))) -> 0.0008854375 | BB113: =IF($L113=0,0, IF($L113<=0.5,BK113, IF(AND($J113="straight line",$L113<1.51),(BJ113-((BJ113/$L113)*0.5))+BK113/$L113*0.5, IF($J113="straight line", IF((LEFT(BB$39,4)*1)-INT($L113)<LEFT($AY$39,4)*1,0,((OFFSET(BK113,0,-INT($L113+0.5),1,1))/$L113)*(IF($L113-INT($L113)>0.5,$L113-0.5-INT($L113),IF($L113-INT($L113)<=0.5,$L113-0.5-INT($L113)+1,0)))) +BK113/$L113*0.5 +SUM(OFFSET(BK113,0,MAX(-INT($L113+(0.5-(10^-12))),-BB$40)+1,1,MIN(INT($L113+(0.5-(10^-12))),BB$40)-1))*1/$L113, IF($J113="Declining Balance",-$AY$38,0))))) -> 0.0012396125 | BC113: =IF($L113=0,0, IF($L113<=0.5,BL113, IF(AND($J113="straight line",$L113<1.51),(BK113-((BK113/$L113)*0.5))+BL113/$L113*0.5, IF($J113="straight line", IF((LEFT(BC$39,4)*1)-INT($L113)<LEFT($AY$39,4)*1,0,((OFFSET(BL113,0,-INT($L113+0.5),1,1))/$L113)*(IF($L113-INT($L113)>0.5,$L113-0.5-INT($L113),IF($L113-INT($L113)<=0.5,$L113-0.5-INT($L113)+1,0)))) +BL113/$L113*0.5 +SUM(OFFSET(BL113,0,MAX(-INT($L113+(0.5-(10^-12))),-BC$40)+1,1,MIN(INT($L113+(0.5-(10^-12))),BC$40)-1))*1/$L113, IF($J113="Declining Balance",-$AY$38,0))))) -> 0.0015937875 | BD113: =IF($L113=0,0, IF($L113<=0.5,BM113, IF(AND($J113="straight line",$L113<1.51),(BL113-((BL113/$L113)*0.5))+BM113/$L113*0.5, IF($J113="straight line", IF((LEFT(BD$39,4)*1)-INT($L113)<LEFT($AY$39,4)*1,0,((OFFSET(BM113,0,-INT($L113+0.5),1,1))/$L113)*(IF($L113-INT($L113)>0.5,$L113-0.5-INT($L113),IF($L113-INT($L113)<=0.5,$L113-0.5-INT($L113)+1,0)))) +BM113/$L113*0.5 +SUM(OFFSET(BM113,0,MAX(-INT($L113+(0.5-(10^-12))),-BD$40)+1,1,MIN(INT($L113+(0.5-(10^-12))),BD$40)-1))*1/$L113, IF($J113="Declining Balance",-$AY$38,0))))) -> 0.0019479625 | BE113: =IF($L113=0,0, IF($L113<=0.5,BN113, IF(AND($J113="straight line",$L113<1.51),(BM113-((BM113/$L113)*0.5))+BN113/$L113*0.5, IF($J113="straight line", IF((LEFT(BE$39,4)*1)-INT($L113)<LEFT($AY$39,4)*1,0,((OFFSET(BN113,0,-INT($L113+0.5),1,1))/$L113)*(IF($L113-INT($L113)>0.5,$L113-0.5-INT($L113),IF($L113-INT($L113)<=0.5,$L113-0.5-INT($L113)+1,0)))) +BN113/$L113*0.5 +SUM(OFFSET(BN113,0,MAX(-INT($L113+(0.5-(10^-12))),-BE$40)+1,1,MIN(INT($L113+(0.5-(10^-12))),BE$40)-1))*1/$L113, IF($J113="Declining Balance",-$AY$38,0))))) -> 0.0023021375 | BF113: =IF($L113=0,0, IF($L113<=0.5,BO113, IF(AND($J113="straight line",$L113<1.51),(BN113-((BN113/$L113)*0.5))+BO113/$L113*0.5, IF($J113="straight line", IF((LEFT(BF$39,4)*1)-INT($L113)<LEFT($AY$39,4)*1,0,((OFFSET(BO113,0,-INT($L113+0.5),1,1))/$L113)*(IF($L113-INT($L113)>0.5,$L113-0.5-INT($L113),IF($L113-INT($L113)<=0.5,$L113-0.5-INT($L113)+1,0)))) +BO113/$L113*0.5 +SUM(OFFSET(BO113,0,MAX(-INT($L113+(0.5-(10^-12))),-BF$40)+1,1,MIN(INT($L113+(0.5-(10^-12))),BF$40)-1))*1/$L113, IF($J113="Declining Balance",-$AY$38,0))))) -> 0.0026563125 | BH113: =+IF($K113="Ongoing",AP113,IF(RIGHT($K113,2)=RIGHT(BH$39,2),SUM($AP113:AP113),0)+IF(RIGHT(BH$39,2)>RIGHT($K113,2),AP113,0)) -> 0.028334 | BI113: =+IF($K113="Ongoing",AQ113,IF(RIGHT($K113,2)=RIGHT(BI$39,2),SUM($AP113:AQ113),0)+IF(RIGHT(BI$39,2)>RIGHT($K113,2),AQ113,0)) -> 0.028334 | BJ113: =+IF($K113="Ongoing",AR113,IF(RIGHT($K113,2)=RIGHT(BJ$39,2),SUM($AP113:AR113),0)+IF(RIGHT(BJ$39,2)>RIGHT($K113,2),AR113,0)) -> 0.028334 | BK113: =+IF($K113="Ongoing",AS113,IF(RIGHT($K113,2)=RIGHT(BK$39,2),SUM($AP113:AS113),0)+IF(RIGHT(BK$39,2)>RIGHT($K113,2),AS113,0)) -> 0.028334 | BL113: =+IF($K113="Ongoing",AT113,IF(RIGHT($K113,2)=RIGHT(BL$39,2),SUM($AP113:AT113),0)+IF(RIGHT(BL$39,2)>RIGHT($K113,2),AT113,0)) -> 0.028334 | BM113: =+IF($K113="Ongoing",AU113,IF(RIGHT($K113,2)=RIGHT(BM$39,2),SUM($AP113:AU113),0)+IF(RIGHT(BM$39,2)>RIGHT($K113,2),AU113,0)) -> 0.028334 | BN113: =+IF($K113="Ongoing",AV113,IF(RIGHT($K113,2)=RIGHT(BN$39,2),SUM($AP113:AV113),0)+IF(RIGHT(BN$39,2)>RIGHT($K113,2),AV113,0)) -> 0.028334 | BO113: =+IF($K113="Ongoing",AW113,IF(RIGHT($K113,2)=RIGHT(BO$39,2),SUM($AP113:AW113),0)+IF(RIGHT(BO$39,2)>RIGHT($K113,2),AW113,0)) -> 0.028334 | BQ113: =+O113*KeyAssumptionsPriceControl_FO!Z$15 -> 0.028985682 | BR113: =+P113*KeyAssumptionsPriceControl_FO!AA$15 -> 0.02965235269 | BS113: =+Q113*KeyAssumptionsPriceControl_FO!AB$15 -> 0.0303343568 | BT113: =+R113*KeyAssumptionsPriceControl_FO!AC$15 -> 0.031032047 | BU113: =+S113*KeyAssumptionsPriceControl_FO!AD$15 -> 0.03174578409 | BV113: =+T113*KeyAssumptionsPriceControl_FO!AE$15 -> 0.03247593712 | BW113: =+U113*KeyAssumptionsPriceControl_FO!AF$15 -> 0.03322288367 | BX113: =+V113*KeyAssumptionsPriceControl_FO!AG$15 -> 0.03398701 | BZ113: =IF($M113=0,0, IF($M113<=0.5,BQ113, IF($J113="straight line", IF((LEFT(BZ$39,4)*1)-INT($M113)<LEFT($BZ$39,4)*1,0,((OFFSET(BQ113,0,-INT($M113+0.5),1,1))/$M113)*(IF($M113-INT($M113)>0.5,$M113-0.5-INT($M113),IF($M113-INT($M113)<=0.5,$M113-0.5-INT($M113)+1,0)))) +BQ113/$M113*0.5, IF($J113="Declining Balance",-$BZ$38,0)))) -> 0 | CA113: =IF($M113=0,0, IF($M113<=0.5,BR113, IF(AND($J113="straight line",$M113<1.51),(BQ113-((BQ113/$M113)*0.5))+BR113/$M113*0.5, IF($J113="straight line", IF((LEFT(CA$39,4)*1)-INT($M113)<LEFT($BZ$39,4)*1,0,((OFFSET(BR113,0,-INT($M113+0.5),1,1))/$M113)*(IF($M113-INT($M113)>0.5,$M113-0.5-INT($M113),IF($M113-INT($M113)<=0.5,$M113-0.5-INT($M113)+1,0)))) +BR113/$M113*0.5 +SUM(OFFSET(BR113,0,MAX(-INT($M113+(0.5-(10^-12))),-CA$40)+1,1,MIN(INT($M113+(0.5-(10^-12))),CA$40)-1))*1/$M113, IF($J113="Declining Balance",-$BZ$38,0))))) -> 0 | CB113: =IF($M113=0,0, IF($M113<=0.5,BS113, IF(AND($J113="straight line",$M113<1.51),(BR113-((BR113/$M113)*0.5))+BS113/$M113*0.5, IF($J113="straight line", IF((LEFT(CB$39,4)*1)-INT($M113)<LEFT($BZ$39,4)*1,0,((OFFSET(BS113,0,-INT($M113+0.5),1,1))/$M113)*(IF($M113-INT($M113)>0.5,$M113-0.5-INT($M113),IF($M113-INT($M113)<=0.5,$M113-0.5-INT($M113)+1,0)))) +BS113/$M113*0.5 +SUM(OFFSET(BS113,0,MAX(-INT($M113+(0.5-(10^-12))),-CB$40)+1,1,MIN(INT($M113+(0.5-(10^-12))),CB$40)-1))*1/$M113, IF($J113="Declining Balance",-$BZ$38,0))))) -> 0 | CC113: =IF($M113=0,0, IF($M113<=0.5,BT113, IF(AND($J113="straight line",$M113<1.51),(BS113-((BS113/$M113)*0.5))+BT113/$M113*0.5, IF($J113="straight line", IF((LEFT(CC$39,4)*1)-INT($M113)<LEFT($BZ$39,4)*1,0,((OFFSET(BT113,0,-INT($M113+0.5),1,1))/$M113)*(IF($M113-INT($M113)>0.5,$M113-0.5-INT($M113),IF($M113-INT($M113)<=0.5,$M113-0.5-INT($M113)+1,0)))) +BT113/$M113*0.5 +SUM(OFFSET(BT113,0,MAX(-INT($M113+(0.5-(10^-12))),-CC$40)+1,1,MIN(INT($M113+(0.5-(10^-12))),CC$40)-1))*1/$M113, IF($J113="Declining Balance",-$BZ$38,0))))) -> 0 | CD113: =IF($M113=0,0, IF($M113<=0.5,BU113, IF(AND($J113="straight line",$M113<1.51),(BT113-((BT113/$M113)*0.5))+BU113/$M113*0.5, IF($J113="straight line", IF((LEFT(CD$39,4)*1)-INT($M113)<LEFT($BZ$39,4)*1,0,((OFFSET(BU113,0,-INT($M113+0.5),1,1))/$M113)*(IF($M113-INT($M113)>0.5,$M113-0.5-INT($M113),IF($M113-INT($M113)<=0.5,$M113-0.5-INT($M113)+1,0)))) +BU113/$M113*0.5 +SUM(OFFSET(BU113,0,MAX(-INT($M113+(0.5-(10^-12))),-CD$40)+1,1,MIN(INT($M113+(0.5-(10^-12))),CD$40)-1))*1/$M113, IF($J113="Declining Balance",-$BZ$38,0))))) -> 0 | CE113: =IF($M113=0,0, IF($M113<=0.5,BV113, IF(AND($J113="straight line",$M113<1.51),(BU113-((BU113/$M113)*0.5))+BV113/$M113*0.5, IF($J113="straight line", IF((LEFT(CE$39,4)*1)-INT($M113)<LEFT($BZ$39,4)*1,0,((OFFSET(BV113,0,-INT($M113+0.5),1,1))/$M113)*(IF($M113-INT($M113)>0.5,$M113-0.5-INT($M113),IF($M113-INT($M113)<=0.5,$M113-0.5-INT($M113)+1,0)))) +BV113/$M113*0.5 +SUM(OFFSET(BV113,0,MAX(-INT($M113+(0.5-(10^-12))),-CE$40)+1,1,MIN(INT($M113+(0.5-(10^-12))),CE$40)-1))*1/$M113, IF($J113="Declining Balance",-$BZ$38,0))))) -> 0 | CF113: =IF($M113=0,0, IF($M113<=0.5,BW113, IF(AND($J113="straight line",$M113<1.51),(BV113-((BV113/$M113)*0.5))+BW113/$M113*0.5, IF($J113="straight line", IF((LEFT(CF$39,4)*1)-INT($M113)<LEFT($BZ$39,4)*1,0,((OFFSET(BW113,0,-INT($M113+0.5),1,1))/$M113)*(IF($M113-INT($M113)>0.5,$M113-0.5-INT($M113),IF($M113-INT($M113)<=0.5,$M113-0.5-INT($M113)+1,0)))) +BW113/$M113*0.5 +SUM(OFFSET(BW113,0,MAX(-INT($M113+(0.5-(10^-12))),-CF$40)+1,1,MIN(INT($M113+(0.5-(10^-12))),CF$40)-1))*1/$M113, IF($J113="Declining Balance",-$BZ$38,0))))) -> 0 | CG113: =IF($M113=0,0, IF($M113<=0.5,BX113, IF(AND($J113="straight line",$M113<1.51),(BW113-((BW113/$M113)*0.5))+BX113/$M113*0.5, IF($J113="straight line", IF((LEFT(CG$39,4)*1)-INT($M113)<LEFT($BZ$39,4)*1,0,((OFFSET(BX113,0,-INT($M113+0.5),1,1))/$M113)*(IF($M113-INT($M113)>0.5,$M113-0.5-INT($M113),IF($M113-INT($M113)<=0.5,$M113-0.5-INT($M113)+1,0)))) +BX113/$M113*0.5 +SUM(OFFSET(BX113,0,MAX(-INT($M113+(0.5-(10^-12))),-CG$40)+1,1,MIN(INT($M113+(0.5-(10^-12))),CG$40)-1))*1/$M113, IF($J113="Declining Balance",-$BZ$38,0))))) -> 0
A114: 62 | B114: 62 | C114: 321 - Structures Program - Bridge Abutments | E114: Irrigation | F114: Renewals | G114: Channels | H114: Other Capital expenditure | J114: Straight line | K114: 2020-21 | L114: 80 | O114: 0.028334 | P114: 0.028334 | Q114: 0.028334 | R114: 0.028334 | S114: 0.028334 | T114: 0.028334 | U114: 0.028334 | V114: 0.028334 | AP114: 0.028334 | AQ114: 0.028334 | AR114: 0.028334 | AS114: 0.028334 | AT114: 0.028334 | AU114: 0.028334 | AV114: 0.028334 | AW114: 0.028334 | AY114: 0.0001770875 | AZ114: 0.0005312625 | BA114: 0.0008854375 | BB114: 0.0012396125 | BC114: 0.0015937875 | BD114: 0.0019479625 | BE114: 0.0023021375 | BF114: 0.0026563125 | BH114: =+IF($K114="Ongoing",AP114,IF(RIGHT($K114,2)=RIGHT(BH$39,2),SUM($AP114:AP114),0)+IF(RIGHT(BH$39,2)>RIGHT($K114,2),AP114,0)) -> 0.028334 | BI114: =+IF($K114="Ongoing",AQ114,IF(RIGHT($K114,2)=RIGHT(BI$39,2),SUM($AP114:AQ114),0)+IF(RIGHT(BI$39,2)>RIGHT($K114,2),AQ114,0)) -> 0.028334 | BJ114: =+IF($K114="Ongoing",AR114,IF(RIGHT($K114,2)=RIGHT(BJ$39,2),SUM($AP114:AR114),0)+IF(RIGHT(BJ$39,2)>RIGHT($K114,2),AR114,0)) -> 0.028334 | BK114: =+IF($K114="Ongoing",AS114,IF(RIGHT($K114,2)=RIGHT(BK$39,2),SUM($AP114:AS114),0)+IF(RIGHT(BK$39,2)>RIGHT($K114,2),AS114,0)) -> 0.028334 | BL114: =+IF($K114="Ongoing",AT114,IF(RIGHT($K114,2)=RIGHT(BL$39,2),SUM($AP114:AT114),0)+IF(RIGHT(BL$39,2)>RIGHT($K114,2),AT114,0)) -> 0.028334 | BM114: =+IF($K114="Ongoing",AU114,IF(RIGHT($K114,2)=RIGHT(BM$39,2),SUM($AP114:AU114),0)+IF(RIGHT(BM$39,2)>RIGHT($K114,2),AU114,0)) -> 0.028334 | BN114: =+IF($K114="Ongoing",AV114,IF(RIGHT($K114,2)=RIGHT(BN$39,2),SUM($AP114:AV114),0)+IF(RIGHT(BN$39,2)>RIGHT($K114,2),AV114,0)) -> 0.028334 | BO114: =+IF($K114="Ongoing",AW114,IF(RIGHT($K114,2)=RIGHT(BO$39,2),SUM($AP114:AW114),0)+IF(RIGHT(BO$39,2)>RIGHT($K114,2),AW114,0)) -> 0.028334 | BQ114: =+O114*KeyAssumptionsPriceControl_FO!Z$15 -> 0.028985682 | BR114: =+P114*KeyAssumptionsPriceControl_FO!AA$15 -> 0.02965235269 | BS114: =+Q114*KeyAssumptionsPriceControl_FO!AB$15 -> 0.0303343568 | BT114: =+R114*KeyAssumptionsPriceControl_FO!AC$15 -> 0.031032047 | BU114: =+S114*KeyAssumptionsPriceControl_FO!AD$15 -> 0.03174578409 | BV114: =+T114*KeyAssumptionsPriceControl_FO!AE$15 -> 0.03247593712 | BW114: =+U114*KeyAssumptionsPriceControl_FO!AF$15 -> 0.03322288367 | BX114: =+V114*KeyAssumptionsPriceControl_FO!AG$15 -> 0.03398701 | BZ114: 0 | CA114: 0 | CB114: 0 | CC114: 0 | CD114: 0 | CE114: 0 | CF114: 0 | CG114: 0
A115: 63 | B115: 63 | C115: 341 - Structures Program - Bridge Abutments | E115: Irrigation | F115: Renewals | G115: Channels | H115: Other Capital expenditure | J115: Straight line | K115: 2020-21 | L115: 80 | O115: 0.028334 | P115: 0.028334 | Q115: 0.028334 | R115: 0.028334 | S115: 0.028334 | T115: 0.028334 | U115: 0.028334 | V115: 0.028334 | AP115: 0.028334 | AQ115: 0.028334 | AR115: 0.028334 | AS115: 0.028334 | AT115: 0.028334 | AU115: 0.028334 | AV115: 0.028334 | AW115: 0.028334 | AY115: 0.0001770875 | AZ115: 0.0005312625 | BA115: 0.0008854375 | BB115: 0.0012396125 | BC115: 0.0015937875 | BD115: 0.0019479625 | BE115: 0.0023021375 | BF115: 0.0026563125 | BH115: =+IF($K115="Ongoing",AP115,IF(RIGHT($K115,2)=RIGHT(BH$39,2),SUM($AP115:AP115),0)+IF(RIGHT(BH$39,2)>RIGHT($K115,2),AP115,0)) -> 0.028334 | BI115: =+IF($K115="Ongoing",AQ115,IF(RIGHT($K115,2)=RIGHT(BI$39,2),SUM($AP115:AQ115),0)+IF(RIGHT(BI$39,2)>RIGHT($K115,2),AQ115,0)) -> 0.028334 | BJ115: =+IF($K115="Ongoing",AR115,IF(RIGHT($K115,2)=RIGHT(BJ$39,2),SUM($AP115:AR115),0)+IF(RIGHT(BJ$39,2)>RIGHT($K115,2),AR115,0)) -> 0.028334 | BK115: =+IF($K115="Ongoing",AS115,IF(RIGHT($K115,2)=RIGHT(BK$39,2),SUM($AP115:AS115),0)+IF(RIGHT(BK$39,2)>RIGHT($K115,2),AS115,0)) -> 0.028334 | BL115: =+IF($K115="Ongoing",AT115,IF(RIGHT($K115,2)=RIGHT(BL$39,2),SUM($AP115:AT115),0)+IF(RIGHT(BL$39,2)>RIGHT($K115,2),AT115,0)) -> 0.028334 | BM115: =+IF($K115="Ongoing",AU115,IF(RIGHT($K115,2)=RIGHT(BM$39,2),SUM($AP115:AU115),0)+IF(RIGHT(BM$39,2)>RIGHT($K115,2),AU115,0)) -> 0.028334 | BN115: =+IF($K115="Ongoing",AV115,IF(RIGHT($K115,2)=RIGHT(BN$39,2),SUM($AP115:AV115),0)+IF(RIGHT(BN$39,2)>RIGHT($K115,2),AV115,0)) -> 0.028334 | BO115: =+IF($K115="Ongoing",AW115,IF(RIGHT($K115,2)=RIGHT(BO$39,2),SUM($AP115:AW115),0)+IF(RIGHT(BO$39,2)>RIGHT($K115,2),AW115,0)) -> 0.028334 | BQ115: =+O115*KeyAssumptionsPriceControl_FO!Z$15 -> 0.028985682 | BR115: =+P115*KeyAssumptionsPriceControl_FO!AA$15 -> 0.02965235269 | BS115: =+Q115*KeyAssumptionsPriceControl_FO!AB$15 -> 0.0303343568 | BT115: =+R115*KeyAssumptionsPriceControl_FO!AC$15 -> 0.031032047 | BU115: =+S115*KeyAssumptionsPriceControl_FO!AD$15 -> 0.03174578409 | BV115: =+T115*KeyAssumptionsPriceControl_FO!AE$15 -> 0.03247593712 | BW115: =+U115*KeyAssumptionsPriceControl_FO!AF$15 -> 0.03322288367 | BX115: =+V115*KeyAssumptionsPriceControl_FO!AG$15 -> 0.03398701 | BZ115: 0 | CA115: 0 | CB115: 0 | CC115: 0 | CD115: 0 | CE115: 0 | CF115: 0 | CG115: 0
A116: 64 | B116: 64 | C116: 351 - Structures Program - Bridge Abutments | E116: Irrigation | F116: Renewals | G116: Channels | H116: Other Capital expenditure | J116: Straight line | K116: 2020-21 | L116: 80 | O116: 0.028334 | P116: 0.028334 | Q116: 0.028334 | R116: 0.028334 | S116: 0.028334 | T116: 0.028334 | U116: 0.028334 | V116: 0.028334 | AP116: 0.028334 | AQ116: 0.028334 | AR116: 0.028334 | AS116: 0.028334 | AT116: 0.028334 | AU116: 0.028334 | AV116: 0.028334 | AW116: 0.028334 | AY116: 0.0001770875 | AZ116: 0.0005312625 | BA116: 0.0008854375 | BB116: 0.0012396125 | BC116: 0.0015937875 | BD116: 0.0019479625 | BE116: 0.0023021375 | BF116: 0.0026563125 | BH116: =+IF($K116="Ongoing",AP116,IF(RIGHT($K116,2)=RIGHT(BH$39,2),SUM($AP116:AP116),0)+IF(RIGHT(BH$39,2)>RIGHT($K116,2),AP116,0)) -> 0.028334 | BI116: =+IF($K116="Ongoing",AQ116,IF(RIGHT($K116,2)=RIGHT(BI$39,2),SUM($AP116:AQ116),0)+IF(RIGHT(BI$39,2)>RIGHT($K116,2),AQ116,0)) -> 0.028334 | BJ116: =+IF($K116="Ongoing",AR116,IF(RIGHT($K116,2)=RIGHT(BJ$39,2),SUM($AP116:AR116),0)+IF(RIGHT(BJ$39,2)>RIGHT($K116,2),AR116,0)) -> 0.028334 | BK116: =+IF($K116="Ongoing",AS116,IF(RIGHT($K116,2)=RIGHT(BK$39,2),SUM($AP116:AS116),0)+IF(RIGHT(BK$39,2)>RIGHT($K116,2),AS116,0)) -> 0.028334 | BL116: =+IF($K116="Ongoing",AT116,IF(RIGHT($K116,2)=RIGHT(BL$39,2),SUM($AP116:AT116),0)+IF(RIGHT(BL$39,2)>RIGHT($K116,2),AT116,0)) -> 0.028334 | BM116: =+IF($K116="Ongoing",AU116,IF(RIGHT($K116,2)=RIGHT(BM$39,2),SUM($AP116:AU116),0)+IF(RIGHT(BM$39,2)>RIGHT($K116,2),AU116,0)) -> 0.028334 | BN116: =+IF($K116="Ongoing",AV116,IF(RIGHT($K116,2)=RIGHT(BN$39,2),SUM($AP116:AV116),0)+IF(RIGHT(BN$39,2)>RIGHT($K116,2),AV116,0)) -> 0.028334 | BO116: =+IF($K116="Ongoing",AW116,IF(RIGHT($K116,2)=RIGHT(BO$39,2),SUM($AP116:AW116),0)+IF(RIGHT(BO$39,2)>RIGHT($K116,2),AW116,0)) -> 0.028334 | BQ116: =+O116*KeyAssumptionsPriceControl_FO!Z$15 -> 0.028985682 | BR116: =+P116*KeyAssumptionsPriceControl_FO!AA$15 -> 0.02965235269 | BS116: =+Q116*KeyAssumptionsPriceControl_FO!AB$15 -> 0.0303343568 | BT116: =+R116*KeyAssumptionsPriceControl_FO!AC$15 -> 0.031032047 | BU116: =+S116*KeyAssumptionsPriceControl_FO!AD$15 -> 0.03174578409 | BV116: =+T116*KeyAssumptionsPriceControl_FO!AE$15 -> 0.03247593712 | BW116: =+U116*KeyAssumptionsPriceControl_FO!AF$15 -> 0.03322288367 | BX116: =+V116*KeyAssumptionsPriceControl_FO!AG$15 -> 0.03398701 | BZ116: 0 | CA116: 0 | CB116: 0 | CC116: 0 | CD116: 0 | CE116: 0 | CF116: 0 | CG116: 0
A117: 65 | B117: 65 | C117: 361 - Structures Program - Bridge Abutments | E117: Irrigation | F117: Renewals | G117: Channels | H117: Other Capital expenditure | J117: Straight line | K117: 2020-21 | L117: 80 | O117: 0.028334 | P117: 0.028334 | Q117: 0.028334 | R117: 0.028334 | S117: 0.028334 | T117: 0.028334 | U117: 0.028334 | V117: 0.028334 | AP117: 0.028334 | AQ117: 0.028334 | AR117: 0.028334 | AS117: 0.028334 | AT117: 0.028334 | AU117: 0.028334 | AV117: 0.028334 | AW117: 0.028334 | AY117: 0.0001770875 | AZ117: 0.0005312625 | BA117: 0.0008854375 | BB117: 0.0012396125 | BC117: 0.0015937875 | BD117: 0.0019479625 | BE117: 0.0023021375 | BF117: 0.0026563125 | BH117: =+IF($K117="Ongoing",AP117,IF(RIGHT($K117,2)=RIGHT(BH$39,2),SUM($AP117:AP117),0)+IF(RIGHT(BH$39,2)>RIGHT($K117,2),AP117,0)) -> 0.028334 | BI117: =+IF($K117="Ongoing",AQ117,IF(RIGHT($K117,2)=RIGHT(BI$39,2),SUM($AP117:AQ117),0)+IF(RIGHT(BI$39,2)>RIGHT($K117,2),AQ117,0)) -> 0.028334 | BJ117: =+IF($K117="Ongoing",AR117,IF(RIGHT($K117,2)=RIGHT(BJ$39,2),SUM($AP117:AR117),0)+IF(RIGHT(BJ$39,2)>RIGHT($K117,2),AR117,0)) -> 0.028334 | BK117: =+IF($K117="Ongoing",AS117,IF(RIGHT($K117,2)=RIGHT(BK$39,2),SUM($AP117:AS117),0)+IF(RIGHT(BK$39,2)>RIGHT($K117,2),AS117,0)) -> 0.028334 | BL117: =+IF($K117="Ongoing",AT117,IF(RIGHT($K117,2)=RIGHT(BL$39,2),SUM($AP117:AT117),0)+IF(RIGHT(BL$39,2)>RIGHT($K117,2),AT117,0)) -> 0.028334 | BM117: =+IF($K117="Ongoing",AU117,IF(RIGHT($K117,2)=RIGHT(BM$39,2),SUM($AP117:AU117),0)+IF(RIGHT(BM$39,2)>RIGHT($K117,2),AU117,0)) -> 0.028334 | BN117: =+IF($K117="Ongoing",AV117,IF(RIGHT($K117,2)=RIGHT(BN$39,2),SUM($AP117:AV117),0)+IF(RIGHT(BN$39,2)>RIGHT($K117,2),AV117,0)) -> 0.028334 | BO117: =+IF($K117="Ongoing",AW117,IF(RIGHT($K117,2)=RIGHT(BO$39,2),SUM($AP117:AW117),0)+IF(RIGHT(BO$39,2)>RIGHT($K117,2),AW117,0)) -> 0.028334 | BQ117: =+O117*KeyAssumptionsPriceControl_FO!Z$15 -> 0.028985682 | BR117: =+P117*KeyAssumptionsPriceControl_FO!AA$15 -> 0.02965235269 | BS117: =+Q117*KeyAssumptionsPriceControl_FO!AB$15 -> 0.0303343568 | BT117: =+R117*KeyAssumptionsPriceControl_FO!AC$15 -> 0.031032047 | BU117: =+S117*KeyAssumptionsPriceControl_FO!AD$15 -> 0.03174578409 | BV117: =+T117*KeyAssumptionsPriceControl_FO!AE$15 -> 0.03247593712 | BW117: =+U117*KeyAssumptionsPriceControl_FO!AF$15 -> 0.03322288367 | BX117: =+V117*KeyAssumptionsPriceControl_FO!AG$15 -> 0.03398701 | BZ117: 0 | CA117: 0 | CB117: 0 | CC117: 0 | CD117: 0 | CE117: 0 | CF117: 0 | CG117: 0
A118: 66 | B118: 66 | C118: Access Tracks | E118: 0 | F118: 0 | G118: 0 | H118: Other Capital expenditure | J118: Straight line | K118: 0 | L118: 0 | O118: 0 | P118: 0 | Q118: 0 | R118: 0 | S118: 0 | T118: 0 | U118: 0 | V118: 0 | AP118: 0 | AQ118: 0 | AR118: 0 | AS118: 0 | AT118: 0 | AU118: 0 | AV118: 0 | AW118: 0 | AY118: 0 | AZ118: 0 | BA118: 0 | BB118: 0 | BC118: 0 | BD118: 0 | BE118: 0 | BF118: 0 | BH118: =+IF($K118="Ongoing",AP118,IF(RIGHT($K118,2)=RIGHT(BH$39,2),SUM($AP118:AP118),0)+IF(RIGHT(BH$39,2)>RIGHT($K118,2),AP118,0)) -> 0 | BI118: =+IF($K118="Ongoing",AQ118,IF(RIGHT($K118,2)=RIGHT(BI$39,2),SUM($AP118:AQ118),0)+IF(RIGHT(BI$39,2)>RIGHT($K118,2),AQ118,0)) -> 0 | BJ118: =+IF($K118="Ongoing",AR118,IF(RIGHT($K118,2)=RIGHT(BJ$39,2),SUM($AP118:AR118),0)+IF(RIGHT(BJ$39,2)>RIGHT($K118,2),AR118,0)) -> 0 | BK118: =+IF($K118="Ongoing",AS118,IF(RIGHT($K118,2)=RIGHT(BK$39,2),SUM($AP118:AS118),0)+IF(RIGHT(BK$39,2)>RIGHT($K118,2),AS118,0)) -> 0 | BL118: =+IF($K118="Ongoing",AT118,IF(RIGHT($K118,2)=RIGHT(BL$39,2),SUM($AP118:AT118),0)+IF(RIGHT(BL$39,2)>RIGHT($K118,2),AT118,0)) -> 0 | BM118: =+IF($K118="Ongoing",AU118,IF(RIGHT($K118,2)=RIGHT(BM$39,2),SUM($AP118:AU118),0)+IF(RIGHT(BM$39,2)>RIGHT($K118,2),AU118,0)) -> 0 | BN118: =+IF($K118="Ongoing",AV118,IF(RIGHT($K118,2)=RIGHT(BN$39,2),SUM($AP118:AV118),0)+IF(RIGHT(BN$39,2)>RIGHT($K118,2),AV118,0)) -> 0 | BO118: =+IF($K118="Ongoing",AW118,IF(RIGHT($K118,2)=RIGHT(BO$39,2),SUM($AP118:AW118),0)+IF(RIGHT(BO$39,2)>RIGHT($K118,2),AW118,0)) -> 0 | BQ118: =+O118*KeyAssumptionsPriceControl_FO!Z$15 -> 0 | BR118: =+P118*KeyAssumptionsPriceControl_FO!AA$15 -> 0 | BS118: =+Q118*KeyAssumptionsPriceControl_FO!AB$15 -> 0 | BT118: =+R118*KeyAssumptionsPriceControl_FO!AC$15 -> 0 | BU118: =+S118*KeyAssumptionsPriceControl_FO!AD$15 -> 0 | BV118: =+T118*KeyAssumptionsPriceControl_FO!AE$15 -> 0 | BW118: =+U118*KeyAssumptionsPriceControl_FO!AF$15 -> 0 | BX118: =+V118*KeyAssumptionsPriceControl_FO!AG$15 -> 0 | BZ118: 0 | CA118: 0 | CB118: 0 | CC118: 0 | CD118: 0 | CE118: 0 | CF118: 0 | CG118: 0
A119: =A118+1 -> 67 | B119: 67 | C119: 301 - Linear Program - Access Tracks | E119: Irrigation | F119: Renewals | G119: Channels | H119: Other Capital expenditure | J119: Straight line | K119: 2020-21 | L119: 20 | O119: 0.125 | P119: 0.125 | Q119: 0.125 | R119: 0.125 | S119: 0.125 | T119: 0.125 | U119: 0.125 | V119: 0.125 | AP119: 0.125 | AQ119: 0.125 | AR119: 0.125 | AS119: 0.125 | AT119: 0.125 | AU119: 0.125 | AV119: 0.125 | AW119: 0.125 | AY119: 0.003125 | AZ119: 0.009375 | BA119: 0.015625 | BB119: 0.021875 | BC119: 0.028125 | BD119: 0.034375 | BE119: 0.040625 | BF119: 0.046875 | BH119: =+IF($K119="Ongoing",AP119,IF(RIGHT($K119,2)=RIGHT(BH$39,2),SUM($AP119:AP119),0)+IF(RIGHT(BH$39,2)>RIGHT($K119,2),AP119,0)) -> 0.125 | BI119: =+IF($K119="Ongoing",AQ119,IF(RIGHT($K119,2)=RIGHT(BI$39,2),SUM($AP119:AQ119),0)+IF(RIGHT(BI$39,2)>RIGHT($K119,2),AQ119,0)) -> 0.125 | BJ119: =+IF($K119="Ongoing",AR119,IF(RIGHT($K119,2)=RIGHT(BJ$39,2),SUM($AP119:AR119),0)+IF(RIGHT(BJ$39,2)>RIGHT($K119,2),AR119,0)) -> 0.125 | BK119: =+IF($K119="Ongoing",AS119,IF(RIGHT($K119,2)=RIGHT(BK$39,2),SUM($AP119:AS119),0)+IF(RIGHT(BK$39,2)>RIGHT($K119,2),AS119,0)) -> 0.125 | BL119: =+IF($K119="Ongoing",AT119,IF(RIGHT($K119,2)=RIGHT(BL$39,2),SUM($AP119:AT119),0)+IF(RIGHT(BL$39,2)>RIGHT($K119,2),AT119,0)) -> 0.125 | BM119: =+IF($K119="Ongoing",AU119,IF(RIGHT($K119,2)=RIGHT(BM$39,2),SUM($AP119:AU119),0)+IF(RIGHT(BM$39,2)>RIGHT($K119,2),AU119,0)) -> 0.125 | BN119: =+IF($K119="Ongoing",AV119,IF(RIGHT($K119,2)=RIGHT(BN$39,2),SUM($AP119:AV119),0)+IF(RIGHT(BN$39,2)>RIGHT($K119,2),AV119,0)) -> 0.125 | BO119: =+IF($K119="Ongoing",AW119,IF(RIGHT($K119,2)=RIGHT(BO$39,2),SUM($AP119:AW119),0)+IF(RIGHT(BO$39,2)>RIGHT($K119,2),AW119,0)) -> 0.125 | BQ119: =+O119*KeyAssumptionsPriceControl_FO!Z$15 -> 0.127875 | BR119: =+P119*KeyAssumptionsPriceControl_FO!AA$15 -> 0.130816125 | BS119: =+Q119*KeyAssumptionsPriceControl_FO!AB$15 -> 0.1338248959 | BT119: =+R119*KeyAssumptionsPriceControl_FO!AC$15 -> 0.1369028685 | BU119: =+S119*KeyAssumptionsPriceControl_FO!AD$15 -> 0.1400516345 | BV119: =+T119*KeyAssumptionsPriceControl_FO!AE$15 -> 0.143272822 | BW119: =+U119*KeyAssumptionsPriceControl_FO!AF$15 -> 0.146568097 | BX119: =+V119*KeyAssumptionsPriceControl_FO!AG$15 -> 0.1499391632 | BZ119: 0 | CA119: 0 | CB119: 0 | CC119: 0 | CD119: 0 | CE119: 0 | CF119: 0 | CG119: 0
A120: 68 | B120: 68 | C120: 311 - Linear Program - Access Tracks | E120: Irrigation | F120: Renewals | G120: Channels | H120: Other Capital expenditure | J120: Straight line | K120: 2020-21 | L120: 20 | O120: 0.125 | P120: 0.125 | Q120: 0.125 | R120: 0.125 | S120: 0.125 | T120: 0.125 | U120: 0.125 | V120: 0.125 | AP120: 0.125 | AQ120: 0.125 | AR120: 0.125 | AS120: 0.125 | AT120: 0.125 | AU120: 0.125 | AV120: 0.125 | AW120: 0.125 | AY120: 0.003125 | AZ120: 0.009375 | BA120: 0.015625 | BB120: 0.021875 | BC120: 0.028125 | BD120: 0.034375 | BE120: 0.040625 | BF120: 0.046875 | BH120: =+IF($K120="Ongoing",AP120,IF(RIGHT($K120,2)=RIGHT(BH$39,2),SUM($AP120:AP120),0)+IF(RIGHT(BH$39,2)>RIGHT($K120,2),AP120,0)) -> 0.125 | BI120: =+IF($K120="Ongoing",AQ120,IF(RIGHT($K120,2)=RIGHT(BI$39,2),SUM($AP120:AQ120),0)+IF(RIGHT(BI$39,2)>RIGHT($K120,2),AQ120,0)) -> 0.125 | BJ120: =+IF($K120="Ongoing",AR120,IF(RIGHT($K120,2)=RIGHT(BJ$39,2),SUM($AP120:AR120),0)+IF(RIGHT(BJ$39,2)>RIGHT($K120,2),AR120,0)) -> 0.125 | BK120: =+IF($K120="Ongoing",AS120,IF(RIGHT($K120,2)=RIGHT(BK$39,2),SUM($AP120:AS120),0)+IF(RIGHT(BK$39,2)>RIGHT($K120,2),AS120,0)) -> 0.125 | BL120: =+IF($K120="Ongoing",AT120,IF(RIGHT($K120,2)=RIGHT(BL$39,2),SUM($AP120:AT120),0)+IF(RIGHT(BL$39,2)>RIGHT($K120,2),AT120,0)) -> 0.125 | BM120: =+IF($K120="Ongoing",AU120,IF(RIGHT($K120,2)=RIGHT(BM$39,2),SUM($AP120:AU120),0)+IF(RIGHT(BM$39,2)>RIGHT($K120,2),AU120,0)) -> 0.125 | BN120: =+IF($K120="Ongoing",AV120,IF(RIGHT($K120,2)=RIGHT(BN$39,2),SUM($AP120:AV120),0)+IF(RIGHT(BN$39,2)>RIGHT($K120,2),AV120,0)) -> 0.125 | BO120: =+IF($K120="Ongoing",AW120,IF(RIGHT($K120,2)=RIGHT(BO$39,2),SUM($AP120:AW120),0)+IF(RIGHT(BO$39,2)>RIGHT($K120,2),AW120,0)) -> 0.125 | BQ120: =+O120*KeyAssumptionsPriceControl_FO!Z$15 -> 0.127875 | BR120: =+P120*KeyAssumptionsPriceControl_FO!AA$15 -> 0.130816125 | BS120: =+Q120*KeyAssumptionsPriceControl_FO!AB$15 -> 0.1338248959 | BT120: =+R120*KeyAssumptionsPriceControl_FO!AC$15 -> 0.1369028685 | BU120: =+S120*KeyAssumptionsPriceControl_FO!AD$15 -> 0.1400516345 | BV120: =+T120*KeyAssumptionsPriceControl_FO!AE$15 -> 0.143272822 | BW120: =+U120*KeyAssumptionsPriceControl_FO!AF$15 -> 0.146568097 | BX120: =+V120*KeyAssumptionsPriceControl_FO!AG$15 -> 0.1499391632 | BZ120: 0 | CA120: 0 | CB120: 0 | CC120: 0 | CD120: 0 | CE120: 0 | CF120: 0 | CG120: 0
A121: 69 | B121: 69 | C121: 321 - Linear Program - Access Tracks | E121: Irrigation | F121: Renewals | G121: Channels | H121: Other Capital expenditure | J121: Straight line | K121: 2020-21 | L121: 20 | O121: 0.125 | P121: 0.125 | Q121: 0.125 | R121: 0.125 | S121: 0.125 | T121: 0.125 | U121: 0.125 | V121: 0.125 | AP121: 0.125 | AQ121: 0.125 | AR121: 0.125 | AS121: 0.125 | AT121: 0.125 | AU121: 0.125 | AV121: 0.125 | AW121: 0.125 | AY121: 0.003125 | AZ121: 0.009375 | BA121: 0.015625 | BB121: 0.021875 | BC121: 0.028125 | BD121: 0.034375 | BE121: 0.040625 | BF121: 0.046875 | BH121: =+IF($K121="Ongoing",AP121,IF(RIGHT($K121,2)=RIGHT(BH$39,2),SUM($AP121:AP121),0)+IF(RIGHT(BH$39,2)>RIGHT($K121,2),AP121,0)) -> 0.125 | BI121: =+IF($K121="Ongoing",AQ121,IF(RIGHT($K121,2)=RIGHT(BI$39,2),SUM($AP121:AQ121),0)+IF(RIGHT(BI$39,2)>RIGHT($K121,2),AQ121,0)) -> 0.125 | BJ121: =+IF($K121="Ongoing",AR121,IF(RIGHT($K121,2)=RIGHT(BJ$39,2),SUM($AP121:AR121),0)+IF(RIGHT(BJ$39,2)>RIGHT($K121,2),AR121,0)) -> 0.125 | BK121: =+IF($K121="Ongoing",AS121,IF(RIGHT($K121,2)=RIGHT(BK$39,2),SUM($AP121:AS121),0)+IF(RIGHT(BK$39,2)>RIGHT($K121,2),AS121,0)) -> 0.125 | BL121: =+IF($K121="Ongoing",AT121,IF(RIGHT($K121,2)=RIGHT(BL$39,2),SUM($AP121:AT121),0)+IF(RIGHT(BL$39,2)>RIGHT($K121,2),AT121,0)) -> 0.125 | BM121: =+IF($K121="Ongoing",AU121,IF(RIGHT($K121,2)=RIGHT(BM$39,2),SUM($AP121:AU121),0)+IF(RIGHT(BM$39,2)>RIGHT($K121,2),AU121,0)) -> 0.125 | BN121: =+IF($K121="Ongoing",AV121,IF(RIGHT($K121,2)=RIGHT(BN$39,2),SUM($AP121:AV121),0)+IF(RIGHT(BN$39,2)>RIGHT($K121,2),AV121,0)) -> 0.125 | BO121: =+IF($K121="Ongoing",AW121,IF(RIGHT($K121,2)=RIGHT(BO$39,2),SUM($AP121:AW121),0)+IF(RIGHT(BO$39,2)>RIGHT($K121,2),AW121,0)) -> 0.125 | BQ121: =+O121*KeyAssumptionsPriceControl_FO!Z$15 -> 0.127875 | BR121: =+P121*KeyAssumptionsPriceControl_FO!AA$15 -> 0.130816125 | BS121: =+Q121*KeyAssumptionsPriceControl_FO!AB$15 -> 0.1338248959 | BT121: =+R121*KeyAssumptionsPriceControl_FO!AC$15 -> 0.1369028685 | BU121: =+S121*KeyAssumptionsPriceControl_FO!AD$15 -> 0.1400516345 | BV121: =+T121*KeyAssumptionsPriceControl_FO!AE$15 -> 0.143272822 | BW121: =+U121*KeyAssumptionsPriceControl_FO!AF$15 -> 0.146568097 | BX121: =+V121*KeyAssumptionsPriceControl_FO!AG$15 -> 0.1499391632 | BZ121: 0 | CA121: 0 | CB121: 0 | CC121: 0 | CD121: 0 | CE121: 0 | CF121: 0 | CG121: 0
A122: 70 | B122: 70 | C122: 341 - Linear Program - Access Tracks | E122: Irrigation | F122: Renewals | G122: Channels | H122: Other Capital expenditure | J122: Straight line | K122: 2020-21 | L122: 20 | O122: 0.125 | P122: 0.125 | Q122: 0.125 | R122: 0.125 | S122: 0.125 | T122: 0.125 | U122: 0.125 | V122: 0.125 | AP122: 0.125 | AQ122: 0.125 | AR122: 0.125 | AS122: 0.125 | AT122: 0.125 | AU122: 0.125 | AV122: 0.125 | AW122: 0.125 | AY122: 0.003125 | AZ122: 0.009375 | BA122: 0.015625 | BB122: 0.021875 | BC122: 0.028125 | BD122: 0.034375 | BE122: 0.040625 | BF122: 0.046875 | BH122: =+IF($K122="Ongoing",AP122,IF(RIGHT($K122,2)=RIGHT(BH$39,2),SUM($AP122:AP122),0)+IF(RIGHT(BH$39,2)>RIGHT($K122,2),AP122,0)) -> 0.125 | BI122: =+IF($K122="Ongoing",AQ122,IF(RIGHT($K122,2)=RIGHT(BI$39,2),SUM($AP122:AQ122),0)+IF(RIGHT(BI$39,2)>RIGHT($K122,2),AQ122,0)) -> 0.125 | BJ122: =+IF($K122="Ongoing",AR122,IF(RIGHT($K122,2)=RIGHT(BJ$39,2),SUM($AP122:AR122),0)+IF(RIGHT(BJ$39,2)>RIGHT($K122,2),AR122,0)) -> 0.125 | BK122: =+IF($K122="Ongoing",AS122,IF(RIGHT($K122,2)=RIGHT(BK$39,2),SUM($AP122:AS122),0)+IF(RIGHT(BK$39,2)>RIGHT($K122,2),AS122,0)) -> 0.125 | BL122: =+IF($K122="Ongoing",AT122,IF(RIGHT($K122,2)=RIGHT(BL$39,2),SUM($AP122:AT122),0)+IF(RIGHT(BL$39,2)>RIGHT($K122,2),AT122,0)) -> 0.125 | BM122: =+IF($K122="Ongoing",AU122,IF(RIGHT($K122,2)=RIGHT(BM$39,2),SUM($AP122:AU122),0)+IF(RIGHT(BM$39,2)>RIGHT($K122,2),AU122,0)) -> 0.125 | BN122: =+IF($K122="Ongoing",AV122,IF(RIGHT($K122,2)=RIGHT(BN$39,2),SUM($AP122:AV122),0)+IF(RIGHT(BN$39,2)>RIGHT($K122,2),AV122,0)) -> 0.125 | BO122: =+IF($K122="Ongoing",AW122,IF(RIGHT($K122,2)=RIGHT(BO$39,2),SUM($AP122:AW122),0)+IF(RIGHT(BO$39,2)>RIGHT($K122,2),AW122,0)) -> 0.125 | BQ122: =+O122*KeyAssumptionsPriceControl_FO!Z$15 -> 0.127875 | BR122: =+P122*KeyAssumptionsPriceControl_FO!AA$15 -> 0.130816125 | BS122: =+Q122*KeyAssumptionsPriceControl_FO!AB$15 -> 0.1338248959 | BT122: =+R122*KeyAssumptionsPriceControl_FO!AC$15 -> 0.1369028685 | BU122: =+S122*KeyAssumptionsPriceControl_FO!AD$15 -> 0.1400516345 | BV122: =+T122*KeyAssumptionsPriceControl_FO!AE$15 -> 0.143272822 | BW122: =+U122*KeyAssumptionsPriceControl_FO!AF$15 -> 0.146568097 | BX122: =+V122*KeyAssumptionsPriceControl_FO!AG$15 -> 0.1499391632 | BZ122: 0 | CA122: 0 | CB122: 0 | CC122: 0 | CD122: 0 | CE122: 0 | CF122: 0 | CG122: 0
A123: 71 | B123: 71 | C123: 351 - Linear Program - Access Tracks | E123: Irrigation | F123: Renewals | G123: Channels | H123: Other Capital expenditure | J123: Straight line | K123: 2020-21 | L123: 20 | O123: 0.125 | P123: 0.125 | Q123: 0.125 | R123: 0.125 | S123: 0.125 | T123: 0.125 | U123: 0.125 | V123: 0.125 | AP123: 0.125 | AQ123: 0.125 | AR123: 0.125 | AS123: 0.125 | AT123: 0.125 | AU123: 0.125 | AV123: 0.125 | AW123: 0.125 | AY123: 0.003125 | AZ123: 0.009375 | BA123: 0.015625 | BB123: 0.021875 | BC123: 0.028125 | BD123: 0.034375 | BE123: 0.040625 | BF123: 0.046875 | BH123: =+IF($K123="Ongoing",AP123,IF(RIGHT($K123,2)=RIGHT(BH$39,2),SUM($AP123:AP123),0)+IF(RIGHT(BH$39,2)>RIGHT($K123,2),AP123,0)) -> 0.125 | BI123: =+IF($K123="Ongoing",AQ123,IF(RIGHT($K123,2)=RIGHT(BI$39,2),SUM($AP123:AQ123),0)+IF(RIGHT(BI$39,2)>RIGHT($K123,2),AQ123,0)) -> 0.125 | BJ123: =+IF($K123="Ongoing",AR123,IF(RIGHT($K123,2)=RIGHT(BJ$39,2),SUM($AP123:AR123),0)+IF(RIGHT(BJ$39,2)>RIGHT($K123,2),AR123,0)) -> 0.125 | BK123: =+IF($K123="Ongoing",AS123,IF(RIGHT($K123,2)=RIGHT(BK$39,2),SUM($AP123:AS123),0)+IF(RIGHT(BK$39,2)>RIGHT($K123,2),AS123,0)) -> 0.125 | BL123: =+IF($K123="Ongoing",AT123,IF(RIGHT($K123,2)=RIGHT(BL$39,2),SUM($AP123:AT123),0)+IF(RIGHT(BL$39,2)>RIGHT($K123,2),AT123,0)) -> 0.125 | BM123: =+IF($K123="Ongoing",AU123,IF(RIGHT($K123,2)=RIGHT(BM$39,2),SUM($AP123:AU123),0)+IF(RIGHT(BM$39,2)>RIGHT($K123,2),AU123,0)) -> 0.125 | BN123: =+IF($K123="Ongoing",AV123,IF(RIGHT($K123,2)=RIGHT(BN$39,2),SUM($AP123:AV123),0)+IF(RIGHT(BN$39,2)>RIGHT($K123,2),AV123,0)) -> 0.125 | BO123: =+IF($K123="Ongoing",AW123,IF(RIGHT($K123,2)=RIGHT(BO$39,2),SUM($AP123:AW123),0)+IF(RIGHT(BO$39,2)>RIGHT($K123,2),AW123,0)) -> 0.125 | BQ123: =+O123*KeyAssumptionsPriceControl_FO!Z$15 -> 0.127875 | BR123: =+P123*KeyAssumptionsPriceControl_FO!AA$15 -> 0.130816125 | BS123: =+Q123*KeyAssumptionsPriceControl_FO!AB$15 -> 0.1338248959 | BT123: =+R123*KeyAssumptionsPriceControl_FO!AC$15 -> 0.1369028685 | BU123: =+S123*KeyAssumptionsPriceControl_FO!AD$15 -> 0.1400516345 | BV123: =+T123*KeyAssumptionsPriceControl_FO!AE$15 -> 0.143272822 | BW123: =+U123*KeyAssumptionsPriceControl_FO!AF$15 -> 0.146568097 | BX123: =+V123*KeyAssumptionsPriceControl_FO!AG$15 -> 0.1499391632 | BZ123: 0 | CA123: 0 | CB123: 0 | CC123: 0 | CD123: 0 | CE123: 0 | CF123: 0 | CG123: 0
A124: 72 | B124: 72 | C124: 361 - Linear Program - Access Tracks | E124: Irrigation | F124: Renewals | G124: Channels | H124: Other Capital expenditure | J124: Straight line | K124: 2020-21 | L124: 20 | O124: 0.125 | P124: 0.125 | Q124: 0.125 | R124: 0.125 | S124: 0.125 | T124: 0.125 | U124: 0.125 | V124: 0.125 | AP124: 0.125 | AQ124: 0.125 | AR124: 0.125 | AS124: 0.125 | AT124: 0.125 | AU124: 0.125 | AV124: 0.125 | AW124: 0.125 | AY124: 0.003125 | AZ124: 0.009375 | BA124: 0.015625 | BB124: 0.021875 | BC124: 0.028125 | BD124: 0.034375 | BE124: 0.040625 | BF124: 0.046875 | BH124: =+IF($K124="Ongoing",AP124,IF(RIGHT($K124,2)=RIGHT(BH$39,2),SUM($AP124:AP124),0)+IF(RIGHT(BH$39,2)>RIGHT($K124,2),AP124,0)) -> 0.125 | BI124: =+IF($K124="Ongoing",AQ124,IF(RIGHT($K124,2)=RIGHT(BI$39,2),SUM($AP124:AQ124),0)+IF(RIGHT(BI$39,2)>RIGHT($K124,2),AQ124,0)) -> 0.125 | BJ124: =+IF($K124="Ongoing",AR124,IF(RIGHT($K124,2)=RIGHT(BJ$39,2),SUM($AP124:AR124),0)+IF(RIGHT(BJ$39,2)>RIGHT($K124,2),AR124,0)) -> 0.125 | BK124: =+IF($K124="Ongoing",AS124,IF(RIGHT($K124,2)=RIGHT(BK$39,2),SUM($AP124:AS124),0)+IF(RIGHT(BK$39,2)>RIGHT($K124,2),AS124,0)) -> 0.125 | BL124: =+IF($K124="Ongoing",AT124,IF(RIGHT($K124,2)=RIGHT(BL$39,2),SUM($AP124:AT124),0)+IF(RIGHT(BL$39,2)>RIGHT($K124,2),AT124,0)) -> 0.125 | BM124: =+IF($K124="Ongoing",AU124,IF(RIGHT($K124,2)=RIGHT(BM$39,2),SUM($AP124:AU124),0)+IF(RIGHT(BM$39,2)>RIGHT($K124,2),AU124,0)) -> 0.125 | BN124: =+IF($K124="Ongoing",AV124,IF(RIGHT($K124,2)=RIGHT(BN$39,2),SUM($AP124:AV124),0)+IF(RIGHT(BN$39,2)>RIGHT($K124,2),AV124,0)) -> 0.125 | BO124: =+IF($K124="Ongoing",AW124,IF(RIGHT($K124,2)=RIGHT(BO$39,2),SUM($AP124:AW124),0)+IF(RIGHT(BO$39,2)>RIGHT($K124,2),AW124,0)) -> 0.125 | BQ124: =+O124*KeyAssumptionsPriceControl_FO!Z$15 -> 0.127875 | BR124: =+P124*KeyAssumptionsPriceControl_FO!AA$15 -> 0.130816125 | BS124: =+Q124*KeyAssumptionsPriceControl_FO!AB$15 -> 0.1338248959 | BT124: =+R124*KeyAssumptionsPriceControl_FO!AC$15 -> 0.1369028685 | BU124: =+S124*KeyAssumptionsPriceControl_FO!AD$15 -> 0.1400516345 | BV124: =+T124*KeyAssumptionsPriceControl_FO!AE$15 -> 0.143272822 | BW124: =+U124*KeyAssumptionsPriceControl_FO!AF$15 -> 0.146568097 | BX124: =+V124*KeyAssumptionsPriceControl_FO!AG$15 -> 0.1499391632 | BZ124: 0 | CA124: 0 | CB124: 0 | CC124: 0 | CD124: 0 | CE124: 0 | CF124: 0 | CG124: 0
A125: 73 | B125: 73 | C125: Fencing | E125: 0 | F125: 0 | G125: 0 | H125: Other Capital expenditure | J125: Straight line | K125: 0 | L125: 0 | O125: 0 | P125: 0 | Q125: 0 | R125: 0 | S125: 0 | T125: 0 | U125: 0 | V125: 0 | AP125: 0 | AQ125: 0 | AR125: 0 | AS125: 0 | AT125: 0 | AU125: 0 | AV125: 0 | AW125: 0 | AY125: 0 | AZ125: 0 | BA125: 0 | BB125: 0 | BC125: 0 | BD125: 0 | BE125: 0 | BF125: 0 | BH125: =+IF($K125="Ongoing",AP125,IF(RIGHT($K125,2)=RIGHT(BH$39,2),SUM($AP125:AP125),0)+IF(RIGHT(BH$39,2)>RIGHT($K125,2),AP125,0)) -> 0 | BI125: =+IF($K125="Ongoing",AQ125,IF(RIGHT($K125,2)=RIGHT(BI$39,2),SUM($AP125:AQ125),0)+IF(RIGHT(BI$39,2)>RIGHT($K125,2),AQ125,0)) -> 0 | BJ125: =+IF($K125="Ongoing",AR125,IF(RIGHT($K125,2)=RIGHT(BJ$39,2),SUM($AP125:AR125),0)+IF(RIGHT(BJ$39,2)>RIGHT($K125,2),AR125,0)) -> 0 | BK125: =+IF($K125="Ongoing",AS125,IF(RIGHT($K125,2)=RIGHT(BK$39,2),SUM($AP125:AS125),0)+IF(RIGHT(BK$39,2)>RIGHT($K125,2),AS125,0)) -> 0 | BL125: =+IF($K125="Ongoing",AT125,IF(RIGHT($K125,2)=RIGHT(BL$39,2),SUM($AP125:AT125),0)+IF(RIGHT(BL$39,2)>RIGHT($K125,2),AT125,0)) -> 0 | BM125: =+IF($K125="Ongoing",AU125,IF(RIGHT($K125,2)=RIGHT(BM$39,2),SUM($AP125:AU125),0)+IF(RIGHT(BM$39,2)>RIGHT($K125,2),AU125,0)) -> 0 | BN125: =+IF($K125="Ongoing",AV125,IF(RIGHT($K125,2)=RIGHT(BN$39,2),SUM($AP125:AV125),0)+IF(RIGHT(BN$39,2)>RIGHT($K125,2),AV125,0)) -> 0 | BO125: =+IF($K125="Ongoing",AW125,IF(RIGHT($K125,2)=RIGHT(BO$39,2),SUM($AP125:AW125),0)+IF(RIGHT(BO$39,2)>RIGHT($K125,2),AW125,0)) -> 0 | BQ125: =+O125*KeyAssumptionsPriceControl_FO!Z$15 -> 0 | BR125: =+P125*KeyAssumptionsPriceControl_FO!AA$15 -> 0 | BS125: =+Q125*KeyAssumptionsPriceControl_FO!AB$15 -> 0 | BT125: =+R125*KeyAssumptionsPriceControl_FO!AC$15 -> 0 | BU125: =+S125*KeyAssumptionsPriceControl_FO!AD$15 -> 0 | BV125: =+T125*KeyAssumptionsPriceControl_FO!AE$15 -> 0 | BW125: =+U125*KeyAssumptionsPriceControl_FO!AF$15 -> 0 | BX125: =+V125*KeyAssumptionsPriceControl_FO!AG$15 -> 0 | BZ125: 0 | CA125: 0 | CB125: 0 | CC125: 0 | CD125: 0 | CE125: 0 | CF125: 0 | CG125: 0
A126: 74 | B126: 74 | C126: 301 - Linear Program - Reactive Fencing | E126: Irrigation | F126: Renewals | G126: Channels | H126: Other Capital expenditure | J126: Straight line | K126: 2020-21 | L126: 20 | O126: 0.05 | P126: 0.05 | Q126: 0.05 | R126: 0.05 | S126: 0.05 | T126: 0.05 | U126: 0.05 | V126: 0.05 | AP126: 0.05 | AQ126: 0.05 | AR126: 0.05 | AS126: 0.05 | AT126: 0.05 | AU126: 0.05 | AV126: 0.05 | AW126: 0.05 | AY126: 0.00125 | AZ126: 0.00375 | BA126: 0.00625 | BB126: 0.00875 | BC126: 0.01125 | BD126: 0.01375 | BE126: 0.01625 | BF126: 0.01875 | BH126: =+IF($K126="Ongoing",AP126,IF(RIGHT($K126,2)=RIGHT(BH$39,2),SUM($AP126:AP126),0)+IF(RIGHT(BH$39,2)>RIGHT($K126,2),AP126,0)) -> 0.05 | BI126: =+IF($K126="Ongoing",AQ126,IF(RIGHT($K126,2)=RIGHT(BI$39,2),SUM($AP126:AQ126),0)+IF(RIGHT(BI$39,2)>RIGHT($K126,2),AQ126,0)) -> 0.05 | BJ126: =+IF($K126="Ongoing",AR126,IF(RIGHT($K126,2)=RIGHT(BJ$39,2),SUM($AP126:AR126),0)+IF(RIGHT(BJ$39,2)>RIGHT($K126,2),AR126,0)) -> 0.05 | BK126: =+IF($K126="Ongoing",AS126,IF(RIGHT($K126,2)=RIGHT(BK$39,2),SUM($AP126:AS126),0)+IF(RIGHT(BK$39,2)>RIGHT($K126,2),AS126,0)) -> 0.05 | BL126: =+IF($K126="Ongoing",AT126,IF(RIGHT($K126,2)=RIGHT(BL$39,2),SUM($AP126:AT126),0)+IF(RIGHT(BL$39,2)>RIGHT($K126,2),AT126,0)) -> 0.05 | BM126: =+IF($K126="Ongoing",AU126,IF(RIGHT($K126,2)=RIGHT(BM$39,2),SUM($AP126:AU126),0)+IF(RIGHT(BM$39,2)>RIGHT($K126,2),AU126,0)) -> 0.05 | BN126: =+IF($K126="Ongoing",AV126,IF(RIGHT($K126,2)=RIGHT(BN$39,2),SUM($AP126:AV126),0)+IF(RIGHT(BN$39,2)>RIGHT($K126,2),AV126,0)) -> 0.05 | BO126: =+IF($K126="Ongoing",AW126,IF(RIGHT($K126,2)=RIGHT(BO$39,2),SUM($AP126:AW126),0)+IF(RIGHT(BO$39,2)>RIGHT($K126,2),AW126,0)) -> 0.05 | BQ126: =+O126*KeyAssumptionsPriceControl_FO!Z$15 -> 0.05115 | BR126: =+P126*KeyAssumptionsPriceControl_FO!AA$15 -> 0.05232645 | BS126: =+Q126*KeyAssumptionsPriceControl_FO!AB$15 -> 0.05352995835 | BT126: =+R126*KeyAssumptionsPriceControl_FO!AC$15 -> 0.05476114739 | BU126: =+S126*KeyAssumptionsPriceControl_FO!AD$15 -> 0.05602065378 | BV126: =+T126*KeyAssumptionsPriceControl_FO!AE$15 -> 0.05730912882 | BW126: =+U126*KeyAssumptionsPriceControl_FO!AF$15 -> 0.05862723878 | BX126: =+V126*KeyAssumptionsPriceControl_FO!AG$15 -> 0.05997566527 | BZ126: 0 | CA126: 0 | CB126: 0 | CC126: 0 | CD126: 0 | CE126: 0 | CF126: 0 | CG126: 0
A127: 75 | B127: 75 | C127: 311 - Linear Program - Reactive Fencing | E127: Irrigation | F127: Renewals | G127: Channels | H127: Other Capital expenditure | J127: Straight line | K127: 2020-21 | L127: 20 | O127: 0.05 | P127: 0.05 | Q127: 0.05 | R127: 0.05 | S127: 0.05 | T127: 0.05 | U127: 0.05 | V127: 0.05 | AP127: 0.05 | AQ127: 0.05 | AR127: 0.05 | AS127: 0.05 | AT127: 0.05 | AU127: 0.05 | AV127: 0.05 | AW127: 0.05 | AY127: 0.00125 | AZ127: 0.00375 | BA127: 0.00625 | BB127: 0.00875 | BC127: 0.01125 | BD127: 0.01375 | BE127: 0.01625 | BF127: 0.01875 | BH127: =+IF($K127="Ongoing",AP127,IF(RIGHT($K127,2)=RIGHT(BH$39,2),SUM($AP127:AP127),0)+IF(RIGHT(BH$39,2)>RIGHT($K127,2),AP127,0)) -> 0.05 | BI127: =+IF($K127="Ongoing",AQ127,IF(RIGHT($K127,2)=RIGHT(BI$39,2),SUM($AP127:AQ127),0)+IF(RIGHT(BI$39,2)>RIGHT($K127,2),AQ127,0)) -> 0.05 | BJ127: =+IF($K127="Ongoing",AR127,IF(RIGHT($K127,2)=RIGHT(BJ$39,2),SUM($AP127:AR127),0)+IF(RIGHT(BJ$39,2)>RIGHT($K127,2),AR127,0)) -> 0.05 | BK127: =+IF($K127="Ongoing",AS127,IF(RIGHT($K127,2)=RIGHT(BK$39,2),SUM($AP127:AS127),0)+IF(RIGHT(BK$39,2)>RIGHT($K127,2),AS127,0)) -> 0.05 | BL127: =+IF($K127="Ongoing",AT127,IF(RIGHT($K127,2)=RIGHT(BL$39,2),SUM($AP127:AT127),0)+IF(RIGHT(BL$39,2)>RIGHT($K127,2),AT127,0)) -> 0.05 | BM127: =+IF($K127="Ongoing",AU127,IF(RIGHT($K127,2)=RIGHT(BM$39,2),SUM($AP127:AU127),0)+IF(RIGHT(BM$39,2)>RIGHT($K127,2),AU127,0)) -> 0.05 | BN127: =+IF($K127="Ongoing",AV127,IF(RIGHT($K127,2)=RIGHT(BN$39,2),SUM($AP127:AV127),0)+IF(RIGHT(BN$39,2)>RIGHT($K127,2),AV127,0)) -> 0.05 | BO127: =+IF($K127="Ongoing",AW127,IF(RIGHT($K127,2)=RIGHT(BO$39,2),SUM($AP127:AW127),0)+IF(RIGHT(BO$39,2)>RIGHT($K127,2),AW127,0)) -> 0.05 | BQ127: =+O127*KeyAssumptionsPriceControl_FO!Z$15 -> 0.05115 | BR127: =+P127*KeyAssumptionsPriceControl_FO!AA$15 -> 0.05232645 | BS127: =+Q127*KeyAssumptionsPriceControl_FO!AB$15 -> 0.05352995835 | BT127: =+R127*KeyAssumptionsPriceControl_FO!AC$15 -> 0.05476114739 | BU127: =+S127*KeyAssumptionsPriceControl_FO!AD$15 -> 0.05602065378 | BV127: =+T127*KeyAssumptionsPriceControl_FO!AE$15 -> 0.05730912882 | BW127: =+U127*KeyAssumptionsPriceControl_FO!AF$15 -> 0.05862723878 | BX127: =+V127*KeyAssumptionsPriceControl_FO!AG$15 -> 0.05997566527 | BZ127: 0 | CA127: 0 | CB127: 0 | CC127: 0 | CD127: 0 | CE127: 0 | CF127: 0 | CG127: 0
